Workbook

Sheet Entry
A2: Cell : | B2: z387 | I2: Display Values
A4: District Name | B4: Values | I4: =B2 -> z387 | J4: p370 | K4: s402 | L4: u402
F5: =IFERROR(INDIRECT(CONCATENATE($A5,"!",B$2)),"") -> 
A6: Ahmadnagar | B6: 250 | F6: =IF(LEN(B6)>0,IF(INDIRECT(CONCATENATE($A6,"!",B$2))=B6,"ü","û"),"") -> ü | H6: Ahmadnagar | I6: =IFERROR(INDIRECT(CONCATENATE($H6,"!",I$4)),"") -> 250 | J6: 0 | K6: 20132.16289 | L6: 551.8957 | M6: =J6+K6-L6 -> 19580.26719
A7: Akola | B7: 90 | F7: =IF(LEN(B7)>0,IF(INDIRECT(CONCATENATE($A7,"!",B$2))=B7,"ü","û"),"") -> ü | H7: Akola | I7: 90 | J7: 0 | K7: 5717.755548 | L7: 178.7577375 | M7: =J7+K7-L7 -> 5538.997811
A8: Amravati | B8: 111 | F8: ü | H8: Amravati | I8: 111 | J8: 0 | K8: 8559.98547 | L8: 429.5529591 | M8: 8130.432511
A9: Aurangabad | B9: 250 | F9: ü | H9: Aurangabad | I9: 250 | J9: 0 | K9: 19502.72908 | L9: 298.11401 | M9: 19204.61507
A10: Beed | B10: 228 | F10: ü | H10: Beed | I10: 228 | J10: 0 | K10: 20513.20935 | L10: 316.8096436 | M10: 20196.3997
A11: Bhandara | B11: 79 | F11: ü | H11: Bhandara | I11: 79 | J11: 0 | K11: 5476.644246 | L11: 24.534885 | M11: 5452.109361
A12: Buldana | B12: 97 | F12: ü | H12: Buldana | I12: 97 | J12: 0 | K12: 9141.66176 | L12: 155.9648556 | M12: 8985.696904
A13: Chandrapur | B13: 115.38 | F13: ü | H13: Chandrapur | I13: 115.38 | J13: 0 | K13: 5665.24156 | L13: 17.8636 | M13: 5647.37796
A14: Dhule | B14: 121 | F14: ü | H14: Dhule | I14: 121 | J14: 0 | K14: 6487.903729 | L14: 190.84047 | M14: 6297.063259
A15: Gadchiroli | B15: 124 | F15: ü | H15: Gadchiroli | I15: 124 | J15: 0 | K15: 7566.95692 | L15: 20.15878 | M15: 7546.79814
A16: Gondiya | B16: 110 | F16: ü | H16: Gondiya | I16: 110 | J16: 0 | K16: 9420.419794 | L16: 59.2028 | M16: 9361.216994
A17: Hingoli | B17: 100 | F17: ü | H17: Hingoli | I17: 100 | J17: 0 | K17: 5507.778068 | L17: 299.3593 | M17: 5208.418768
A18: Jalgaon | B18: 164 | F18: ü | H18: Jalgaon | I18: 164 | J18: 0 | K18: 12459.25837 | L18: 235.8512867 | M18: 12223.40708
A19: Jalna | B19: 212 | F19: ü | H19: Jalna | I19: 212 | J19: 0 | K19: 14717.74067 | L19: 320.4798 | M19: 14397.26087
A20: Kolhapur | B20: 143 | F20: ü | H20: Kolhapur | I20: 143 | J20: 0 | K20: 10098.08486 | L20: 219.7264 | M20: 9878.358463
A21: Latur | B21: 108 | F21: ü | H21: Latur | I21: 108 | J21: 0 | K21: 6832.529303 | L21: 103.489852 | M21: 6729.039451
A22: Mumbai | B22: 60 | F22: ü | H22: Mumbai | I22: =IFERROR(INDIRECT(CONCATENATE($H22,"!",I$4)),"") -> 60 | J22: 0 | K22: 2201.25497 | L22: 0 | M22: 2201.25497
A23: Mumbaisub | B23: 66 | F23: ü | H23: Mumbaisub | I23: 66 | J23: 0 | K23: 6427.892551 | L23: 27.2045 | M23: 6400.688051
A24: Nagpur | B24: 162 | F24: ü | H24: Nagpur | I24: 162 | J24: 0 | K24: 13942.21026 | L24: 213.4938904 | M24: 13728.71637
A25: Nanded | B25: 220 | F25: ü | H25: Nanded | I25: 220 | J25: 0 | K25: 15327.35753 | L25: 478.982 | M25: 14848.37553
A26: Nandurbar | B26: 101 | F26: ü | H26: Nandurbar | I26: 101 | J26: 0 | K26: 11267.23793 | L26: 372.15162 | M26: 10895.08631
A27: Nashik | B27: 325 | F27: ü | H27: Nashik | I27: 325 | J27: 0 | K27: 24548.0699 | L27: 1296.862975 | M27: 23251.20693
A28: Osmanabad | B28: 121 | F28: ü | H28: Osmanabad | I28: 121 | J28: 0 | K28: 6000.428822 | L28: 427.91076 | M28: 5572.518062
A29: Parbhani | B29: 122 | F29: ü | H29: Parbhani | I29: 122 | J29: 0 | K29: 7565.753108 | L29: 543.80541 | M29: 7021.947698
A30: Palgahar | B30: 216 | F30: ü | H30: Palgahar | I30: 216 | J30: 0 | K30: 15264.06866 | L30: 364.56 | M30: 14899.50866
A31: Pune | B31: 231.95 | F31: ü | H31: Pune | I31: 231.95 | J31: 0 | K31: 22292.74928 | L31: 552.5631 | M31: 21740.18618
A32: Raigarh | B32: 222 | F32: ü | H32: Raigarh | I32: 222 | J32: 0 | K32: 12044.43427 | L32: 666.20072 | M32: 11378.23355
A33: Ratnagiri | B33: 114.27 | F33: ü | H33: Ratnagiri | I33: 114.27 | J33: 0 | K33: 5148.094056 | L33: 32.3627 | M33: 5115.731356
A34: Sangali | B34: 120 | F34: ü | H34: Sangali | I34: 120 | J34: 0 | K34: 7657.513967 | L34: 151.8056 | M34: 7505.708367
A35: Satara | B35: 165 | F35: ü | H35: Satara | I35: 165 | J35: 0 | K35: 10550.49104 | L35: 278.2054607 | M35: 10272.28558
A36: Sindhudurg | B36: 61.66 | F36: û | H36: Sindhudurg | I36: 61.65751133 | J36: 0 | K36: 2873.935727 | L36: 47.08709 | M36: 2826.848637
A37: Solapur | B37: 225 | F37: ü | H37: Solapur | I37: 225 | J37: 0 | K37: 17602.48492 | L37: 211.90108 | M37: 17390.58384
A38: Thane | B38: 220 | F38: ü | H38: Thane | I38: =IFERROR(INDIRECT(CONCATENATE($H38,"!",I$4)),"") -> 220 | J38: 0 | K38: 11566.47225 | L38: 327.0351 | M38: 11239.43715
A39: Wardha | B39: 61.21 | F39: û | H39: Wardha | I39: 61.20807074 | J39: 0 | K39: 4157.830458 | L39: 24.3719 | M39: 4133.458558
A40: Washim | B40: 63.01 | F40: ü | H40: Washim | I40: 63.01 | J40: 0 | K40: 3415.318088 | L40: 157.85812 | M40: 3257.459968
A41: Yavatmal | B41: 245 | F41: ü | H41: Yavatmal | I41: 245 | J41: 0 | K41: 13511.08239 | L41: 406.9871 | M41: 13104.09529
B43: =SUM(B6:B42) -> 5424.48
B44: =402924-84 -> 402840
D288: Academic Support through Block Resource Centre/ BRC
U400: =SUM(U395:U399) -> 0
U401: =SUM(U394,U400) -> 0
U402: =SUM(U193,U217,U320,U339,U354,U387,U401) -> 0

Sheet children-Reimb.fee-Post PAB (hidden)
A1: Total Admission in Private Schools Under Section 12 (1)(C) of RTE Act
A2: Name of State : Maharashtra
A4: S. No. | B4: Year | C4: Name of Dist. | D4: Children admitted in
D5: Class-I | E5: Class-II | F5: Total
A6: 1 | B6: 2014-15 | C6: Ahmadnagar | D6: 1231 | E6: 575 | F6: =SUM(D6:E6) -> 1806
A7: 2 | B7: 2014-15 | C7: Akola | D7: 1209 | E7: 1129 | F7: 2338
A8: 3 | B8: 2014-15 | C8: Amravati | D8: 636 | E8: 289 | F8: 925
A9: 4 | B9: 2014-15 | C9: Aurangabad | D9: 1031 | E9: 546 | F9: 1577
A10: 5 | B10: 2014-15 | C10: Beed | D10: 581 | E10: 451 | F10: 1032
A11: 6 | B11: 2014-15 | C11: Bhandara | D11: 430 | E11: 407 | F11: 837
A12: 7 | B12: 2014-15 | C12: Buldana | D12: 1650 | E12: 1218 | F12: 2868
A13: 8 | B13: 2014-15 | C13: Chandrapur | D13: 349 | E13: 476 | F13: 825
A14: 9 | B14: 2014-15 | C14: Dhule | D14: 429 | E14: 242 | F14: 671
A15: 10 | B15: 2014-15 | C15: Gadchiroli | D15: 252 | E15: 237 | F15: 489
A16: 11 | B16: 2014-15 | C16: Gondia | D16: 623 | E16: 836 | F16: 1459
A17: 12 | B17: 2014-15 | C17: Hingoli | D17: 218 | E17: 144 | F17: 362
A18: 13 | B18: 2014-15 | C18: Jalgaon | D18: 1239 | E18: 653 | F18: 1892
A19: 14 | B19: 2014-15 | C19: Jalna | D19: 1249 | E19: 959 | F19: 2208
A20: 15 | B20: 2014-15 | C20: Kolhapur | D20: 1140 | E20: 771 | F20: 1911
A21: 16 | B21: 2014-15 | C21: Latur | D21: 538 | E21: 143 | F21: 681
A22: 17 | B22: 2014-15 | C22: Mumbai (Dy.D.) | D22: 0 | E22: 0 | F22: 0
A23: 18 | B23: 2014-15 | C23: Mumbai (BMC) | D23: 359 | E23: 105 | F23: 464
A24: 19 | B24: 2014-15 | C24: Nagpur | D24: 4535 | E24: 3627 | F24: 8162
A25: 20 | B25: 2014-15 | C25: Nanded | D25: 709 | E25: 492 | F25: 1201
A26: 21 | B26: 2014-15 | C26: Nandurbar | D26: 226 | E26: 0 | F26: 226
A27: 22 | B27: 2014-15 | C27: Nashik | D27: 2170 | E27: 1133 | F27: 3303
A28: 23 | B28: 2014-15 | C28: Osmanabad | D28: 285 | E28: 168 | F28: 453
A29: 24 | B29: 2014-15 | C29: Parbhani | D29: 370 | E29: 312 | F29: 682
A30: 25 | B30: 2014-15 | C30: Palghar | D30: 614 | E30: 425 | F30: 1039
A31: 26 | B31: 2014-15 | C31: Pune | D31: 2091 | E31: 1677 | F31: 3768
A32: 27 | B32: 2014-15 | C32: Raigad | D32: 554 | E32: 624 | F32: 1178
A33: 28 | B33: 2014-15 | C33: Ratnagiri | D33: 293 | E33: 210 | F33: 503
A34: 29 | B34: 2014-15 | C34: Sangli | D34: 312 | E34: 92 | F34: 404
A35: 30 | B35: 2014-15 | C35: Satara | D35: 905 | E35: 474 | F35: 1379
A36: 31 | B36: 2014-15 | C36: Sindhudurg | D36: 160 | E36: 90 | F36: 250
A37: 32 | B37: 2014-15 | C37: Solapur | D37: 1495 | E37: 413 | F37: 1908
A38: 33 | B38: 2014-15 | C38: Thane | D38: 835 | E38: 470 | F38: 1305
A39: 34 | B39: 2014-15 | C39: Wardha | D39: 1196 | E39: 944 | F39: 2140
A40: 35 | B40: 2014-15 | C40: Washim | D40: 284 | E40: 105 | F40: 389
A41: 36 | B41: 2014-15 | C41: Yavatmal | D41: 471 | E41: 512 | F41: 983
A42: TOTAL | D42: =SUM(D6:D41) -> 30669 | E42: =SUM(E6:E41) -> 20949 | F42: =SUM(F6:F41) -> 51618

Sheet Post PAB-Reimbursement Fee 25% (hidden)
A1: S.No. | B1: Districts | C1: Reimbursement fee 25% (Appraisal Report) | D1: Additional amount Reimbursement fee 25% (Post PAB) | G1: Total
C2: Fin. | D2: Unit cost | E2: Phy. | F2: Fin. | G2: Fin.
A3: 1 | B3: Ahmadnagar | C3: 107.41 | D3: =F3/E3 -> 0.02428571429 | E3: 1806 | F3: 43.86 | G3: =C3+F3 -> 151.27
A4: 2 | B4: Akola | C4: 75 | D4: =F4/E4 -> 0.01343883661 | E4: 2338 | F4: 31.42 | G4: =C4+F4 -> 106.42
A5: 3 | B5: Amravati | C5: 42 | D5: 0.01718918919 | E5: 925 | F5: 15.9 | G5: 57.9
A6: 4 | B6: Aurangabad | C6: 40 | D6: 0.01378566899 | E6: 1577 | F6: 21.74 | G6: 61.74
A7: 5 | B7: Beed | C7: 50 | D7: 0.02901162791 | E7: 1032 | F7: 29.94 | G7: 79.94
A8: 6 | B8: Bhandara | C8: 20 | D8: 0.04886499403 | E8: 837 | F8: 40.9 | G8: 60.9
A9: 7 | B9: Buldana | C9: 70 | D9: 0.01268479777 | E9: 2868 | F9: 36.38 | G9: 106.38
A10: 8 | B10: Chandrapur | C10: 30 | D10: 0.01663030303 | E10: 825 | F10: 13.72 | G10: 43.72
A11: 9 | B11: Dhule | C11: 24 | D11: 0.01058122206 | E11: 671 | F11: 7.1 | G11: 31.1
A12: 10 | B12: Gadchiroli | C12: 2.5 | D12: 0.03398773006 | E12: 489 | F12: 16.62 | G12: 19.12
A13: 11 | B13: Gondiya | C13: 8 | D13: 0.05143248801 | E13: 1459 | F13: 75.04 | G13: 83.04
A14: 12 | B14: Hingoli | C14: 20 | D14: 0.01712707182 | E14: 362 | F14: 6.2 | G14: 26.2
A15: 13 | B15: Jalgaon | C15: 42 | D15: 0.006543340381 | E15: 1892 | F15: 12.38 | G15: 54.38
A16: 14 | B16: Jalna | C16: 70 | D16: 0.01433876812 | E16: 2208 | F16: 31.66 | G16: 101.66
A17: 15 | B17: Kolhapur | C17: 20 | D17: 0.02900052329 | E17: 1911 | F17: 55.42 | G17: 75.42
A18: 16 | B18: Latur | C18: 35 | D18: 0.01509544787 | E18: 681 | F18: 10.28 | G18: 45.28
A19: 17 | B19: Mumbai | C19: 32.25 | E19: 0 | F19: 4.84 | G19: 37.09
A20: 18 | B20: Mumbaisub | C20: 22 | D20: 0 | E20: 464 | F20: 0 | G20: 22
A21: 19 | B21: Nagpur | C21: 65 | D21: 0.02913746631 | E21: 8162 | F21: 237.82 | G21: 302.82
A22: 20 | B22: Nanded | C22: 60 | D22: 0.01215653622 | E22: 1201 | F22: 14.6 | G22: 74.6
A23: 21 | B23: Nandurbar | C23: 15 | D23: 0 | E23: 226 | F23: 0 | G23: 15
A24: 22 | B24: Nashik | C24: 80 | D24: 0.01199515592 | E24: 3303 | F24: 39.62 | G24: 119.62
A25: 23 | B25: Osmanabad | C25: 21.83 | D25: 0.009889624724 | E25: 453 | F25: 4.48 | G25: 26.31
A26: 24 | B26: Parbhani | C26: 30 | D26: 0.02 | E26: 682 | F26: 13.64 | G26: 43.64
A27: 25 | B27: Palgahar | C27: 15 | D27: 0 | E27: 1039 | F27: 0 | G27: 15
A28: 26 | B28: Pune | C28: 100 | D28: 0.03518046709 | E28: 3768 | F28: 132.56 | G28: 232.56
A29: 27 | B29: Raigarh | C29: 15 | D29: 0.00921901528 | E29: 1178 | F29: 10.86 | G29: 25.86
A30: 28 | B30: Ratnagiri | C30: 25 | D30: 0.01606361829 | E30: 503 | F30: 8.08 | G30: 33.08
A31: 29 | B31: Sangali | C31: 50 | D31: 0 | E31: 404 | F31: 0 | G31: 50
A32: 30 | B32: Satara | C32: 80 | D32: 0.0001160261059 | E32: 1379 | F32: 0.16 | G32: 80.16
A33: 31 | B33: Sindhudurg | C33: 8 | D33: 0.00992 | E33: 250 | F33: 2.48 | G33: 10.48
A34: 32 | B34: Solapur | C34: 25 | D34: 0.005503144654 | E34: 1908 | F34: 10.5 | G34: 35.5
A35: 33 | B35: Thane | C35: 35 | D35: 0.009164750958 | E35: 1305 | F35: 11.96 | G35: 46.96
A36: 34 | B36: Wardha | C36: 75 | D36: 0.008925233645 | E36: 2140 | F36: 19.1 | G36: 94.1
A37: 35 | B37: Washim | C37: 15 | D37: 0.07110539846 | E37: 389 | F37: 27.66 | G37: 42.66
A38: 36 | B38: Yavatmal | C38: 45 | D38: 0.01330620549 | E38: 983 | F38: 13.08 | G38: 58.08
C39: =SUM(C3:C38) -> 1469.99 | E39: =SUM(E3:E38) -> 51618 | F39: =SUM(F3:F38) -> 1000 | G39: =SUM(G3:G38) -> 2469.99

Sheet Ahmadnagar
A1: Sarva Shiksha Abhiyan & KGBV - Annual Workplan and Budget 2017-18
A3: District : | B3: Ahmadnagar
A5: S.No. | B5: Activity | C5: Year 2016-17 | K5: Outlay Proposed for 2017-18 | T5: Outlay Recommended for 2017-18 | AC5: Remarks
C6: Outlay approved by PAB (including spillover) | E6: Achievement | I6: Savings | K6: Spill Over | M6: Deferred laibility of 2014-15 | O6: Fresh | R6: Total | T6: Spill Over | V6: Deferred laibility of 2014-15 | X6: Fresh | AA6: Total
C7: Phy. | D7: Fin | E7: Phy. | F7: Fin. | G7: Phy. (%) | H7: Fin. (%) | I7: Phy. | J7: Fin. | K7: Phy. | L7: Fin. | M7: Phy. | N7: Fin. | O7: Unit Cost | P7: Phy. | Q7: Fin. | R7: Phy. | S7: Fin. | T7: Phy. | U7: Fin. | V7: Phy. | W7: Fin. | X7: Unit Cost | Y7: Phy. | Z7: Fin. | AA7: Phy. | AB7: Fin.
A8: I | B8: ACCESS | I8: =C8-G8 -> 0 | J8: =D8-F8 -> 0
B9: SSA | I9: =C9-G9 -> 0 | J9: 0
A10: 1 | B10: Opening of New Schools | I10: =C10-G10 -> 0 | J10: 0 | AD10: Phy | AE10: Fin
A11: 1.01 | B11: New Primary School | C11: 0 | D11: 0 | G11: =IFERROR(E11/C11,0) -> 0 | H11: 0 | I11: =C11-E11 -> 0 | J11: 0 | Q11: =O11*P11 -> 0 | R11: =K11+M11+P11 -> 0 | S11: 0 | Z11: =X11*Y11 -> 0 | AA11: =T11+V11+Y11 -> 0 | AB11: =U11+W11+Z11 -> 0 | AD11: =J11=#REF! ->  | AE11: =K11=AC11 -> TRUE | AG11: =N12+#REF! ->  | AH11: =O12+#REF! ->  | AI11: =AG11=E12 -> 
A12: 1.02 | B12: Upgradation of PS to UPS | C12: 0 | D12: 0 | G12: 0 | H12: 0 | I12: 0 | J12: 0 | Q12: 0 | R12: 0 | S12: 0 | Z12: 0 | AA12: 0 | AB12: 0 | AD12: =J12=#REF! ->  | AE12: TRUE | AG12: =N13+#REF! ->  | AH12: =O13+#REF! -> 
A13: 1.03 | B13: Composite Schools | C13: 0 | D13: 0 | G13: 0 | H13: 0 | I13: 0 | J13: 0 | Q13: 0 | R13: 0 | S13: 0 | Z13: 0 | AA13: 0 | AB13: 0 | AD13: =J13=#REF! ->  | AE13: TRUE | AG13: =N14+#REF! ->  | AH13: =O14+#REF! -> 
A14: 1.04 | B14: Residential schools for specific category of children | C14: 0 | D14: 0 | G14: 0 | H14: 0 | I14: 0 | J14: 0 | Q14: 0 | R14: 0 | S14: 0 | Z14: 0 | AA14: 0 | AB14: 0 | AD14: =J14=#REF! ->  | AE14: TRUE | AG14: =N15+#REF! ->  | AH14: =O15+#REF! -> 
A15: 1.05 | B15: Residential Hostel | C15: 0 | D15: 0 | G15: 0 | H15: 0 | I15: 0 | J15: 0 | Q15: 0 | R15: 0 | S15: 0 | Z15: 0 | AA15: 0 | AB15: 0 | AD15: =J15=#REF! ->  | AE15: TRUE | AG15: =N16+#REF! ->  | AH15: =O16+#REF! -> 
A16: 1.06 | B16: Integration of Class V with primary schools | C16: 0 | D16: 0 | G16: 0 | H16: 0 | I16: 0 | J16: 0 | Q16: 0 | R16: 0 | S16: 0 | Z16: 0 | AA16: 0 | AB16: 0 | AD16: =J16=#REF! ->  | AE16: TRUE | AG16: =N17+#REF! ->  | AH16: =O17+#REF! -> 
A17: 1.07 | B17: Integration of Class VIII with upper primary schools | C17: 0 | D17: 0 | G17: 0 | H17: 0 | I17: 0 | J17: 0 | Q17: 0 | R17: 0 | S17: 0 | Z17: 0 | AA17: 0 | AB17: 0 | AD17: =J17=#REF! ->  | AE17: TRUE | AG17: =N18+#REF! ->  | AH17: =O18+#REF! -> 
A18: 2 | B18: Residential Schools for specific category of children | G18: 0 | H18: 0 | I18: =C18-G18 -> 0 | J18: 0 | AD18: =J18=#REF! ->  | AE18: TRUE | AG18: =N19+#REF! ->  | AH18: =O19+#REF! -> 
A19: I | B19: 50 children | G19: 0 | H19: 0 | I19: =C19-G19 -> 0 | J19: 0 | AD19: =J19=#REF! ->  | AE19: TRUE | AG19: =N20+#REF! ->  | AH19: =O20+#REF! -> 
A20: (A) | B20: Non-recurring (one time grant) | G20: 0 | H20: 0 | I20: =C20-G20 -> 0 | J20: 0 | AD20: =J20=#REF! ->  | AE20: TRUE | AG20: =N21+#REF! ->  | AH20: =O21+#REF! -> 
A21: 2.01 | B21: Furniture/ Equipment (including kitchen) | C21: 0 | D21: 0 | G21: 0 | H21: 0 | I21: =C21-E21 -> 0 | J21: 0 | Q21: =O21*P21 -> 0 | R21: =K21+M21+P21 -> 0 | S21: 0 | Z21: =X21*Y21 -> 0 | AA21: =T21+V21+Y21 -> 0 | AB21: =U21+W21+Z21 -> 0 | AD21: =J21=#REF! ->  | AE21: TRUE | AG21: =N22+#REF! ->  | AH21: =O22+#REF! -> 
A22: 2.02 | B22: TLM and equipment including library books | C22: 0 | D22: 0 | G22: 0 | H22: 0 | I22: =C22-E22 -> 0 | J22: 0 | Q22: =O22*P22 -> 0 | R22: 0 | S22: 0 | Z22: =X22*Y22 -> 0 | AA22: 0 | AB22: 0 | AD22: =J22=#REF! ->  | AE22: TRUE | AG22: =N23+#REF! ->  | AH22: =O23+#REF! -> 
A23: 2.03 | B23: Bedding (new) | C23: 0 | D23: 0 | G23: 0 | H23: 0 | I23: =C23-E23 -> 0 | J23: 0 | Q23: =O23*P23 -> 0 | R23: 0 | S23: 0 | Z23: =X23*Y23 -> 0 | AA23: 0 | AB23: 0 | AD23: =J23=#REF! ->  | AE23: TRUE | AG23: =N24+#REF! ->  | AH23: =O24+#REF! -> 
A24: 2.04 | B24: Replacement of bedding (once in 3 years) | C24: 0 | D24: 0 | G24: 0 | H24: 0 | I24: =C24-E24 -> 0 | J24: 0 | Q24: =O24*P24 -> 0 | R24: 0 | S24: 0 | Z24: =X24*Y24 -> 0 | AA24: 0 | AB24: 0 | AD24: =J24=#REF! ->  | AE24: TRUE | AG24: =N25+#REF! ->  | AH24: =O25+#REF! -> 
B25: Sub Total (Non Recurring) | C25: =SUM(C21:C24) -> 0 | D25: 0 | E25: 0 | F25: 0 | G25: 0 | H25: 0 | I25: 0 | J25: 0 | K25: 0 | L25: 0 | M25: 0 | N25: 0 | P25: 0 | Q25: 0 | R25: 0 | S25: 0 | T25: 0 | U25: 0 | V25: 0 | W25: 0 | Y25: =SUM(Y21:Y24) -> 0 | Z25: 0 | AA25: 0 | AB25: 0 | AD25: =J25=#REF! ->  | AE25: TRUE | AG25: =N26+#REF! ->  | AH25: =O26+#REF! -> 
A26: (B) | B26: Recurring (50 children) | G26: 0 | H26: 0 | I26: =C26-G26 -> 0 | J26: =D26-F26 -> 0 | AD26: =J26=#REF! ->  | AE26: TRUE | AG26: =N27+#REF! ->  | AH26: =O27+#REF! -> 
A27: 2.05 | B27: Maintenance per child Per month @ Rs.1500/- | C27: 0 | D27: 0 | G27: 0 | H27: 0 | I27: =C27-E27 -> 0 | J27: 0 | Q27: =O27*P27 -> 0 | R27: =K27+M27+P27 -> 0 | S27: 0 | Z27: =X27*Y27 -> 0 | AA27: =T27+V27+Y27 -> 0 | AB27: =U27+W27+Z27 -> 0 | AD27: =J27=#REF! ->  | AE27: TRUE | AG27: =N28+#REF! ->  | AH27: =O28+#REF! -> 
A28: 2.06 | B28: Stipend per child per month @ Rs.100/- | C28: 0 | D28: 0 | G28: 0 | H28: 0 | I28: 0 | J28: 0 | Q28: =O28*P28 -> 0 | R28: 0 | S28: 0 | Z28: =X28*Y28 -> 0 | AA28: 0 | AB28: 0 | AD28: =J28=#REF! ->  | AE28: TRUE | AG28: =N29+#REF! ->  | AH28: =O29+#REF! -> 
A29: 2.07 | B29: Supplementary TLM, Stationery and other educational material @Rs.1000/- per child per annum | C29: 0 | D29: 0 | G29: 0 | H29: 0 | I29: 0 | J29: 0 | Q29: =O29*P29 -> 0 | R29: 0 | S29: 0 | Z29: =X29*Y29 -> 0 | AA29: 0 | AB29: 0 | AD29: =J29=#REF! ->  | AE29: TRUE | AG29: =N30+#REF! ->  | AH29: =O30+#REF! -> 
A30: 2.08 | B30: Salaries | G30: 0 | H30: 0 | I30: 0 | J30: 0 | AD30: =J30=#REF! ->  | AE30: TRUE | AG30: =N31+#REF! ->  | AH30: =O31+#REF! -> 
A31: (a) | B31: 1 Warden @ Rs.25000/- per month | C31: 0 | D31: 0 | G31: 0 | H31: 0 | I31: 0 | J31: 0 | Q31: =O31*P31 -> 0 | R31: =K31+M31+P31 -> 0 | S31: 0 | Z31: =X31*Y31 -> 0 | AA31: =T31+V31+Y31 -> 0 | AB31: =U31+W31+Z31 -> 0 | AD31: =J31=#REF! ->  | AE31: TRUE | AG31: =N32+#REF! ->  | AH31: =O32+#REF! -> 
A32: (b) | B32: 4 Fulltime teachers as per RTE Norms @ Rs. 20,000/- per month per teacher | C32: 0 | D32: 0 | G32: 0 | H32: 0 | I32: 0 | J32: 0 | Q32: 0 | R32: 0 | S32: 0 | Z32: 0 | AA32: 0 | AB32: 0 | AD32: =J32=#REF! ->  | AE32: TRUE | AG32: =N33+#REF! ->  | AH32: =O33+#REF! -> 
A33: (c) | B33: 2 Urdu Teachers (only for Blocks with muslim population above 20% and select urban areas) @ Rs.12,000/- per month per teacher. | C33: 0 | D33: 0 | G33: 0 | H33: 0 | I33: 0 | J33: 0 | Q33: 0 | R33: 0 | S33: 0 | Z33: 0 | AA33: 0 | AB33: 0 | AD33: =J33=#REF! ->  | AE33: TRUE | AG33: =N34+#REF! ->  | AH33: =O34+#REF! -> 
A34: (d) | B34: 3 Part time teachers @ Rs.5,000/- per month per teacher | C34: 0 | D34: 0 | G34: 0 | H34: 0 | I34: 0 | J34: 0 | Q34: 0 | R34: 0 | S34: 0 | Z34: 0 | AA34: 0 | AB34: 0 | AD34: =J34=#REF! ->  | AE34: TRUE | AG34: =N35+#REF! ->  | AH34: =O35+#REF! -> 
A35: (e) | B35: 1 Full time Accountant @ Rs. 10,000/- per month | C35: 0 | D35: 0 | G35: 0 | H35: 0 | I35: 0 | J35: 0 | Q35: 0 | R35: 0 | S35: 0 | Z35: 0 | AA35: 0 | AB35: 0 | AD35: =J35=#REF! ->  | AE35: TRUE | AG35: =#REF!+#REF! ->  | AH35: =#REF!+#REF! ->  | AI35: =AG35=#REF! ->  | AJ35: =AH35=#REF! -> 
A36: (f) | B36: 2 Support staff - (Accountant/Assistant, Peon, Chowkidar) @ Rs. 5,000/- per month per staff | C36: 0 | D36: 0 | G36: 0 | H36: 0 | I36: 0 | J36: 0 | Q36: 0 | R36: 0 | S36: 0 | Z36: 0 | AA36: 0 | AB36: 0 | AD36: =J36=#REF! ->  | AE36: TRUE | AG36: =N37+#REF! ->  | AH36: =O37+#REF! ->  | AI36: =AG36=E37 -> 
A37: (g) | B37: 1 Head Cook @ Rs. 6,000/- per month and upto 2 Asstt. Cooks @ Rs. 4,500/- per month per cook | C37: 0 | D37: 0 | G37: 0 | H37: 0 | I37: 0 | J37: 0 | Q37: 0 | R37: 0 | S37: 0 | Z37: 0 | AA37: 0 | AB37: 0 | AD37: =J37=#REF! ->  | AE37: TRUE | AG37: =N38+#REF! ->  | AH37: =O38+#REF! -> 
A38: 2.09 | B38: Specific Skill training @ Rs.1000/- per annum per child | C38: 0 | D38: 0 | G38: 0 | H38: 0 | I38: 0 | J38: 0 | Q38: 0 | R38: 0 | S38: 0 | Z38: 0 | AA38: 0 | AB38: 0 | AD38: =J38=#REF! ->  | AE38: TRUE | AG38: =N39+#REF! ->  | AH38: =O39+#REF! -> 
A39: 2.1 | B39: Electricity / water charges @ Rs. 1000/- per annum per child | C39: 0 | D39: 0 | G39: 0 | H39: 0 | I39: 0 | J39: 0 | Q39: 0 | R39: 0 | S39: 0 | Z39: 0 | AA39: 0 | AB39: 0 | AD39: =J39=#REF! ->  | AE39: TRUE | AG39: =N40+#REF! ->  | AH39: =O40+#REF! -> 
A40: 2.11 | B40: Medical care/contingencies @ Rs.1250/- per annum per child | C40: 0 | D40: 0 | G40: 0 | H40: 0 | I40: 0 | J40: 0 | Q40: 0 | R40: 0 | S40: 0 | Z40: 0 | AA40: 0 | AB40: 0 | AD40: =J40=#REF! ->  | AE40: TRUE | AG40: =N41+#REF! ->  | AH40: =O41+#REF! -> 
A41: =+A40+0.01 -> 2.12 | B41: Maintenance @ Rs. 750/- per child per annum | C41: 0 | D41: 0 | G41: 0 | H41: 0 | I41: 0 | J41: 0 | Q41: 0 | R41: 0 | S41: 0 | Z41: 0 | AA41: 0 | AB41: 0 | AD41: =J41=#REF! ->  | AE41: TRUE | AG41: =N42+#REF! ->  | AH41: =O42+#REF! -> 
A42: 2.13 | B42: Miscellaneous @ Rs. 750/- per child per annum | C42: 0 | D42: 0 | G42: 0 | H42: 0 | I42: 0 | J42: 0 | Q42: 0 | R42: 0 | S42: 0 | Z42: 0 | AA42: 0 | AB42: 0 | AD42: =J42=#REF! ->  | AE42: TRUE | AG42: =N43+#REF! ->  | AH42: =O43+#REF! -> 
A43: 2.14 | B43: Preparatory camps @ Rs. 300/- per child per annum | C43: 0 | D43: 0 | G43: =IFERROR(E43/C43,0) -> 0 | H43: 0 | I43: 0 | J43: 0 | Q43: 0 | R43: 0 | S43: 0 | Z43: 0 | AA43: 0 | AB43: 0 | AD43: =J43=#REF! ->  | AE43: TRUE | AG43: =N44+#REF! ->  | AH43: =O44+#REF! -> 
A44: 2.15 | B44: P.T.A / school functions @ Rs. 300/- per child per annum | C44: 0 | D44: 0 | G44: 0 | H44: 0 | I44: 0 | J44: 0 | Q44: 0 | R44: 0 | S44: 0 | Z44: 0 | AA44: 0 | AB44: 0 | AD44: =J44=#REF! ->  | AE44: TRUE | AG44: =N45+#REF! ->  | AH44: =O45+#REF! -> 
A45: 2.16 | B45: Provision of Rent @ Rs. 10,000/- per child per annum | C45: 0 | D45: 0 | G45: 0 | H45: 0 | I45: 0 | J45: 0 | Q45: 0 | R45: 0 | S45: 0 | Z45: 0 | AA45: 0 | AB45: 0 | AD45: =J45=#REF! ->  | AE45: TRUE | AG45: =N46+#REF! ->  | AH45: =O46+#REF! -> 
A46: 2.17 | B46: Capacity Building @ Rs. 500/- per child per annum | C46: 0 | D46: 0 | G46: 0 | H46: 0 | I46: 0 | J46: 0 | Q46: 0 | R46: 0 | S46: 0 | Z46: 0 | AA46: 0 | AB46: 0 | AD46: =J46=#REF! ->  | AE46: TRUE | AG46: =N47+#REF! ->  | AH46: =O47+#REF! -> 
A47: 2.18 | B47: Physical / Self Defence Training @ Rs.200/- per child per annum | C47: 0 | D47: 0 | G47: 0 | H47: 0 | I47: 0 | J47: 0 | Q47: 0 | R47: 0 | S47: 0 | Z47: 0 | AA47: 0 | AB47: 0 | AD47: =J47=#REF! ->  | AE47: TRUE | AG47: =N48+#REF! ->  | AH47: =O48+#REF! -> 
B48: Sub Total (Recurring) | C48: =SUM(C27:C47) -> 0 | D48: 0 | E48: 0 | F48: 0 | G48: 0 | H48: 0 | I48: 0 | J48: 0 | K48: 0 | L48: 0 | M48: 0 | N48: 0 | P48: 0 | Q48: 0 | R48: 0 | S48: 0 | T48: 0 | U48: 0 | V48: 0 | W48: 0 | Y48: =SUM(Y27:Y47) -> 0 | Z48: 0 | AA48: 0 | AB48: 0 | AD48: =J48=#REF! ->  | AE48: TRUE | AG48: =N49+#REF! ->  | AH48: =O49+#REF! -> 
B49: Total (Non Recurring + Recurring) | C49: =C25+C48 -> 0 | D49: 0 | E49: 0 | F49: 0 | G49: 0 | H49: 0 | I49: 0 | J49: 0 | K49: 0 | L49: 0 | M49: 0 | N49: 0 | P49: 0 | Q49: 0 | R49: 0 | S49: 0 | T49: 0 | U49: 0 | V49: 0 | W49: 0 | Y49: =Y25+Y48 -> 0 | Z49: 0 | AA49: 0 | AB49: 0 | AD49: =J49=#REF! ->  | AE49: TRUE | AG49: =N50+#REF! ->  | AH49: =O50+#REF! -> 
A50: II | B50: 100 children | G50: 0 | H50: 0 | I50: =C50-G50 -> 0 | J50: =D50-F50 -> 0 | AD50: =J50=#REF! ->  | AE50: TRUE | AG50: =N51+#REF! ->  | AH50: =O51+#REF! -> 
A51: (A) | B51: Non-recurring (one time grant) | G51: 0 | H51: 0 | I51: =C51-G51 -> 0 | J51: 0 | AD51: =J51=#REF! ->  | AE51: TRUE | AG51: =N52+#REF! ->  | AH51: =O52+#REF! -> 
A52: 2.19 | B52: Furniture / Equipment (including kitchen equipment) | C52: 0 | D52: 0 | G52: 0 | H52: 0 | I52: =C52-E52 -> 0 | J52: 0 | Q52: =O52*P52 -> 0 | R52: =K52+M52+P52 -> 0 | S52: 0 | Z52: =X52*Y52 -> 0 | AA52: =T52+V52+Y52 -> 0 | AB52: =U52+W52+Z52 -> 0 | AD52: =J52=#REF! ->  | AE52: TRUE | AG52: =N53+#REF! ->  | AH52: =O53+#REF! -> 
A53: =+A52+0.01 -> 2.2 | B53: TLM and equipment including library books (New) | C53: 0 | D53: 0 | G53: 0 | H53: 0 | I53: =C53-E53 -> 0 | J53: 0 | Q53: =O53*P53 -> 0 | R53: 0 | S53: 0 | Z53: =X53*Y53 -> 0 | AA53: 0 | AB53: 0 | AD53: =J53=#REF! ->  | AE53: TRUE | AG53: =N54+#REF! ->  | AH53: =O54+#REF! -> 
A54: =+A53+0.01 -> 2.21 | B54: Bedding (New) | C54: 0 | D54: 0 | G54: 0 | H54: 0 | I54: =C54-E54 -> 0 | J54: 0 | Q54: =O54*P54 -> 0 | R54: 0 | S54: 0 | Z54: =X54*Y54 -> 0 | AA54: 0 | AB54: 0 | AD54: =J54=#REF! ->  | AE54: TRUE | AG54: =N55+#REF! ->  | AH54: =O55+#REF! -> 
A55: =+A54+0.01 -> 2.22 | B55: Replacement of bedding (once in 3 years) | C55: 0 | D55: 0 | G55: 0 | H55: 0 | I55: =C55-E55 -> 0 | J55: 0 | Q55: =O55*P55 -> 0 | R55: 0 | S55: 0 | Z55: =X55*Y55 -> 0 | AA55: 0 | AB55: 0 | AD55: =J55=#REF! ->  | AE55: TRUE | AG55: =N56+#REF! ->  | AH55: =O56+#REF! -> 
B56: Sub Total Non-recurring | C56: =SUM(C52:C55) -> 0 | D56: 0 | E56: 0 | F56: 0 | G56: 0 | H56: 0 | I56: 0 | J56: 0 | K56: 0 | L56: 0 | M56: 0 | N56: 0 | P56: 0 | Q56: 0 | R56: 0 | S56: 0 | T56: 0 | U56: 0 | V56: 0 | W56: 0 | Y56: =SUM(Y52:Y55) -> 0 | Z56: 0 | AA56: 0 | AB56: 0 | AD56: =J56=#REF! ->  | AE56: TRUE | AG56: =N64+#REF! ->  | AH56: =O64+#REF! ->  | AI56: =AG56=E64 ->  | AJ56: =AH56=F64 -> 
A57: (B) | B57: Recurring | G57: 0 | H57: 0 | I57: =C57-G57 -> 0 | J57: =D57-F57 -> 0
A58: 2.23 | B58: Maintenance per child per month @ Rs. 1500/- | C58: 0 | D58: 0 | G58: 0 | H58: 0 | I58: =C58-E58 -> 0 | J58: 0 | Q58: =O58*P58 -> 0 | R58: =K58+M58+P58 -> 0 | S58: 0 | Z58: =X58*Y58 -> 0 | AA58: =T58+V58+Y58 -> 0 | AB58: =U58+W58+Z58 -> 0
A59: =+A58+0.01 -> 2.24 | B59: Stipend per child per month @ Rs.100/- | C59: 0 | D59: 0 | G59: 0 | H59: 0 | I59: 0 | J59: 0 | Q59: =O59*P59 -> 0 | R59: 0 | S59: 0 | Z59: =X59*Y59 -> 0 | AA59: 0 | AB59: 0
A60: 2.25 | B60: Supplementary TLM, Stationery and other educational material per child @1000/- per annum | C60: 0 | D60: 0 | G60: 0 | H60: 0 | I60: 0 | J60: 0 | Q60: =O60*P60 -> 0 | R60: 0 | S60: 0 | Z60: =X60*Y60 -> 0 | AA60: 0 | AB60: 0
A61: 2.26 | B61: Salaries | G61: 0 | H61: 0 | I61: 0 | J61: 0
A62: (a) | B62: 1 Warden @ Rs. 25,000/- per month | C62: 0 | D62: 0 | G62: 0 | H62: 0 | I62: 0 | J62: 0 | Q62: =O62*P62 -> 0 | R62: =K62+M62+P62 -> 0 | S62: 0 | Z62: =X62*Y62 -> 0 | AA62: =T62+V62+Y62 -> 0 | AB62: =U62+W62+Z62 -> 0
A63: (b) | B63: 1 head teacher @ Rs. 25,000/- per month in case the enrollment exceeds 100 | C63: 0 | D63: 0 | G63: 0 | H63: 0 | I63: 0 | J63: 0 | Q63: 0 | R63: 0 | S63: 0 | Z63: 0 | AA63: 0 | AB63: 0
A64: (c) | B64: 4 - 5 Full time teachers as per RTE norms @ Rs. 20,000/- per month per teacher | C64: 0 | D64: 0 | G64: 0 | H64: 0 | I64: 0 | J64: 0 | Q64: 0 | R64: 0 | S64: 0 | Z64: 0 | AA64: 0 | AB64: 0 | AD64: =J64=#REF! ->  | AE64: =K64=AC64 -> TRUE | AG64: =N65+#REF! ->  | AH64: =O65+#REF! ->  | AI64: =AG64=E65 -> 
A65: (d) | B65: 2 Urdu Teachers (only for blocks with muslim population above 20% and select urban areas), if required @ Rs. 12,000/- per month per teacher | C65: 0 | D65: 0 | G65: 0 | H65: 0 | I65: 0 | J65: 0 | Q65: 0 | R65: 0 | S65: 0 | Z65: 0 | AA65: 0 | AB65: 0 | AD65: =J65=#REF! ->  | AE65: TRUE | AG65: =N66+#REF! ->  | AH65: =O66+#REF! -> 
A66: (e) | B66: 3 part time teachers @ Rs. 5,000/- per month per teacher | C66: 0 | D66: 0 | G66: 0 | H66: 0 | I66: 0 | J66: 0 | Q66: 0 | R66: 0 | S66: 0 | Z66: 0 | AA66: 0 | AB66: 0 | AD66: =J66=#REF! ->  | AE66: TRUE | AG66: =N67+#REF! ->  | AH66: =O67+#REF! -> 
A67: (f) | B67: 1 Full time Accountant @ Rs. 10,000/- per month | C67: 0 | D67: 0 | G67: 0 | H67: 0 | I67: 0 | J67: 0 | Q67: 0 | R67: 0 | S67: 0 | Z67: 0 | AA67: 0 | AB67: 0 | AD67: =J67=#REF! ->  | AE67: TRUE | AG67: =N68+#REF! ->  | AH67: =O68+#REF! -> 
A68: (g) | B68: 2 Support Staff – (Accountant/ Assistant, Peon, Chowkidar) @ Rs. 5,000/- per month per staff | C68: 0 | D68: 0 | G68: 0 | H68: 0 | I68: 0 | J68: 0 | Q68: 0 | R68: 0 | S68: 0 | Z68: 0 | AA68: 0 | AB68: 0 | AD68: =J68=#REF! ->  | AE68: TRUE | AG68: =N69+#REF! ->  | AH68: =O69+#REF! -> 
A69: (h) | B69: 1 Head cook @ Rs. 6,000/- per month and upto 2 Asstt. Cooks @ Rs. 4,500/- per month per cook | C69: 0 | D69: 0 | G69: 0 | H69: 0 | I69: 0 | J69: 0 | Q69: 0 | R69: 0 | S69: 0 | Z69: 0 | AA69: 0 | AB69: 0 | AD69: =J69=#REF! ->  | AE69: TRUE | AG69: =N70+#REF! ->  | AH69: =O70+#REF! -> 
A70: 2.27 | B70: Specific skill training per child @ Rs.1000/- per annum | C70: 0 | D70: 0 | G70: 0 | H70: 0 | I70: 0 | J70: 0 | Q70: 0 | R70: 0 | S70: 0 | Z70: 0 | AA70: 0 | AB70: 0 | AD70: =J70=#REF! ->  | AE70: TRUE | AG70: =N71+#REF! ->  | AH70: =O71+#REF! -> 
A71: 2.28 | B71: Electricity / water charges per child @Rs.1000/- per annum | C71: 0 | D71: 0 | G71: 0 | H71: 0 | I71: 0 | J71: 0 | Q71: 0 | R71: 0 | S71: 0 | Z71: 0 | AA71: 0 | AB71: 0 | AD71: =J71=#REF! ->  | AE71: TRUE | AG71: =N72+#REF! ->  | AH71: =O72+#REF! -> 
A72: 2.29 | B72: Medical care/contingencies @ Rs.1250/- per child per annum | C72: 0 | D72: 0 | G72: 0 | H72: 0 | I72: 0 | J72: 0 | Q72: 0 | R72: 0 | S72: 0 | Z72: 0 | AA72: 0 | AB72: 0 | AD72: =J72=#REF! ->  | AE72: TRUE | AG72: =N73+#REF! ->  | AH72: =O73+#REF! -> 
A73: 2.3 | B73: Maintenance @ Rs.750/- per child per annum | C73: 0 | D73: 0 | G73: 0 | H73: 0 | I73: 0 | J73: 0 | Q73: 0 | R73: 0 | S73: 0 | Z73: 0 | AA73: 0 | AB73: 0 | AD73: =J73=#REF! ->  | AE73: TRUE | AG73: =N74+#REF! ->  | AH73: =O74+#REF! -> 
A74: 2.31 | B74: Miscellaneous @ Rs.750/- per child per annum | C74: 0 | D74: 0 | G74: 0 | H74: 0 | I74: 0 | J74: 0 | Q74: 0 | R74: 0 | S74: 0 | Z74: 0 | AA74: 0 | AB74: 0 | AD74: =J74=#REF! ->  | AE74: TRUE | AG74: =N75+#REF! ->  | AH74: =O75+#REF! -> 
A75: 2.32 | B75: Preparatory camps @ Rs.200/- per child per annum | C75: 0 | D75: 0 | G75: =IFERROR(E75/C75,0) -> 0 | H75: 0 | I75: 0 | J75: 0 | Q75: 0 | R75: 0 | S75: 0 | Z75: 0 | AA75: 0 | AB75: 0 | AD75: =J75=#REF! ->  | AE75: TRUE | AG75: =N76+#REF! ->  | AH75: =O76+#REF! -> 
A76: 2.33 | B76: P.T.A / school functions @ Rs.200/- per child per annum | C76: 0 | D76: 0 | G76: 0 | H76: 0 | I76: 0 | J76: 0 | Q76: 0 | R76: 0 | S76: 0 | Z76: 0 | AA76: 0 | AB76: 0 | AD76: =J76=#REF! ->  | AE76: TRUE | AG76: =N77+#REF! ->  | AH76: =O77+#REF! -> 
A77: 2.34 | B77: Provision of Rent @ Rs. 6000/- per child per annum | C77: 0 | D77: 0 | G77: 0 | H77: 0 | I77: 0 | J77: 0 | Q77: 0 | R77: 0 | S77: 0 | Z77: 0 | AA77: 0 | AB77: 0 | AD77: =J77=#REF! ->  | AE77: TRUE | AG77: =N78+#REF! ->  | AH77: =O78+#REF! -> 
A78: 2.35 | B78: Capacity Building @ Rs.500/- per child per annum | C78: 0 | D78: 0 | G78: 0 | H78: 0 | I78: 0 | J78: 0 | Q78: 0 | R78: 0 | S78: 0 | Z78: 0 | AA78: 0 | AB78: 0 | AD78: =J78=#REF! ->  | AE78: TRUE | AG78: =N79+#REF! ->  | AH78: =O79+#REF! -> 
A79: 2.36 | B79: Physical / Self Defence training @ Rs. 200/- per child per annum. | C79: 0 | D79: 0 | G79: 0 | H79: 0 | I79: 0 | J79: 0 | Q79: 0 | R79: 0 | S79: 0 | Z79: 0 | AA79: 0 | AB79: 0 | AD79: =J79=#REF! ->  | AE79: TRUE | AG79: =N80+#REF! ->  | AH79: =O80+#REF! -> 
B80: Sub Total (Recurring) | C80: =SUM(C58:C79) -> 0 | D80: 0 | E80: 0 | F80: 0 | G80: 0 | H80: 0 | I80: 0 | J80: 0 | K80: 0 | L80: 0 | M80: 0 | N80: 0 | P80: 0 | Q80: 0 | R80: 0 | S80: 0 | T80: 0 | U80: 0 | V80: 0 | W80: 0 | Y80: =SUM(Y58:Y79) -> 0 | Z80: 0 | AA80: 0 | AB80: 0 | AD80: =J80=#REF! ->  | AE80: TRUE | AG80: =N81+#REF! ->  | AH80: =O81+#REF! -> 
B81: Total (Recurring + Non Recurring) | C81: =C56+C80 -> 0 | D81: 0 | E81: 0 | F81: 0 | G81: 0 | H81: 0 | I81: 0 | J81: 0 | K81: 0 | L81: 0 | M81: 0 | N81: 0 | P81: 0 | Q81: 0 | R81: 0 | S81: 0 | T81: 0 | U81: 0 | V81: 0 | W81: 0 | Y81: =Y56+Y80 -> 0 | Z81: 0 | AA81: 0 | AB81: 0 | AD81: =J81=#REF! ->  | AE81: TRUE | AG81: =N82+#REF! ->  | AH81: =O82+#REF! -> 
A82: 2 | B82: Total (50 + 100 children) | C82: =C49+C81 -> 0 | D82: 0 | E82: 0 | F82: 0 | G82: 0 | H82: 0 | I82: 0 | J82: 0 | K82: 0 | L82: 0 | M82: 0 | N82: 0 | O82: 0 | P82: 0 | Q82: 0 | R82: =R49+R81 -> 0 | S82: =S49+S81 -> 0 | T82: 0 | U82: 0 | V82: =V49+V81 -> 0 | W82: 0 | X82: 0 | Y82: =Y49+Y81 -> 0 | Z82: 0 | AA82: =AA49+AA81 -> 0 | AB82: =AB49+AB81 -> 0 | AD82: =J82=#REF! ->  | AE82: TRUE | AG82: =N83+#REF! ->  | AH82: =O83+#REF! -> 
A83: 3 | B83: Residential Hostel for specific category of children | G83: 0 | H83: 0 | I83: =C83-G83 -> 0 | J83: =D83-F83 -> 0 | AD83: =J83=#REF! ->  | AE83: TRUE | AG83: =N84+#REF! ->  | AH83: =O84+#REF! -> 
A84: (A) | B84: 50 children | G84: 0 | H84: 0 | I84: =C84-G84 -> 0 | J84: 0 | AD84: =J84=#REF! ->  | AE84: TRUE | AG84: =N85+#REF! ->  | AH84: =O85+#REF! -> 
B85: Non-recurring (one time grant) | G85: 0 | H85: 0 | I85: =C85-G85 -> 0 | J85: 0 | AD85: =J85=#REF! ->  | AE85: TRUE | AG85: =N86+#REF! ->  | AH85: =O86+#REF! -> 
A86: 3.01 | B86: Furniture/ Equipment (including kitchen) | C86: 0 | D86: 0 | G86: 0 | H86: 0 | I86: =C86-E86 -> 0 | J86: 0 | O86: 1.5 | P86: 0 | Q86: =O86*P86 -> 0 | R86: =K86+M86+P86 -> 0 | S86: 0 | X86: 1.5 | Z86: =X86*Y86 -> 0 | AA86: =T86+V86+Y86 -> 0 | AB86: =U86+W86+Z86 -> 0 | AD86: =J86=#REF! ->  | AE86: TRUE | AG86: =N87+#REF! ->  | AH86: =O87+#REF! -> 
A87: =+A86+0.01 -> 3.02 | B87: TLM and equipment including library books | C87: 0 | D87: 0 | G87: 0 | H87: 0 | I87: =C87-E87 -> 0 | J87: 0 | O87: 1.75 | P87: 0 | Q87: =O87*P87 -> 0 | R87: 0 | S87: 0 | X87: 1.75 | Z87: =X87*Y87 -> 0 | AA87: 0 | AB87: 0 | AD87: =J87=#REF! ->  | AE87: TRUE | AG87: =N88+#REF! ->  | AH87: =O88+#REF! -> 
A88: =+A87+0.01 -> 3.03 | B88: Bedding (new) | C88: 0 | D88: 0 | G88: 0 | H88: 0 | I88: =C88-E88 -> 0 | J88: 0 | Q88: =O88*P88 -> 0 | R88: 0 | S88: 0 | Z88: =X88*Y88 -> 0 | AA88: 0 | AB88: 0 | AD88: =J88=#REF! ->  | AE88: TRUE | AG88: =N89+#REF! ->  | AH88: =O89+#REF! -> 
A89: =+A88+0.01 -> 3.04 | B89: Replacement of bedding (once in 3 years) | C89: 0 | D89: 0 | G89: 0 | H89: 0 | I89: =C89-E89 -> 0 | J89: 0 | O89: 0.375 | P89: 0 | Q89: =O89*P89 -> 0 | R89: 0 | S89: 0 | X89: 0.375 | Y89: 0 | Z89: =X89*Y89 -> 0 | AA89: 0 | AB89: 0 | AD89: =J89=#REF! ->  | AE89: TRUE | AG89: =N90+#REF! ->  | AH89: =O90+#REF! -> 
B90: Sub Total (Non Recurring) | C90: =SUM(C86:C89) -> 0 | D90: 0 | E90: 0 | F90: 0 | G90: 0 | H90: 0 | I90: 0 | J90: 0 | K90: 0 | L90: 0 | M90: 0 | N90: 0 | P90: =P86 -> 0 | Q90: 0 | R90: 0 | S90: 0 | T90: 0 | U90: 0 | V90: 0 | W90: 0 | Y90: =Y86 -> 0 | Z90: =SUM(Z86:Z89) -> 0 | AA90: 0 | AB90: 0 | AD90: =J90=#REF! ->  | AE90: TRUE | AG90: =N91+#REF! ->  | AH90: =O91+#REF! -> 
B91: Recurring (50 children) | G91: 0 | H91: 0 | I91: =C91-G91 -> 0 | J91: =D91-F91 -> 0 | AD91: =J91=#REF! ->  | AE91: TRUE | AG91: =N92+#REF! ->  | AH91: =O92+#REF! -> 
A92: 3.05 | B92: Maintenance per child Per month @ Rs.1500/- | C92: 0 | D92: 0 | E92: =C92 -> 0 | F92: =D92 -> 0 | G92: 0 | H92: 0 | I92: =C92-E92 -> 0 | J92: 0 | O92: 9 | P92: 0 | Q92: =O92*P92 -> 0 | R92: =K92+M92+P92 -> 0 | S92: 0 | X92: 9 | Y92: 0 | Z92: =X92*Y92 -> 0 | AA92: =T92+V92+Y92 -> 0 | AB92: =U92+W92+Z92 -> 0 | AD92: =J92=#REF! ->  | AE92: TRUE | AG92: =N93+#REF! ->  | AH92: =O93+#REF! -> 
A93: =+A92+0.01 -> 3.06 | B93: Stipend per child per month @ Rs.100/- | C93: 0 | D93: 0 | E93: =C93 -> 0 | F93: =D93 -> 0 | G93: 0 | H93: 0 | I93: 0 | J93: 0 | O93: 0.6 | P93: 0 | Q93: =O93*P93 -> 0 | R93: 0 | S93: 0 | X93: 0.6 | Y93: 0 | Z93: =X93*Y93 -> 0 | AA93: 0 | AB93: 0 | AD93: =J93=#REF! ->  | AE93: TRUE | AG93: =N94+#REF! ->  | AH93: =O94+#REF! -> 
A94: =+A93+0.01 -> 3.07 | B94: Supplementary TLM, Stationery and other educational material @Rs.1000/- per child per annum | C94: 0 | D94: 0 | E94: 0 | F94: 0 | G94: 0 | H94: 0 | I94: 0 | J94: 0 | O94: 0.5 | P94: 0 | Q94: =O94*P94 -> 0 | R94: 0 | S94: 0 | X94: 0.5 | Y94: 0 | Z94: =X94*Y94 -> 0 | AA94: 0 | AB94: 0 | AD94: =J94=#REF! ->  | AE94: TRUE | AG94: =N95+#REF! ->  | AH94: =O95+#REF! -> 
B95: Salaries | E95: =ROUND(C95*100/100,0) -> 0 | F95: =D95 -> 0 | I95: 0 | J95: 0 | AD95: =J95=#REF! ->  | AE95: TRUE | AG95: =N96+#REF! ->  | AH95: =O96+#REF! -> 
A96: (a) | B96: 1 Warden @ Rs.25000/- per month | C96: 0 | D96: 0 | E96: =C96 -> 0 | F96: 0 | G96: =IFERROR(E96/C96,0) -> 0 | H96: 0 | I96: 0 | J96: 0 | O96: 3 | P96: 0 | Q96: =O96*P96 -> 0 | R96: =K96+M96+P96 -> 0 | S96: 0 | X96: 3 | Y96: 0 | Z96: =X96*Y96 -> 0 | AA96: =T96+V96+Y96 -> 0 | AB96: =U96+W96+Z96 -> 0 | AD96: =J96=#REF! ->  | AE96: TRUE | AG96: =N97+#REF! ->  | AH96: =O97+#REF! ->  | AI96: =AG96=E97 -> 
A97: (b) | B97: 4 Fulltime teachers as per RTE Norms @ Rs. 20,000/- per month per teacher | C97: 0 | D97: 0 | E97: 0 | F97: 0 | G97: 0 | H97: 0 | I97: 0 | J97: 0 | P97: 0 | Q97: 0 | R97: 0 | S97: 0 | Y97: 0 | Z97: 0 | AA97: 0 | AB97: 0 | AD97: =J97=#REF! ->  | AE97: TRUE | AG97: =N98+#REF! ->  | AH97: =O98+#REF! -> 
A98: (c) | B98: 2 Urdu Teachers (only for Blocks with muslim population above 20% and select urban areas) @ Rs.12,000/- per month per teacher. | C98: 0 | D98: 0 | E98: 0 | F98: 0 | G98: 0 | H98: 0 | I98: 0 | J98: 0 | P98: 0 | Q98: 0 | R98: 0 | S98: 0 | Y98: 0 | Z98: 0 | AA98: 0 | AB98: 0 | AD98: =J98=#REF! ->  | AE98: TRUE | AG98: =N99+#REF! ->  | AH98: =O99+#REF! -> 
A99: (d) | B99: 3 Part time teachers @ Rs.5,000/- per month per teacher | C99: 0 | D99: 0 | E99: 0 | F99: 0 | G99: 0 | H99: 0 | I99: 0 | J99: 0 | O99: 1.8 | P99: 0 | Q99: 0 | R99: 0 | S99: 0 | X99: 1.8 | Y99: 0 | Z99: 0 | AA99: 0 | AB99: 0 | AD99: =J99=#REF! ->  | AE99: TRUE | AG99: =N100+#REF! ->  | AH99: =O100+#REF! -> 
A100: (e) | B100: 1 Full time Accountant @ Rs. 10,000/- per month | C100: 0 | D100: 0 | E100: 0 | F100: 0 | G100: 0 | H100: 0 | I100: 0 | J100: 0 | O100: 1.2 | P100: 0 | Q100: 0 | R100: 0 | S100: 0 | X100: 1.2 | Y100: 0 | Z100: 0 | AA100: 0 | AB100: 0 | AD100: =J100=#REF! ->  | AE100: TRUE | AG100: =N101+#REF! ->  | AH100: =O101+#REF! -> 
A101: (f) | B101: 2 Support staff - (Accountant/Assistant, Peon, Chowkidar) @ Rs. 5,000/- per month per staff | C101: 0 | D101: 0 | E101: 0 | F101: 0 | G101: 0 | H101: 0 | I101: 0 | J101: 0 | O101: 1.2 | P101: 0 | Q101: 0 | R101: 0 | S101: 0 | X101: 1.2 | Y101: 0 | Z101: 0 | AA101: 0 | AB101: 0 | AD101: =J101=#REF! ->  | AE101: TRUE | AG101: =N102+#REF! ->  | AH101: =O102+#REF! -> 
A102: (g) | B102: 1 Head Cook @ Rs. 6,000/- per month and upto 2 Asstt. Cooks @ Rs. 4,500/- per month per cook | C102: 0 | D102: 0 | E102: 0 | F102: 0 | G102: 0 | H102: 0 | I102: 0 | J102: 0 | O102: 1.8 | P102: 0 | Q102: 0 | R102: 0 | S102: 0 | X102: 1.8 | Y102: 0 | Z102: 0 | AA102: 0 | AB102: 0 | AD102: =J102=#REF! ->  | AE102: TRUE | AG102: =N103+#REF! ->  | AH102: =O103+#REF! -> 
A103: 3.08 | B103: Specific Skill training @ Rs.1000/- per annum per child | C103: 0 | D103: 0 | E103: 0 | F103: 0 | G103: 0 | H103: 0 | I103: 0 | J103: 0 | P103: 0 | Q103: 0 | R103: 0 | S103: 0 | Y103: 0 | Z103: 0 | AA103: 0 | AB103: 0 | AD103: =J103=#REF! ->  | AE103: TRUE | AG103: =N104+#REF! ->  | AH103: =O104+#REF! -> 
A104: =+A103+0.01 -> 3.09 | B104: Electricity / water charges @ Rs. 1000/- per annum per child | C104: 0 | D104: 0 | E104: 0 | F104: 0 | G104: 0 | H104: 0 | I104: 0 | J104: 0 | O104: 0.5 | P104: 0 | Q104: 0 | R104: 0 | S104: 0 | X104: 0.5 | Y104: 0 | Z104: 0 | AA104: 0 | AB104: 0 | AD104: =J104=#REF! ->  | AE104: TRUE | AG104: =N105+#REF! ->  | AH104: =O105+#REF! -> 
A105: 3.1 | B105: Medical care/contingencies @ Rs.1250/- per annum per child | C105: 0 | D105: 0 | E105: 0 | F105: 0 | G105: 0 | H105: 0 | I105: 0 | J105: 0 | O105: 0.625 | P105: 0 | Q105: 0 | R105: 0 | S105: 0 | X105: 0.625 | Y105: 0 | Z105: 0 | AA105: 0 | AB105: 0 | AD105: =J105=#REF! ->  | AE105: TRUE | AG105: =N106+#REF! ->  | AH105: =O106+#REF! -> 
A106: 3.11 | B106: Maintenance @ Rs. 750/- per child per annum | C106: 0 | D106: 0 | E106: 0 | F106: 0 | G106: 0 | H106: 0 | I106: 0 | J106: 0 | O106: 0.375 | P106: 0 | Q106: 0 | R106: 0 | S106: 0 | X106: 0.375 | Y106: 0 | Z106: 0 | AA106: 0 | AB106: 0 | AD106: =J106=#REF! ->  | AE106: TRUE | AG106: =N107+#REF! ->  | AH106: =O107+#REF! -> 
A107: 3.12 | B107: Miscellaneous @ Rs. 750/- per child per annum | C107: 0 | D107: 0 | E107: 0 | F107: 0 | G107: 0 | H107: 0 | I107: 0 | J107: 0 | O107: 0.375 | P107: 0 | Q107: 0 | R107: 0 | S107: 0 | X107: 0.375 | Y107: 0 | Z107: 0 | AA107: 0 | AB107: 0 | AD107: =J107=#REF! ->  | AE107: TRUE | AG107: =N108+#REF! ->  | AH107: =O108+#REF! -> 
A108: 3.13 | B108: Preparatory camps @ Rs. 300/- per child per annum | C108: 0 | D108: 0 | E108: 0 | F108: 0 | G108: 0 | H108: 0 | I108: 0 | J108: 0 | P108: 0 | Q108: 0 | R108: 0 | S108: 0 | Y108: 0 | Z108: 0 | AA108: 0 | AB108: 0 | AD108: =J108=#REF! ->  | AE108: TRUE | AG108: =N109+#REF! ->  | AH108: =O109+#REF! -> 
A109: 3.14 | B109: P.T.A / school functions @ Rs. 300/- per child per annum | C109: 0 | D109: 0 | E109: 0 | F109: 0 | G109: 0 | H109: 0 | I109: 0 | J109: 0 | P109: 0 | Q109: 0 | R109: 0 | S109: 0 | Y109: 0 | Z109: 0 | AA109: 0 | AB109: 0 | AD109: =J109=#REF! ->  | AE109: TRUE | AG109: =N110+#REF! ->  | AH109: =O110+#REF! -> 
A110: 3.15 | B110: Provision of Rent @ Rs. 10,000/- per child per annum | C110: 0 | D110: 0 | E110: 0 | F110: 0 | G110: 0 | H110: 0 | I110: 0 | J110: 0 | P110: 0 | Q110: 0 | R110: 0 | S110: 0 | Y110: 0 | Z110: 0 | AA110: 0 | AB110: 0 | AD110: =J110=#REF! ->  | AE110: TRUE | AG110: =N111+#REF! ->  | AH110: =O111+#REF! -> 
A111: 3.16 | B111: Capacity Building @ Rs. 500/- per child per annum | C111: 0 | D111: 0 | E111: 0 | F111: 0 | G111: 0 | H111: 0 | I111: 0 | J111: 0 | O111: 0.25 | P111: 0 | Q111: 0 | R111: 0 | S111: 0 | X111: 0.25 | Y111: 0 | Z111: 0 | AA111: 0 | AB111: 0 | AD111: =J111=#REF! ->  | AE111: TRUE | AG111: =N112+#REF! ->  | AH111: =O112+#REF! -> 
A112: 3.17 | B112: Physical / Self Defence Training @ Rs.200/- per child per annum | C112: 0 | D112: 0 | E112: 0 | F112: 0 | G112: 0 | H112: 0 | I112: 0 | J112: 0 | O112: 0.1 | P112: 0 | Q112: 0 | R112: 0 | S112: 0 | X112: 0.1 | Y112: 0 | Z112: 0 | AA112: 0 | AB112: 0 | AD112: =J112=#REF! ->  | AE112: TRUE | AG112: =N113+#REF! ->  | AH112: =O113+#REF! -> 
B113: Sub Total (Recurring) | C113: =C112 -> 0 | D113: =SUM(D92:D112) -> 0 | E113: =E112 -> 0 | F113: 0 | G113: 0 | H113: 0 | I113: =I112 -> 0 | J113: 0 | K113: 0 | L113: 0 | M113: 0 | N113: 0 | P113: =P112 -> 0 | Q113: 0 | R113: =R112 -> 0 | S113: =SUM(S92:S112) -> 0 | T113: 0 | U113: 0 | V113: =SUM(V92:V112) -> 0 | W113: =SUM(W92:W112) -> 0 | Y113: =Y112 -> 0 | Z113: =SUM(Z92:Z112) -> 0 | AA113: =AA112 -> 0 | AB113: =SUM(AB92:AB112) -> 0 | AD113: =J113=#REF! ->  | AE113: TRUE | AG113: =N114+#REF! ->  | AH113: =O114+#REF! -> 
B114: Total (Non Recurring + Recurring) | C114: =C90+C113 -> 0 | D114: 0 | E114: 0 | F114: 0 | G114: 0 | H114: 0 | I114: 0 | J114: 0 | K114: 0 | L114: 0 | M114: 0 | N114: 0 | P114: 0 | Q114: 0 | R114: 0 | S114: 0 | T114: 0 | U114: 0 | V114: 0 | W114: 0 | Y114: =Y90+Y113 -> 0 | Z114: 0 | AA114: 0 | AB114: 0 | AD114: =J114=#REF! ->  | AE114: TRUE | AG114: =N115+#REF! ->  | AH114: =O115+#REF! -> 
A115: (B) | B115: 100 Children | G115: 0 | H115: 0 | I115: =C115-G115 -> 0 | J115: =D115-F115 -> 0 | AD115: =J115=#REF! ->  | AE115: TRUE | AG115: =N116+#REF! ->  | AH115: =O116+#REF! -> 
B116: Non-recurring (one time grant) | G116: 0 | H116: 0 | I116: =C116-G116 -> 0 | J116: 0 | AD116: =J116=#REF! ->  | AE116: TRUE | AG116: =N117+#REF! ->  | AH116: =O117+#REF! -> 
A117: 3.18 | B117: Furniture / Equipment (including kitchen equipment) | C117: 0 | D117: 0 | G117: 0 | H117: 0 | I117: =C117-E117 -> 0 | J117: 0 | Q117: =O117*P117 -> 0 | R117: =K117+M117+P117 -> 0 | S117: 0 | Z117: =X117*Y117 -> 0 | AA117: =T117+V117+Y117 -> 0 | AB117: =U117+W117+Z117 -> 0 | AD117: =J117=#REF! ->  | AE117: TRUE | AG117: =N118+#REF! ->  | AH117: =O118+#REF! -> 
A118: =+A117+0.01 -> 3.19 | B118: TLM and equipment including library books (New) | C118: 0 | D118: 0 | G118: 0 | H118: 0 | I118: =C118-E118 -> 0 | J118: 0 | Q118: =O118*P118 -> 0 | R118: 0 | S118: 0 | Z118: =X118*Y118 -> 0 | AA118: 0 | AB118: 0 | AD118: =J118=#REF! ->  | AE118: TRUE | AG118: =N119+#REF! ->  | AH118: =O119+#REF! -> 
A119: =+A118+0.01 -> 3.2 | B119: Bedding (New) | C119: 0 | D119: 0 | G119: 0 | H119: 0 | I119: =C119-E119 -> 0 | J119: 0 | Q119: =O119*P119 -> 0 | R119: 0 | S119: 0 | Z119: =X119*Y119 -> 0 | AA119: 0 | AB119: 0 | AD119: =J119=#REF! ->  | AE119: TRUE | AG119: =N120+#REF! ->  | AH119: =O120+#REF! -> 
A120: =+A119+0.01 -> 3.21 | B120: Replacement of bedding (once in 3 years) | C120: 0 | D120: 0 | G120: 0 | H120: 0 | I120: =C120-E120 -> 0 | J120: 0 | Q120: =O120*P120 -> 0 | R120: 0 | S120: 0 | Z120: =X120*Y120 -> 0 | AA120: 0 | AB120: 0 | AD120: =J120=#REF! ->  | AE120: TRUE | AG120: =N121+#REF! ->  | AH120: =O121+#REF! -> 
B121: Sub Total Non-recurring | C121: =SUM(C117:C120) -> 0 | D121: 0 | E121: 0 | F121: 0 | G121: 0 | H121: 0 | I121: 0 | J121: 0 | K121: 0 | L121: 0 | M121: 0 | N121: 0 | P121: 0 | Q121: 0 | R121: 0 | S121: 0 | T121: 0 | U121: 0 | V121: 0 | W121: 0 | Y121: =SUM(Y117:Y120) -> 0 | Z121: 0 | AA121: 0 | AB121: 0 | AD121: =J121=#REF! ->  | AE121: TRUE | AG121: =N122+#REF! ->  | AH121: =O122+#REF! -> 
B122: Recurring | G122: 0 | H122: 0 | I122: =C122-G122 -> 0 | J122: =D122-F122 -> 0 | AD122: =J122=#REF! ->  | AE122: TRUE | AG122: =N123+#REF! ->  | AH122: =O123+#REF! -> 
A123: 3.22 | B123: Maintenance per child per month @ Rs. 1500/- | C123: 0 | D123: 0 | G123: 0 | H123: 0 | I123: =C123-E123 -> 0 | J123: 0 | Q123: =O123*P123 -> 0 | R123: =K123+M123+P123 -> 0 | S123: 0 | Z123: =X123*Y123 -> 0 | AA123: =T123+V123+Y123 -> 0 | AB123: =U123+W123+Z123 -> 0 | AD123: =J123=#REF! ->  | AE123: TRUE | AG123: =N124+#REF! ->  | AH123: =O124+#REF! -> 
A124: =+A123+0.01 -> 3.23 | B124: Stipend per child per month @ Rs.100/- | C124: 0 | D124: 0 | G124: 0 | H124: 0 | I124: 0 | J124: 0 | Q124: =O124*P124 -> 0 | R124: 0 | S124: 0 | Z124: =X124*Y124 -> 0 | AA124: 0 | AB124: 0 | AD124: =J124=#REF! ->  | AE124: TRUE | AG124: =N125+#REF! ->  | AH124: =O125+#REF! -> 
A125: =+A124+0.01 -> 3.24 | B125: Supplementary TLM, Stationery and other educational material per child @1000/- per annum | C125: 0 | D125: 0 | G125: 0 | H125: 0 | I125: 0 | J125: 0 | Q125: =O125*P125 -> 0 | R125: 0 | S125: 0 | Z125: =X125*Y125 -> 0 | AA125: 0 | AB125: 0 | AD125: =J125=#REF! ->  | AE125: TRUE | AG125: =N126+#REF! ->  | AH125: =O126+#REF! -> 
B126: Salaries | G126: 0 | H126: 0 | I126: 0 | J126: 0 | AD126: =J126=#REF! ->  | AE126: TRUE | AG126: =N127+#REF! ->  | AH126: =O127+#REF! -> 
A127: (a) | B127: 1 Warden @ Rs. 25,000/- per month | C127: 0 | D127: 0 | G127: 0 | H127: 0 | I127: 0 | J127: 0 | Q127: =O127*P127 -> 0 | R127: =K127+M127+P127 -> 0 | S127: 0 | Z127: =X127*Y127 -> 0 | AA127: =T127+V127+Y127 -> 0 | AB127: =U127+W127+Z127 -> 0 | AD127: =J127=#REF! ->  | AE127: TRUE | AG127: =N128+#REF! ->  | AH127: =O128+#REF! -> 
A128: (b) | B128: 1 head teacher @ Rs. 25,000/- per month in case the enrollment exceeds 100 | C128: 0 | D128: 0 | G128: 0 | H128: 0 | I128: 0 | J128: 0 | Q128: 0 | R128: 0 | S128: 0 | Z128: 0 | AA128: 0 | AB128: 0 | AD128: =J128=#REF! ->  | AE128: =K128=AC128 -> TRUE | AG128: =N129+#REF! ->  | AH128: =O129+#REF! ->  | AI128: =AG128=E129 -> 
A129: (c) | B129: 4 - 5 Full time teachers as per RTE norms @ Rs. 20,000/- per month per teacher | C129: 0 | D129: 0 | G129: 0 | H129: 0 | I129: 0 | J129: 0 | Q129: 0 | R129: 0 | S129: 0 | Z129: 0 | AA129: 0 | AB129: 0 | AD129: =J129=#REF! ->  | AE129: TRUE | AG129: =N130+#REF! ->  | AH129: =O130+#REF! -> 
A130: (d) | B130: 2 Urdu Teachers (only for blocks with muslim population above 20% and select urban areas), if required @ Rs. 12,000/- per month per teacher | C130: 0 | D130: 0 | G130: 0 | H130: 0 | I130: 0 | J130: 0 | Q130: 0 | R130: 0 | S130: 0 | Z130: 0 | AA130: 0 | AB130: 0 | AD130: =J130=#REF! ->  | AE130: TRUE | AG130: =N131+#REF! ->  | AH130: =O131+#REF! -> 
A131: (e) | B131: 3 part time teachers @ Rs. 5,000/- per month per teacher | C131: 0 | D131: 0 | G131: 0 | H131: 0 | I131: 0 | J131: 0 | Q131: 0 | R131: 0 | S131: 0 | Z131: 0 | AA131: 0 | AB131: 0 | AD131: =J131=#REF! ->  | AE131: TRUE | AG131: =N132+#REF! ->  | AH131: =O132+#REF! -> 
A132: (f) | B132: 1 Full time Accountant @ Rs. 10,000/- per month | C132: 0 | D132: 0 | G132: 0 | H132: 0 | I132: 0 | J132: 0 | Q132: 0 | R132: 0 | S132: 0 | Z132: 0 | AA132: 0 | AB132: 0 | AD132: =J132=#REF! ->  | AE132: TRUE | AG132: =N133+#REF! ->  | AH132: =O133+#REF! -> 
A133: 3.25 | B133: 2 Support Staff – (Accountant/ Assistant, Peon, Chowkidar) @ Rs. 5,000/- per month per staff | C133: 0 | D133: 0 | G133: 0 | H133: 0 | I133: 0 | J133: 0 | Q133: 0 | R133: 0 | S133: 0 | Z133: 0 | AA133: 0 | AB133: 0 | AD133: =J133=#REF! ->  | AE133: TRUE | AG133: =N134+#REF! ->  | AH133: =O134+#REF! -> 
A134: =+A133+0.01 -> 3.26 | B134: 1 Head cook @ Rs. 6,000/- per month and upto 2 Asstt. Cooks @ Rs. 4,500/- per month per cook | C134: 0 | D134: 0 | G134: 0 | H134: 0 | I134: 0 | J134: 0 | Q134: 0 | R134: 0 | S134: 0 | Z134: 0 | AA134: 0 | AB134: 0 | AD134: =J134=#REF! ->  | AE134: TRUE | AG134: =N135+#REF! ->  | AH134: =O135+#REF! -> 
A135: 3.27 | B135: Specific skill training per child @ Rs.1000/- per annum | C135: 0 | D135: 0 | G135: 0 | H135: 0 | I135: 0 | J135: 0 | Q135: 0 | R135: 0 | S135: 0 | Z135: 0 | AA135: 0 | AB135: 0 | AD135: =J135=#REF! ->  | AE135: TRUE | AG135: =N136+#REF! ->  | AH135: =O136+#REF! -> 
A136: 3.28 | B136: Electricity / water charges per child @Rs.1000/- per annum | C136: 0 | D136: 0 | G136: 0 | H136: 0 | I136: 0 | J136: 0 | Q136: 0 | R136: 0 | S136: 0 | Z136: 0 | AA136: 0 | AB136: 0 | AD136: =J136=#REF! ->  | AE136: TRUE | AG136: =N137+#REF! ->  | AH136: =O137+#REF! -> 
A137: 3.29 | B137: Medical care/contingencies @ Rs.1250/- per child per annum | C137: 0 | D137: 0 | G137: 0 | H137: 0 | I137: 0 | J137: 0 | Q137: 0 | R137: 0 | S137: 0 | Z137: 0 | AA137: 0 | AB137: 0 | AD137: =J137=#REF! ->  | AE137: TRUE | AG137: =N138+#REF! ->  | AH137: =O138+#REF! ->  | BA137: BRC / URC | BB137: =B137=BA137 -> FALSE
A138: 3.3 | B138: Maintenance @ Rs.750/- per child per annum | C138: 0 | D138: 0 | G138: 0 | H138: 0 | I138: 0 | J138: 0 | Q138: 0 | R138: 0 | S138: 0 | Z138: 0 | AA138: 0 | AB138: 0 | AD138: =J138=#REF! ->  | AE138: TRUE | AG138: =N139+#REF! ->  | AH138: =O139+#REF! ->  | BA138: CRC | BB138: FALSE
A139: 3.31 | B139: Miscellaneous @ Rs.750/- per child per annum | C139: 0 | D139: 0 | G139: 0 | H139: 0 | I139: 0 | J139: 0 | Q139: 0 | R139: 0 | S139: 0 | Z139: 0 | AA139: 0 | AB139: 0 | AD139: =J139=#REF! ->  | AE139: TRUE | AG139: =N140+#REF! ->  | AH139: =O140+#REF! ->  | BA139: New Primary School (Rural) | BB139: FALSE
A140: 3.32 | B140: Preparatory camps @ Rs.200/- per child per annum | C140: 0 | D140: 0 | G140: 0 | H140: 0 | I140: 0 | J140: 0 | Q140: 0 | R140: 0 | S140: 0 | Z140: 0 | AA140: 0 | AB140: 0 | AD140: =J140=#REF! ->  | AE140: TRUE | AG140: =N141+#REF! ->  | AH140: =O141+#REF! ->  | BA140: New Upper Primary (Rural) (3 ACR each in lieu) | BB140: FALSE
A141: 3.33 | B141: P.T.A / school functions @ Rs.200/- per child per annum | C141: 0 | D141: 0 | G141: 0 | H141: 0 | I141: 0 | J141: 0 | Q141: 0 | R141: 0 | S141: 0 | Z141: 0 | AA141: 0 | AB141: 0 | AD141: =J141=#REF! ->  | AE141: TRUE | AG141: =N142+#REF! ->  | AH141: =O142+#REF! ->  | BA141: New Upper Primary (Urban) (3 ACR each in lieu) | BB141: FALSE
A142: 3.34 | B142: Provision of Rent @ Rs. 6000/- per child per annum | C142: 0 | D142: 0 | G142: 0 | H142: 0 | I142: 0 | J142: 0 | Q142: 0 | R142: 0 | S142: 0 | Z142: 0 | AA142: 0 | AB142: 0 | AD142: =J142=#REF! ->  | AE142: TRUE | AG142: =N143+#REF! ->  | AH142: =O143+#REF! ->  | BA142: Building Less (Pry) | BB142: FALSE
A143: 3.35 | B143: Capacity Building @ Rs.500/- per child per annum | C143: 0 | D143: 0 | G143: 0 | H143: 0 | I143: 0 | J143: 0 | Q143: 0 | R143: 0 | S143: 0 | Z143: 0 | AA143: 0 | AB143: 0 | AD143: =J143=#REF! ->  | AE143: TRUE | AG143: =N144+#REF! ->  | AH143: =O144+#REF! ->  | BA143: Building Less (UP) | BB143: FALSE
A144: 3.36 | B144: Physical / Self Defence training @ Rs. 200/- per child per annum. | C144: 0 | D144: 0 | G144: 0 | H144: 0 | I144: 0 | J144: 0 | Q144: 0 | R144: 0 | S144: 0 | Z144: 0 | AA144: 0 | AB144: 0 | AD144: =J144=#REF! ->  | AE144: TRUE | AG144: =N145+#REF! ->  | AH144: =O145+#REF! ->  | BA144: Additional Class Room (Rural) | BB144: FALSE
B145: Sub Total (Recurring) | C145: =SUM(C123:C144) -> 0 | D145: 0 | E145: 0 | F145: 0 | G145: 0 | H145: 0 | I145: 0 | J145: 0 | K145: 0 | L145: 0 | M145: 0 | N145: 0 | P145: 0 | Q145: 0 | R145: 0 | S145: 0 | T145: 0 | U145: 0 | V145: 0 | W145: 0 | Y145: =SUM(Y123:Y144) -> 0 | Z145: 0 | AA145: 0 | AB145: 0 | AD145: =J145=#REF! ->  | AE145: TRUE | AF145: =AF140+AF144 -> 0 | AG145: =N146+#REF! ->  | AH145: =O146+#REF! ->  | BA145: Additional Class Room (Urban) | BB145: FALSE
B146: Total (Recurring + Non Recurring) | C146: =C121+C145 -> 0 | D146: 0 | E146: 0 | F146: 0 | G146: 0 | H146: 0 | I146: 0 | J146: 0 | K146: 0 | L146: 0 | M146: 0 | N146: 0 | P146: 0 | Q146: 0 | R146: 0 | S146: 0 | T146: 0 | U146: 0 | V146: 0 | W146: 0 | Y146: =Y121+Y145 -> 0 | Z146: 0 | AA146: 0 | AB146: 0 | AD146: =J146=#REF! ->  | AE146: TRUE | AG146: =N147+#REF! ->  | AH146: =O147+#REF! ->  | BA146: Additional Class Room (Hill Area / Urban / inaccessible) | BB146: FALSE
A147: 3 | B147: Total (A + B) | C147: =C114+C146 -> 0 | D147: 0 | E147: 0 | F147: 0 | G147: 0 | H147: 0 | I147: 0 | J147: 0 | K147: 0 | L147: 0 | M147: 0 | N147: 0 | P147: 0 | Q147: 0 | R147: 0 | S147: 0 | T147: 0 | U147: 0 | V147: 0 | W147: 0 | Y147: =Y114+Y146 -> 0 | Z147: 0 | AA147: 0 | AB147: 0 | AD147: =J147=#REF! ->  | AE147: TRUE | AG147: =N148+#REF! ->  | AH147: =O148+#REF! ->  | BB147: =B147=BA149 -> FALSE
A148: 4 | B148: Transport/Escort Facility | G148: 0 | H148: 0 | I148: =C148-G148 -> 0 | J148: =D148-F148 -> 0 | AD148: =J148=#REF! ->  | AE148: TRUE | AG148: =N149+#REF! ->  | AH148: =O149+#REF! ->  | BB148: FALSE
A149: 4.01 | B149: Children in remote habitation | C149: 0 | D149: 0 | G149: 0 | H149: 0 | I149: =C149-E149 -> 0 | J149: =D149-F149 -> 0 | O149: 0.03 | P149: 21 | Q149: =O149*P149 -> 0.63 | R149: =K149+M149+P149 -> 21 | S149: =L149+N149+Q149 -> 0.63 | X149: 0.03 | Y149: 21 | Z149: =X149*Y149 -> 0.63 | AA149: =T149+V149+Y149 -> 21 | AB149: =U149+W149+Z149 -> 0.63 | AD149: =J149=#REF! ->  | AE149: TRUE | AG149: =N150+#REF! ->  | AH149: =O150+#REF! ->  | BA149: Toilet/Urinals (for urban areas only) | BB149: FALSE
A150: 4.02 | B150: Urban deprived children/children without adult protection | C150: 0 | D150: 0 | G150: 0 | H150: 0 | I150: =C150-E150 -> 0 | J150: =D150-F150 -> 0 | O150: 0.03 | P150: 0 | Q150: =O150*P150 -> 0 | R150: =K150+M150+P150 -> 0 | S150: =L150+N150+Q150 -> 0 | X150: 0.03 | Y150: 0 | Z150: =X150*Y150 -> 0 | AA150: =T150+V150+Y150 -> 0 | AB150: =U150+W150+Z150 -> 0 | AD150: =J150=#REF! ->  | AE150: TRUE | AG150: =N151+#REF! ->  | AH150: =O151+#REF! ->  | BA150: Separate Girls Toilet | BB150: FALSE
B151: Total | C151: =SUM(C149:C150) -> 0 | D151: 0 | E151: 0 | F151: 0 | G151: 0 | H151: 0 | I151: 0 | J151: 0 | K151: 0 | L151: 0 | M151: 0 | N151: 0 | P151: 21 | Q151: 0.63 | R151: 21 | S151: 0.63 | T151: 0 | U151: 0 | V151: 0 | W151: 0 | Y151: =SUM(Y149:Y150) -> 21 | Z151: 0.63 | AA151: 21 | AB151: 0.63 | AD151: =J151=#REF! ->  | AE151: TRUE | AG151: =N152+#REF! ->  | AH151: =O152+#REF! ->  | BA151: Drinking Water Facility (for urban area only) | BB151: FALSE
A152: 5 | B152: Reimbursement of Fee against 25% admission under Section 12(1)(c) of RTE Act 2009 (Entry Level) subject to upper limit of 20% of AWP&B subject to guidelines issued by MHRD | D152: 151.27 | F152: =D152 -> 151.27 | G152: 0 | H152: 1 | I152: =C152-E152 -> 0 | J152: =D152-F152 -> 0 | Q152: 1627.16975 | R152: =K152+M152+P152 -> 0 | S152: =L152+N152+Q152 -> 1627.16975 | Z152: 61.4 | AA152: =T152+V152+Y152 -> 0 | AB152: =U152+W152+Z152 -> 61.4 | AD152: =J152=#REF! ->  | AE152: TRUE | AG152: =N153+#REF! ->  | AH152: =O153+#REF! ->  | BA152: Electrification | BB152: FALSE
B153: Sub Total | C153: =C152 -> 0 | D153: 151.27 | E153: 0 | F153: 151.27 | G153: 0 | H153: 1 | I153: 0 | J153: 0 | K153: 0 | L153: 0 | M153: 0 | N153: 0 | O153: 0 | P153: 0 | Q153: 1627.16975 | R153: =R152 -> 0 | S153: =S152 -> 1627.16975 | T153: 0 | U153: 0 | V153: =V152 -> 0 | W153: 0 | X153: 0 | Y153: =Y152 -> 0 | Z153: 61.4 | AA153: =AA152 -> 0 | AB153: =AB152 -> 61.4 | AD153: =J153=#REF! ->  | AE153: TRUE | AG153: =N154+#REF! ->  | AH153: =O154+#REF! ->  | BA153: Ramps with Handrails | BB153: FALSE
A154: 6 | B154: Special Training for mainstreaming of out of school children | G154: 0 | H154: 0 | I154: =C154-G154 -> 0 | J154: =D154-F154 -> 0 | AD154: =J154=#REF! ->  | AE154: TRUE | AG154: =N155+#REF! ->  | AH154: =O155+#REF! ->  | BA154: Residential Schools/hostels for specific category of children | BB154: FALSE
A155: 6.01 | B155: Residential (Fresh) | G155: 0 | H155: 0 | I155: =C155-G155 -> 0 | J155: 0 | AD155: =J155=#REF! ->  | AE155: TRUE | AG155: =N156+#REF! ->  | AH155: =O156+#REF! ->  | BA155: (a) Construction of residential hostel
B156: (a) 12 months | C156: 0 | D156: 0 | G156: 0 | H156: 0 | I156: =C156-E156 -> 0 | J156: 0 | O156: 0.34 | P156: 0 | Q156: =O156*P156 -> 0 | R156: =K156+M156+P156 -> 0 | S156: 0 | X156: 0.2 | Y156: 0 | Z156: =X156*Y156 -> 0 | AA156: =T156+V156+Y156 -> 0 | AB156: =U156+W156+Z156 -> 0 | AD156: =J156=#REF! ->  | AE156: TRUE | AG156: =N157+#REF! ->  | AH156: =O157+#REF! ->  | BA156: (b) Refurbishing unused old buildings
B157: (b) 9 months | C157: 0 | D157: 0 | G157: 0 | H157: 0 | I157: =C157-E157 -> 0 | J157: 0 | Q157: =O157*P157 -> 0 | R157: 0 | S157: 0 | Z157: =X157*Y157 -> 0 | AA157: 0 | AB157: 0 | AD157: =J157=#REF! ->  | AE157: TRUE | AG157: =N158+#REF! ->  | AH157: =O158+#REF! -> 
B158: (c) 6 months | C158: 0 | D158: 0 | G158: 0 | H158: 0 | I158: =C158-E158 -> 0 | J158: 0 | Q158: =O158*P158 -> 0 | R158: 0 | S158: 0 | Z158: =X158*Y158 -> 0 | AA158: 0 | AB158: 0 | AD158: =J158=#REF! ->  | AE158: TRUE | AG158: =N159+#REF! ->  | AH158: =O159+#REF! -> 
B159: (d) 3 months | C159: 0 | D159: 0 | G159: 0 | H159: 0 | I159: =C159-E159 -> 0 | J159: 0 | Q159: =O159*P159 -> 0 | R159: 0 | S159: 0 | Z159: =X159*Y159 -> 0 | AA159: 0 | AB159: 0 | AD159: =J159=#REF! ->  | AE159: TRUE | AG159: =N160+#REF! ->  | AH159: =O160+#REF! -> 
B160: Sub Total | C160: =SUM(C156:C159) -> 0 | D160: 0 | E160: 0 | F160: 0 | G160: =IFERROR(E160/C160,0) -> 0 | H160: 0 | I160: 0 | J160: 0 | K160: 0 | L160: 0 | M160: 0 | N160: 0 | P160: 0 | Q160: 0 | R160: 0 | S160: 0 | T160: 0 | U160: 0 | V160: 0 | W160: 0 | Y160: =SUM(Y156:Y159) -> 0 | Z160: 0 | AA160: 0 | AB160: 0 | AD160: =J160=#REF! ->  | AE160: TRUE | AG160: =N161+#REF! ->  | AH160: =O161+#REF! -> 
A161: =+A155+0.01 -> 6.02 | B161: Residential (Continuing from previous year) | G161: 0 | H161: 0 | I161: =C161-G161 -> 0 | J161: =D161-F161 -> 0 | AD161: =J161=#REF! ->  | AE161: TRUE | AG161: =N162+#REF! ->  | AH161: =O162+#REF! -> 
B162: (a) 12 months | C162: 0 | D162: 0 | E162: 0 | F162: 0 | G162: 0 | H162: 0 | I162: =C162-E162 -> 0 | J162: =D162-F162 -> 0 | Q162: =O162*P162 -> 0 | R162: =K162+M162+P162 -> 0 | S162: 0 | Z162: =X162*Y162 -> 0 | AA162: =T162+V162+Y162 -> 0 | AB162: =U162+W162+Z162 -> 0
B163: (b) 9 months | C163: 0 | D163: 0 | E163: 0 | F163: 0 | G163: 0 | H163: 0 | I163: =C163-E163 -> 0 | J163: =D163-F163 -> 0 | Q163: =O163*P163 -> 0 | R163: 0 | S163: 0 | Z163: =X163*Y163 -> 0 | AA163: 0 | AB163: 0
B164: (c) 6 months | C164: 0 | D164: 0 | E164: 0 | F164: 0 | G164: 0 | H164: 0 | I164: =C164-E164 -> 0 | J164: =D164-F164 -> 0 | Q164: =O164*P164 -> 0 | R164: 0 | S164: 0 | Z164: =X164*Y164 -> 0 | AA164: 0 | AB164: 0
B165: (d) 3 months | C165: 0 | D165: 0 | E165: 0 | F165: 0 | G165: 0 | H165: 0 | I165: =C165-E165 -> 0 | J165: =D165-F165 -> 0 | Q165: =O165*P165 -> 0 | R165: 0 | S165: 0 | Z165: =X165*Y165 -> 0 | AA165: 0 | AB165: 0 | AD165: =J165=#REF! ->  | AE165: =K165=AC165 -> TRUE | AG165: =#REF!+#REF! ->  | AH165: =#REF!+#REF! ->  | AI165: =AG165=#REF! ->  | AJ165: =AH165=#REF! -> 
B166: Sub Total | C166: =SUM(C162:C165) -> 0 | D166: 0 | E166: 0 | F166: 0 | G166: 0 | H166: 0 | I166: 0 | J166: 0 | K166: 0 | L166: 0 | M166: 0 | N166: 0 | P166: 0 | Q166: 0 | R166: 0 | S166: 0 | T166: 0 | U166: 0 | V166: 0 | W166: 0 | Y166: =SUM(Y162:Y165) -> 0 | Z166: 0 | AA166: 0 | AB166: 0 | AD166: =J166=#REF! ->  | AE166: TRUE | AG166: =N167+#REF! ->  | AH166: =O167+#REF! ->  | AI166: =AG166=E167 -> 
A167: 6.03 | B167: Non-Residential (Fresh) | G167: 0 | H167: 0 | I167: =C167-G167 -> 0 | J167: =D167-F167 -> 0 | AD167: =J167=#REF! ->  | AE167: TRUE | AG167: =N168+#REF! ->  | AH167: =O168+#REF! -> 
B168: (a) 12 months | C168: 0 | D168: 0 | E168: 0 | F168: 0 | G168: 0 | H168: 0 | I168: =C168-E168 -> 0 | J168: =D168-F168 -> 0 | Q168: =O168*P168 -> 0 | R168: =K168+M168+P168 -> 0 | S168: 0 | Z168: =X168*Y168 -> 0 | AA168: =T168+V168+Y168 -> 0 | AB168: =U168+W168+Z168 -> 0 | AD168: =J168=#REF! ->  | AE168: TRUE | AG168: =N169+#REF! ->  | AH168: =O169+#REF! -> 
B169: (b) 9 months | C169: 0 | D169: 0 | E169: 0 | F169: 0 | G169: 0 | H169: 0 | I169: =C169-E169 -> 0 | J169: =D169-F169 -> 0 | Q169: =O169*P169 -> 0 | R169: 0 | S169: 0 | Z169: =X169*Y169 -> 0 | AA169: 0 | AB169: 0 | AD169: =J169=#REF! ->  | AE169: TRUE | AG169: =N170+#REF! ->  | AH169: =O170+#REF! -> 
B170: (c) 6 months | C170: 1076 | D170: 32.28 | E170: 1076 | F170: 32.28 | G170: 1 | H170: 1 | I170: =C170-E170 -> 0 | J170: =D170-F170 -> 0 | O170: 0.03 | P170: 290 | Q170: =O170*P170 -> 8.7 | R170: 290 | S170: 8.7 | X170: 0.03 | Y170: 290 | Z170: =X170*Y170 -> 8.7 | AA170: 290 | AB170: 8.7 | AD170: =J170=#REF! ->  | AE170: TRUE | AG170: =N171+#REF! ->  | AH170: =O171+#REF! -> 
B171: (d) 3 months | C171: 0 | D171: 0 | E171: 0 | F171: 0 | G171: 0 | H171: 0 | I171: =C171-E171 -> 0 | J171: =D171-F171 -> 0 | O171: 0.015 | P171: 9547 | Q171: =O171*P171 -> 143.205 | R171: 9547 | S171: 143.205 | X171: 0.015 | Z171: =X171*Y171 -> 0 | AA171: 0 | AB171: 0 | AD171: =J171=#REF! ->  | AE171: TRUE | AG171: =N172+#REF! ->  | AH171: =O172+#REF! -> 
B172: Sub Total | C172: =SUM(C168:C171) -> 1076 | D172: 32.28 | E172: 1076 | F172: 32.28 | G172: 1 | H172: 1 | I172: 0 | J172: 0 | K172: 0 | L172: 0 | M172: 0 | N172: 0 | P172: 9837 | Q172: 151.905 | R172: 9837 | S172: 151.905 | T172: 0 | U172: 0 | V172: 0 | W172: 0 | Y172: =SUM(Y168:Y171) -> 290 | Z172: 8.7 | AA172: 290 | AB172: 8.7 | AD172: =J172=#REF! ->  | AE172: TRUE | AG172: =N173+#REF! ->  | AH172: =O173+#REF! -> 
A173: 6.04 | B173: Non-Residential (Continuing from previous year) | G173: 0 | H173: 0 | I173: =C173-G173 -> 0 | J173: =D173-F173 -> 0 | AD173: =J173=#REF! ->  | AE173: TRUE | AG173: =N174+#REF! ->  | AH173: =O174+#REF! -> 
B174: (a) 12 months | C174: 0 | D174: 0 | E174: 0 | F174: 0 | G174: 0 | H174: 0 | I174: =C174-E174 -> 0 | J174: =D174-F174 -> 0 | Q174: =O174*P174 -> 0 | R174: =K174+M174+P174 -> 0 | S174: 0 | Z174: =X174*Y174 -> 0 | AA174: =T174+V174+Y174 -> 0 | AB174: =U174+W174+Z174 -> 0 | AD174: =J174=#REF! ->  | AE174: TRUE | AG174: =N175+#REF! ->  | AH174: =O175+#REF! -> 
B175: (b) 9 months | C175: 0 | D175: 0 | E175: 0 | F175: 0 | G175: 0 | H175: 0 | I175: =C175-E175 -> 0 | J175: =D175-F175 -> 0 | Q175: =O175*P175 -> 0 | R175: 0 | S175: 0 | Z175: =X175*Y175 -> 0 | AA175: 0 | AB175: 0 | AD175: =J175=#REF! ->  | AE175: TRUE | AG175: =N176+#REF! ->  | AH175: =O176+#REF! -> 
B176: (c) 6 months | C176: 0 | D176: 0 | E176: 0 | F176: 0 | G176: 0 | H176: 0 | I176: =C176-E176 -> 0 | J176: =D176-F176 -> 0 | O176: 0.03 | P176: 0 | Q176: =O176*P176 -> 0 | R176: 0 | S176: 0 | X176: 0.03 | Z176: =X176*Y176 -> 0 | AA176: 0 | AB176: 0
B177: (d) 3 months | C177: 0 | D177: 0 | E177: 0 | F177: 0 | G177: 0 | H177: 0 | I177: =C177-E177 -> 0 | J177: =D177-F177 -> 0 | Q177: =O177*P177 -> 0 | R177: 0 | S177: 0 | Z177: =X177*Y177 -> 0 | AA177: 0 | AB177: 0
B178: Sub Total | C178: =SUM(C174:C177) -> 0 | D178: 0 | E178: 0 | F178: 0 | G178: 0 | H178: 0 | I178: 0 | J178: 0 | K178: 0 | L178: 0 | M178: 0 | N178: 0 | P178: 0 | Q178: 0 | R178: 0 | S178: 0 | T178: 0 | U178: 0 | V178: 0 | W178: 0 | Y178: =SUM(Y174:Y177) -> 0 | Z178: 0 | AA178: 0 | AB178: 0
A179: 6.05 | B179: Madarasa/Maktab | G179: 0 | H179: 0 | I179: =C179-G179 -> 0 | J179: =D179-F179 -> 0 | AD179: =J179=#REF! ->  | AE179: =K179=AC179 -> TRUE
B180: (a) 12 months | C180: 0 | D180: 0 | E180: 0 | F180: 0 | G180: 0 | H180: 0 | I180: =C180-E180 -> 0 | J180: =D180-F180 -> 0 | Q180: =O180*P180 -> 0 | R180: =K180+M180+P180 -> 0 | S180: 0 | Z180: =X180*Y180 -> 0 | AA180: =T180+V180+Y180 -> 0 | AB180: =U180+W180+Z180 -> 0 | AD180: =J180=#REF! ->  | AE180: TRUE
B181: (b) 9 months | C181: 0 | D181: 0 | E181: 0 | F181: 0 | G181: 0 | H181: 0 | I181: =C181-E181 -> 0 | J181: =D181-F181 -> 0 | Q181: =O181*P181 -> 0 | R181: 0 | S181: 0 | Z181: =X181*Y181 -> 0 | AA181: 0 | AB181: 0 | AD181: =J181=#REF! ->  | AE181: TRUE
B182: (c) 6 months | C182: 0 | D182: 0 | E182: 0 | F182: 0 | G182: 0 | H182: 0 | I182: =C182-E182 -> 0 | J182: =D182-F182 -> 0 | O182: 0.03 | P182: 0 | Q182: =O182*P182 -> 0 | R182: 0 | S182: 0 | X182: 0.03 | Z182: =X182*Y182 -> 0 | AA182: 0 | AB182: 0 | AD182: =J182=#REF! ->  | AE182: TRUE
B183: (d) 3 months | C183: 0 | D183: 0 | E183: 0 | F183: 0 | G183: 0 | H183: 0 | I183: =C183-E183 -> 0 | J183: =D183-F183 -> 0 | O183: 0.015 | Q183: =O183*P183 -> 0 | R183: 0 | S183: 0 | X183: 0.015 | Y183: 0 | Z183: =X183*Y183 -> 0 | AA183: 0 | AB183: 0 | AD183: =J183=#REF! ->  | AE183: TRUE
B184: Sub Total | C184: =SUM(C180:C183) -> 0 | D184: 0 | E184: 0 | F184: 0 | G184: 0 | H184: 0 | I184: 0 | J184: 0 | K184: 0 | L184: 0 | M184: 0 | N184: 0 | P184: 0 | Q184: 0 | R184: 0 | S184: 0 | T184: 0 | U184: 0 | V184: 0 | W184: 0 | Y184: =SUM(Y180:Y183) -> 0 | Z184: 0 | AA184: 0 | AB184: 0 | AD184: =J184=#REF! ->  | AE184: TRUE
A185: 6.06 | B185: Seasonal Hostel (Residential) | G185: 0 | H185: 0 | I185: =C185-G185 -> 0 | J185: =D185-F185 -> 0 | AD185: =J185=#REF! ->  | AE185: TRUE
B186: (a) 12 months | C186: 0 | D186: 0 | E186: 0 | F186: 0 | G186: 0 | H186: 0 | I186: =C186-E186 -> 0 | J186: =D186-F186 -> 0 | Q186: =O186*P186 -> 0 | R186: =K186+M186+P186 -> 0 | S186: 0 | Z186: =X186*Y186 -> 0 | AA186: =T186+V186+Y186 -> 0 | AB186: =U186+W186+Z186 -> 0 | AD186: =J186=#REF! ->  | AE186: TRUE
B187: (b) 9 months | C187: 0 | D187: 0 | E187: 0 | F187: 0 | G187: 0 | H187: 0 | I187: =C187-E187 -> 0 | J187: =D187-F187 -> 0 | Q187: =O187*P187 -> 0 | R187: 0 | S187: 0 | Z187: =X187*Y187 -> 0 | AA187: 0 | AB187: 0 | AD187: =J187=#REF! ->  | AE187: TRUE
B188: (c) 6 months | C188: 768 | D188: 76.8 | E188: 768 | F188: 76.8 | G188: 1 | H188: 1 | I188: =C188-E188 -> 0 | J188: =D188-F188 -> 0 | O188: 0.17 | P188: 682 | Q188: =O188*P188 -> 115.94 | R188: 682 | S188: 115.94 | X188: 0.1 | Y188: 682 | Z188: =X188*Y188 -> 68.2 | AA188: 682 | AB188: 68.2 | AD188: =J188=#REF! ->  | AE188: TRUE
B189: (d) 3 months | C189: 0 | D189: 0 | E189: 0 | F189: 0 | G189: 0 | H189: 0 | I189: =C189-E189 -> 0 | J189: =D189-F189 -> 0 | Q189: =O189*P189 -> 0 | R189: 0 | S189: 0 | Z189: =X189*Y189 -> 0 | AA189: 0 | AB189: 0 | AD189: =J189=#REF! ->  | AE189: TRUE
B190: Sub Total | C190: =SUM(C186:C189) -> 768 | D190: 76.8 | E190: 768 | F190: 76.8 | G190: 1 | H190: 1 | I190: 0 | J190: 0 | K190: 0 | L190: 0 | M190: 0 | N190: 0 | P190: 682 | Q190: 115.94 | R190: 682 | S190: 115.94 | T190: 0 | U190: 0 | V190: 0 | W190: 0 | Y190: =SUM(Y186:Y189) -> 682 | Z190: 68.2 | AA190: 682 | AB190: 68.2 | AD190: =J190=#REF! ->  | AE190: TRUE
A191: 6.07 | B191: Seasonal Hostel | G191: 0 | H191: 0 | I191: =C191-G191 -> 0 | J191: =D191-F191 -> 0 | AD191: =J191=#REF! ->  | AE191: TRUE
B192: (a) 12 months | C192: 0 | D192: 0 | E192: 0 | F192: 0 | G192: 0 | H192: 0 | I192: =C192-E192 -> 0 | J192: =D192-F192 -> 0 | Q192: =O192*P192 -> 0 | R192: =K192+M192+P192 -> 0 | S192: 0 | Z192: =X192*Y192 -> 0 | AA192: =T192+V192+Y192 -> 0 | AB192: =U192+W192+Z192 -> 0 | AD192: =J192=#REF! ->  | AE192: TRUE
B193: (b) 9 months | C193: 0 | D193: 0 | E193: 0 | F193: 0 | G193: 0 | H193: 0 | I193: =C193-E193 -> 0 | J193: =D193-F193 -> 0 | Q193: =O193*P193 -> 0 | R193: 0 | S193: 0 | Z193: =X193*Y193 -> 0 | AA193: 0 | AB193: 0 | AD193: =J193=#REF! ->  | AE193: TRUE
B194: (c) 6 months | C194: 0 | D194: 0 | E194: 0 | F194: 0 | G194: 0 | H194: 0 | I194: =C194-E194 -> 0 | J194: =D194-F194 -> 0 | O194: 0.1 | P194: 0 | Q194: =O194*P194 -> 0 | R194: 0 | S194: 0 | X194: 0.1 | Y194: 0 | Z194: =X194*Y194 -> 0 | AA194: 0 | AB194: 0 | AD194: =J194=#REF! ->  | AE194: TRUE
B195: (d) 3 months | C195: 0 | D195: 0 | E195: 0 | F195: 0 | G195: 0 | H195: 0 | I195: =C195-E195 -> 0 | J195: =D195-F195 -> 0 | Q195: =O195*P195 -> 0 | R195: 0 | S195: 0 | Z195: =X195*Y195 -> 0 | AA195: 0 | AB195: 0 | AD195: =J195=#REF! ->  | AE195: TRUE
B196: Sub Total | C196: =SUM(C192:C195) -> 0 | D196: 0 | E196: 0 | F196: 0 | G196: 0 | H196: 0 | I196: 0 | J196: 0 | K196: 0 | L196: 0 | M196: 0 | N196: 0 | P196: 0 | Q196: 0 | R196: 0 | S196: 0 | T196: 0 | U196: 0 | V196: 0 | W196: 0 | Y196: =SUM(Y192:Y195) -> 0 | Z196: 0 | AA196: 0 | AB196: 0 | AD196: =J196=#REF! ->  | AE196: TRUE
B197: Total | C197: =C160+C166+C172+C178+C184+C190+C196 -> 1844 | D197: 109.08 | E197: 1844 | F197: 109.08 | G197: 1 | H197: 1 | I197: 0 | J197: 0 | K197: 0 | L197: 0 | M197: 0 | N197: 0 | P197: =P160+P166+P172+P178+P184+P190+P196 -> 10519 | Q197: 267.845 | R197: 10519 | S197: 267.845 | T197: 0 | U197: 0 | V197: 0 | W197: 0 | Y197: =Y160+Y166+Y172+Y178+Y184+Y190+Y196 -> 972 | Z197: =Z160+Z166+Z172+Z178+Z184+Z190+Z196 -> 76.9 | AA197: 972 | AB197: 76.9 | AD197: =J197=#REF! ->  | AE197: TRUE
A198: II | B198: RETENTION | G198: 0 | H198: 0 | I198: =C198-G198 -> 0 | J198: =D198-F198 -> 0 | AD198: =J198=#REF! ->  | AE198: TRUE
A199: 7 | B199: Free Text Books | G199: 0 | H199: 0 | I199: =C199-G199 -> 0 | J199: 0 | AD199: =J199=#REF! ->  | AE199: TRUE
A200: 7.01 | B200: Free Text Books (P) | G200: 0 | H200: 0 | I200: =C200-G200 -> 0 | J200: 0 | AD200: =J200=#REF! ->  | AE200: TRUE
B201: (a) Class I & II | C201: 126764 | D201: 190.146 | E201: 126764 | F201: 190.146 | G201: 1 | H201: 1 | I201: =C201-E201 -> 0 | J201: 0 | O201: 0.0015 | P201: 124958 | Q201: =O201*P201 -> 187.437 | R201: =K201+M201+P201 -> 124958 | S201: =L201+N201+Q201 -> 187.437 | X201: 0.0015 | Y201: 124958 | Z201: =X201*Y201 -> 187.437 | AA201: =T201+V201+Y201 -> 124958 | AB201: =U201+W201+Z201 -> 187.437 | AD201: =J201=#REF! ->  | AE201: TRUE
B202: (b) Braille Books Class I & II | C202: 20 | D202: 0.03 | E202: 20 | F202: 0.03 | G202: 1 | H202: 1 | I202: 0 | J202: 0 | O202: 0.0015 | P202: 24 | Q202: =O202*P202 -> 0.036 | R202: =K202+M202+P202 -> 24 | S202: 0.036 | X202: 0.0015 | Y202: 24 | Z202: =X202*Y202 -> 0.036 | AA202: =T202+V202+Y202 -> 24 | AB202: =U202+W202+Z202 -> 0.036 | AD202: =J202=#REF! ->  | AE202: TRUE
... 318 more rows

Sheet Akola
A1: Sarva Shiksha Abhiyan & KGBV - Annual Workplan and Budget 2017-18
A3: District : | B3: Akola | P3: =P53+P59 -> 0 | S3: =P53+#REF! ->  | Y3: =Y53+Y59 -> 0 | AB3: =Y53+AG53 -> 
A5: S.No. | B5: Activity | C5: Year 2016-17 | K5: Outlay Proposed for 2017-18 | T5: Outlay Recommended for 2017-18 | AC5: Remarks
C6: Outlay approved by PAB (including spillover) | E6: Achievement | I6: Savings | K6: Spill Over | M6: Deferred laibility of 2014-15 | O6: Fresh | R6: Total | T6: Spill Over | V6: Deferred laibility of 2014-15 | X6: Fresh | AA6: Total
C7: Phy. | D7: Fin | E7: Phy. | F7: Fin. | G7: Phy. (%) | H7: Fin. (%) | I7: Phy. | J7: Fin. | K7: Phy. | L7: Fin. | M7: Phy. | N7: Fin. | O7: Unit Cost | P7: Phy. | Q7: Fin. | R7: Phy. | S7: Fin. | T7: Phy. | U7: Fin. | V7: Phy. | W7: Fin. | X7: Unit Cost | Y7: Phy. | Z7: Fin. | AA7: Phy. | AB7: Fin.
A8: I | B8: ACCESS | I8: =C8-G8 -> 0 | J8: =D8-F8 -> 0
B9: SSA | I9: =C9-G9 -> 0 | J9: 0
A10: 1 | B10: Opening of New Schools | I10: =C10-G10 -> 0 | J10: 0 | AD10: Phy | AE10: Fin
A11: 1.01 | B11: New Primary School | C11: 0 | D11: 0 | G11: =IFERROR(E11/C11,0) -> 0 | H11: 0 | I11: =C11-E11 -> 0 | J11: 0 | Q11: =O11*P11 -> 0 | R11: =K11+M11+P11 -> 0 | S11: 0 | Z11: =X11*Y11 -> 0 | AA11: =T11+V11+Y11 -> 0 | AB11: =U11+W11+Z11 -> 0 | AD11: =J11=#REF! ->  | AE11: =K11=AC11 -> TRUE | AG11: =N12+#REF! ->  | AH11: =O12+#REF! ->  | AI11: =AG11=E12 -> 
A12: 1.02 | B12: Upgradation of PS to UPS | C12: 0 | D12: 0 | G12: 0 | H12: 0 | I12: 0 | J12: 0 | Q12: 0 | R12: 0 | S12: 0 | Z12: 0 | AA12: 0 | AB12: 0 | AD12: =J12=#REF! ->  | AE12: TRUE | AG12: =N13+#REF! ->  | AH12: =O13+#REF! -> 
A13: 1.03 | B13: Composite Schools | C13: 0 | D13: 0 | G13: 0 | H13: 0 | I13: 0 | J13: 0 | Q13: 0 | R13: 0 | S13: 0 | Z13: 0 | AA13: 0 | AB13: 0 | AD13: =J13=#REF! ->  | AE13: TRUE | AG13: =N14+#REF! ->  | AH13: =O14+#REF! -> 
A14: 1.04 | B14: Residential schools for specific category of children | C14: 0 | D14: 0 | G14: 0 | H14: 0 | I14: 0 | J14: 0 | Q14: 0 | R14: 0 | S14: 0 | Z14: 0 | AA14: 0 | AB14: 0 | AD14: =J14=#REF! ->  | AE14: TRUE | AG14: =N15+#REF! ->  | AH14: =O15+#REF! -> 
A15: 1.05 | B15: Residential Hostel | C15: 0 | D15: 0 | G15: 0 | H15: 0 | I15: 0 | J15: 0 | Q15: 0 | R15: 0 | S15: 0 | Z15: 0 | AA15: 0 | AB15: 0 | AD15: =J15=#REF! ->  | AE15: TRUE | AG15: =N16+#REF! ->  | AH15: =O16+#REF! -> 
A16: 1.06 | B16: Integration of Class V with primary schools | C16: 0 | D16: 0 | G16: 0 | H16: 0 | I16: 0 | J16: 0 | Q16: 0 | R16: 0 | S16: 0 | Z16: 0 | AA16: 0 | AB16: 0 | AD16: =J16=#REF! ->  | AE16: TRUE | AG16: =N17+#REF! ->  | AH16: =O17+#REF! -> 
A17: 1.07 | B17: Integration of Class VIII with upper primary schools | C17: 0 | D17: 0 | G17: 0 | H17: 0 | I17: 0 | J17: 0 | Q17: 0 | R17: 0 | S17: 0 | Z17: 0 | AA17: 0 | AB17: 0 | AD17: =J17=#REF! ->  | AE17: TRUE | AG17: =N18+#REF! ->  | AH17: =O18+#REF! -> 
A18: 2 | B18: Residential Schools for specific category of children | G18: 0 | H18: 0 | I18: =C18-G18 -> 0 | J18: 0 | AD18: =J18=#REF! ->  | AE18: TRUE | AG18: =N19+#REF! ->  | AH18: =O19+#REF! -> 
A19: I | B19: 50 children | G19: 0 | H19: 0 | I19: =C19-G19 -> 0 | J19: 0 | AD19: =J19=#REF! ->  | AE19: TRUE | AG19: =N20+#REF! ->  | AH19: =O20+#REF! -> 
A20: (A) | B20: Non-recurring (one time grant) | G20: 0 | H20: 0 | I20: =C20-G20 -> 0 | J20: 0 | AD20: =J20=#REF! ->  | AE20: TRUE | AG20: =N21+#REF! ->  | AH20: =O21+#REF! -> 
A21: 2.01 | B21: Furniture/ Equipment (including kitchen) | C21: 0 | D21: 0 | G21: 0 | H21: 0 | I21: =C21-E21 -> 0 | J21: 0 | Q21: =O21*P21 -> 0 | R21: =K21+M21+P21 -> 0 | S21: 0 | Z21: =X21*Y21 -> 0 | AA21: =T21+V21+Y21 -> 0 | AB21: =U21+W21+Z21 -> 0 | AD21: =J21=#REF! ->  | AE21: TRUE | AG21: =N22+#REF! ->  | AH21: =O22+#REF! -> 
A22: 2.02 | B22: TLM and equipment including library books | C22: 0 | D22: 0 | G22: 0 | H22: 0 | I22: =C22-E22 -> 0 | J22: 0 | Q22: =O22*P22 -> 0 | R22: 0 | S22: 0 | Z22: =X22*Y22 -> 0 | AA22: 0 | AB22: 0 | AD22: =J22=#REF! ->  | AE22: TRUE | AG22: =N23+#REF! ->  | AH22: =O23+#REF! -> 
A23: 2.03 | B23: Bedding (new) | C23: 0 | D23: 0 | G23: 0 | H23: 0 | I23: =C23-E23 -> 0 | J23: 0 | Q23: =O23*P23 -> 0 | R23: 0 | S23: 0 | Z23: =X23*Y23 -> 0 | AA23: 0 | AB23: 0 | AD23: =J23=#REF! ->  | AE23: TRUE | AG23: =N24+#REF! ->  | AH23: =O24+#REF! -> 
A24: 2.04 | B24: Replacement of bedding (once in 3 years) | C24: 0 | D24: 0 | G24: 0 | H24: 0 | I24: =C24-E24 -> 0 | J24: 0 | Q24: =O24*P24 -> 0 | R24: 0 | S24: 0 | Z24: =X24*Y24 -> 0 | AA24: 0 | AB24: 0 | AD24: =J24=#REF! ->  | AE24: TRUE | AG24: =N25+#REF! ->  | AH24: =O25+#REF! -> 
B25: Sub Total (Non Recurring) | C25: =SUM(C21:C24) -> 0 | D25: 0 | E25: 0 | F25: 0 | G25: 0 | H25: 0 | I25: 0 | J25: 0 | K25: 0 | L25: 0 | M25: 0 | N25: 0 | P25: 0 | Q25: 0 | R25: 0 | S25: 0 | T25: 0 | U25: 0 | V25: 0 | W25: 0 | Y25: =SUM(Y21:Y24) -> 0 | Z25: 0 | AA25: 0 | AB25: 0 | AD25: =J25=#REF! ->  | AE25: TRUE | AG25: =N26+#REF! ->  | AH25: =O26+#REF! -> 
A26: (B) | B26: Recurring (50 children) | G26: 0 | H26: 0 | I26: =C26-G26 -> 0 | J26: =D26-F26 -> 0 | AD26: =J26=#REF! ->  | AE26: TRUE | AG26: =N27+#REF! ->  | AH26: =O27+#REF! -> 
A27: 2.05 | B27: Maintenance per child Per month @ Rs.1500/- | C27: 0 | D27: 0 | G27: 0 | H27: 0 | I27: =C27-E27 -> 0 | J27: 0 | Q27: =O27*P27 -> 0 | R27: =K27+M27+P27 -> 0 | S27: 0 | Z27: =X27*Y27 -> 0 | AA27: =T27+V27+Y27 -> 0 | AB27: =U27+W27+Z27 -> 0 | AD27: =J27=#REF! ->  | AE27: TRUE | AG27: =N28+#REF! ->  | AH27: =O28+#REF! -> 
A28: 2.06 | B28: Stipend per child per month @ Rs.100/- | C28: 0 | D28: 0 | G28: 0 | H28: 0 | I28: 0 | J28: 0 | Q28: =O28*P28 -> 0 | R28: 0 | S28: 0 | Z28: =X28*Y28 -> 0 | AA28: 0 | AB28: 0 | AD28: =J28=#REF! ->  | AE28: TRUE | AG28: =N29+#REF! ->  | AH28: =O29+#REF! -> 
A29: 2.07 | B29: Supplementary TLM, Stationery and other educational material @Rs.1000/- per child per annum | C29: 0 | D29: 0 | G29: 0 | H29: 0 | I29: 0 | J29: 0 | Q29: =O29*P29 -> 0 | R29: 0 | S29: 0 | Z29: =X29*Y29 -> 0 | AA29: 0 | AB29: 0 | AD29: =J29=#REF! ->  | AE29: TRUE | AG29: =N30+#REF! ->  | AH29: =O30+#REF! -> 
A30: 2.08 | B30: Salaries | G30: 0 | H30: 0 | I30: 0 | J30: 0 | AD30: =J30=#REF! ->  | AE30: TRUE | AG30: =N31+#REF! ->  | AH30: =O31+#REF! -> 
A31: (a) | B31: 1 Warden @ Rs.25000/- per month | C31: 0 | D31: 0 | G31: 0 | H31: 0 | I31: 0 | J31: 0 | Q31: =O31*P31 -> 0 | R31: =K31+M31+P31 -> 0 | S31: 0 | Z31: =X31*Y31 -> 0 | AA31: =T31+V31+Y31 -> 0 | AB31: =U31+W31+Z31 -> 0 | AD31: =J31=#REF! ->  | AE31: TRUE | AG31: =N32+#REF! ->  | AH31: =O32+#REF! -> 
A32: (b) | B32: 4 Fulltime teachers as per RTE Norms @ Rs. 20,000/- per month per teacher | C32: 0 | D32: 0 | G32: 0 | H32: 0 | I32: 0 | J32: 0 | Q32: 0 | R32: 0 | S32: 0 | Z32: 0 | AA32: 0 | AB32: 0 | AD32: =J32=#REF! ->  | AE32: TRUE | AG32: =N33+#REF! ->  | AH32: =O33+#REF! -> 
A33: (c) | B33: 2 Urdu Teachers (only for Blocks with muslim population above 20% and select urban areas) @ Rs.12,000/- per month per teacher. | C33: 0 | D33: 0 | G33: 0 | H33: 0 | I33: 0 | J33: 0 | Q33: 0 | R33: 0 | S33: 0 | Z33: 0 | AA33: 0 | AB33: 0 | AD33: =J33=#REF! ->  | AE33: TRUE | AG33: =N34+#REF! ->  | AH33: =O34+#REF! -> 
A34: (d) | B34: 3 Part time teachers @ Rs.5,000/- per month per teacher | C34: 0 | D34: 0 | G34: 0 | H34: 0 | I34: 0 | J34: 0 | Q34: 0 | R34: 0 | S34: 0 | Z34: 0 | AA34: 0 | AB34: 0 | AD34: =J34=#REF! ->  | AE34: TRUE | AG34: =N35+#REF! ->  | AH34: =O35+#REF! -> 
A35: (e) | B35: 1 Full time Accountant @ Rs. 10,000/- per month | C35: 0 | D35: 0 | G35: 0 | H35: 0 | I35: 0 | J35: 0 | Q35: 0 | R35: 0 | S35: 0 | Z35: 0 | AA35: 0 | AB35: 0 | AD35: =J35=#REF! ->  | AE35: TRUE | AG35: =#REF!+#REF! ->  | AH35: =#REF!+#REF! ->  | AI35: =AG35=#REF! ->  | AJ35: =AH35=#REF! -> 
A36: (f) | B36: 2 Support staff - (Accountant/Assistant, Peon, Chowkidar) @ Rs. 5,000/- per month per staff | C36: 0 | D36: 0 | G36: 0 | H36: 0 | I36: 0 | J36: 0 | Q36: 0 | R36: 0 | S36: 0 | Z36: 0 | AA36: 0 | AB36: 0 | AD36: =J36=#REF! ->  | AE36: TRUE | AG36: =N37+#REF! ->  | AH36: =O37+#REF! ->  | AI36: =AG36=E37 -> 
A37: (g) | B37: 1 Head Cook @ Rs. 6,000/- per month and upto 2 Asstt. Cooks @ Rs. 4,500/- per month per cook | C37: 0 | D37: 0 | G37: 0 | H37: 0 | I37: 0 | J37: 0 | Q37: 0 | R37: 0 | S37: 0 | Z37: 0 | AA37: 0 | AB37: 0 | AD37: =J37=#REF! ->  | AE37: TRUE | AG37: =N38+#REF! ->  | AH37: =O38+#REF! -> 
A38: 2.09 | B38: Specific Skill training @ Rs.1000/- per annum per child | C38: 0 | D38: 0 | G38: 0 | H38: 0 | I38: 0 | J38: 0 | Q38: 0 | R38: 0 | S38: 0 | Z38: 0 | AA38: 0 | AB38: 0 | AD38: =J38=#REF! ->  | AE38: TRUE | AG38: =N39+#REF! ->  | AH38: =O39+#REF! -> 
A39: 2.1 | B39: Electricity / water charges @ Rs. 1000/- per annum per child | C39: 0 | D39: 0 | G39: 0 | H39: 0 | I39: 0 | J39: 0 | Q39: 0 | R39: 0 | S39: 0 | Z39: 0 | AA39: 0 | AB39: 0 | AD39: =J39=#REF! ->  | AE39: TRUE | AG39: =N40+#REF! ->  | AH39: =O40+#REF! -> 
A40: 2.11 | B40: Medical care/contingencies @ Rs.1250/- per annum per child | C40: 0 | D40: 0 | G40: 0 | H40: 0 | I40: 0 | J40: 0 | Q40: 0 | R40: 0 | S40: 0 | Z40: 0 | AA40: 0 | AB40: 0 | AD40: =J40=#REF! ->  | AE40: TRUE | AG40: =N41+#REF! ->  | AH40: =O41+#REF! -> 
A41: =+A40+0.01 -> 2.12 | B41: Maintenance @ Rs. 750/- per child per annum | C41: 0 | D41: 0 | G41: 0 | H41: 0 | I41: 0 | J41: 0 | Q41: 0 | R41: 0 | S41: 0 | Z41: 0 | AA41: 0 | AB41: 0 | AD41: =J41=#REF! ->  | AE41: TRUE | AG41: =N42+#REF! ->  | AH41: =O42+#REF! -> 
A42: 2.13 | B42: Miscellaneous @ Rs. 750/- per child per annum | C42: 0 | D42: 0 | G42: 0 | H42: 0 | I42: 0 | J42: 0 | Q42: 0 | R42: 0 | S42: 0 | Z42: 0 | AA42: 0 | AB42: 0 | AD42: =J42=#REF! ->  | AE42: TRUE | AG42: =N43+#REF! ->  | AH42: =O43+#REF! -> 
A43: 2.14 | B43: Preparatory camps @ Rs. 300/- per child per annum | C43: 0 | D43: 0 | G43: =IFERROR(E43/C43,0) -> 0 | H43: 0 | I43: 0 | J43: 0 | Q43: 0 | R43: 0 | S43: 0 | Z43: 0 | AA43: 0 | AB43: 0 | AD43: =J43=#REF! ->  | AE43: TRUE | AG43: =N44+#REF! ->  | AH43: =O44+#REF! -> 
A44: 2.15 | B44: P.T.A / school functions @ Rs. 300/- per child per annum | C44: 0 | D44: 0 | G44: 0 | H44: 0 | I44: 0 | J44: 0 | Q44: 0 | R44: 0 | S44: 0 | Z44: 0 | AA44: 0 | AB44: 0 | AD44: =J44=#REF! ->  | AE44: TRUE | AG44: =N45+#REF! ->  | AH44: =O45+#REF! -> 
A45: 2.16 | B45: Provision of Rent @ Rs. 10,000/- per child per annum | C45: 0 | D45: 0 | G45: 0 | H45: 0 | I45: 0 | J45: 0 | Q45: 0 | R45: 0 | S45: 0 | Z45: 0 | AA45: 0 | AB45: 0 | AD45: =J45=#REF! ->  | AE45: TRUE | AG45: =N46+#REF! ->  | AH45: =O46+#REF! -> 
A46: 2.17 | B46: Capacity Building @ Rs. 500/- per child per annum | C46: 0 | D46: 0 | G46: 0 | H46: 0 | I46: 0 | J46: 0 | Q46: 0 | R46: 0 | S46: 0 | Z46: 0 | AA46: 0 | AB46: 0 | AD46: =J46=#REF! ->  | AE46: TRUE | AG46: =N47+#REF! ->  | AH46: =O47+#REF! -> 
A47: 2.18 | B47: Physical / Self Defence Training @ Rs.200/- per child per annum | C47: 0 | D47: 0 | G47: 0 | H47: 0 | I47: 0 | J47: 0 | Q47: 0 | R47: 0 | S47: 0 | Z47: 0 | AA47: 0 | AB47: 0 | AD47: =J47=#REF! ->  | AE47: TRUE | AG47: =N48+#REF! ->  | AH47: =O48+#REF! -> 
B48: Sub Total (Recurring) | C48: =SUM(C27:C47) -> 0 | D48: 0 | E48: 0 | F48: 0 | G48: 0 | H48: 0 | I48: 0 | J48: 0 | K48: 0 | L48: 0 | M48: 0 | N48: 0 | P48: 0 | Q48: 0 | R48: 0 | S48: 0 | T48: 0 | U48: 0 | V48: 0 | W48: 0 | Y48: =SUM(Y27:Y47) -> 0 | Z48: 0 | AA48: 0 | AB48: 0 | AD48: =J48=#REF! ->  | AE48: TRUE | AG48: =N49+#REF! ->  | AH48: =O49+#REF! -> 
B49: Total (Non Recurring + Recurring) | C49: =C25+C48 -> 0 | D49: 0 | E49: 0 | F49: 0 | G49: 0 | H49: 0 | I49: 0 | J49: 0 | K49: 0 | L49: 0 | M49: 0 | N49: 0 | P49: 0 | Q49: 0 | R49: 0 | S49: 0 | T49: 0 | U49: 0 | V49: 0 | W49: 0 | Y49: =Y25+Y48 -> 0 | Z49: 0 | AA49: 0 | AB49: 0 | AD49: =J49=#REF! ->  | AE49: TRUE | AG49: =N50+#REF! ->  | AH49: =O50+#REF! -> 
A50: II | B50: 100 children | G50: 0 | H50: 0 | I50: =C50-G50 -> 0 | J50: =D50-F50 -> 0 | AD50: =J50=#REF! ->  | AE50: TRUE | AG50: =N51+#REF! ->  | AH50: =O51+#REF! -> 
A51: (A) | B51: Non-recurring (one time grant) | G51: 0 | H51: 0 | I51: =C51-G51 -> 0 | J51: 0 | AD51: =J51=#REF! ->  | AE51: TRUE | AG51: =N52+#REF! ->  | AH51: =O52+#REF! -> 
A52: 2.19 | B52: Furniture / Equipment (including kitchen equipment) | C52: 0 | D52: 0 | G52: 0 | H52: 0 | I52: =C52-E52 -> 0 | J52: 0 | Q52: =O52*P52 -> 0 | R52: =K52+M52+P52 -> 0 | S52: 0 | Z52: =X52*Y52 -> 0 | AA52: =T52+V52+Y52 -> 0 | AB52: =U52+W52+Z52 -> 0 | AD52: =J52=#REF! ->  | AE52: TRUE | AG52: =N53+#REF! ->  | AH52: =O53+#REF! -> 
A53: =+A52+0.01 -> 2.2 | B53: TLM and equipment including library books (New) | C53: 0 | D53: 0 | G53: 0 | H53: 0 | I53: =C53-E53 -> 0 | J53: 0 | Q53: =O53*P53 -> 0 | R53: 0 | S53: 0 | Z53: =X53*Y53 -> 0 | AA53: 0 | AB53: 0 | AD53: =J53=#REF! ->  | AE53: TRUE | AG53: =N54+#REF! ->  | AH53: =O54+#REF! -> 
A54: =+A53+0.01 -> 2.21 | B54: Bedding (New) | C54: 0 | D54: 0 | G54: 0 | H54: 0 | I54: =C54-E54 -> 0 | J54: 0 | Q54: =O54*P54 -> 0 | R54: 0 | S54: 0 | Z54: =X54*Y54 -> 0 | AA54: 0 | AB54: 0 | AD54: =J54=#REF! ->  | AE54: TRUE | AG54: =N55+#REF! ->  | AH54: =O55+#REF! -> 
A55: =+A54+0.01 -> 2.22 | B55: Replacement of bedding (once in 3 years) | C55: 0 | D55: 0 | G55: 0 | H55: 0 | I55: =C55-E55 -> 0 | J55: 0 | Q55: =O55*P55 -> 0 | R55: 0 | S55: 0 | Z55: =X55*Y55 -> 0 | AA55: 0 | AB55: 0 | AD55: =J55=#REF! ->  | AE55: TRUE | AG55: =N56+#REF! ->  | AH55: =O56+#REF! -> 
B56: Sub Total Non-recurring | C56: =SUM(C52:C55) -> 0 | D56: 0 | E56: 0 | F56: 0 | G56: 0 | H56: 0 | I56: 0 | J56: 0 | K56: 0 | L56: 0 | M56: 0 | N56: 0 | P56: 0 | Q56: 0 | R56: 0 | S56: 0 | T56: 0 | U56: 0 | V56: 0 | W56: 0 | Y56: =SUM(Y52:Y55) -> 0 | Z56: 0 | AA56: 0 | AB56: 0 | AD56: =J56=#REF! ->  | AE56: TRUE | AG56: =N64+#REF! ->  | AH56: =O64+#REF! ->  | AI56: =AG56=E64 ->  | AJ56: =AH56=F64 -> 
A57: (B) | B57: Recurring | G57: 0 | H57: 0 | I57: =C57-G57 -> 0 | J57: =D57-F57 -> 0
A58: 2.23 | B58: Maintenance per child per month @ Rs. 1500/- | C58: 0 | D58: 0 | G58: 0 | H58: 0 | I58: =C58-E58 -> 0 | J58: 0 | Q58: =O58*P58 -> 0 | R58: =K58+M58+P58 -> 0 | S58: 0 | Z58: =X58*Y58 -> 0 | AA58: =T58+V58+Y58 -> 0 | AB58: =U58+W58+Z58 -> 0
A59: =+A58+0.01 -> 2.24 | B59: Stipend per child per month @ Rs.100/- | C59: 0 | D59: 0 | G59: 0 | H59: 0 | I59: 0 | J59: 0 | Q59: =O59*P59 -> 0 | R59: 0 | S59: 0 | Z59: =X59*Y59 -> 0 | AA59: 0 | AB59: 0
A60: 2.25 | B60: Supplementary TLM, Stationery and other educational material per child @1000/- per annum | C60: 0 | D60: 0 | G60: 0 | H60: 0 | I60: 0 | J60: 0 | Q60: =O60*P60 -> 0 | R60: 0 | S60: 0 | Z60: =X60*Y60 -> 0 | AA60: 0 | AB60: 0
A61: 2.26 | B61: Salaries | G61: 0 | H61: 0 | I61: 0 | J61: 0
A62: (a) | B62: 1 Warden @ Rs. 25,000/- per month | C62: 0 | D62: 0 | G62: 0 | H62: 0 | I62: 0 | J62: 0 | Q62: =O62*P62 -> 0 | R62: =K62+M62+P62 -> 0 | S62: 0 | Z62: =X62*Y62 -> 0 | AA62: =T62+V62+Y62 -> 0 | AB62: =U62+W62+Z62 -> 0
A63: (b) | B63: 1 head teacher @ Rs. 25,000/- per month in case the enrollment exceeds 100 | C63: 0 | D63: 0 | G63: 0 | H63: 0 | I63: 0 | J63: 0 | Q63: 0 | R63: 0 | S63: 0 | Z63: 0 | AA63: 0 | AB63: 0
A64: (c) | B64: 4 - 5 Full time teachers as per RTE norms @ Rs. 20,000/- per month per teacher | C64: 0 | D64: 0 | G64: 0 | H64: 0 | I64: 0 | J64: 0 | Q64: 0 | R64: 0 | S64: 0 | Z64: 0 | AA64: 0 | AB64: 0 | AD64: =J64=#REF! ->  | AE64: =K64=AC64 -> TRUE | AG64: =N65+#REF! ->  | AH64: =O65+#REF! ->  | AI64: =AG64=E65 -> 
A65: (d) | B65: 2 Urdu Teachers (only for blocks with muslim population above 20% and select urban areas), if required @ Rs. 12,000/- per month per teacher | C65: 0 | D65: 0 | G65: 0 | H65: 0 | I65: 0 | J65: 0 | Q65: 0 | R65: 0 | S65: 0 | Z65: 0 | AA65: 0 | AB65: 0 | AD65: =J65=#REF! ->  | AE65: TRUE | AG65: =N66+#REF! ->  | AH65: =O66+#REF! -> 
A66: (e) | B66: 3 part time teachers @ Rs. 5,000/- per month per teacher | C66: 0 | D66: 0 | G66: 0 | H66: 0 | I66: 0 | J66: 0 | Q66: 0 | R66: 0 | S66: 0 | Z66: 0 | AA66: 0 | AB66: 0 | AD66: =J66=#REF! ->  | AE66: TRUE | AG66: =N67+#REF! ->  | AH66: =O67+#REF! -> 
A67: (f) | B67: 1 Full time Accountant @ Rs. 10,000/- per month | C67: 0 | D67: 0 | G67: 0 | H67: 0 | I67: 0 | J67: 0 | Q67: 0 | R67: 0 | S67: 0 | Z67: 0 | AA67: 0 | AB67: 0 | AD67: =J67=#REF! ->  | AE67: TRUE | AG67: =N68+#REF! ->  | AH67: =O68+#REF! -> 
A68: (g) | B68: 2 Support Staff – (Accountant/ Assistant, Peon, Chowkidar) @ Rs. 5,000/- per month per staff | C68: 0 | D68: 0 | G68: 0 | H68: 0 | I68: 0 | J68: 0 | Q68: 0 | R68: 0 | S68: 0 | Z68: 0 | AA68: 0 | AB68: 0 | AD68: =J68=#REF! ->  | AE68: TRUE | AG68: =N69+#REF! ->  | AH68: =O69+#REF! -> 
A69: (h) | B69: 1 Head cook @ Rs. 6,000/- per month and upto 2 Asstt. Cooks @ Rs. 4,500/- per month per cook | C69: 0 | D69: 0 | G69: 0 | H69: 0 | I69: 0 | J69: 0 | Q69: 0 | R69: 0 | S69: 0 | Z69: 0 | AA69: 0 | AB69: 0 | AD69: =J69=#REF! ->  | AE69: TRUE | AG69: =N70+#REF! ->  | AH69: =O70+#REF! -> 
A70: 2.27 | B70: Specific skill training per child @ Rs.1000/- per annum | C70: 0 | D70: 0 | G70: 0 | H70: 0 | I70: 0 | J70: 0 | Q70: 0 | R70: 0 | S70: 0 | Z70: 0 | AA70: 0 | AB70: 0 | AD70: =J70=#REF! ->  | AE70: TRUE | AG70: =N71+#REF! ->  | AH70: =O71+#REF! -> 
A71: 2.28 | B71: Electricity / water charges per child @Rs.1000/- per annum | C71: 0 | D71: 0 | G71: 0 | H71: 0 | I71: 0 | J71: 0 | Q71: 0 | R71: 0 | S71: 0 | Z71: 0 | AA71: 0 | AB71: 0 | AD71: =J71=#REF! ->  | AE71: TRUE | AG71: =N72+#REF! ->  | AH71: =O72+#REF! -> 
A72: 2.29 | B72: Medical care/contingencies @ Rs.1250/- per child per annum | C72: 0 | D72: 0 | G72: 0 | H72: 0 | I72: 0 | J72: 0 | Q72: 0 | R72: 0 | S72: 0 | Z72: 0 | AA72: 0 | AB72: 0 | AD72: =J72=#REF! ->  | AE72: TRUE | AG72: =N73+#REF! ->  | AH72: =O73+#REF! -> 
A73: 2.3 | B73: Maintenance @ Rs.750/- per child per annum | C73: 0 | D73: 0 | G73: 0 | H73: 0 | I73: 0 | J73: 0 | Q73: 0 | R73: 0 | S73: 0 | Z73: 0 | AA73: 0 | AB73: 0 | AD73: =J73=#REF! ->  | AE73: TRUE | AG73: =N74+#REF! ->  | AH73: =O74+#REF! -> 
A74: 2.31 | B74: Miscellaneous @ Rs.750/- per child per annum | C74: 0 | D74: 0 | G74: 0 | H74: 0 | I74: 0 | J74: 0 | Q74: 0 | R74: 0 | S74: 0 | Z74: 0 | AA74: 0 | AB74: 0 | AD74: =J74=#REF! ->  | AE74: TRUE | AG74: =N75+#REF! ->  | AH74: =O75+#REF! -> 
A75: 2.32 | B75: Preparatory camps @ Rs.200/- per child per annum | C75: 0 | D75: 0 | G75: =IFERROR(E75/C75,0) -> 0 | H75: 0 | I75: 0 | J75: 0 | Q75: 0 | R75: 0 | S75: 0 | Z75: 0 | AA75: 0 | AB75: 0 | AD75: =J75=#REF! ->  | AE75: TRUE | AG75: =N76+#REF! ->  | AH75: =O76+#REF! -> 
A76: 2.33 | B76: P.T.A / school functions @ Rs.200/- per child per annum | C76: 0 | D76: 0 | G76: 0 | H76: 0 | I76: 0 | J76: 0 | Q76: 0 | R76: 0 | S76: 0 | Z76: 0 | AA76: 0 | AB76: 0 | AD76: =J76=#REF! ->  | AE76: TRUE | AG76: =N77+#REF! ->  | AH76: =O77+#REF! -> 
A77: 2.34 | B77: Provision of Rent @ Rs. 6000/- per child per annum | C77: 0 | D77: 0 | G77: 0 | H77: 0 | I77: 0 | J77: 0 | Q77: 0 | R77: 0 | S77: 0 | Z77: 0 | AA77: 0 | AB77: 0 | AD77: =J77=#REF! ->  | AE77: TRUE | AG77: =N78+#REF! ->  | AH77: =O78+#REF! -> 
A78: 2.35 | B78: Capacity Building @ Rs.500/- per child per annum | C78: 0 | D78: 0 | G78: 0 | H78: 0 | I78: 0 | J78: 0 | Q78: 0 | R78: 0 | S78: 0 | Z78: 0 | AA78: 0 | AB78: 0 | AD78: =J78=#REF! ->  | AE78: TRUE | AG78: =N79+#REF! ->  | AH78: =O79+#REF! -> 
A79: 2.36 | B79: Physical / Self Defence training @ Rs. 200/- per child per annum. | C79: 0 | D79: 0 | G79: 0 | H79: 0 | I79: 0 | J79: 0 | Q79: 0 | R79: 0 | S79: 0 | Z79: 0 | AA79: 0 | AB79: 0 | AD79: =J79=#REF! ->  | AE79: TRUE | AG79: =N80+#REF! ->  | AH79: =O80+#REF! -> 
B80: Sub Total (Recurring) | C80: =SUM(C58:C79) -> 0 | D80: 0 | E80: 0 | F80: 0 | G80: 0 | H80: 0 | I80: 0 | J80: 0 | K80: 0 | L80: 0 | M80: 0 | N80: 0 | P80: 0 | Q80: 0 | R80: 0 | S80: 0 | T80: 0 | U80: 0 | V80: 0 | W80: 0 | Y80: =SUM(Y58:Y79) -> 0 | Z80: 0 | AA80: 0 | AB80: 0 | AD80: =J80=#REF! ->  | AE80: TRUE | AG80: =N81+#REF! ->  | AH80: =O81+#REF! -> 
B81: Total (Recurring + Non Recurring) | C81: =C56+C80 -> 0 | D81: 0 | E81: 0 | F81: 0 | G81: 0 | H81: 0 | I81: 0 | J81: 0 | K81: 0 | L81: 0 | M81: 0 | N81: 0 | P81: 0 | Q81: 0 | R81: 0 | S81: 0 | T81: 0 | U81: 0 | V81: 0 | W81: 0 | Y81: =Y56+Y80 -> 0 | Z81: 0 | AA81: 0 | AB81: 0 | AD81: =J81=#REF! ->  | AE81: TRUE | AG81: =N82+#REF! ->  | AH81: =O82+#REF! -> 
A82: 2 | B82: Total (50 + 100 children) | C82: =C49+C81 -> 0 | D82: 0 | E82: 0 | F82: 0 | G82: 0 | H82: 0 | I82: 0 | J82: 0 | K82: 0 | L82: 0 | M82: 0 | N82: 0 | O82: 0 | P82: 0 | Q82: 0 | R82: =R49+R81 -> 0 | S82: =S49+S81 -> 0 | T82: 0 | U82: 0 | V82: =V49+V81 -> 0 | W82: 0 | X82: 0 | Y82: =Y49+Y81 -> 0 | Z82: 0 | AA82: =AA49+AA81 -> 0 | AB82: =AB49+AB81 -> 0 | AD82: =J82=#REF! ->  | AE82: TRUE | AG82: =N83+#REF! ->  | AH82: =O83+#REF! -> 
A83: 3 | B83: Residential Hostel for specific category of children | G83: 0 | H83: 0 | I83: =C83-G83 -> 0 | J83: =D83-F83 -> 0 | AD83: =J83=#REF! ->  | AE83: TRUE | AG83: =N84+#REF! ->  | AH83: =O84+#REF! -> 
A84: (A) | B84: 50 children | G84: 0 | H84: 0 | I84: =C84-G84 -> 0 | J84: 0 | AD84: =J84=#REF! ->  | AE84: TRUE | AG84: =N85+#REF! ->  | AH84: =O85+#REF! -> 
B85: Non-recurring (one time grant) | G85: 0 | H85: 0 | I85: =C85-G85 -> 0 | J85: 0 | AD85: =J85=#REF! ->  | AE85: TRUE | AG85: =N86+#REF! ->  | AH85: =O86+#REF! -> 
A86: 3.01 | B86: Furniture/ Equipment (including kitchen) | C86: 0 | D86: 0 | G86: 0 | H86: 0 | I86: =C86-E86 -> 0 | J86: 0 | O86: 7 | P86: 0 | Q86: =O86*P86 -> 0 | R86: =K86+M86+P86 -> 0 | S86: 0 | X86: 7 | Z86: =X86*Y86 -> 0 | AA86: =T86+V86+Y86 -> 0 | AB86: =U86+W86+Z86 -> 0 | AD86: =J86=#REF! ->  | AE86: TRUE | AG86: =N87+#REF! ->  | AH86: =O87+#REF! -> 
A87: =+A86+0.01 -> 3.02 | B87: TLM and equipment including library books | C87: 0 | D87: 0 | G87: 0 | H87: 0 | I87: =C87-E87 -> 0 | J87: 0 | O87: 10.5 | P87: 0 | Q87: =O87*P87 -> 0 | R87: 0 | S87: 0 | X87: 10.5 | Z87: =X87*Y87 -> 0 | AA87: 0 | AB87: 0 | AD87: =J87=#REF! ->  | AE87: TRUE | AG87: =N88+#REF! ->  | AH87: =O88+#REF! -> 
A88: =+A87+0.01 -> 3.03 | B88: Bedding (new) | C88: 0 | D88: 0 | G88: 0 | H88: 0 | I88: =C88-E88 -> 0 | J88: 0 | Q88: =O88*P88 -> 0 | R88: 0 | S88: 0 | Z88: =X88*Y88 -> 0 | AA88: 0 | AB88: 0 | AD88: =J88=#REF! ->  | AE88: TRUE | AG88: =N89+#REF! ->  | AH88: =O89+#REF! -> 
A89: =+A88+0.01 -> 3.04 | B89: Replacement of bedding (once in 3 years) | C89: 0 | D89: 0 | G89: 0 | H89: 0 | I89: =C89-E89 -> 0 | J89: 0 | O89: 0.375 | P89: 0 | Q89: =O89*P89 -> 0 | R89: 0 | S89: 0 | X89: 0.375 | Y89: 0 | Z89: =X89*Y89 -> 0 | AA89: 0 | AB89: 0 | AD89: =J89=#REF! ->  | AE89: TRUE | AG89: =N90+#REF! ->  | AH89: =O90+#REF! -> 
B90: Sub Total (Non Recurring) | C90: =SUM(C86:C89) -> 0 | D90: 0 | E90: 0 | F90: 0 | G90: 0 | H90: 0 | I90: 0 | J90: 0 | K90: 0 | L90: 0 | M90: 0 | N90: 0 | P90: =P86 -> 0 | Q90: 0 | R90: 0 | S90: 0 | T90: 0 | U90: 0 | V90: 0 | W90: 0 | Y90: =Y86 -> 0 | Z90: =SUM(Z86:Z89) -> 0 | AA90: 0 | AB90: 0 | AD90: =J90=#REF! ->  | AE90: TRUE | AG90: =N91+#REF! ->  | AH90: =O91+#REF! -> 
B91: Recurring (50 children) | G91: 0 | H91: 0 | I91: =C91-G91 -> 0 | J91: =D91-F91 -> 0 | AD91: =J91=#REF! ->  | AE91: TRUE | AG91: =N92+#REF! ->  | AH91: =O92+#REF! -> 
A92: 3.05 | B92: Maintenance per child Per month @ Rs.1500/- | C92: 0 | D92: 0 | E92: =C92 -> 0 | F92: =D92 -> 0 | G92: 0 | H92: 0 | I92: =C92-E92 -> 0 | J92: 0 | O92: 9 | P92: 0 | Q92: =O92*P92 -> 0 | R92: =K92+M92+P92 -> 0 | S92: 0 | X92: 9 | Y92: 0 | Z92: =X92*Y92 -> 0 | AA92: =T92+V92+Y92 -> 0 | AB92: =U92+W92+Z92 -> 0 | AD92: =J92=#REF! ->  | AE92: TRUE | AG92: =N93+#REF! ->  | AH92: =O93+#REF! -> 
A93: =+A92+0.01 -> 3.06 | B93: Stipend per child per month @ Rs.100/- | C93: 0 | D93: 0 | E93: =C93 -> 0 | F93: =D93 -> 0 | G93: 0 | H93: 0 | I93: 0 | J93: 0 | O93: 0.6 | P93: 0 | Q93: =O93*P93 -> 0 | R93: 0 | S93: 0 | X93: 0.6 | Y93: 0 | Z93: =X93*Y93 -> 0 | AA93: 0 | AB93: 0 | AD93: =J93=#REF! ->  | AE93: TRUE | AG93: =N94+#REF! ->  | AH93: =O94+#REF! -> 
A94: =+A93+0.01 -> 3.07 | B94: Supplementary TLM, Stationery and other educational material @Rs.1000/- per child per annum | C94: 0 | D94: 0 | E94: 0 | F94: 0 | G94: 0 | H94: 0 | I94: 0 | J94: 0 | O94: 0.5 | P94: 0 | Q94: =O94*P94 -> 0 | R94: 0 | S94: 0 | X94: 0.5 | Y94: 0 | Z94: =X94*Y94 -> 0 | AA94: 0 | AB94: 0 | AD94: =J94=#REF! ->  | AE94: TRUE | AG94: =N95+#REF! ->  | AH94: =O95+#REF! -> 
B95: Salaries | E95: =ROUND(C95*100/100,0) -> 0 | F95: =D95 -> 0 | I95: 0 | J95: 0 | AD95: =J95=#REF! ->  | AE95: TRUE | AG95: =N96+#REF! ->  | AH95: =O96+#REF! -> 
A96: (a) | B96: 1 Warden @ Rs.25000/- per month | C96: 0 | D96: 0 | E96: =C96 -> 0 | F96: 0 | G96: =IFERROR(E96/C96,0) -> 0 | H96: 0 | I96: 0 | J96: 0 | O96: 3 | P96: 0 | Q96: =O96*P96 -> 0 | R96: =K96+M96+P96 -> 0 | S96: 0 | X96: 3 | Y96: 0 | Z96: =X96*Y96 -> 0 | AA96: =T96+V96+Y96 -> 0 | AB96: =U96+W96+Z96 -> 0 | AD96: =J96=#REF! ->  | AE96: TRUE | AG96: =N97+#REF! ->  | AH96: =O97+#REF! ->  | AI96: =AG96=E97 -> 
A97: (b) | B97: 4 Fulltime teachers as per RTE Norms @ Rs. 20,000/- per month per teacher | C97: 0 | D97: 0 | E97: 0 | F97: 0 | G97: 0 | H97: 0 | I97: 0 | J97: 0 | P97: 0 | Q97: =O97*P97 -> 0 | R97: 0 | S97: 0 | Y97: 0 | Z97: =X97*Y97 -> 0 | AA97: 0 | AB97: 0 | AD97: =J97=#REF! ->  | AE97: TRUE | AG97: =N98+#REF! ->  | AH97: =O98+#REF! -> 
A98: (c) | B98: 2 Urdu Teachers (only for Blocks with muslim population above 20% and select urban areas) @ Rs.12,000/- per month per teacher. | C98: 0 | D98: 0 | E98: 0 | F98: 0 | G98: 0 | H98: 0 | I98: 0 | J98: 0 | P98: 0 | Q98: 0 | R98: 0 | S98: 0 | Y98: 0 | Z98: 0 | AA98: 0 | AB98: 0 | AD98: =J98=#REF! ->  | AE98: TRUE | AG98: =N99+#REF! ->  | AH98: =O99+#REF! -> 
A99: (d) | B99: 3 Part time teachers @ Rs.5,000/- per month per teacher | C99: 0 | D99: 0 | E99: 0 | F99: 0 | G99: 0 | H99: 0 | I99: 0 | J99: 0 | O99: 1.8 | P99: 0 | Q99: 0 | R99: 0 | S99: 0 | X99: 1.8 | Y99: 0 | Z99: 0 | AA99: 0 | AB99: 0 | AD99: =J99=#REF! ->  | AE99: TRUE | AG99: =N100+#REF! ->  | AH99: =O100+#REF! -> 
A100: (e) | B100: 1 Full time Accountant @ Rs. 10,000/- per month | C100: 0 | D100: 0 | E100: 0 | F100: 0 | G100: 0 | H100: 0 | I100: 0 | J100: 0 | O100: 1.2 | P100: 0 | Q100: 0 | R100: 0 | S100: 0 | X100: 1.2 | Y100: 0 | Z100: 0 | AA100: 0 | AB100: 0 | AD100: =J100=#REF! ->  | AE100: TRUE | AG100: =N101+#REF! ->  | AH100: =O101+#REF! -> 
A101: (f) | B101: 2 Support staff - (Accountant/Assistant, Peon, Chowkidar) @ Rs. 5,000/- per month per staff | C101: 0 | D101: 0 | E101: 0 | F101: 0 | G101: 0 | H101: 0 | I101: 0 | J101: 0 | O101: 1.2 | P101: 0 | Q101: 0 | R101: 0 | S101: 0 | X101: 1.2 | Y101: 0 | Z101: 0 | AA101: 0 | AB101: 0 | AD101: =J101=#REF! ->  | AE101: TRUE | AG101: =N102+#REF! ->  | AH101: =O102+#REF! -> 
A102: (g) | B102: 1 Head Cook @ Rs. 6,000/- per month and upto 2 Asstt. Cooks @ Rs. 4,500/- per month per cook | C102: 0 | D102: 0 | E102: 0 | F102: 0 | G102: 0 | H102: 0 | I102: 0 | J102: 0 | O102: 1.8 | P102: 0 | Q102: 0 | R102: 0 | S102: 0 | X102: 1.8 | Y102: 0 | Z102: 0 | AA102: 0 | AB102: 0 | AD102: =J102=#REF! ->  | AE102: TRUE | AG102: =N103+#REF! ->  | AH102: =O103+#REF! -> 
A103: 3.08 | B103: Specific Skill training @ Rs.1000/- per annum per child | C103: 0 | D103: 0 | E103: 0 | F103: 0 | G103: 0 | H103: 0 | I103: 0 | J103: 0 | P103: 0 | Q103: 0 | R103: 0 | S103: 0 | Y103: 0 | Z103: 0 | AA103: 0 | AB103: 0 | AD103: =J103=#REF! ->  | AE103: TRUE | AG103: =N104+#REF! ->  | AH103: =O104+#REF! -> 
A104: =+A103+0.01 -> 3.09 | B104: Electricity / water charges @ Rs. 1000/- per annum per child | C104: 0 | D104: 0 | E104: 0 | F104: 0 | G104: 0 | H104: 0 | I104: 0 | J104: 0 | O104: 0.5 | P104: 0 | Q104: 0 | R104: 0 | S104: 0 | X104: 0.5 | Y104: 0 | Z104: 0 | AA104: 0 | AB104: 0 | AD104: =J104=#REF! ->  | AE104: TRUE | AG104: =N105+#REF! ->  | AH104: =O105+#REF! -> 
A105: 3.1 | B105: Medical care/contingencies @ Rs.1250/- per annum per child | C105: 0 | D105: 0 | E105: 0 | F105: 0 | G105: 0 | H105: 0 | I105: 0 | J105: 0 | O105: 0.625 | P105: 0 | Q105: 0 | R105: 0 | S105: 0 | X105: 0.625 | Y105: 0 | Z105: 0 | AA105: 0 | AB105: 0 | AD105: =J105=#REF! ->  | AE105: TRUE | AG105: =N106+#REF! ->  | AH105: =O106+#REF! -> 
A106: 3.11 | B106: Maintenance @ Rs. 750/- per child per annum | C106: 0 | D106: 0 | E106: 0 | F106: 0 | G106: 0 | H106: 0 | I106: 0 | J106: 0 | O106: 0.375 | P106: 0 | Q106: 0 | R106: 0 | S106: 0 | X106: 0.375 | Y106: 0 | Z106: 0 | AA106: 0 | AB106: 0 | AD106: =J106=#REF! ->  | AE106: TRUE | AG106: =N107+#REF! ->  | AH106: =O107+#REF! -> 
A107: 3.12 | B107: Miscellaneous @ Rs. 750/- per child per annum | C107: 0 | D107: 0 | E107: 0 | F107: 0 | G107: 0 | H107: 0 | I107: 0 | J107: 0 | O107: 0.375 | P107: 0 | Q107: 0 | R107: 0 | S107: 0 | X107: 0.375 | Y107: 0 | Z107: 0 | AA107: 0 | AB107: 0 | AD107: =J107=#REF! ->  | AE107: TRUE | AG107: =N108+#REF! ->  | AH107: =O108+#REF! -> 
A108: 3.13 | B108: Preparatory camps @ Rs. 300/- per child per annum | C108: 0 | D108: 0 | E108: 0 | F108: 0 | G108: 0 | H108: 0 | I108: 0 | J108: 0 | P108: 0 | Q108: 0 | R108: 0 | S108: 0 | Y108: 0 | Z108: 0 | AA108: 0 | AB108: 0 | AD108: =J108=#REF! ->  | AE108: TRUE | AG108: =N109+#REF! ->  | AH108: =O109+#REF! -> 
A109: 3.14 | B109: P.T.A / school functions @ Rs. 300/- per child per annum | C109: 0 | D109: 0 | E109: 0 | F109: 0 | G109: 0 | H109: 0 | I109: 0 | J109: 0 | P109: 0 | Q109: 0 | R109: 0 | S109: 0 | Y109: 0 | Z109: 0 | AA109: 0 | AB109: 0 | AD109: =J109=#REF! ->  | AE109: TRUE | AG109: =N110+#REF! ->  | AH109: =O110+#REF! -> 
A110: 3.15 | B110: Provision of Rent @ Rs. 10,000/- per child per annum | C110: 0 | D110: 0 | E110: 0 | F110: 0 | G110: 0 | H110: 0 | I110: 0 | J110: 0 | P110: 0 | Q110: 0 | R110: 0 | S110: 0 | Y110: 0 | Z110: 0 | AA110: 0 | AB110: 0 | AD110: =J110=#REF! ->  | AE110: TRUE | AG110: =N111+#REF! ->  | AH110: =O111+#REF! -> 
A111: 3.16 | B111: Capacity Building @ Rs. 500/- per child per annum | C111: 0 | D111: 0 | E111: 0 | F111: 0 | G111: 0 | H111: 0 | I111: 0 | J111: 0 | O111: 0.25 | P111: 0 | Q111: 0 | R111: 0 | S111: 0 | X111: 0.25 | Y111: 0 | Z111: 0 | AA111: 0 | AB111: 0 | AD111: =J111=#REF! ->  | AE111: TRUE | AG111: =N112+#REF! ->  | AH111: =O112+#REF! -> 
A112: 3.17 | B112: Physical / Self Defence Training @ Rs.200/- per child per annum | C112: 0 | D112: 0 | E112: 0 | F112: 0 | G112: 0 | H112: 0 | I112: 0 | J112: 0 | O112: 0.1 | P112: 0 | Q112: 0 | R112: 0 | S112: 0 | X112: 0.1 | Y112: 0 | Z112: 0 | AA112: 0 | AB112: 0 | AD112: =J112=#REF! ->  | AE112: TRUE | AG112: =N113+#REF! ->  | AH112: =O113+#REF! -> 
B113: Sub Total (Recurring) | C113: =C112 -> 0 | D113: =SUM(D92:D112) -> 0 | E113: =E112 -> 0 | F113: 0 | G113: 0 | H113: 0 | I113: =I112 -> 0 | J113: 0 | K113: 0 | L113: 0 | M113: 0 | N113: 0 | P113: =P112 -> 0 | Q113: 0 | R113: =R112 -> 0 | S113: =SUM(S92:S112) -> 0 | T113: 0 | U113: 0 | V113: =SUM(V92:V112) -> 0 | W113: =SUM(W92:W112) -> 0 | Y113: =Y112 -> 0 | Z113: =SUM(Z92:Z112) -> 0 | AA113: =AA112 -> 0 | AB113: =SUM(AB92:AB112) -> 0 | AD113: =J113=#REF! ->  | AE113: TRUE | AG113: =N114+#REF! ->  | AH113: =O114+#REF! -> 
B114: Total (Non Recurring + Recurring) | C114: =C90+C113 -> 0 | D114: 0 | E114: 0 | F114: 0 | G114: 0 | H114: 0 | I114: 0 | J114: 0 | K114: 0 | L114: 0 | M114: 0 | N114: 0 | P114: 0 | Q114: 0 | R114: 0 | S114: 0 | T114: 0 | U114: 0 | V114: 0 | W114: 0 | Y114: =Y90+Y113 -> 0 | Z114: 0 | AA114: 0 | AB114: 0 | AD114: =J114=#REF! ->  | AE114: TRUE | AG114: =N115+#REF! ->  | AH114: =O115+#REF! -> 
A115: (B) | B115: 100 Children | G115: 0 | H115: 0 | I115: =C115-G115 -> 0 | J115: =D115-F115 -> 0 | AD115: =J115=#REF! ->  | AE115: TRUE | AG115: =N116+#REF! ->  | AH115: =O116+#REF! -> 
B116: Non-recurring (one time grant) | G116: 0 | H116: 0 | I116: =C116-G116 -> 0 | J116: 0 | AD116: =J116=#REF! ->  | AE116: TRUE | AG116: =N117+#REF! ->  | AH116: =O117+#REF! -> 
A117: 3.18 | B117: Furniture / Equipment (including kitchen equipment) | C117: 0 | D117: 0 | G117: 0 | H117: 0 | I117: =C117-E117 -> 0 | J117: 0 | Q117: =O117*P117 -> 0 | R117: =K117+M117+P117 -> 0 | S117: 0 | Z117: =X117*Y117 -> 0 | AA117: =T117+V117+Y117 -> 0 | AB117: =U117+W117+Z117 -> 0 | AD117: =J117=#REF! ->  | AE117: TRUE | AG117: =N118+#REF! ->  | AH117: =O118+#REF! -> 
A118: =+A117+0.01 -> 3.19 | B118: TLM and equipment including library books (New) | C118: 0 | D118: 0 | G118: 0 | H118: 0 | I118: =C118-E118 -> 0 | J118: 0 | Q118: =O118*P118 -> 0 | R118: 0 | S118: 0 | Z118: =X118*Y118 -> 0 | AA118: 0 | AB118: 0 | AD118: =J118=#REF! ->  | AE118: TRUE | AG118: =N119+#REF! ->  | AH118: =O119+#REF! -> 
A119: =+A118+0.01 -> 3.2 | B119: Bedding (New) | C119: 0 | D119: 0 | G119: 0 | H119: 0 | I119: =C119-E119 -> 0 | J119: 0 | Q119: =O119*P119 -> 0 | R119: 0 | S119: 0 | Z119: =X119*Y119 -> 0 | AA119: 0 | AB119: 0 | AD119: =J119=#REF! ->  | AE119: TRUE | AG119: =N120+#REF! ->  | AH119: =O120+#REF! -> 
A120: =+A119+0.01 -> 3.21 | B120: Replacement of bedding (once in 3 years) | C120: 0 | D120: 0 | G120: 0 | H120: 0 | I120: =C120-E120 -> 0 | J120: 0 | Q120: =O120*P120 -> 0 | R120: 0 | S120: 0 | Z120: =X120*Y120 -> 0 | AA120: 0 | AB120: 0 | AD120: =J120=#REF! ->  | AE120: TRUE | AG120: =N121+#REF! ->  | AH120: =O121+#REF! -> 
B121: Sub Total Non-recurring | C121: =SUM(C117:C120) -> 0 | D121: 0 | E121: 0 | F121: 0 | G121: 0 | H121: 0 | I121: 0 | J121: 0 | K121: 0 | L121: 0 | M121: 0 | N121: 0 | P121: 0 | Q121: 0 | R121: 0 | S121: 0 | T121: 0 | U121: 0 | V121: 0 | W121: 0 | Y121: =SUM(Y117:Y120) -> 0 | Z121: 0 | AA121: 0 | AB121: 0 | AD121: =J121=#REF! ->  | AE121: TRUE | AG121: =N122+#REF! ->  | AH121: =O122+#REF! -> 
B122: Recurring | G122: 0 | H122: 0 | I122: =C122-G122 -> 0 | J122: =D122-F122 -> 0 | AD122: =J122=#REF! ->  | AE122: TRUE | AG122: =N123+#REF! ->  | AH122: =O123+#REF! -> 
A123: 3.22 | B123: Maintenance per child per month @ Rs. 1500/- | C123: 0 | D123: 0 | G123: 0 | H123: 0 | I123: =C123-E123 -> 0 | J123: 0 | Q123: =O123*P123 -> 0 | R123: =K123+M123+P123 -> 0 | S123: 0 | Z123: =X123*Y123 -> 0 | AA123: =T123+V123+Y123 -> 0 | AB123: =U123+W123+Z123 -> 0 | AD123: =J123=#REF! ->  | AE123: TRUE | AG123: =N124+#REF! ->  | AH123: =O124+#REF! -> 
A124: =+A123+0.01 -> 3.23 | B124: Stipend per child per month @ Rs.100/- | C124: 0 | D124: 0 | G124: 0 | H124: 0 | I124: 0 | J124: 0 | Q124: =O124*P124 -> 0 | R124: 0 | S124: 0 | Z124: =X124*Y124 -> 0 | AA124: 0 | AB124: 0 | AD124: =J124=#REF! ->  | AE124: TRUE | AG124: =N125+#REF! ->  | AH124: =O125+#REF! -> 
A125: =+A124+0.01 -> 3.24 | B125: Supplementary TLM, Stationery and other educational material per child @1000/- per annum | C125: 0 | D125: 0 | G125: 0 | H125: 0 | I125: 0 | J125: 0 | Q125: =O125*P125 -> 0 | R125: 0 | S125: 0 | Z125: =X125*Y125 -> 0 | AA125: 0 | AB125: 0 | AD125: =J125=#REF! ->  | AE125: TRUE | AG125: =N126+#REF! ->  | AH125: =O126+#REF! -> 
B126: Salaries | G126: 0 | H126: 0 | I126: 0 | J126: 0 | AD126: =J126=#REF! ->  | AE126: TRUE | AG126: =N127+#REF! ->  | AH126: =O127+#REF! -> 
A127: (a) | B127: 1 Warden @ Rs. 25,000/- per month | C127: 0 | D127: 0 | G127: 0 | H127: 0 | I127: 0 | J127: 0 | Q127: =O127*P127 -> 0 | R127: =K127+M127+P127 -> 0 | S127: 0 | Z127: =X127*Y127 -> 0 | AA127: =T127+V127+Y127 -> 0 | AB127: =U127+W127+Z127 -> 0 | AD127: =J127=#REF! ->  | AE127: TRUE | AG127: =N128+#REF! ->  | AH127: =O128+#REF! -> 
A128: (b) | B128: 1 head teacher @ Rs. 25,000/- per month in case the enrollment exceeds 100 | C128: 0 | D128: 0 | G128: 0 | H128: 0 | I128: 0 | J128: 0 | Q128: 0 | R128: 0 | S128: 0 | Z128: 0 | AA128: 0 | AB128: 0 | AD128: =J128=#REF! ->  | AE128: =K128=AC128 -> TRUE | AG128: =N129+#REF! ->  | AH128: =O129+#REF! ->  | AI128: =AG128=E129 -> 
A129: (c) | B129: 4 - 5 Full time teachers as per RTE norms @ Rs. 20,000/- per month per teacher | C129: 0 | D129: 0 | G129: 0 | H129: 0 | I129: 0 | J129: 0 | Q129: 0 | R129: 0 | S129: 0 | Z129: 0 | AA129: 0 | AB129: 0 | AD129: =J129=#REF! ->  | AE129: TRUE | AG129: =N130+#REF! ->  | AH129: =O130+#REF! -> 
A130: (d) | B130: 2 Urdu Teachers (only for blocks with muslim population above 20% and select urban areas), if required @ Rs. 12,000/- per month per teacher | C130: 0 | D130: 0 | G130: 0 | H130: 0 | I130: 0 | J130: 0 | Q130: 0 | R130: 0 | S130: 0 | Z130: 0 | AA130: 0 | AB130: 0 | AD130: =J130=#REF! ->  | AE130: TRUE | AG130: =N131+#REF! ->  | AH130: =O131+#REF! -> 
A131: (e) | B131: 3 part time teachers @ Rs. 5,000/- per month per teacher | C131: 0 | D131: 0 | G131: 0 | H131: 0 | I131: 0 | J131: 0 | Q131: 0 | R131: 0 | S131: 0 | Z131: 0 | AA131: 0 | AB131: 0 | AD131: =J131=#REF! ->  | AE131: TRUE | AG131: =N132+#REF! ->  | AH131: =O132+#REF! -> 
A132: (f) | B132: 1 Full time Accountant @ Rs. 10,000/- per month | C132: 0 | D132: 0 | G132: 0 | H132: 0 | I132: 0 | J132: 0 | Q132: 0 | R132: 0 | S132: 0 | Z132: 0 | AA132: 0 | AB132: 0 | AD132: =J132=#REF! ->  | AE132: TRUE | AG132: =N133+#REF! ->  | AH132: =O133+#REF! -> 
A133: 3.25 | B133: 2 Support Staff – (Accountant/ Assistant, Peon, Chowkidar) @ Rs. 5,000/- per month per staff | C133: 0 | D133: 0 | G133: 0 | H133: 0 | I133: 0 | J133: 0 | Q133: 0 | R133: 0 | S133: 0 | Z133: 0 | AA133: 0 | AB133: 0 | AD133: =J133=#REF! ->  | AE133: TRUE | AG133: =N134+#REF! ->  | AH133: =O134+#REF! -> 
A134: =+A133+0.01 -> 3.26 | B134: 1 Head cook @ Rs. 6,000/- per month and upto 2 Asstt. Cooks @ Rs. 4,500/- per month per cook | C134: 0 | D134: 0 | G134: 0 | H134: 0 | I134: 0 | J134: 0 | Q134: 0 | R134: 0 | S134: 0 | Z134: 0 | AA134: 0 | AB134: 0 | AD134: =J134=#REF! ->  | AE134: TRUE | AG134: =N135+#REF! ->  | AH134: =O135+#REF! -> 
A135: 3.27 | B135: Specific skill training per child @ Rs.1000/- per annum | C135: 0 | D135: 0 | G135: 0 | H135: 0 | I135: 0 | J135: 0 | Q135: 0 | R135: 0 | S135: 0 | Z135: 0 | AA135: 0 | AB135: 0 | AD135: =J135=#REF! ->  | AE135: TRUE | AG135: =N136+#REF! ->  | AH135: =O136+#REF! -> 
A136: 3.28 | B136: Electricity / water charges per child @Rs.1000/- per annum | C136: 0 | D136: 0 | G136: 0 | H136: 0 | I136: 0 | J136: 0 | Q136: 0 | R136: 0 | S136: 0 | Z136: 0 | AA136: 0 | AB136: 0 | AD136: =J136=#REF! ->  | AE136: TRUE | AG136: =N137+#REF! ->  | AH136: =O137+#REF! -> 
A137: 3.29 | B137: Medical care/contingencies @ Rs.1250/- per child per annum | C137: 0 | D137: 0 | G137: 0 | H137: 0 | I137: 0 | J137: 0 | Q137: 0 | R137: 0 | S137: 0 | Z137: 0 | AA137: 0 | AB137: 0 | AD137: =J137=#REF! ->  | AE137: TRUE | AG137: =N138+#REF! ->  | AH137: =O138+#REF! ->  | BA137: BRC / URC | BB137: =B137=BA137 -> FALSE
A138: 3.3 | B138: Maintenance @ Rs.750/- per child per annum | C138: 0 | D138: 0 | G138: 0 | H138: 0 | I138: 0 | J138: 0 | Q138: 0 | R138: 0 | S138: 0 | Z138: 0 | AA138: 0 | AB138: 0 | AD138: =J138=#REF! ->  | AE138: TRUE | AG138: =N139+#REF! ->  | AH138: =O139+#REF! ->  | BA138: CRC | BB138: FALSE
A139: 3.31 | B139: Miscellaneous @ Rs.750/- per child per annum | C139: 0 | D139: 0 | G139: 0 | H139: 0 | I139: 0 | J139: 0 | Q139: 0 | R139: 0 | S139: 0 | Z139: 0 | AA139: 0 | AB139: 0 | AD139: =J139=#REF! ->  | AE139: TRUE | AG139: =N140+#REF! ->  | AH139: =O140+#REF! ->  | BA139: New Primary School (Rural) | BB139: FALSE
A140: 3.32 | B140: Preparatory camps @ Rs.200/- per child per annum | C140: 0 | D140: 0 | G140: 0 | H140: 0 | I140: 0 | J140: 0 | Q140: 0 | R140: 0 | S140: 0 | Z140: 0 | AA140: 0 | AB140: 0 | AD140: =J140=#REF! ->  | AE140: TRUE | AG140: =N141+#REF! ->  | AH140: =O141+#REF! ->  | BA140: New Upper Primary (Rural) (3 ACR each in lieu) | BB140: FALSE
A141: 3.33 | B141: P.T.A / school functions @ Rs.200/- per child per annum | C141: 0 | D141: 0 | G141: 0 | H141: 0 | I141: 0 | J141: 0 | Q141: 0 | R141: 0 | S141: 0 | Z141: 0 | AA141: 0 | AB141: 0 | AD141: =J141=#REF! ->  | AE141: TRUE | AG141: =N142+#REF! ->  | AH141: =O142+#REF! ->  | BA141: New Upper Primary (Urban) (3 ACR each in lieu) | BB141: FALSE
A142: 3.34 | B142: Provision of Rent @ Rs. 6000/- per child per annum | C142: 0 | D142: 0 | G142: 0 | H142: 0 | I142: 0 | J142: 0 | Q142: 0 | R142: 0 | S142: 0 | Z142: 0 | AA142: 0 | AB142: 0 | AD142: =J142=#REF! ->  | AE142: TRUE | AG142: =N143+#REF! ->  | AH142: =O143+#REF! ->  | BA142: Building Less (Pry) | BB142: FALSE
A143: 3.35 | B143: Capacity Building @ Rs.500/- per child per annum | C143: 0 | D143: 0 | G143: 0 | H143: 0 | I143: 0 | J143: 0 | Q143: 0 | R143: 0 | S143: 0 | Z143: 0 | AA143: 0 | AB143: 0 | AD143: =J143=#REF! ->  | AE143: TRUE | AG143: =N144+#REF! ->  | AH143: =O144+#REF! ->  | BA143: Building Less (UP) | BB143: FALSE
A144: 3.36 | B144: Physical / Self Defence training @ Rs. 200/- per child per annum. | C144: 0 | D144: 0 | G144: 0 | H144: 0 | I144: 0 | J144: 0 | Q144: 0 | R144: 0 | S144: 0 | Z144: 0 | AA144: 0 | AB144: 0 | AD144: =J144=#REF! ->  | AE144: TRUE | AG144: =N145+#REF! ->  | AH144: =O145+#REF! ->  | BA144: Additional Class Room (Rural) | BB144: FALSE
B145: Sub Total (Recurring) | C145: =SUM(C123:C144) -> 0 | D145: 0 | E145: 0 | F145: 0 | G145: 0 | H145: 0 | I145: 0 | J145: 0 | K145: 0 | L145: 0 | M145: 0 | N145: 0 | P145: 0 | Q145: 0 | R145: 0 | S145: 0 | T145: 0 | U145: 0 | V145: 0 | W145: 0 | Y145: =SUM(Y123:Y144) -> 0 | Z145: 0 | AA145: 0 | AB145: 0 | AD145: =J145=#REF! ->  | AE145: TRUE | AF145: =AF140+AF144 -> 0 | AG145: =N146+#REF! ->  | AH145: =O146+#REF! ->  | BA145: Additional Class Room (Urban) | BB145: FALSE
B146: Total (Recurring + Non Recurring) | C146: =C121+C145 -> 0 | D146: 0 | E146: 0 | F146: 0 | G146: 0 | H146: 0 | I146: 0 | J146: 0 | K146: 0 | L146: 0 | M146: 0 | N146: 0 | P146: 0 | Q146: 0 | R146: 0 | S146: 0 | T146: 0 | U146: 0 | V146: 0 | W146: 0 | Y146: =Y121+Y145 -> 0 | Z146: 0 | AA146: 0 | AB146: 0 | AD146: =J146=#REF! ->  | AE146: TRUE | AG146: =N147+#REF! ->  | AH146: =O147+#REF! ->  | BA146: Additional Class Room (Hill Area / Urban / inaccessible) | BB146: FALSE
A147: 3 | B147: Total (A + B) | C147: =C114+C146 -> 0 | D147: 0 | E147: 0 | F147: 0 | G147: 0 | H147: 0 | I147: 0 | J147: 0 | K147: 0 | L147: 0 | M147: 0 | N147: 0 | P147: 0 | Q147: 0 | R147: 0 | S147: 0 | T147: 0 | U147: 0 | V147: 0 | W147: 0 | Y147: =Y114+Y146 -> 0 | Z147: 0 | AA147: 0 | AB147: 0 | AD147: =J147=#REF! ->  | AE147: TRUE | AG147: =N148+#REF! ->  | AH147: =O148+#REF! ->  | BB147: =B147=BA149 -> FALSE
A148: 4 | B148: Transport/Escort Facility | G148: 0 | H148: 0 | I148: =C148-G148 -> 0 | J148: =D148-F148 -> 0 | AD148: =J148=#REF! ->  | AE148: TRUE | AG148: =N149+#REF! ->  | AH148: =O149+#REF! ->  | BB148: FALSE
A149: 4.01 | B149: Children in remote habitation | C149: 0 | D149: 0 | G149: 0 | H149: 0 | I149: =C149-E149 -> 0 | J149: =D149-F149 -> 0 | O149: 0.03 | P149: 0 | Q149: =O149*P149 -> 0 | R149: =K149+M149+P149 -> 0 | S149: =L149+N149+Q149 -> 0 | X149: 0.03 | Y149: 0 | Z149: =X149*Y149 -> 0 | AA149: =T149+V149+Y149 -> 0 | AB149: =U149+W149+Z149 -> 0 | AD149: =J149=#REF! ->  | AE149: TRUE | AG149: =N150+#REF! ->  | AH149: =O150+#REF! ->  | BA149: Toilet/Urinals (for urban areas only) | BB149: FALSE
A150: 4.02 | B150: Urban deprived children/children without adult protection | C150: 0 | D150: 0 | G150: 0 | H150: 0 | I150: =C150-E150 -> 0 | J150: =D150-F150 -> 0 | O150: 0.03 | P150: 0 | Q150: =O150*P150 -> 0 | R150: =K150+M150+P150 -> 0 | S150: =L150+N150+Q150 -> 0 | X150: 0.03 | Y150: 0 | Z150: =X150*Y150 -> 0 | AA150: =T150+V150+Y150 -> 0 | AB150: =U150+W150+Z150 -> 0 | AD150: =J150=#REF! ->  | AE150: TRUE | AG150: =N151+#REF! ->  | AH150: =O151+#REF! ->  | BA150: Separate Girls Toilet | BB150: FALSE
B151: Total | C151: =SUM(C149:C150) -> 0 | D151: 0 | E151: 0 | F151: 0 | G151: 0 | H151: 0 | I151: 0 | J151: 0 | K151: 0 | L151: 0 | M151: 0 | N151: 0 | P151: 0 | Q151: 0 | R151: 0 | S151: 0 | T151: 0 | U151: 0 | V151: 0 | W151: 0 | Y151: =SUM(Y149:Y150) -> 0 | Z151: 0 | AA151: 0 | AB151: 0 | AD151: =J151=#REF! ->  | AE151: TRUE | AG151: =N152+#REF! ->  | AH151: =O152+#REF! ->  | BA151: Drinking Water Facility (for urban area only) | BB151: FALSE
A152: 5 | B152: Reimbursement of Fee against 25% admission under Section 12(1)(c) of RTE Act 2009 (Entry Level) subject to upper limit of 20% of AWP&B subject to guidelines issued by MHRD | D152: 106.42 | F152: =D152 -> 106.42 | G152: 0 | H152: 1 | I152: =C152-E152 -> 0 | J152: =D152-F152 -> 0 | Q152: 1838.10518 | R152: =K152+M152+P152 -> 0 | S152: =L152+N152+Q152 -> 1838.10518 | Z152: 43.99 | AA152: =T152+V152+Y152 -> 0 | AB152: =U152+W152+Z152 -> 43.99 | AD152: =J152=#REF! ->  | AE152: TRUE | AG152: =N153+#REF! ->  | AH152: =O153+#REF! ->  | BA152: Electrification | BB152: FALSE
B153: Total | C153: =C152 -> 0 | D153: 106.42 | E153: 0 | F153: 106.42 | G153: 0 | H153: 1 | I153: 0 | J153: 0 | K153: 0 | L153: 0 | M153: 0 | N153: 0 | O153: 0 | P153: 0 | Q153: 1838.10518 | R153: =R152 -> 0 | S153: =S152 -> 1838.10518 | T153: 0 | U153: 0 | V153: =V152 -> 0 | W153: 0 | X153: 0 | Y153: =Y152 -> 0 | Z153: 43.99 | AA153: =AA152 -> 0 | AB153: =AB152 -> 43.99 | AD153: =J153=#REF! ->  | AE153: TRUE | AG153: =N154+#REF! ->  | AH153: =O154+#REF! ->  | BA153: Ramps with Handrails | BB153: FALSE
A154: 6 | B154: Special Training for mainstreaming of out of school children | G154: 0 | H154: 0 | I154: =C154-G154 -> 0 | J154: =D154-F154 -> 0 | AD154: =J154=#REF! ->  | AE154: TRUE | AG154: =N155+#REF! ->  | AH154: =O155+#REF! ->  | BA154: Residential Schools/hostels for specific category of children | BB154: FALSE
A155: 6.01 | B155: Residential (Fresh) | G155: 0 | H155: 0 | I155: =C155-G155 -> 0 | J155: 0 | AD155: =J155=#REF! ->  | AE155: TRUE | AG155: =N156+#REF! ->  | AH155: =O156+#REF! ->  | BA155: (a) Construction of residential hostel
B156: (a) 12 months | C156: 0 | D156: 0 | G156: 0 | H156: 0 | I156: =C156-E156 -> 0 | J156: 0 | O156: 0.34 | P156: 0 | Q156: =O156*P156 -> 0 | R156: =K156+M156+P156 -> 0 | S156: 0 | X156: 0.2 | Y156: 0 | Z156: =X156*Y156 -> 0 | AA156: =T156+V156+Y156 -> 0 | AB156: =U156+W156+Z156 -> 0 | AD156: =J156=#REF! ->  | AE156: TRUE | AG156: =N157+#REF! ->  | AH156: =O157+#REF! ->  | BA156: (b) Refurbishing unused old buildings
B157: (b) 9 months | C157: 0 | D157: 0 | G157: 0 | H157: 0 | I157: =C157-E157 -> 0 | J157: 0 | Q157: =O157*P157 -> 0 | R157: 0 | S157: 0 | Z157: =X157*Y157 -> 0 | AA157: 0 | AB157: 0 | AD157: =J157=#REF! ->  | AE157: TRUE | AG157: =N158+#REF! ->  | AH157: =O158+#REF! -> 
B158: (c) 6 months | C158: 0 | D158: 0 | G158: 0 | H158: 0 | I158: =C158-E158 -> 0 | J158: 0 | Q158: =O158*P158 -> 0 | R158: 0 | S158: 0 | Z158: =X158*Y158 -> 0 | AA158: 0 | AB158: 0 | AD158: =J158=#REF! ->  | AE158: TRUE | AG158: =N159+#REF! ->  | AH158: =O159+#REF! -> 
B159: (d) 3 months | C159: 0 | D159: 0 | G159: 0 | H159: 0 | I159: =C159-E159 -> 0 | J159: 0 | Q159: =O159*P159 -> 0 | R159: 0 | S159: 0 | Z159: =X159*Y159 -> 0 | AA159: 0 | AB159: 0 | AD159: =J159=#REF! ->  | AE159: TRUE | AG159: =N160+#REF! ->  | AH159: =O160+#REF! -> 
B160: Sub Total | C160: =SUM(C156:C159) -> 0 | D160: 0 | E160: 0 | F160: 0 | G160: =IFERROR(E160/C160,0) -> 0 | H160: 0 | I160: 0 | J160: 0 | K160: 0 | L160: 0 | M160: 0 | N160: 0 | P160: 0 | Q160: 0 | R160: 0 | S160: 0 | T160: 0 | U160: 0 | V160: 0 | W160: 0 | Y160: =SUM(Y156:Y159) -> 0 | Z160: 0 | AA160: 0 | AB160: 0 | AD160: =J160=#REF! ->  | AE160: TRUE | AG160: =N161+#REF! ->  | AH160: =O161+#REF! -> 
A161: =+A155+0.01 -> 6.02 | B161: Residential (Continuing from previous year) | G161: 0 | H161: 0 | I161: =C161-G161 -> 0 | J161: =D161-F161 -> 0 | AD161: =J161=#REF! ->  | AE161: TRUE | AG161: =N162+#REF! ->  | AH161: =O162+#REF! -> 
B162: (a) 12 months | C162: 0 | D162: 0 | E162: 0 | F162: 0 | G162: 0 | H162: 0 | I162: =C162-E162 -> 0 | J162: =D162-F162 -> 0 | Q162: =O162*P162 -> 0 | R162: =K162+M162+P162 -> 0 | S162: 0 | Z162: =X162*Y162 -> 0 | AA162: =T162+V162+Y162 -> 0 | AB162: =U162+W162+Z162 -> 0
B163: (b) 9 months | C163: 0 | D163: 0 | E163: 0 | F163: 0 | G163: 0 | H163: 0 | I163: =C163-E163 -> 0 | J163: =D163-F163 -> 0 | Q163: =O163*P163 -> 0 | R163: 0 | S163: 0 | Z163: =X163*Y163 -> 0 | AA163: 0 | AB163: 0
B164: (c) 6 months | C164: 0 | D164: 0 | E164: 0 | F164: 0 | G164: 0 | H164: 0 | I164: =C164-E164 -> 0 | J164: =D164-F164 -> 0 | Q164: =O164*P164 -> 0 | R164: 0 | S164: 0 | Z164: =X164*Y164 -> 0 | AA164: 0 | AB164: 0
B165: (d) 3 months | C165: 0 | D165: 0 | E165: 0 | F165: 0 | G165: 0 | H165: 0 | I165: =C165-E165 -> 0 | J165: =D165-F165 -> 0 | Q165: =O165*P165 -> 0 | R165: 0 | S165: 0 | Z165: =X165*Y165 -> 0 | AA165: 0 | AB165: 0 | AD165: =J165=#REF! ->  | AE165: =K165=AC165 -> TRUE | AG165: =#REF!+#REF! ->  | AH165: =#REF!+#REF! ->  | AI165: =AG165=#REF! ->  | AJ165: =AH165=#REF! -> 
B166: Sub Total | C166: =SUM(C162:C165) -> 0 | D166: 0 | E166: 0 | F166: 0 | G166: 0 | H166: 0 | I166: 0 | J166: 0 | K166: 0 | L166: 0 | M166: 0 | N166: 0 | P166: 0 | Q166: 0 | R166: 0 | S166: 0 | T166: 0 | U166: 0 | V166: 0 | W166: 0 | Y166: =SUM(Y162:Y165) -> 0 | Z166: 0 | AA166: 0 | AB166: 0 | AD166: =J166=#REF! ->  | AE166: TRUE | AG166: =N167+#REF! ->  | AH166: =O167+#REF! ->  | AI166: =AG166=E167 -> 
A167: 6.03 | B167: Non-Residential (Fresh) | G167: 0 | H167: 0 | I167: =C167-G167 -> 0 | J167: =D167-F167 -> 0 | AD167: =J167=#REF! ->  | AE167: TRUE | AG167: =N168+#REF! ->  | AH167: =O168+#REF! -> 
B168: (a) 12 months | C168: 0 | D168: 0 | E168: 0 | F168: 0 | G168: 0 | H168: 0 | I168: =C168-E168 -> 0 | J168: =D168-F168 -> 0 | Q168: =O168*P168 -> 0 | R168: =K168+M168+P168 -> 0 | S168: 0 | Z168: =X168*Y168 -> 0 | AA168: =T168+V168+Y168 -> 0 | AB168: =U168+W168+Z168 -> 0 | AD168: =J168=#REF! ->  | AE168: TRUE | AG168: =N169+#REF! ->  | AH168: =O169+#REF! -> 
B169: (b) 9 months | C169: 0 | D169: 0 | E169: 0 | F169: 0 | G169: 0 | H169: 0 | I169: =C169-E169 -> 0 | J169: =D169-F169 -> 0 | Q169: =O169*P169 -> 0 | R169: 0 | S169: 0 | Z169: =X169*Y169 -> 0 | AA169: 0 | AB169: 0 | AD169: =J169=#REF! ->  | AE169: TRUE | AG169: =N170+#REF! ->  | AH169: =O170+#REF! -> 
B170: (c) 6 months | C170: 331 | D170: 9.93 | E170: 331 | F170: 9.93 | G170: 1 | H170: 1 | I170: =C170-E170 -> 0 | J170: =D170-F170 -> 0 | O170: 0.03 | P170: 63 | Q170: =O170*P170 -> 1.89 | R170: 63 | S170: 1.89 | X170: 0.03 | Y170: 63 | Z170: =X170*Y170 -> 1.89 | AA170: 63 | AB170: 1.89 | AD170: =J170=#REF! ->  | AE170: TRUE | AG170: =N171+#REF! ->  | AH170: =O171+#REF! -> 
B171: (d) 3 months | C171: 0 | D171: 0 | E171: 0 | F171: 0 | G171: 0 | H171: 0 | I171: =C171-E171 -> 0 | J171: =D171-F171 -> 0 | O171: 0.015 | P171: 9147 | Q171: =O171*P171 -> 137.205 | R171: 9147 | S171: 137.205 | X171: 0.015 | Z171: =X171*Y171 -> 0 | AA171: 0 | AB171: 0 | AD171: =J171=#REF! ->  | AE171: TRUE | AG171: =N172+#REF! ->  | AH171: =O172+#REF! -> 
B172: Sub Total | C172: =SUM(C168:C171) -> 331 | D172: 9.93 | E172: 331 | F172: 9.93 | G172: 1 | H172: 1 | I172: 0 | J172: 0 | K172: 0 | L172: 0 | M172: 0 | N172: 0 | P172: 9210 | Q172: 139.095 | R172: 9210 | S172: 139.095 | T172: 0 | U172: 0 | V172: 0 | W172: 0 | Y172: =SUM(Y168:Y171) -> 63 | Z172: 1.89 | AA172: 63 | AB172: 1.89 | AD172: =J172=#REF! ->  | AE172: TRUE | AG172: =N173+#REF! ->  | AH172: =O173+#REF! -> 
A173: 6.04 | B173: Non-Residential (Continuing from previous year) | G173: 0 | H173: 0 | I173: =C173-G173 -> 0 | J173: =D173-F173 -> 0 | AD173: =J173=#REF! ->  | AE173: TRUE | AG173: =N174+#REF! ->  | AH173: =O174+#REF! -> 
B174: (a) 12 months | C174: 0 | D174: 0 | E174: 0 | F174: 0 | G174: 0 | H174: 0 | I174: =C174-E174 -> 0 | J174: =D174-F174 -> 0 | Q174: =O174*P174 -> 0 | R174: =K174+M174+P174 -> 0 | S174: 0 | Z174: =X174*Y174 -> 0 | AA174: =T174+V174+Y174 -> 0 | AB174: =U174+W174+Z174 -> 0 | AD174: =J174=#REF! ->  | AE174: TRUE | AG174: =N175+#REF! ->  | AH174: =O175+#REF! -> 
B175: (b) 9 months | C175: 0 | D175: 0 | E175: 0 | F175: 0 | G175: 0 | H175: 0 | I175: =C175-E175 -> 0 | J175: =D175-F175 -> 0 | Q175: =O175*P175 -> 0 | R175: 0 | S175: 0 | Z175: =X175*Y175 -> 0 | AA175: 0 | AB175: 0 | AD175: =J175=#REF! ->  | AE175: TRUE | AG175: =N176+#REF! ->  | AH175: =O176+#REF! -> 
B176: (c) 6 months | C176: 0 | D176: 0 | E176: 0 | F176: 0 | G176: 0 | H176: 0 | I176: =C176-E176 -> 0 | J176: =D176-F176 -> 0 | O176: 0.03 | P176: 0 | Q176: =O176*P176 -> 0 | R176: 0 | S176: 0 | X176: 0.03 | Z176: =X176*Y176 -> 0 | AA176: 0 | AB176: 0
B177: (d) 3 months | C177: 0 | D177: 0 | E177: 0 | F177: 0 | G177: 0 | H177: 0 | I177: =C177-E177 -> 0 | J177: =D177-F177 -> 0 | Q177: =O177*P177 -> 0 | R177: 0 | S177: 0 | Z177: =X177*Y177 -> 0 | AA177: 0 | AB177: 0
B178: Sub Total | C178: =SUM(C174:C177) -> 0 | D178: 0 | E178: 0 | F178: 0 | G178: 0 | H178: 0 | I178: 0 | J178: 0 | K178: 0 | L178: 0 | M178: 0 | N178: 0 | P178: 0 | Q178: 0 | R178: 0 | S178: 0 | T178: 0 | U178: 0 | V178: 0 | W178: 0 | Y178: =SUM(Y174:Y177) -> 0 | Z178: 0 | AA178: 0 | AB178: 0
A179: 6.05 | B179: Madarasa/Maktab | G179: 0 | H179: 0 | I179: =C179-G179 -> 0 | J179: =D179-F179 -> 0 | AD179: =J179=#REF! ->  | AE179: =K179=AC179 -> TRUE
B180: (a) 12 months | C180: 0 | D180: 0 | E180: 0 | F180: 0 | G180: 0 | H180: 0 | I180: =C180-E180 -> 0 | J180: =D180-F180 -> 0 | Q180: =O180*P180 -> 0 | R180: =K180+M180+P180 -> 0 | S180: 0 | Z180: =X180*Y180 -> 0 | AA180: =T180+V180+Y180 -> 0 | AB180: =U180+W180+Z180 -> 0 | AD180: =J180=#REF! ->  | AE180: TRUE
B181: (b) 9 months | C181: 0 | D181: 0 | E181: 0 | F181: 0 | G181: 0 | H181: 0 | I181: =C181-E181 -> 0 | J181: =D181-F181 -> 0 | Q181: =O181*P181 -> 0 | R181: 0 | S181: 0 | Z181: =X181*Y181 -> 0 | AA181: 0 | AB181: 0 | AD181: =J181=#REF! ->  | AE181: TRUE
B182: (c) 6 months | C182: 0 | D182: 0 | E182: 0 | F182: 0 | G182: 0 | H182: 0 | I182: =C182-E182 -> 0 | J182: =D182-F182 -> 0 | O182: 0.03 | P182: 0 | Q182: =O182*P182 -> 0 | R182: 0 | S182: 0 | X182: 0.03 | Z182: =X182*Y182 -> 0 | AA182: 0 | AB182: 0 | AD182: =J182=#REF! ->  | AE182: TRUE
B183: (d) 3 months | C183: 0 | D183: 0 | E183: 0 | F183: 0 | G183: 0 | H183: 0 | I183: =C183-E183 -> 0 | J183: =D183-F183 -> 0 | O183: 0.015 | Q183: =O183*P183 -> 0 | R183: 0 | S183: 0 | X183: 0.015 | Y183: 0 | Z183: =X183*Y183 -> 0 | AA183: 0 | AB183: 0 | AD183: =J183=#REF! ->  | AE183: TRUE
B184: Sub Total | C184: =SUM(C180:C183) -> 0 | D184: 0 | E184: 0 | F184: 0 | G184: 0 | H184: 0 | I184: 0 | J184: 0 | K184: 0 | L184: 0 | M184: 0 | N184: 0 | P184: 0 | Q184: 0 | R184: 0 | S184: 0 | T184: 0 | U184: 0 | V184: 0 | W184: 0 | Y184: =SUM(Y180:Y183) -> 0 | Z184: 0 | AA184: 0 | AB184: 0 | AD184: =J184=#REF! ->  | AE184: TRUE
A185: 6.06 | B185: Seasonal Hostel (Residential) | G185: 0 | H185: 0 | I185: =C185-G185 -> 0 | J185: =D185-F185 -> 0 | AD185: =J185=#REF! ->  | AE185: TRUE
B186: (a) 12 months | C186: 0 | D186: 0 | E186: 0 | F186: 0 | G186: 0 | H186: 0 | I186: =C186-E186 -> 0 | J186: =D186-F186 -> 0 | Q186: =O186*P186 -> 0 | R186: =K186+M186+P186 -> 0 | S186: 0 | Z186: =X186*Y186 -> 0 | AA186: =T186+V186+Y186 -> 0 | AB186: =U186+W186+Z186 -> 0 | AD186: =J186=#REF! ->  | AE186: TRUE
B187: (b) 9 months | C187: 0 | D187: 0 | E187: 0 | F187: 0 | G187: 0 | H187: 0 | I187: =C187-E187 -> 0 | J187: =D187-F187 -> 0 | Q187: =O187*P187 -> 0 | R187: 0 | S187: 0 | Z187: =X187*Y187 -> 0 | AA187: 0 | AB187: 0 | AD187: =J187=#REF! ->  | AE187: TRUE
B188: (c) 6 months | C188: 0 | D188: 0 | E188: 0 | F188: 0 | G188: 0 | H188: 0 | I188: =C188-E188 -> 0 | J188: =D188-F188 -> 0 | O188: 0.17 | P188: 0 | Q188: =O188*P188 -> 0 | R188: 0 | S188: 0 | X188: 0.1 | Y188: 0 | Z188: =X188*Y188 -> 0 | AA188: 0 | AB188: 0 | AD188: =J188=#REF! ->  | AE188: TRUE
B189: (d) 3 months | C189: 0 | D189: 0 | E189: 0 | F189: 0 | G189: 0 | H189: 0 | I189: =C189-E189 -> 0 | J189: =D189-F189 -> 0 | Q189: =O189*P189 -> 0 | R189: 0 | S189: 0 | Z189: =X189*Y189 -> 0 | AA189: 0 | AB189: 0 | AD189: =J189=#REF! ->  | AE189: TRUE
B190: Sub Total | C190: =SUM(C186:C189) -> 0 | D190: 0 | E190: 0 | F190: 0 | G190: 0 | H190: 0 | I190: 0 | J190: 0 | K190: 0 | L190: 0 | M190: 0 | N190: 0 | P190: 0 | Q190: 0 | R190: 0 | S190: 0 | T190: 0 | U190: 0 | V190: 0 | W190: 0 | Y190: =SUM(Y186:Y189) -> 0 | Z190: 0 | AA190: 0 | AB190: 0 | AD190: =J190=#REF! ->  | AE190: TRUE
A191: 6.07 | B191: Seasonal Hostel | G191: 0 | H191: 0 | I191: =C191-G191 -> 0 | J191: =D191-F191 -> 0 | AD191: =J191=#REF! ->  | AE191: TRUE
B192: (a) 12 months | C192: 0 | D192: 0 | E192: 0 | F192: 0 | G192: 0 | H192: 0 | I192: =C192-E192 -> 0 | J192: =D192-F192 -> 0 | Q192: =O192*P192 -> 0 | R192: =K192+M192+P192 -> 0 | S192: 0 | Z192: =X192*Y192 -> 0 | AA192: =T192+V192+Y192 -> 0 | AB192: =U192+W192+Z192 -> 0 | AD192: =J192=#REF! ->  | AE192: TRUE
B193: (b) 9 months | C193: 0 | D193: 0 | E193: 0 | F193: 0 | G193: 0 | H193: 0 | I193: =C193-E193 -> 0 | J193: =D193-F193 -> 0 | Q193: =O193*P193 -> 0 | R193: 0 | S193: 0 | Z193: =X193*Y193 -> 0 | AA193: 0 | AB193: 0 | AD193: =J193=#REF! ->  | AE193: TRUE
B194: (c) 6 months | C194: 0 | D194: 0 | E194: 0 | F194: 0 | G194: 0 | H194: 0 | I194: =C194-E194 -> 0 | J194: =D194-F194 -> 0 | O194: 0.1 | P194: 0 | Q194: =O194*P194 -> 0 | R194: 0 | S194: 0 | X194: 0.1 | Y194: 0 | Z194: =X194*Y194 -> 0 | AA194: 0 | AB194: 0 | AD194: =J194=#REF! ->  | AE194: TRUE
B195: (d) 3 months | C195: 0 | D195: 0 | E195: 0 | F195: 0 | G195: 0 | H195: 0 | I195: =C195-E195 -> 0 | J195: =D195-F195 -> 0 | Q195: =O195*P195 -> 0 | R195: 0 | S195: 0 | Z195: =X195*Y195 -> 0 | AA195: 0 | AB195: 0 | AD195: =J195=#REF! ->  | AE195: TRUE
B196: Sub Total | C196: =SUM(C192:C195) -> 0 | D196: 0 | E196: 0 | F196: 0 | G196: 0 | H196: 0 | I196: 0 | J196: 0 | K196: 0 | L196: 0 | M196: 0 | N196: 0 | P196: 0 | Q196: 0 | R196: 0 | S196: 0 | T196: 0 | U196: 0 | V196: 0 | W196: 0 | Y196: =SUM(Y192:Y195) -> 0 | Z196: 0 | AA196: 0 | AB196: 0 | AD196: =J196=#REF! ->  | AE196: TRUE
B197: Total | C197: =C160+C166+C172+C178+C184+C190+C196 -> 331 | D197: 9.93 | E197: 331 | F197: 9.93 | G197: 1 | H197: 1 | I197: 0 | J197: 0 | K197: 0 | L197: 0 | M197: 0 | N197: 0 | P197: =P160+P166+P172+P178+P184+P190+P196 -> 9210 | Q197: 139.095 | R197: 9210 | S197: 139.095 | T197: 0 | U197: 0 | V197: 0 | W197: 0 | Y197: =Y160+Y166+Y172+Y178+Y184+Y190+Y196 -> 63 | Z197: =Z160+Z166+Z172+Z178+Z184+Z190+Z196 -> 1.89 | AA197: 63 | AB197: 1.89 | AD197: =J197=#REF! ->  | AE197: TRUE
A198: II | B198: RETENTION | G198: 0 | H198: 0 | I198: =C198-G198 -> 0 | J198: =D198-F198 -> 0 | AD198: =J198=#REF! ->  | AE198: TRUE
A199: 7 | B199: Free Text Books | G199: 0 | H199: 0 | I199: =C199-G199 -> 0 | J199: 0 | AD199: =J199=#REF! ->  | AE199: TRUE
A200: 7.01 | B200: Free Text Books (P) | G200: 0 | H200: 0 | I200: =C200-G200 -> 0 | J200: 0 | AD200: =J200=#REF! ->  | AE200: TRUE
B201: (a) Class I & II | C201: 38197 | D201: 57.2955 | E201: 38197 | F201: 57.2955 | G201: 1 | H201: 1 | I201: =C201-E201 -> 0 | J201: 0 | O201: 0.0015 | P201: 38205 | Q201: =O201*P201 -> 57.3075 | R201: =K201+M201+P201 -> 38205 | S201: =L201+N201+Q201 -> 57.3075 | X201: 0.0015 | Y201: 38205 | Z201: =X201*Y201 -> 57.3075 | AA201: =T201+V201+Y201 -> 38205 | AB201: =U201+W201+Z201 -> 57.3075 | AD201: =J201=#REF! ->  | AE201: TRUE
B202: (b) Braille Books Class I & II | C202: 31 | D202: 0.0465 | E202: 31 | F202: 0.0465 | G202: 1 | H202: 1 | I202: 0 | J202: 0 | O202: 0.0015 | P202: 21 | Q202: =O202*P202 -> 0.0315 | R202: =K202+M202+P202 -> 21 | S202: 0.0315 | X202: 0.0015 | Y202: 21 | Z202: =X202*Y202 -> 0.0315 | AA202: =T202+V202+Y202 -> 21 | AB202: =U202+W202+Z202 -> 0.0315 | AD202: =J202=#REF! ->  | AE202: TRUE
... 318 more rows

Sheet Amravati
A1: Sarva Shiksha Abhiyan & KGBV - Annual Workplan and Budget 2017-18
A3: District : | B3: Amravati | D3: Rs. In lakh
A5: S.No. | B5: Activity | C5: Year 2016-17 | K5: Outlay Proposed for 2017-18 | T5: Outlay Recommended for 2017-18 | AC5: Remarks
C6: Outlay approved by PAB (including spillover) | E6: Achievement | I6: Savings | K6: Spill Over | M6: Deferred laibility of 2014-15 | O6: Fresh | R6: Total | T6: Spill Over | V6: Deferred laibility of 2014-15 | X6: Fresh | AA6: Total
C7: Phy. | D7: Fin | E7: Phy. | F7: Fin. | G7: Phy. (%) | H7: Fin. (%) | I7: Phy. | J7: Fin. | K7: Phy. | L7: Fin. | M7: Phy. | N7: Fin. | O7: Unit Cost | P7: Phy. | Q7: Fin. | R7: Phy. | S7: Fin. | T7: Phy. | U7: Fin. | V7: Phy. | W7: Fin. | X7: Unit Cost | Y7: Phy. | Z7: Fin. | AA7: Phy. | AB7: Fin.
A8: I | B8: ACCESS | I8: =C8-G8 -> 0 | J8: =D8-F8 -> 0
B9: SSA | I9: =C9-G9 -> 0 | J9: 0
A10: 1 | B10: Opening of New Schools | I10: =C10-G10 -> 0 | J10: 0 | AD10: Phy | AE10: Fin
A11: 1.01 | B11: New Primary School | C11: 0 | D11: 0 | G11: =IFERROR(E11/C11,0) -> 0 | H11: 0 | I11: =C11-E11 -> 0 | J11: 0 | Q11: =O11*P11 -> 0 | R11: =K11+M11+P11 -> 0 | S11: 0 | Z11: =X11*Y11 -> 0 | AA11: =T11+V11+Y11 -> 0 | AB11: =U11+W11+Z11 -> 0 | AD11: =J11=#REF! ->  | AE11: =K11=AC11 -> TRUE | AG11: =N12+#REF! ->  | AH11: =O12+#REF! ->  | AI11: =AG11=E12 -> 
A12: 1.02 | B12: Upgradation of PS to UPS | C12: 0 | D12: 0 | G12: 0 | H12: 0 | I12: 0 | J12: 0 | Q12: 0 | R12: 0 | S12: 0 | Z12: 0 | AA12: 0 | AB12: 0 | AD12: =J12=#REF! ->  | AE12: TRUE | AG12: =N13+#REF! ->  | AH12: =O13+#REF! -> 
A13: 1.03 | B13: Composite Schools | C13: 0 | D13: 0 | G13: 0 | H13: 0 | I13: 0 | J13: 0 | Q13: 0 | R13: 0 | S13: 0 | Z13: 0 | AA13: 0 | AB13: 0 | AD13: =J13=#REF! ->  | AE13: TRUE | AG13: =N14+#REF! ->  | AH13: =O14+#REF! -> 
A14: 1.04 | B14: Residential schools for specific category of children | C14: 0 | D14: 0 | G14: 0 | H14: 0 | I14: 0 | J14: 0 | Q14: 0 | R14: 0 | S14: 0 | Z14: 0 | AA14: 0 | AB14: 0 | AD14: =J14=#REF! ->  | AE14: TRUE | AG14: =N15+#REF! ->  | AH14: =O15+#REF! -> 
A15: 1.05 | B15: Residential Hostel | C15: 0 | D15: 0 | G15: 0 | H15: 0 | I15: 0 | J15: 0 | Q15: 0 | R15: 0 | S15: 0 | Z15: 0 | AA15: 0 | AB15: 0 | AD15: =J15=#REF! ->  | AE15: TRUE | AG15: =N16+#REF! ->  | AH15: =O16+#REF! -> 
A16: 1.06 | B16: Integration of Class V with primary schools | C16: 0 | D16: 0 | G16: 0 | H16: 0 | I16: 0 | J16: 0 | Q16: 0 | R16: 0 | S16: 0 | Z16: 0 | AA16: 0 | AB16: 0 | AD16: =J16=#REF! ->  | AE16: TRUE | AG16: =N17+#REF! ->  | AH16: =O17+#REF! -> 
A17: 1.07 | B17: Integration of Class VIII with upper primary schools | C17: 0 | D17: 0 | G17: 0 | H17: 0 | I17: 0 | J17: 0 | Q17: 0 | R17: 0 | S17: 0 | Z17: 0 | AA17: 0 | AB17: 0 | AD17: =J17=#REF! ->  | AE17: TRUE | AG17: =N18+#REF! ->  | AH17: =O18+#REF! -> 
A18: 2 | B18: Residential Schools for specific category of children | G18: 0 | H18: 0 | I18: =C18-G18 -> 0 | J18: 0 | AD18: =J18=#REF! ->  | AE18: TRUE | AG18: =N19+#REF! ->  | AH18: =O19+#REF! -> 
A19: I | B19: 50 children | G19: 0 | H19: 0 | I19: =C19-G19 -> 0 | J19: 0 | AD19: =J19=#REF! ->  | AE19: TRUE | AG19: =N20+#REF! ->  | AH19: =O20+#REF! -> 
A20: (A) | B20: Non-recurring (one time grant) | G20: 0 | H20: 0 | I20: =C20-G20 -> 0 | J20: 0 | AD20: =J20=#REF! ->  | AE20: TRUE | AG20: =N21+#REF! ->  | AH20: =O21+#REF! -> 
A21: 2.01 | B21: Furniture/ Equipment (including kitchen) | C21: 0 | D21: 0 | G21: 0 | H21: 0 | I21: =C21-E21 -> 0 | J21: 0 | Q21: =O21*P21 -> 0 | R21: =K21+M21+P21 -> 0 | S21: 0 | Z21: =X21*Y21 -> 0 | AA21: =T21+V21+Y21 -> 0 | AB21: =U21+W21+Z21 -> 0 | AD21: =J21=#REF! ->  | AE21: TRUE | AG21: =N22+#REF! ->  | AH21: =O22+#REF! -> 
A22: 2.02 | B22: TLM and equipment including library books | C22: 0 | D22: 0 | G22: 0 | H22: 0 | I22: =C22-E22 -> 0 | J22: 0 | Q22: =O22*P22 -> 0 | R22: 0 | S22: 0 | Z22: =X22*Y22 -> 0 | AA22: 0 | AB22: 0 | AD22: =J22=#REF! ->  | AE22: TRUE | AG22: =N23+#REF! ->  | AH22: =O23+#REF! -> 
A23: 2.03 | B23: Bedding (new) | C23: 0 | D23: 0 | G23: 0 | H23: 0 | I23: =C23-E23 -> 0 | J23: 0 | Q23: =O23*P23 -> 0 | R23: 0 | S23: 0 | Z23: =X23*Y23 -> 0 | AA23: 0 | AB23: 0 | AD23: =J23=#REF! ->  | AE23: TRUE | AG23: =N24+#REF! ->  | AH23: =O24+#REF! -> 
A24: 2.04 | B24: Replacement of bedding (once in 3 years) | C24: 0 | D24: 0 | G24: 0 | H24: 0 | I24: =C24-E24 -> 0 | J24: 0 | Q24: =O24*P24 -> 0 | R24: 0 | S24: 0 | Z24: =X24*Y24 -> 0 | AA24: 0 | AB24: 0 | AD24: =J24=#REF! ->  | AE24: TRUE | AG24: =N25+#REF! ->  | AH24: =O25+#REF! -> 
B25: Sub Total (Non Recurring) | C25: =SUM(C21:C24) -> 0 | D25: 0 | E25: 0 | F25: 0 | G25: 0 | H25: 0 | I25: 0 | J25: 0 | K25: 0 | L25: 0 | M25: 0 | N25: 0 | P25: 0 | Q25: 0 | R25: 0 | S25: 0 | T25: 0 | U25: 0 | V25: 0 | W25: 0 | Y25: =SUM(Y21:Y24) -> 0 | Z25: 0 | AA25: 0 | AB25: 0 | AD25: =J25=#REF! ->  | AE25: TRUE | AG25: =N26+#REF! ->  | AH25: =O26+#REF! -> 
A26: (B) | B26: Recurring (50 children) | G26: 0 | H26: 0 | I26: =C26-G26 -> 0 | J26: =D26-F26 -> 0 | AD26: =J26=#REF! ->  | AE26: TRUE | AG26: =N27+#REF! ->  | AH26: =O27+#REF! -> 
A27: 2.05 | B27: Maintenance per child Per month @ Rs.1500/- | C27: 0 | D27: 0 | G27: 0 | H27: 0 | I27: =C27-E27 -> 0 | J27: 0 | Q27: =O27*P27 -> 0 | R27: =K27+M27+P27 -> 0 | S27: 0 | Z27: =X27*Y27 -> 0 | AA27: =T27+V27+Y27 -> 0 | AB27: =U27+W27+Z27 -> 0 | AD27: =J27=#REF! ->  | AE27: TRUE | AG27: =N28+#REF! ->  | AH27: =O28+#REF! -> 
A28: 2.06 | B28: Stipend per child per month @ Rs.100/- | C28: 0 | D28: 0 | G28: 0 | H28: 0 | I28: 0 | J28: 0 | Q28: =O28*P28 -> 0 | R28: 0 | S28: 0 | Z28: =X28*Y28 -> 0 | AA28: 0 | AB28: 0 | AD28: =J28=#REF! ->  | AE28: TRUE | AG28: =N29+#REF! ->  | AH28: =O29+#REF! -> 
A29: 2.07 | B29: Supplementary TLM, Stationery and other educational material @Rs.1000/- per child per annum | C29: 0 | D29: 0 | G29: 0 | H29: 0 | I29: 0 | J29: 0 | Q29: =O29*P29 -> 0 | R29: 0 | S29: 0 | Z29: =X29*Y29 -> 0 | AA29: 0 | AB29: 0 | AD29: =J29=#REF! ->  | AE29: TRUE | AG29: =N30+#REF! ->  | AH29: =O30+#REF! -> 
A30: 2.08 | B30: Salaries | G30: 0 | H30: 0 | I30: 0 | J30: 0 | AD30: =J30=#REF! ->  | AE30: TRUE | AG30: =N31+#REF! ->  | AH30: =O31+#REF! -> 
A31: (a) | B31: 1 Warden @ Rs.25000/- per month | C31: 0 | D31: 0 | G31: 0 | H31: 0 | I31: 0 | J31: 0 | Q31: =O31*P31 -> 0 | R31: =K31+M31+P31 -> 0 | S31: 0 | Z31: =X31*Y31 -> 0 | AA31: =T31+V31+Y31 -> 0 | AB31: =U31+W31+Z31 -> 0 | AD31: =J31=#REF! ->  | AE31: TRUE | AG31: =N32+#REF! ->  | AH31: =O32+#REF! -> 
A32: (b) | B32: 4 Fulltime teachers as per RTE Norms @ Rs. 20,000/- per month per teacher | C32: 0 | D32: 0 | G32: 0 | H32: 0 | I32: 0 | J32: 0 | Q32: 0 | R32: 0 | S32: 0 | Z32: 0 | AA32: 0 | AB32: 0 | AD32: =J32=#REF! ->  | AE32: TRUE | AG32: =N33+#REF! ->  | AH32: =O33+#REF! -> 
A33: (c) | B33: 2 Urdu Teachers (only for Blocks with muslim population above 20% and select urban areas) @ Rs.12,000/- per month per teacher. | C33: 0 | D33: 0 | G33: 0 | H33: 0 | I33: 0 | J33: 0 | Q33: 0 | R33: 0 | S33: 0 | Z33: 0 | AA33: 0 | AB33: 0 | AD33: =J33=#REF! ->  | AE33: TRUE | AG33: =N34+#REF! ->  | AH33: =O34+#REF! -> 
A34: (d) | B34: 3 Part time teachers @ Rs.5,000/- per month per teacher | C34: 0 | D34: 0 | G34: 0 | H34: 0 | I34: 0 | J34: 0 | Q34: 0 | R34: 0 | S34: 0 | Z34: 0 | AA34: 0 | AB34: 0 | AD34: =J34=#REF! ->  | AE34: TRUE | AG34: =N35+#REF! ->  | AH34: =O35+#REF! -> 
A35: (e) | B35: 1 Full time Accountant @ Rs. 10,000/- per month | C35: 0 | D35: 0 | G35: 0 | H35: 0 | I35: 0 | J35: 0 | Q35: 0 | R35: 0 | S35: 0 | Z35: 0 | AA35: 0 | AB35: 0 | AD35: =J35=#REF! ->  | AE35: TRUE | AG35: =#REF!+#REF! ->  | AH35: =#REF!+#REF! ->  | AI35: =AG35=#REF! ->  | AJ35: =AH35=#REF! -> 
A36: (f) | B36: 2 Support staff - (Accountant/Assistant, Peon, Chowkidar) @ Rs. 5,000/- per month per staff | C36: 0 | D36: 0 | G36: 0 | H36: 0 | I36: 0 | J36: 0 | Q36: 0 | R36: 0 | S36: 0 | Z36: 0 | AA36: 0 | AB36: 0 | AD36: =J36=#REF! ->  | AE36: TRUE | AG36: =N37+#REF! ->  | AH36: =O37+#REF! ->  | AI36: =AG36=E37 -> 
A37: (g) | B37: 1 Head Cook @ Rs. 6,000/- per month and upto 2 Asstt. Cooks @ Rs. 4,500/- per month per cook | C37: 0 | D37: 0 | G37: 0 | H37: 0 | I37: 0 | J37: 0 | Q37: 0 | R37: 0 | S37: 0 | Z37: 0 | AA37: 0 | AB37: 0 | AD37: =J37=#REF! ->  | AE37: TRUE | AG37: =N38+#REF! ->  | AH37: =O38+#REF! -> 
A38: 2.09 | B38: Specific Skill training @ Rs.1000/- per annum per child | C38: 0 | D38: 0 | G38: 0 | H38: 0 | I38: 0 | J38: 0 | Q38: 0 | R38: 0 | S38: 0 | Z38: 0 | AA38: 0 | AB38: 0 | AD38: =J38=#REF! ->  | AE38: TRUE | AG38: =N39+#REF! ->  | AH38: =O39+#REF! -> 
A39: 2.1 | B39: Electricity / water charges @ Rs. 1000/- per annum per child | C39: 0 | D39: 0 | G39: 0 | H39: 0 | I39: 0 | J39: 0 | Q39: 0 | R39: 0 | S39: 0 | Z39: 0 | AA39: 0 | AB39: 0 | AD39: =J39=#REF! ->  | AE39: TRUE | AG39: =N40+#REF! ->  | AH39: =O40+#REF! -> 
A40: 2.11 | B40: Medical care/contingencies @ Rs.1250/- per annum per child | C40: 0 | D40: 0 | G40: 0 | H40: 0 | I40: 0 | J40: 0 | Q40: 0 | R40: 0 | S40: 0 | Z40: 0 | AA40: 0 | AB40: 0 | AD40: =J40=#REF! ->  | AE40: TRUE | AG40: =N41+#REF! ->  | AH40: =O41+#REF! -> 
A41: =+A40+0.01 -> 2.12 | B41: Maintenance @ Rs. 750/- per child per annum | C41: 0 | D41: 0 | G41: 0 | H41: 0 | I41: 0 | J41: 0 | Q41: 0 | R41: 0 | S41: 0 | Z41: 0 | AA41: 0 | AB41: 0 | AD41: =J41=#REF! ->  | AE41: TRUE | AG41: =N42+#REF! ->  | AH41: =O42+#REF! -> 
A42: 2.13 | B42: Miscellaneous @ Rs. 750/- per child per annum | C42: 0 | D42: 0 | G42: 0 | H42: 0 | I42: 0 | J42: 0 | Q42: 0 | R42: 0 | S42: 0 | Z42: 0 | AA42: 0 | AB42: 0 | AD42: =J42=#REF! ->  | AE42: TRUE | AG42: =N43+#REF! ->  | AH42: =O43+#REF! -> 
A43: 2.14 | B43: Preparatory camps @ Rs. 300/- per child per annum | C43: 0 | D43: 0 | G43: =IFERROR(E43/C43,0) -> 0 | H43: 0 | I43: 0 | J43: 0 | Q43: 0 | R43: 0 | S43: 0 | Z43: 0 | AA43: 0 | AB43: 0 | AD43: =J43=#REF! ->  | AE43: TRUE | AG43: =N44+#REF! ->  | AH43: =O44+#REF! -> 
A44: 2.15 | B44: P.T.A / school functions @ Rs. 300/- per child per annum | C44: 0 | D44: 0 | G44: 0 | H44: 0 | I44: 0 | J44: 0 | Q44: 0 | R44: 0 | S44: 0 | Z44: 0 | AA44: 0 | AB44: 0 | AD44: =J44=#REF! ->  | AE44: TRUE | AG44: =N45+#REF! ->  | AH44: =O45+#REF! -> 
A45: 2.16 | B45: Provision of Rent @ Rs. 10,000/- per child per annum | C45: 0 | D45: 0 | G45: 0 | H45: 0 | I45: 0 | J45: 0 | Q45: 0 | R45: 0 | S45: 0 | Z45: 0 | AA45: 0 | AB45: 0 | AD45: =J45=#REF! ->  | AE45: TRUE | AG45: =N46+#REF! ->  | AH45: =O46+#REF! -> 
A46: 2.17 | B46: Capacity Building @ Rs. 500/- per child per annum | C46: 0 | D46: 0 | G46: 0 | H46: 0 | I46: 0 | J46: 0 | Q46: 0 | R46: 0 | S46: 0 | Z46: 0 | AA46: 0 | AB46: 0 | AD46: =J46=#REF! ->  | AE46: TRUE | AG46: =N47+#REF! ->  | AH46: =O47+#REF! -> 
A47: 2.18 | B47: Physical / Self Defence Training @ Rs.200/- per child per annum | C47: 0 | D47: 0 | G47: 0 | H47: 0 | I47: 0 | J47: 0 | Q47: 0 | R47: 0 | S47: 0 | Z47: 0 | AA47: 0 | AB47: 0 | AD47: =J47=#REF! ->  | AE47: TRUE | AG47: =N48+#REF! ->  | AH47: =O48+#REF! -> 
B48: Sub Total (Recurring) | C48: =SUM(C27:C47) -> 0 | D48: 0 | E48: 0 | F48: 0 | G48: 0 | H48: 0 | I48: 0 | J48: 0 | K48: 0 | L48: 0 | M48: 0 | N48: 0 | P48: 0 | Q48: 0 | R48: 0 | S48: 0 | T48: 0 | U48: 0 | V48: 0 | W48: 0 | Y48: =SUM(Y27:Y47) -> 0 | Z48: 0 | AA48: 0 | AB48: 0 | AD48: =J48=#REF! ->  | AE48: TRUE | AG48: =N49+#REF! ->  | AH48: =O49+#REF! -> 
B49: Total (Non Recurring + Recurring) | C49: =C25+C48 -> 0 | D49: 0 | E49: 0 | F49: 0 | G49: 0 | H49: 0 | I49: 0 | J49: 0 | K49: 0 | L49: 0 | M49: 0 | N49: 0 | P49: 0 | Q49: 0 | R49: 0 | S49: 0 | T49: 0 | U49: 0 | V49: 0 | W49: 0 | Y49: =Y25+Y48 -> 0 | Z49: 0 | AA49: 0 | AB49: 0 | AD49: =J49=#REF! ->  | AE49: TRUE | AG49: =N50+#REF! ->  | AH49: =O50+#REF! -> 
A50: II | B50: 100 children | G50: 0 | H50: 0 | I50: =C50-G50 -> 0 | J50: =D50-F50 -> 0 | AD50: =J50=#REF! ->  | AE50: TRUE | AG50: =N51+#REF! ->  | AH50: =O51+#REF! -> 
A51: (A) | B51: Non-recurring (one time grant) | G51: 0 | H51: 0 | I51: =C51-G51 -> 0 | J51: 0 | AD51: =J51=#REF! ->  | AE51: TRUE | AG51: =N52+#REF! ->  | AH51: =O52+#REF! -> 
A52: 2.19 | B52: Furniture / Equipment (including kitchen equipment) | C52: 0 | D52: 0 | G52: 0 | H52: 0 | I52: =C52-E52 -> 0 | J52: 0 | Q52: =O52*P52 -> 0 | R52: =K52+M52+P52 -> 0 | S52: 0 | Z52: =X52*Y52 -> 0 | AA52: =T52+V52+Y52 -> 0 | AB52: =U52+W52+Z52 -> 0 | AD52: =J52=#REF! ->  | AE52: TRUE | AG52: =N53+#REF! ->  | AH52: =O53+#REF! -> 
A53: =+A52+0.01 -> 2.2 | B53: TLM and equipment including library books (New) | C53: 0 | D53: 0 | G53: 0 | H53: 0 | I53: =C53-E53 -> 0 | J53: 0 | Q53: =O53*P53 -> 0 | R53: 0 | S53: 0 | Z53: =X53*Y53 -> 0 | AA53: 0 | AB53: 0 | AD53: =J53=#REF! ->  | AE53: TRUE | AG53: =N54+#REF! ->  | AH53: =O54+#REF! -> 
A54: =+A53+0.01 -> 2.21 | B54: Bedding (New) | C54: 0 | D54: 0 | G54: 0 | H54: 0 | I54: =C54-E54 -> 0 | J54: 0 | Q54: =O54*P54 -> 0 | R54: 0 | S54: 0 | Z54: =X54*Y54 -> 0 | AA54: 0 | AB54: 0 | AD54: =J54=#REF! ->  | AE54: TRUE | AG54: =N55+#REF! ->  | AH54: =O55+#REF! -> 
A55: =+A54+0.01 -> 2.22 | B55: Replacement of bedding (once in 3 years) | C55: 0 | D55: 0 | G55: 0 | H55: 0 | I55: =C55-E55 -> 0 | J55: 0 | Q55: =O55*P55 -> 0 | R55: 0 | S55: 0 | Z55: =X55*Y55 -> 0 | AA55: 0 | AB55: 0 | AD55: =J55=#REF! ->  | AE55: TRUE | AG55: =N56+#REF! ->  | AH55: =O56+#REF! -> 
B56: Sub Total Non-recurring | C56: =SUM(C52:C55) -> 0 | D56: 0 | E56: 0 | F56: 0 | G56: 0 | H56: 0 | I56: 0 | J56: 0 | K56: 0 | L56: 0 | M56: 0 | N56: 0 | P56: 0 | Q56: 0 | R56: 0 | S56: 0 | T56: 0 | U56: 0 | V56: 0 | W56: 0 | Y56: =SUM(Y52:Y55) -> 0 | Z56: 0 | AA56: 0 | AB56: 0 | AD56: =J56=#REF! ->  | AE56: TRUE | AG56: =N64+#REF! ->  | AH56: =O64+#REF! ->  | AI56: =AG56=E64 ->  | AJ56: =AH56=F64 -> 
A57: (B) | B57: Recurring | G57: 0 | H57: 0 | I57: =C57-G57 -> 0 | J57: =D57-F57 -> 0
A58: 2.23 | B58: Maintenance per child per month @ Rs. 1500/- | C58: 0 | D58: 0 | G58: 0 | H58: 0 | I58: =C58-E58 -> 0 | J58: 0 | Q58: =O58*P58 -> 0 | R58: =K58+M58+P58 -> 0 | S58: 0 | Z58: =X58*Y58 -> 0 | AA58: =T58+V58+Y58 -> 0 | AB58: =U58+W58+Z58 -> 0
A59: =+A58+0.01 -> 2.24 | B59: Stipend per child per month @ Rs.100/- | C59: 0 | D59: 0 | G59: 0 | H59: 0 | I59: 0 | J59: 0 | Q59: =O59*P59 -> 0 | R59: 0 | S59: 0 | Z59: =X59*Y59 -> 0 | AA59: 0 | AB59: 0
A60: 2.25 | B60: Supplementary TLM, Stationery and other educational material per child @1000/- per annum | C60: 0 | D60: 0 | G60: 0 | H60: 0 | I60: 0 | J60: 0 | Q60: =O60*P60 -> 0 | R60: 0 | S60: 0 | Z60: =X60*Y60 -> 0 | AA60: 0 | AB60: 0
A61: 2.26 | B61: Salaries | G61: 0 | H61: 0 | I61: 0 | J61: 0
A62: (a) | B62: 1 Warden @ Rs. 25,000/- per month | C62: 0 | D62: 0 | G62: 0 | H62: 0 | I62: 0 | J62: 0 | Q62: =O62*P62 -> 0 | R62: =K62+M62+P62 -> 0 | S62: 0 | Z62: =X62*Y62 -> 0 | AA62: =T62+V62+Y62 -> 0 | AB62: =U62+W62+Z62 -> 0
A63: (b) | B63: 1 head teacher @ Rs. 25,000/- per month in case the enrollment exceeds 100 | C63: 0 | D63: 0 | G63: 0 | H63: 0 | I63: 0 | J63: 0 | Q63: 0 | R63: 0 | S63: 0 | Z63: 0 | AA63: 0 | AB63: 0
A64: (c) | B64: 4 - 5 Full time teachers as per RTE norms @ Rs. 20,000/- per month per teacher | C64: 0 | D64: 0 | G64: 0 | H64: 0 | I64: 0 | J64: 0 | Q64: 0 | R64: 0 | S64: 0 | Z64: 0 | AA64: 0 | AB64: 0 | AD64: =J64=#REF! ->  | AE64: =K64=AC64 -> TRUE | AG64: =N65+#REF! ->  | AH64: =O65+#REF! ->  | AI64: =AG64=E65 -> 
A65: (d) | B65: 2 Urdu Teachers (only for blocks with muslim population above 20% and select urban areas), if required @ Rs. 12,000/- per month per teacher | C65: 0 | D65: 0 | G65: 0 | H65: 0 | I65: 0 | J65: 0 | Q65: 0 | R65: 0 | S65: 0 | Z65: 0 | AA65: 0 | AB65: 0 | AD65: =J65=#REF! ->  | AE65: TRUE | AG65: =N66+#REF! ->  | AH65: =O66+#REF! -> 
A66: (e) | B66: 3 part time teachers @ Rs. 5,000/- per month per teacher | C66: 0 | D66: 0 | G66: 0 | H66: 0 | I66: 0 | J66: 0 | Q66: 0 | R66: 0 | S66: 0 | Z66: 0 | AA66: 0 | AB66: 0 | AD66: =J66=#REF! ->  | AE66: TRUE | AG66: =N67+#REF! ->  | AH66: =O67+#REF! -> 
A67: (f) | B67: 1 Full time Accountant @ Rs. 10,000/- per month | C67: 0 | D67: 0 | G67: 0 | H67: 0 | I67: 0 | J67: 0 | Q67: 0 | R67: 0 | S67: 0 | Z67: 0 | AA67: 0 | AB67: 0 | AD67: =J67=#REF! ->  | AE67: TRUE | AG67: =N68+#REF! ->  | AH67: =O68+#REF! -> 
A68: (g) | B68: 2 Support Staff – (Accountant/ Assistant, Peon, Chowkidar) @ Rs. 5,000/- per month per staff | C68: 0 | D68: 0 | G68: 0 | H68: 0 | I68: 0 | J68: 0 | Q68: 0 | R68: 0 | S68: 0 | Z68: 0 | AA68: 0 | AB68: 0 | AD68: =J68=#REF! ->  | AE68: TRUE | AG68: =N69+#REF! ->  | AH68: =O69+#REF! -> 
A69: (h) | B69: 1 Head cook @ Rs. 6,000/- per month and upto 2 Asstt. Cooks @ Rs. 4,500/- per month per cook | C69: 0 | D69: 0 | G69: 0 | H69: 0 | I69: 0 | J69: 0 | Q69: 0 | R69: 0 | S69: 0 | Z69: 0 | AA69: 0 | AB69: 0 | AD69: =J69=#REF! ->  | AE69: TRUE | AG69: =N70+#REF! ->  | AH69: =O70+#REF! -> 
A70: 2.27 | B70: Specific skill training per child @ Rs.1000/- per annum | C70: 0 | D70: 0 | G70: 0 | H70: 0 | I70: 0 | J70: 0 | Q70: 0 | R70: 0 | S70: 0 | Z70: 0 | AA70: 0 | AB70: 0 | AD70: =J70=#REF! ->  | AE70: TRUE | AG70: =N71+#REF! ->  | AH70: =O71+#REF! -> 
A71: 2.28 | B71: Electricity / water charges per child @Rs.1000/- per annum | C71: 0 | D71: 0 | G71: 0 | H71: 0 | I71: 0 | J71: 0 | Q71: 0 | R71: 0 | S71: 0 | Z71: 0 | AA71: 0 | AB71: 0 | AD71: =J71=#REF! ->  | AE71: TRUE | AG71: =N72+#REF! ->  | AH71: =O72+#REF! -> 
A72: 2.29 | B72: Medical care/contingencies @ Rs.1250/- per child per annum | C72: 0 | D72: 0 | G72: 0 | H72: 0 | I72: 0 | J72: 0 | Q72: 0 | R72: 0 | S72: 0 | Z72: 0 | AA72: 0 | AB72: 0 | AD72: =J72=#REF! ->  | AE72: TRUE | AG72: =N73+#REF! ->  | AH72: =O73+#REF! -> 
A73: 2.3 | B73: Maintenance @ Rs.750/- per child per annum | C73: 0 | D73: 0 | G73: 0 | H73: 0 | I73: 0 | J73: 0 | Q73: 0 | R73: 0 | S73: 0 | Z73: 0 | AA73: 0 | AB73: 0 | AD73: =J73=#REF! ->  | AE73: TRUE | AG73: =N74+#REF! ->  | AH73: =O74+#REF! -> 
A74: 2.31 | B74: Miscellaneous @ Rs.750/- per child per annum | C74: 0 | D74: 0 | G74: 0 | H74: 0 | I74: 0 | J74: 0 | Q74: 0 | R74: 0 | S74: 0 | Z74: 0 | AA74: 0 | AB74: 0 | AD74: =J74=#REF! ->  | AE74: TRUE | AG74: =N75+#REF! ->  | AH74: =O75+#REF! -> 
A75: 2.32 | B75: Preparatory camps @ Rs.200/- per child per annum | C75: 0 | D75: 0 | G75: =IFERROR(E75/C75,0) -> 0 | H75: 0 | I75: 0 | J75: 0 | Q75: 0 | R75: 0 | S75: 0 | Z75: 0 | AA75: 0 | AB75: 0 | AD75: =J75=#REF! ->  | AE75: TRUE | AG75: =N76+#REF! ->  | AH75: =O76+#REF! -> 
A76: 2.33 | B76: P.T.A / school functions @ Rs.200/- per child per annum | C76: 0 | D76: 0 | G76: 0 | H76: 0 | I76: 0 | J76: 0 | Q76: 0 | R76: 0 | S76: 0 | Z76: 0 | AA76: 0 | AB76: 0 | AD76: =J76=#REF! ->  | AE76: TRUE | AG76: =N77+#REF! ->  | AH76: =O77+#REF! -> 
A77: 2.34 | B77: Provision of Rent @ Rs. 6000/- per child per annum | C77: 0 | D77: 0 | G77: 0 | H77: 0 | I77: 0 | J77: 0 | Q77: 0 | R77: 0 | S77: 0 | Z77: 0 | AA77: 0 | AB77: 0 | AD77: =J77=#REF! ->  | AE77: TRUE | AG77: =N78+#REF! ->  | AH77: =O78+#REF! -> 
A78: 2.35 | B78: Capacity Building @ Rs.500/- per child per annum | C78: 0 | D78: 0 | G78: 0 | H78: 0 | I78: 0 | J78: 0 | Q78: 0 | R78: 0 | S78: 0 | Z78: 0 | AA78: 0 | AB78: 0 | AD78: =J78=#REF! ->  | AE78: TRUE | AG78: =N79+#REF! ->  | AH78: =O79+#REF! -> 
A79: 2.36 | B79: Physical / Self Defence training @ Rs. 200/- per child per annum. | C79: 0 | D79: 0 | G79: 0 | H79: 0 | I79: 0 | J79: 0 | Q79: 0 | R79: 0 | S79: 0 | Z79: 0 | AA79: 0 | AB79: 0 | AD79: =J79=#REF! ->  | AE79: TRUE | AG79: =N80+#REF! ->  | AH79: =O80+#REF! -> 
B80: Sub Total (Recurring) | C80: =SUM(C58:C79) -> 0 | D80: 0 | E80: 0 | F80: 0 | G80: 0 | H80: 0 | I80: 0 | J80: 0 | K80: 0 | L80: 0 | M80: 0 | N80: 0 | P80: 0 | Q80: 0 | R80: 0 | S80: 0 | T80: 0 | U80: 0 | V80: 0 | W80: 0 | Y80: =SUM(Y58:Y79) -> 0 | Z80: 0 | AA80: 0 | AB80: 0 | AD80: =J80=#REF! ->  | AE80: TRUE | AG80: =N81+#REF! ->  | AH80: =O81+#REF! -> 
B81: Total (Recurring + Non Recurring) | C81: =C56+C80 -> 0 | D81: 0 | E81: 0 | F81: 0 | G81: 0 | H81: 0 | I81: 0 | J81: 0 | K81: 0 | L81: 0 | M81: 0 | N81: 0 | P81: 0 | Q81: 0 | R81: 0 | S81: 0 | T81: 0 | U81: 0 | V81: 0 | W81: 0 | Y81: =Y56+Y80 -> 0 | Z81: 0 | AA81: 0 | AB81: 0 | AD81: =J81=#REF! ->  | AE81: TRUE | AG81: =N82+#REF! ->  | AH81: =O82+#REF! -> 
A82: 2 | B82: Total (50 + 100 children) | C82: =C49+C81 -> 0 | D82: 0 | E82: 0 | F82: 0 | G82: 0 | H82: 0 | I82: 0 | J82: 0 | K82: 0 | L82: 0 | M82: 0 | N82: 0 | O82: 0 | P82: 0 | Q82: 0 | R82: =R49+R81 -> 0 | S82: =S49+S81 -> 0 | T82: 0 | U82: 0 | V82: =V49+V81 -> 0 | W82: 0 | X82: 0 | Y82: =Y49+Y81 -> 0 | Z82: 0 | AA82: =AA49+AA81 -> 0 | AB82: =AB49+AB81 -> 0 | AD82: =J82=#REF! ->  | AE82: TRUE | AG82: =N83+#REF! ->  | AH82: =O83+#REF! -> 
A83: 3 | B83: Residential Hostel for specific category of children | G83: 0 | H83: 0 | I83: =C83-G83 -> 0 | J83: =D83-F83 -> 0 | AD83: =J83=#REF! ->  | AE83: TRUE | AG83: =N84+#REF! ->  | AH83: =O84+#REF! -> 
A84: (A) | B84: 50 children | G84: 0 | H84: 0 | I84: =C84-G84 -> 0 | J84: 0 | AD84: =J84=#REF! ->  | AE84: TRUE | AG84: =N85+#REF! ->  | AH84: =O85+#REF! -> 
B85: Non-recurring (one time grant) | G85: 0 | H85: 0 | I85: =C85-G85 -> 0 | J85: 0 | AD85: =J85=#REF! ->  | AE85: TRUE | AG85: =N86+#REF! ->  | AH85: =O86+#REF! -> 
A86: 3.01 | B86: Furniture/ Equipment (including kitchen) | C86: 0 | D86: 0 | G86: 0 | H86: 0 | I86: =C86-E86 -> 0 | J86: 0 | O86: 7 | P86: 0 | Q86: =O86*P86 -> 0 | R86: =K86+M86+P86 -> 0 | S86: 0 | X86: 7 | Z86: =X86*Y86 -> 0 | AA86: =T86+V86+Y86 -> 0 | AB86: =U86+W86+Z86 -> 0 | AD86: =J86=#REF! ->  | AE86: TRUE | AG86: =N87+#REF! ->  | AH86: =O87+#REF! -> 
A87: =+A86+0.01 -> 3.02 | B87: TLM and equipment including library books | C87: 0 | D87: 0 | G87: 0 | H87: 0 | I87: =C87-E87 -> 0 | J87: 0 | O87: 10.5 | P87: 0 | Q87: =O87*P87 -> 0 | R87: 0 | S87: 0 | X87: 10.5 | Z87: =X87*Y87 -> 0 | AA87: 0 | AB87: 0 | AD87: =J87=#REF! ->  | AE87: TRUE | AG87: =N88+#REF! ->  | AH87: =O88+#REF! -> 
A88: =+A87+0.01 -> 3.03 | B88: Bedding (new) | C88: 0 | D88: 0 | G88: 0 | H88: 0 | I88: =C88-E88 -> 0 | J88: 0 | Q88: =O88*P88 -> 0 | R88: 0 | S88: 0 | Z88: =X88*Y88 -> 0 | AA88: 0 | AB88: 0 | AD88: =J88=#REF! ->  | AE88: TRUE | AG88: =N89+#REF! ->  | AH88: =O89+#REF! -> 
A89: =+A88+0.01 -> 3.04 | B89: Replacement of bedding (once in 3 years) | C89: 0 | D89: 0 | G89: 0 | H89: 0 | I89: =C89-E89 -> 0 | J89: 0 | O89: 0.375 | P89: 0 | Q89: =O89*P89 -> 0 | R89: 0 | S89: 0 | X89: 0.375 | Y89: 0 | Z89: =X89*Y89 -> 0 | AA89: 0 | AB89: 0 | AD89: =J89=#REF! ->  | AE89: TRUE | AG89: =N90+#REF! ->  | AH89: =O90+#REF! -> 
B90: Sub Total (Non Recurring) | C90: =SUM(C86:C89) -> 0 | D90: 0 | E90: 0 | F90: 0 | G90: 0 | H90: 0 | I90: 0 | J90: 0 | K90: 0 | L90: 0 | M90: 0 | N90: 0 | P90: =P86 -> 0 | Q90: 0 | R90: 0 | S90: 0 | T90: 0 | U90: 0 | V90: 0 | W90: 0 | Y90: =Y86 -> 0 | Z90: =SUM(Z86:Z89) -> 0 | AA90: 0 | AB90: 0 | AD90: =J90=#REF! ->  | AE90: TRUE | AG90: =N91+#REF! ->  | AH90: =O91+#REF! -> 
B91: Recurring (50 children) | G91: 0 | H91: 0 | I91: =C91-G91 -> 0 | J91: =D91-F91 -> 0 | AD91: =J91=#REF! ->  | AE91: TRUE | AG91: =N92+#REF! ->  | AH91: =O92+#REF! -> 
A92: 3.05 | B92: Maintenance per child Per month @ Rs.1500/- | C92: 0 | D92: 0 | E92: =C92 -> 0 | F92: =D92 -> 0 | G92: 0 | H92: 0 | I92: =C92-E92 -> 0 | J92: 0 | O92: 9 | P92: 0 | Q92: =O92*P92 -> 0 | R92: =K92+M92+P92 -> 0 | S92: 0 | X92: 9 | Y92: 0 | Z92: =X92*Y92 -> 0 | AA92: =T92+V92+Y92 -> 0 | AB92: =U92+W92+Z92 -> 0 | AD92: =J92=#REF! ->  | AE92: TRUE | AG92: =N93+#REF! ->  | AH92: =O93+#REF! -> 
A93: =+A92+0.01 -> 3.06 | B93: Stipend per child per month @ Rs.100/- | C93: 0 | D93: 0 | E93: =C93 -> 0 | F93: =D93 -> 0 | G93: 0 | H93: 0 | I93: 0 | J93: 0 | O93: 0.6 | P93: 0 | Q93: =O93*P93 -> 0 | R93: 0 | S93: 0 | X93: 0.6 | Y93: 0 | Z93: =X93*Y93 -> 0 | AA93: 0 | AB93: 0 | AD93: =J93=#REF! ->  | AE93: TRUE | AG93: =N94+#REF! ->  | AH93: =O94+#REF! -> 
A94: =+A93+0.01 -> 3.07 | B94: Supplementary TLM, Stationery and other educational material @Rs.1000/- per child per annum | C94: 0 | D94: 0 | E94: 0 | F94: 0 | G94: 0 | H94: 0 | I94: 0 | J94: 0 | O94: 0.5 | P94: 0 | Q94: =O94*P94 -> 0 | R94: 0 | S94: 0 | X94: 0.5 | Y94: 0 | Z94: =X94*Y94 -> 0 | AA94: 0 | AB94: 0 | AD94: =J94=#REF! ->  | AE94: TRUE | AG94: =N95+#REF! ->  | AH94: =O95+#REF! -> 
B95: Salaries | E95: =ROUND(C95*100/100,0) -> 0 | F95: =D95 -> 0 | I95: 0 | J95: 0 | AD95: =J95=#REF! ->  | AE95: TRUE | AG95: =N96+#REF! ->  | AH95: =O96+#REF! -> 
A96: (a) | B96: 1 Warden @ Rs.25000/- per month | C96: 0 | D96: 0 | E96: =C96 -> 0 | F96: 0 | G96: =IFERROR(E96/C96,0) -> 0 | H96: 0 | I96: 0 | J96: 0 | O96: 3 | P96: 0 | Q96: =O96*P96 -> 0 | R96: =K96+M96+P96 -> 0 | S96: 0 | X96: 3 | Y96: 0 | Z96: =X96*Y96 -> 0 | AA96: =T96+V96+Y96 -> 0 | AB96: =U96+W96+Z96 -> 0 | AD96: =J96=#REF! ->  | AE96: TRUE | AG96: =N97+#REF! ->  | AH96: =O97+#REF! ->  | AI96: =AG96=E97 -> 
A97: (b) | B97: 4 Fulltime teachers as per RTE Norms @ Rs. 20,000/- per month per teacher | C97: 0 | D97: 0 | E97: 0 | F97: 0 | G97: 0 | H97: 0 | I97: 0 | J97: 0 | P97: 0 | Q97: =O97*P97 -> 0 | R97: 0 | S97: 0 | Y97: 0 | Z97: =X97*Y97 -> 0 | AA97: 0 | AB97: 0 | AD97: =J97=#REF! ->  | AE97: TRUE | AG97: =N98+#REF! ->  | AH97: =O98+#REF! -> 
A98: (c) | B98: 2 Urdu Teachers (only for Blocks with muslim population above 20% and select urban areas) @ Rs.12,000/- per month per teacher. | C98: 0 | D98: 0 | E98: 0 | F98: 0 | G98: 0 | H98: 0 | I98: 0 | J98: 0 | P98: 0 | Q98: 0 | R98: 0 | S98: 0 | Y98: 0 | Z98: 0 | AA98: 0 | AB98: 0 | AD98: =J98=#REF! ->  | AE98: TRUE | AG98: =N99+#REF! ->  | AH98: =O99+#REF! -> 
A99: (d) | B99: 3 Part time teachers @ Rs.5,000/- per month per teacher | C99: 0 | D99: 0 | E99: 0 | F99: 0 | G99: 0 | H99: 0 | I99: 0 | J99: 0 | O99: 1.8 | P99: 0 | Q99: 0 | R99: 0 | S99: 0 | X99: 1.8 | Y99: 0 | Z99: 0 | AA99: 0 | AB99: 0 | AD99: =J99=#REF! ->  | AE99: TRUE | AG99: =N100+#REF! ->  | AH99: =O100+#REF! -> 
A100: (e) | B100: 1 Full time Accountant @ Rs. 10,000/- per month | C100: 0 | D100: 0 | E100: 0 | F100: 0 | G100: 0 | H100: 0 | I100: 0 | J100: 0 | O100: 1.2 | P100: 0 | Q100: 0 | R100: 0 | S100: 0 | X100: 1.2 | Y100: 0 | Z100: 0 | AA100: 0 | AB100: 0 | AD100: =J100=#REF! ->  | AE100: TRUE | AG100: =N101+#REF! ->  | AH100: =O101+#REF! -> 
A101: (f) | B101: 2 Support staff - (Accountant/Assistant, Peon, Chowkidar) @ Rs. 5,000/- per month per staff | C101: 0 | D101: 0 | E101: 0 | F101: 0 | G101: 0 | H101: 0 | I101: 0 | J101: 0 | O101: 1.2 | P101: 0 | Q101: 0 | R101: 0 | S101: 0 | X101: 1.2 | Y101: 0 | Z101: 0 | AA101: 0 | AB101: 0 | AD101: =J101=#REF! ->  | AE101: TRUE | AG101: =N102+#REF! ->  | AH101: =O102+#REF! -> 
A102: (g) | B102: 1 Head Cook @ Rs. 6,000/- per month and upto 2 Asstt. Cooks @ Rs. 4,500/- per month per cook | C102: 0 | D102: 0 | E102: 0 | F102: 0 | G102: 0 | H102: 0 | I102: 0 | J102: 0 | O102: 1.8 | P102: 0 | Q102: 0 | R102: 0 | S102: 0 | X102: 1.8 | Y102: 0 | Z102: 0 | AA102: 0 | AB102: 0 | AD102: =J102=#REF! ->  | AE102: TRUE | AG102: =N103+#REF! ->  | AH102: =O103+#REF! -> 
A103: 3.08 | B103: Specific Skill training @ Rs.1000/- per annum per child | C103: 0 | D103: 0 | E103: 0 | F103: 0 | G103: 0 | H103: 0 | I103: 0 | J103: 0 | P103: 0 | Q103: 0 | R103: 0 | S103: 0 | Y103: 0 | Z103: 0 | AA103: 0 | AB103: 0 | AD103: =J103=#REF! ->  | AE103: TRUE | AG103: =N104+#REF! ->  | AH103: =O104+#REF! -> 
A104: =+A103+0.01 -> 3.09 | B104: Electricity / water charges @ Rs. 1000/- per annum per child | C104: 0 | D104: 0 | E104: 0 | F104: 0 | G104: 0 | H104: 0 | I104: 0 | J104: 0 | O104: 0.5 | P104: 0 | Q104: 0 | R104: 0 | S104: 0 | X104: 0.5 | Y104: 0 | Z104: 0 | AA104: 0 | AB104: 0 | AD104: =J104=#REF! ->  | AE104: TRUE | AG104: =N105+#REF! ->  | AH104: =O105+#REF! -> 
A105: 3.1 | B105: Medical care/contingencies @ Rs.1250/- per annum per child | C105: 0 | D105: 0 | E105: 0 | F105: 0 | G105: 0 | H105: 0 | I105: 0 | J105: 0 | O105: 0.625 | P105: 0 | Q105: 0 | R105: 0 | S105: 0 | X105: 0.625 | Y105: 0 | Z105: 0 | AA105: 0 | AB105: 0 | AD105: =J105=#REF! ->  | AE105: TRUE | AG105: =N106+#REF! ->  | AH105: =O106+#REF! -> 
A106: 3.11 | B106: Maintenance @ Rs. 750/- per child per annum | C106: 0 | D106: 0 | E106: 0 | F106: 0 | G106: 0 | H106: 0 | I106: 0 | J106: 0 | O106: 0.375 | P106: 0 | Q106: 0 | R106: 0 | S106: 0 | X106: 0.375 | Y106: 0 | Z106: 0 | AA106: 0 | AB106: 0 | AD106: =J106=#REF! ->  | AE106: TRUE | AG106: =N107+#REF! ->  | AH106: =O107+#REF! -> 
A107: 3.12 | B107: Miscellaneous @ Rs. 750/- per child per annum | C107: 0 | D107: 0 | E107: 0 | F107: 0 | G107: 0 | H107: 0 | I107: 0 | J107: 0 | O107: 0.375 | P107: 0 | Q107: 0 | R107: 0 | S107: 0 | X107: 0.375 | Y107: 0 | Z107: 0 | AA107: 0 | AB107: 0 | AD107: =J107=#REF! ->  | AE107: TRUE | AG107: =N108+#REF! ->  | AH107: =O108+#REF! -> 
A108: 3.13 | B108: Preparatory camps @ Rs. 300/- per child per annum | C108: 0 | D108: 0 | E108: 0 | F108: 0 | G108: 0 | H108: 0 | I108: 0 | J108: 0 | P108: 0 | Q108: 0 | R108: 0 | S108: 0 | Y108: 0 | Z108: 0 | AA108: 0 | AB108: 0 | AD108: =J108=#REF! ->  | AE108: TRUE | AG108: =N109+#REF! ->  | AH108: =O109+#REF! -> 
A109: 3.14 | B109: P.T.A / school functions @ Rs. 300/- per child per annum | C109: 0 | D109: 0 | E109: 0 | F109: 0 | G109: 0 | H109: 0 | I109: 0 | J109: 0 | P109: 0 | Q109: 0 | R109: 0 | S109: 0 | Y109: 0 | Z109: 0 | AA109: 0 | AB109: 0 | AD109: =J109=#REF! ->  | AE109: TRUE | AG109: =N110+#REF! ->  | AH109: =O110+#REF! -> 
A110: 3.15 | B110: Provision of Rent @ Rs. 10,000/- per child per annum | C110: 0 | D110: 0 | E110: 0 | F110: 0 | G110: 0 | H110: 0 | I110: 0 | J110: 0 | P110: 0 | Q110: 0 | R110: 0 | S110: 0 | Y110: 0 | Z110: 0 | AA110: 0 | AB110: 0 | AD110: =J110=#REF! ->  | AE110: TRUE | AG110: =N111+#REF! ->  | AH110: =O111+#REF! -> 
A111: 3.16 | B111: Capacity Building @ Rs. 500/- per child per annum | C111: 0 | D111: 0 | E111: 0 | F111: 0 | G111: 0 | H111: 0 | I111: 0 | J111: 0 | O111: 0.25 | P111: 0 | Q111: 0 | R111: 0 | S111: 0 | X111: 0.25 | Y111: 0 | Z111: 0 | AA111: 0 | AB111: 0 | AD111: =J111=#REF! ->  | AE111: TRUE | AG111: =N112+#REF! ->  | AH111: =O112+#REF! -> 
A112: 3.17 | B112: Physical / Self Defence Training @ Rs.200/- per child per annum | C112: 0 | D112: 0 | E112: 0 | F112: 0 | G112: 0 | H112: 0 | I112: 0 | J112: 0 | O112: 0.1 | P112: 0 | Q112: 0 | R112: 0 | S112: 0 | X112: 0.1 | Y112: 0 | Z112: 0 | AA112: 0 | AB112: 0 | AD112: =J112=#REF! ->  | AE112: TRUE | AG112: =N113+#REF! ->  | AH112: =O113+#REF! -> 
B113: Sub Total (Recurring) | C113: =C112 -> 0 | D113: =SUM(D92:D112) -> 0 | E113: =E112 -> 0 | F113: 0 | G113: 0 | H113: 0 | I113: =I112 -> 0 | J113: 0 | K113: 0 | L113: 0 | M113: 0 | N113: 0 | P113: =P112 -> 0 | Q113: 0 | R113: =R112 -> 0 | S113: =SUM(S92:S112) -> 0 | T113: 0 | U113: 0 | V113: =SUM(V92:V112) -> 0 | W113: =SUM(W92:W112) -> 0 | Y113: =Y112 -> 0 | Z113: =SUM(Z92:Z112) -> 0 | AA113: =AA112 -> 0 | AB113: =SUM(AB92:AB112) -> 0 | AD113: =J113=#REF! ->  | AE113: TRUE | AG113: =N114+#REF! ->  | AH113: =O114+#REF! -> 
B114: Total (Non Recurring + Recurring) | C114: =C90+C113 -> 0 | D114: 0 | E114: 0 | F114: 0 | G114: 0 | H114: 0 | I114: 0 | J114: 0 | K114: 0 | L114: 0 | M114: 0 | N114: 0 | P114: 0 | Q114: 0 | R114: 0 | S114: 0 | T114: 0 | U114: 0 | V114: 0 | W114: 0 | Y114: =Y90+Y113 -> 0 | Z114: 0 | AA114: 0 | AB114: 0 | AD114: =J114=#REF! ->  | AE114: TRUE | AG114: =N115+#REF! ->  | AH114: =O115+#REF! -> 
A115: (B) | B115: 100 Children | G115: 0 | H115: 0 | I115: =C115-G115 -> 0 | J115: =D115-F115 -> 0 | AD115: =J115=#REF! ->  | AE115: TRUE | AG115: =N116+#REF! ->  | AH115: =O116+#REF! -> 
B116: Non-recurring (one time grant) | G116: 0 | H116: 0 | I116: =C116-G116 -> 0 | J116: 0 | AD116: =J116=#REF! ->  | AE116: TRUE | AG116: =N117+#REF! ->  | AH116: =O117+#REF! -> 
A117: 3.18 | B117: Furniture / Equipment (including kitchen equipment) | C117: 0 | D117: 0 | G117: 0 | H117: 0 | I117: =C117-E117 -> 0 | J117: 0 | Q117: =O117*P117 -> 0 | R117: =K117+M117+P117 -> 0 | S117: 0 | Z117: =X117*Y117 -> 0 | AA117: =T117+V117+Y117 -> 0 | AB117: =U117+W117+Z117 -> 0 | AD117: =J117=#REF! ->  | AE117: TRUE | AG117: =N118+#REF! ->  | AH117: =O118+#REF! -> 
A118: =+A117+0.01 -> 3.19 | B118: TLM and equipment including library books (New) | C118: 0 | D118: 0 | G118: 0 | H118: 0 | I118: =C118-E118 -> 0 | J118: 0 | Q118: =O118*P118 -> 0 | R118: 0 | S118: 0 | Z118: =X118*Y118 -> 0 | AA118: 0 | AB118: 0 | AD118: =J118=#REF! ->  | AE118: TRUE | AG118: =N119+#REF! ->  | AH118: =O119+#REF! -> 
A119: =+A118+0.01 -> 3.2 | B119: Bedding (New) | C119: 0 | D119: 0 | G119: 0 | H119: 0 | I119: =C119-E119 -> 0 | J119: 0 | Q119: =O119*P119 -> 0 | R119: 0 | S119: 0 | Z119: =X119*Y119 -> 0 | AA119: 0 | AB119: 0 | AD119: =J119=#REF! ->  | AE119: TRUE | AG119: =N120+#REF! ->  | AH119: =O120+#REF! -> 
A120: =+A119+0.01 -> 3.21 | B120: Replacement of bedding (once in 3 years) | C120: 0 | D120: 0 | G120: 0 | H120: 0 | I120: =C120-E120 -> 0 | J120: 0 | Q120: =O120*P120 -> 0 | R120: 0 | S120: 0 | Z120: =X120*Y120 -> 0 | AA120: 0 | AB120: 0 | AD120: =J120=#REF! ->  | AE120: TRUE | AG120: =N121+#REF! ->  | AH120: =O121+#REF! -> 
B121: Sub Total Non-recurring | C121: =SUM(C117:C120) -> 0 | D121: 0 | E121: 0 | F121: 0 | G121: 0 | H121: 0 | I121: 0 | J121: 0 | K121: 0 | L121: 0 | M121: 0 | N121: 0 | P121: 0 | Q121: 0 | R121: 0 | S121: 0 | T121: 0 | U121: 0 | V121: 0 | W121: 0 | Y121: =SUM(Y117:Y120) -> 0 | Z121: 0 | AA121: 0 | AB121: 0 | AD121: =J121=#REF! ->  | AE121: TRUE | AG121: =N122+#REF! ->  | AH121: =O122+#REF! -> 
B122: Recurring | G122: 0 | H122: 0 | I122: =C122-G122 -> 0 | J122: =D122-F122 -> 0 | AD122: =J122=#REF! ->  | AE122: TRUE | AG122: =N123+#REF! ->  | AH122: =O123+#REF! -> 
A123: 3.22 | B123: Maintenance per child per month @ Rs. 1500/- | C123: 0 | D123: 0 | G123: 0 | H123: 0 | I123: =C123-E123 -> 0 | J123: 0 | Q123: =O123*P123 -> 0 | R123: =K123+M123+P123 -> 0 | S123: 0 | Z123: =X123*Y123 -> 0 | AA123: =T123+V123+Y123 -> 0 | AB123: =U123+W123+Z123 -> 0 | AD123: =J123=#REF! ->  | AE123: TRUE | AG123: =N124+#REF! ->  | AH123: =O124+#REF! -> 
A124: =+A123+0.01 -> 3.23 | B124: Stipend per child per month @ Rs.100/- | C124: 0 | D124: 0 | G124: 0 | H124: 0 | I124: 0 | J124: 0 | Q124: =O124*P124 -> 0 | R124: 0 | S124: 0 | Z124: =X124*Y124 -> 0 | AA124: 0 | AB124: 0 | AD124: =J124=#REF! ->  | AE124: TRUE | AG124: =N125+#REF! ->  | AH124: =O125+#REF! -> 
A125: =+A124+0.01 -> 3.24 | B125: Supplementary TLM, Stationery and other educational material per child @1000/- per annum | C125: 0 | D125: 0 | G125: 0 | H125: 0 | I125: 0 | J125: 0 | Q125: =O125*P125 -> 0 | R125: 0 | S125: 0 | Z125: =X125*Y125 -> 0 | AA125: 0 | AB125: 0 | AD125: =J125=#REF! ->  | AE125: TRUE | AG125: =N126+#REF! ->  | AH125: =O126+#REF! -> 
B126: Salaries | G126: 0 | H126: 0 | I126: 0 | J126: 0 | AD126: =J126=#REF! ->  | AE126: TRUE | AG126: =N127+#REF! ->  | AH126: =O127+#REF! -> 
A127: (a) | B127: 1 Warden @ Rs. 25,000/- per month | C127: 0 | D127: 0 | G127: 0 | H127: 0 | I127: 0 | J127: 0 | Q127: =O127*P127 -> 0 | R127: =K127+M127+P127 -> 0 | S127: 0 | Z127: =X127*Y127 -> 0 | AA127: =T127+V127+Y127 -> 0 | AB127: =U127+W127+Z127 -> 0 | AD127: =J127=#REF! ->  | AE127: TRUE | AG127: =N128+#REF! ->  | AH127: =O128+#REF! -> 
A128: (b) | B128: 1 head teacher @ Rs. 25,000/- per month in case the enrollment exceeds 100 | C128: 0 | D128: 0 | G128: 0 | H128: 0 | I128: 0 | J128: 0 | Q128: 0 | R128: 0 | S128: 0 | Z128: 0 | AA128: 0 | AB128: 0 | AD128: =J128=#REF! ->  | AE128: =K128=AC128 -> TRUE | AG128: =N129+#REF! ->  | AH128: =O129+#REF! ->  | AI128: =AG128=E129 -> 
A129: (c) | B129: 4 - 5 Full time teachers as per RTE norms @ Rs. 20,000/- per month per teacher | C129: 0 | D129: 0 | G129: 0 | H129: 0 | I129: 0 | J129: 0 | Q129: 0 | R129: 0 | S129: 0 | Z129: 0 | AA129: 0 | AB129: 0 | AD129: =J129=#REF! ->  | AE129: TRUE | AG129: =N130+#REF! ->  | AH129: =O130+#REF! -> 
A130: (d) | B130: 2 Urdu Teachers (only for blocks with muslim population above 20% and select urban areas), if required @ Rs. 12,000/- per month per teacher | C130: 0 | D130: 0 | G130: 0 | H130: 0 | I130: 0 | J130: 0 | Q130: 0 | R130: 0 | S130: 0 | Z130: 0 | AA130: 0 | AB130: 0 | AD130: =J130=#REF! ->  | AE130: TRUE | AG130: =N131+#REF! ->  | AH130: =O131+#REF! -> 
A131: (e) | B131: 3 part time teachers @ Rs. 5,000/- per month per teacher | C131: 0 | D131: 0 | G131: 0 | H131: 0 | I131: 0 | J131: 0 | Q131: 0 | R131: 0 | S131: 0 | Z131: 0 | AA131: 0 | AB131: 0 | AD131: =J131=#REF! ->  | AE131: TRUE | AG131: =N132+#REF! ->  | AH131: =O132+#REF! -> 
A132: (f) | B132: 1 Full time Accountant @ Rs. 10,000/- per month | C132: 0 | D132: 0 | G132: 0 | H132: 0 | I132: 0 | J132: 0 | Q132: 0 | R132: 0 | S132: 0 | Z132: 0 | AA132: 0 | AB132: 0 | AD132: =J132=#REF! ->  | AE132: TRUE | AG132: =N133+#REF! ->  | AH132: =O133+#REF! -> 
A133: 3.25 | B133: 2 Support Staff – (Accountant/ Assistant, Peon, Chowkidar) @ Rs. 5,000/- per month per staff | C133: 0 | D133: 0 | G133: 0 | H133: 0 | I133: 0 | J133: 0 | Q133: 0 | R133: 0 | S133: 0 | Z133: 0 | AA133: 0 | AB133: 0 | AD133: =J133=#REF! ->  | AE133: TRUE | AG133: =N134+#REF! ->  | AH133: =O134+#REF! -> 
A134: =+A133+0.01 -> 3.26 | B134: 1 Head cook @ Rs. 6,000/- per month and upto 2 Asstt. Cooks @ Rs. 4,500/- per month per cook | C134: 0 | D134: 0 | G134: 0 | H134: 0 | I134: 0 | J134: 0 | Q134: 0 | R134: 0 | S134: 0 | Z134: 0 | AA134: 0 | AB134: 0 | AD134: =J134=#REF! ->  | AE134: TRUE | AG134: =N135+#REF! ->  | AH134: =O135+#REF! -> 
A135: 3.27 | B135: Specific skill training per child @ Rs.1000/- per annum | C135: 0 | D135: 0 | G135: 0 | H135: 0 | I135: 0 | J135: 0 | Q135: 0 | R135: 0 | S135: 0 | Z135: 0 | AA135: 0 | AB135: 0 | AD135: =J135=#REF! ->  | AE135: TRUE | AG135: =N136+#REF! ->  | AH135: =O136+#REF! -> 
A136: 3.28 | B136: Electricity / water charges per child @Rs.1000/- per annum | C136: 0 | D136: 0 | G136: 0 | H136: 0 | I136: 0 | J136: 0 | Q136: 0 | R136: 0 | S136: 0 | Z136: 0 | AA136: 0 | AB136: 0 | AD136: =J136=#REF! ->  | AE136: TRUE | AG136: =N137+#REF! ->  | AH136: =O137+#REF! -> 
A137: 3.29 | B137: Medical care/contingencies @ Rs.1250/- per child per annum | C137: 0 | D137: 0 | G137: 0 | H137: 0 | I137: 0 | J137: 0 | Q137: 0 | R137: 0 | S137: 0 | Z137: 0 | AA137: 0 | AB137: 0 | AD137: =J137=#REF! ->  | AE137: TRUE | AG137: =N138+#REF! ->  | AH137: =O138+#REF! ->  | BA137: BRC / URC | BB137: =B137=BA137 -> FALSE
A138: 3.3 | B138: Maintenance @ Rs.750/- per child per annum | C138: 0 | D138: 0 | G138: 0 | H138: 0 | I138: 0 | J138: 0 | Q138: 0 | R138: 0 | S138: 0 | Z138: 0 | AA138: 0 | AB138: 0 | AD138: =J138=#REF! ->  | AE138: TRUE | AG138: =N139+#REF! ->  | AH138: =O139+#REF! ->  | BA138: CRC | BB138: FALSE
A139: 3.31 | B139: Miscellaneous @ Rs.750/- per child per annum | C139: 0 | D139: 0 | G139: 0 | H139: 0 | I139: 0 | J139: 0 | Q139: 0 | R139: 0 | S139: 0 | Z139: 0 | AA139: 0 | AB139: 0 | AD139: =J139=#REF! ->  | AE139: TRUE | AG139: =N140+#REF! ->  | AH139: =O140+#REF! ->  | BA139: New Primary School (Rural) | BB139: FALSE
A140: 3.32 | B140: Preparatory camps @ Rs.200/- per child per annum | C140: 0 | D140: 0 | G140: 0 | H140: 0 | I140: 0 | J140: 0 | Q140: 0 | R140: 0 | S140: 0 | Z140: 0 | AA140: 0 | AB140: 0 | AD140: =J140=#REF! ->  | AE140: TRUE | AG140: =N141+#REF! ->  | AH140: =O141+#REF! ->  | BA140: New Upper Primary (Rural) (3 ACR each in lieu) | BB140: FALSE
A141: 3.33 | B141: P.T.A / school functions @ Rs.200/- per child per annum | C141: 0 | D141: 0 | G141: 0 | H141: 0 | I141: 0 | J141: 0 | Q141: 0 | R141: 0 | S141: 0 | Z141: 0 | AA141: 0 | AB141: 0 | AD141: =J141=#REF! ->  | AE141: TRUE | AG141: =N142+#REF! ->  | AH141: =O142+#REF! ->  | BA141: New Upper Primary (Urban) (3 ACR each in lieu) | BB141: FALSE
A142: 3.34 | B142: Provision of Rent @ Rs. 6000/- per child per annum | C142: 0 | D142: 0 | G142: 0 | H142: 0 | I142: 0 | J142: 0 | Q142: 0 | R142: 0 | S142: 0 | Z142: 0 | AA142: 0 | AB142: 0 | AD142: =J142=#REF! ->  | AE142: TRUE | AG142: =N143+#REF! ->  | AH142: =O143+#REF! ->  | BA142: Building Less (Pry) | BB142: FALSE
A143: 3.35 | B143: Capacity Building @ Rs.500/- per child per annum | C143: 0 | D143: 0 | G143: 0 | H143: 0 | I143: 0 | J143: 0 | Q143: 0 | R143: 0 | S143: 0 | Z143: 0 | AA143: 0 | AB143: 0 | AD143: =J143=#REF! ->  | AE143: TRUE | AG143: =N144+#REF! ->  | AH143: =O144+#REF! ->  | BA143: Building Less (UP) | BB143: FALSE
A144: 3.36 | B144: Physical / Self Defence training @ Rs. 200/- per child per annum. | C144: 0 | D144: 0 | G144: 0 | H144: 0 | I144: 0 | J144: 0 | Q144: 0 | R144: 0 | S144: 0 | Z144: 0 | AA144: 0 | AB144: 0 | AD144: =J144=#REF! ->  | AE144: TRUE | AG144: =N145+#REF! ->  | AH144: =O145+#REF! ->  | BA144: Additional Class Room (Rural) | BB144: FALSE
B145: Sub Total (Recurring) | C145: =SUM(C123:C144) -> 0 | D145: 0 | E145: 0 | F145: 0 | G145: 0 | H145: 0 | I145: 0 | J145: 0 | K145: 0 | L145: 0 | M145: 0 | N145: 0 | P145: 0 | Q145: 0 | R145: 0 | S145: 0 | T145: 0 | U145: 0 | V145: 0 | W145: 0 | Y145: =SUM(Y123:Y144) -> 0 | Z145: 0 | AA145: 0 | AB145: 0 | AD145: =J145=#REF! ->  | AE145: TRUE | AF145: =AF140+AF144 -> 0 | AG145: =N146+#REF! ->  | AH145: =O146+#REF! ->  | BA145: Additional Class Room (Urban) | BB145: FALSE
B146: Total (Recurring + Non Recurring) | C146: =C121+C145 -> 0 | D146: 0 | E146: 0 | F146: 0 | G146: 0 | H146: 0 | I146: 0 | J146: 0 | K146: 0 | L146: 0 | M146: 0 | N146: 0 | P146: 0 | Q146: 0 | R146: 0 | S146: 0 | T146: 0 | U146: 0 | V146: 0 | W146: 0 | Y146: =Y121+Y145 -> 0 | Z146: 0 | AA146: 0 | AB146: 0 | AD146: =J146=#REF! ->  | AE146: TRUE | AG146: =N147+#REF! ->  | AH146: =O147+#REF! ->  | BA146: Additional Class Room (Hill Area / Urban / inaccessible) | BB146: FALSE
A147: 3 | B147: Total (A + B) | C147: =C114+C146 -> 0 | D147: 0 | E147: 0 | F147: 0 | G147: 0 | H147: 0 | I147: 0 | J147: 0 | K147: 0 | L147: 0 | M147: 0 | N147: 0 | P147: 0 | Q147: 0 | R147: 0 | S147: 0 | T147: 0 | U147: 0 | V147: 0 | W147: 0 | Y147: =Y114+Y146 -> 0 | Z147: 0 | AA147: 0 | AB147: 0 | AD147: =J147=#REF! ->  | AE147: TRUE | AG147: =N148+#REF! ->  | AH147: =O148+#REF! ->  | BB147: =B147=BA149 -> FALSE
A148: 4 | B148: Transport/Escort Facility | G148: 0 | H148: 0 | I148: =C148-G148 -> 0 | J148: =D148-F148 -> 0 | AD148: =J148=#REF! ->  | AE148: TRUE | AG148: =N149+#REF! ->  | AH148: =O149+#REF! ->  | BB148: FALSE
A149: 4.01 | B149: Children in remote habitation | C149: 0 | D149: 0 | G149: 0 | H149: 0 | I149: =C149-E149 -> 0 | J149: =D149-F149 -> 0 | O149: 0.03 | P149: 0 | Q149: =O149*P149 -> 0 | R149: =K149+M149+P149 -> 0 | S149: =L149+N149+Q149 -> 0 | X149: 0.03 | Y149: 0 | Z149: =X149*Y149 -> 0 | AA149: =T149+V149+Y149 -> 0 | AB149: =U149+W149+Z149 -> 0 | AD149: =J149=#REF! ->  | AE149: TRUE | AG149: =N150+#REF! ->  | AH149: =O150+#REF! ->  | BA149: Toilet/Urinals (for urban areas only) | BB149: FALSE
A150: 4.02 | B150: Urban deprived children/children without adult protection | C150: 0 | D150: 0 | G150: 0 | H150: 0 | I150: =C150-E150 -> 0 | J150: =D150-F150 -> 0 | O150: 0.03 | P150: 0 | Q150: =O150*P150 -> 0 | R150: =K150+M150+P150 -> 0 | S150: =L150+N150+Q150 -> 0 | X150: 0.03 | Y150: 0 | Z150: =X150*Y150 -> 0 | AA150: =T150+V150+Y150 -> 0 | AB150: =U150+W150+Z150 -> 0 | AD150: =J150=#REF! ->  | AE150: TRUE | AG150: =N151+#REF! ->  | AH150: =O151+#REF! ->  | BA150: Separate Girls Toilet | BB150: FALSE
B151: Total | C151: =SUM(C149:C150) -> 0 | D151: 0 | E151: 0 | F151: 0 | G151: 0 | H151: 0 | I151: 0 | J151: 0 | K151: 0 | L151: 0 | M151: 0 | N151: 0 | P151: 0 | Q151: 0 | R151: 0 | S151: 0 | T151: 0 | U151: 0 | V151: 0 | W151: 0 | Y151: =SUM(Y149:Y150) -> 0 | Z151: 0 | AA151: 0 | AB151: 0 | AD151: =J151=#REF! ->  | AE151: TRUE | AG151: =N152+#REF! ->  | AH151: =O152+#REF! ->  | BA151: Drinking Water Facility (for urban area only) | BB151: FALSE
A152: 5 | B152: Reimbursement of Fee against 25% admission under Section 12(1)(c) of RTE Act 2009 (Entry Level) subject to upper limit of 20% of AWP&B subject to guidelines issued by MHRD | D152: 57.9 | F152: =D152 -> 57.9 | G152: 0 | H152: 1 | I152: =C152-E152 -> 0 | J152: =D152-F152 -> 0 | Q152: 909.16268 | R152: =K152+M152+P152 -> 0 | S152: =L152+N152+Q152 -> 909.16268 | Z152: 22.26 | AA152: =T152+V152+Y152 -> 0 | AB152: =U152+W152+Z152 -> 22.26 | AD152: =J152=#REF! ->  | AE152: TRUE | AG152: =N153+#REF! ->  | AH152: =O153+#REF! ->  | BA152: Electrification | BB152: FALSE
B153: Total | C153: =C152 -> 0 | D153: 57.9 | E153: 0 | F153: 57.9 | G153: 0 | H153: 1 | I153: 0 | J153: 0 | K153: 0 | L153: 0 | M153: 0 | N153: 0 | O153: 0 | P153: 0 | Q153: 909.16268 | R153: =R152 -> 0 | S153: =S152 -> 909.16268 | T153: 0 | U153: 0 | V153: =V152 -> 0 | W153: 0 | X153: 0 | Y153: =Y152 -> 0 | Z153: 22.26 | AA153: =AA152 -> 0 | AB153: =AB152 -> 22.26 | AD153: =J153=#REF! ->  | AE153: TRUE | AG153: =N154+#REF! ->  | AH153: =O154+#REF! ->  | BA153: Ramps with Handrails | BB153: FALSE
A154: 6 | B154: Special Training for mainstreaming of out of school children | G154: 0 | H154: 0 | I154: =C154-G154 -> 0 | J154: =D154-F154 -> 0 | AD154: =J154=#REF! ->  | AE154: TRUE | AG154: =N155+#REF! ->  | AH154: =O155+#REF! ->  | BA154: Residential Schools/hostels for specific category of children | BB154: FALSE
A155: 6.01 | B155: Residential (Fresh) | G155: 0 | H155: 0 | I155: =C155-G155 -> 0 | J155: 0 | AD155: =J155=#REF! ->  | AE155: TRUE | AG155: =N156+#REF! ->  | AH155: =O156+#REF! ->  | BA155: (a) Construction of residential hostel
B156: (a) 12 months | C156: 0 | D156: 0 | G156: 0 | H156: 0 | I156: =C156-E156 -> 0 | J156: 0 | O156: 0.34 | P156: 0 | Q156: =O156*P156 -> 0 | R156: =K156+M156+P156 -> 0 | S156: 0 | X156: 0.2 | Y156: 0 | Z156: =X156*Y156 -> 0 | AA156: =T156+V156+Y156 -> 0 | AB156: =U156+W156+Z156 -> 0 | AD156: =J156=#REF! ->  | AE156: TRUE | AG156: =N157+#REF! ->  | AH156: =O157+#REF! ->  | BA156: (b) Refurbishing unused old buildings
B157: (b) 9 months | C157: 0 | D157: 0 | G157: 0 | H157: 0 | I157: =C157-E157 -> 0 | J157: 0 | Q157: =O157*P157 -> 0 | R157: 0 | S157: 0 | Z157: =X157*Y157 -> 0 | AA157: 0 | AB157: 0 | AD157: =J157=#REF! ->  | AE157: TRUE | AG157: =N158+#REF! ->  | AH157: =O158+#REF! -> 
B158: (c) 6 months | C158: 0 | D158: 0 | G158: 0 | H158: 0 | I158: =C158-E158 -> 0 | J158: 0 | Q158: =O158*P158 -> 0 | R158: 0 | S158: 0 | Z158: =X158*Y158 -> 0 | AA158: 0 | AB158: 0 | AD158: =J158=#REF! ->  | AE158: TRUE | AG158: =N159+#REF! ->  | AH158: =O159+#REF! -> 
B159: (d) 3 months | C159: 0 | D159: 0 | G159: 0 | H159: 0 | I159: =C159-E159 -> 0 | J159: 0 | Q159: =O159*P159 -> 0 | R159: 0 | S159: 0 | Z159: =X159*Y159 -> 0 | AA159: 0 | AB159: 0 | AD159: =J159=#REF! ->  | AE159: TRUE | AG159: =N160+#REF! ->  | AH159: =O160+#REF! -> 
B160: Sub Total | C160: =SUM(C156:C159) -> 0 | D160: 0 | E160: 0 | F160: 0 | G160: =IFERROR(E160/C160,0) -> 0 | H160: 0 | I160: 0 | J160: 0 | K160: 0 | L160: 0 | M160: 0 | N160: 0 | P160: 0 | Q160: 0 | R160: 0 | S160: 0 | T160: 0 | U160: 0 | V160: 0 | W160: 0 | Y160: =SUM(Y156:Y159) -> 0 | Z160: 0 | AA160: 0 | AB160: 0 | AD160: =J160=#REF! ->  | AE160: TRUE | AG160: =N161+#REF! ->  | AH160: =O161+#REF! -> 
A161: =+A155+0.01 -> 6.02 | B161: Residential (Continuing from previous year) | G161: 0 | H161: 0 | I161: =C161-G161 -> 0 | J161: =D161-F161 -> 0 | AD161: =J161=#REF! ->  | AE161: TRUE | AG161: =N162+#REF! ->  | AH161: =O162+#REF! -> 
B162: (a) 12 months | C162: 0 | D162: 0 | E162: 0 | F162: 0 | G162: 0 | H162: 0 | I162: =C162-E162 -> 0 | J162: =D162-F162 -> 0 | Q162: =O162*P162 -> 0 | R162: =K162+M162+P162 -> 0 | S162: 0 | Z162: =X162*Y162 -> 0 | AA162: =T162+V162+Y162 -> 0 | AB162: =U162+W162+Z162 -> 0
B163: (b) 9 months | C163: 0 | D163: 0 | E163: 0 | F163: 0 | G163: 0 | H163: 0 | I163: =C163-E163 -> 0 | J163: =D163-F163 -> 0 | Q163: =O163*P163 -> 0 | R163: 0 | S163: 0 | Z163: =X163*Y163 -> 0 | AA163: 0 | AB163: 0
B164: (c) 6 months | C164: 0 | D164: 0 | E164: 0 | F164: 0 | G164: 0 | H164: 0 | I164: =C164-E164 -> 0 | J164: =D164-F164 -> 0 | Q164: =O164*P164 -> 0 | R164: 0 | S164: 0 | Z164: =X164*Y164 -> 0 | AA164: 0 | AB164: 0
B165: (d) 3 months | C165: 0 | D165: 0 | E165: 0 | F165: 0 | G165: 0 | H165: 0 | I165: =C165-E165 -> 0 | J165: =D165-F165 -> 0 | Q165: =O165*P165 -> 0 | R165: 0 | S165: 0 | Z165: =X165*Y165 -> 0 | AA165: 0 | AB165: 0 | AD165: =J165=#REF! ->  | AE165: =K165=AC165 -> TRUE | AG165: =#REF!+#REF! ->  | AH165: =#REF!+#REF! ->  | AI165: =AG165=#REF! ->  | AJ165: =AH165=#REF! -> 
B166: Sub Total | C166: =SUM(C162:C165) -> 0 | D166: 0 | E166: 0 | F166: 0 | G166: 0 | H166: 0 | I166: 0 | J166: 0 | K166: 0 | L166: 0 | M166: 0 | N166: 0 | P166: 0 | Q166: 0 | R166: 0 | S166: 0 | T166: 0 | U166: 0 | V166: 0 | W166: 0 | Y166: =SUM(Y162:Y165) -> 0 | Z166: 0 | AA166: 0 | AB166: 0 | AD166: =J166=#REF! ->  | AE166: TRUE | AG166: =N167+#REF! ->  | AH166: =O167+#REF! ->  | AI166: =AG166=E167 -> 
A167: 6.03 | B167: Non-Residential (Fresh) | G167: 0 | H167: 0 | I167: =C167-G167 -> 0 | J167: =D167-F167 -> 0 | AD167: =J167=#REF! ->  | AE167: TRUE | AG167: =N168+#REF! ->  | AH167: =O168+#REF! -> 
B168: (a) 12 months | C168: 0 | D168: 0 | E168: 0 | F168: 0 | G168: 0 | H168: 0 | I168: =C168-E168 -> 0 | J168: =D168-F168 -> 0 | Q168: =O168*P168 -> 0 | R168: =K168+M168+P168 -> 0 | S168: 0 | Z168: =X168*Y168 -> 0 | AA168: =T168+V168+Y168 -> 0 | AB168: =U168+W168+Z168 -> 0 | AD168: =J168=#REF! ->  | AE168: TRUE | AG168: =N169+#REF! ->  | AH168: =O169+#REF! -> 
B169: (b) 9 months | C169: 0 | D169: 0 | E169: 0 | F169: 0 | G169: 0 | H169: 0 | I169: =C169-E169 -> 0 | J169: =D169-F169 -> 0 | Q169: =O169*P169 -> 0 | R169: 0 | S169: 0 | Z169: =X169*Y169 -> 0 | AA169: 0 | AB169: 0 | AD169: =J169=#REF! ->  | AE169: TRUE | AG169: =N170+#REF! ->  | AH169: =O170+#REF! -> 
B170: (c) 6 months | C170: 814 | D170: 24.42 | E170: 814 | F170: 24.42 | G170: 1 | H170: 1 | I170: =C170-E170 -> 0 | J170: =D170-F170 -> 0 | O170: 0.03 | P170: 79 | Q170: =O170*P170 -> 2.37 | R170: 79 | S170: 2.37 | X170: 0.03 | Y170: 79 | Z170: =X170*Y170 -> 2.37 | AA170: 79 | AB170: 2.37 | AD170: =J170=#REF! ->  | AE170: TRUE | AG170: =N171+#REF! ->  | AH170: =O171+#REF! -> 
B171: (d) 3 months | C171: 0 | D171: 0 | E171: 0 | F171: 0 | G171: 0 | H171: 0 | I171: =C171-E171 -> 0 | J171: =D171-F171 -> 0 | O171: 0.015 | P171: 16014 | Q171: =O171*P171 -> 240.21 | R171: 16014 | S171: 240.21 | X171: 0.015 | Z171: =X171*Y171 -> 0 | AA171: 0 | AB171: 0 | AD171: =J171=#REF! ->  | AE171: TRUE | AG171: =N172+#REF! ->  | AH171: =O172+#REF! -> 
B172: Sub Total | C172: =SUM(C168:C171) -> 814 | D172: 24.42 | E172: 814 | F172: 24.42 | G172: 1 | H172: 1 | I172: 0 | J172: 0 | K172: 0 | L172: 0 | M172: 0 | N172: 0 | P172: 16093 | Q172: 242.58 | R172: 16093 | S172: 242.58 | T172: 0 | U172: 0 | V172: 0 | W172: 0 | Y172: =SUM(Y168:Y171) -> 79 | Z172: 2.37 | AA172: 79 | AB172: 2.37 | AD172: =J172=#REF! ->  | AE172: TRUE | AG172: =N173+#REF! ->  | AH172: =O173+#REF! -> 
A173: 6.04 | B173: Non-Residential (Continuing from previous year) | G173: 0 | H173: 0 | I173: =C173-G173 -> 0 | J173: =D173-F173 -> 0 | AD173: =J173=#REF! ->  | AE173: TRUE | AG173: =N174+#REF! ->  | AH173: =O174+#REF! -> 
B174: (a) 12 months | C174: 0 | D174: 0 | E174: 0 | F174: 0 | G174: 0 | H174: 0 | I174: =C174-E174 -> 0 | J174: =D174-F174 -> 0 | Q174: =O174*P174 -> 0 | R174: =K174+M174+P174 -> 0 | S174: 0 | Z174: =X174*Y174 -> 0 | AA174: =T174+V174+Y174 -> 0 | AB174: =U174+W174+Z174 -> 0 | AD174: =J174=#REF! ->  | AE174: TRUE | AG174: =N175+#REF! ->  | AH174: =O175+#REF! -> 
B175: (b) 9 months | C175: 0 | D175: 0 | E175: 0 | F175: 0 | G175: 0 | H175: 0 | I175: =C175-E175 -> 0 | J175: =D175-F175 -> 0 | Q175: =O175*P175 -> 0 | R175: 0 | S175: 0 | Z175: =X175*Y175 -> 0 | AA175: 0 | AB175: 0 | AD175: =J175=#REF! ->  | AE175: TRUE | AG175: =N176+#REF! ->  | AH175: =O176+#REF! -> 
B176: (c) 6 months | C176: 0 | D176: 0 | E176: 0 | F176: 0 | G176: 0 | H176: 0 | I176: =C176-E176 -> 0 | J176: =D176-F176 -> 0 | O176: 0.03 | P176: 0 | Q176: =O176*P176 -> 0 | R176: 0 | S176: 0 | X176: 0.03 | Z176: =X176*Y176 -> 0 | AA176: 0 | AB176: 0
B177: (d) 3 months | C177: 0 | D177: 0 | E177: 0 | F177: 0 | G177: 0 | H177: 0 | I177: =C177-E177 -> 0 | J177: =D177-F177 -> 0 | Q177: =O177*P177 -> 0 | R177: 0 | S177: 0 | Z177: =X177*Y177 -> 0 | AA177: 0 | AB177: 0
B178: Sub Total | C178: =SUM(C174:C177) -> 0 | D178: 0 | E178: 0 | F178: 0 | G178: 0 | H178: 0 | I178: 0 | J178: 0 | K178: 0 | L178: 0 | M178: 0 | N178: 0 | P178: 0 | Q178: 0 | R178: 0 | S178: 0 | T178: 0 | U178: 0 | V178: 0 | W178: 0 | Y178: =SUM(Y174:Y177) -> 0 | Z178: 0 | AA178: 0 | AB178: 0
A179: 6.05 | B179: Madarasa/Maktab | G179: 0 | H179: 0 | I179: =C179-G179 -> 0 | J179: =D179-F179 -> 0 | AD179: =J179=#REF! ->  | AE179: =K179=AC179 -> TRUE
B180: (a) 12 months | C180: 0 | D180: 0 | E180: 0 | F180: 0 | G180: 0 | H180: 0 | I180: =C180-E180 -> 0 | J180: =D180-F180 -> 0 | Q180: =O180*P180 -> 0 | R180: =K180+M180+P180 -> 0 | S180: 0 | Z180: =X180*Y180 -> 0 | AA180: =T180+V180+Y180 -> 0 | AB180: =U180+W180+Z180 -> 0 | AD180: =J180=#REF! ->  | AE180: TRUE
B181: (b) 9 months | C181: 0 | D181: 0 | E181: 0 | F181: 0 | G181: 0 | H181: 0 | I181: =C181-E181 -> 0 | J181: =D181-F181 -> 0 | Q181: =O181*P181 -> 0 | R181: 0 | S181: 0 | Z181: =X181*Y181 -> 0 | AA181: 0 | AB181: 0 | AD181: =J181=#REF! ->  | AE181: TRUE
B182: (c) 6 months | C182: 0 | D182: 0 | E182: 0 | F182: 0 | G182: 0 | H182: 0 | I182: =C182-E182 -> 0 | J182: =D182-F182 -> 0 | O182: 0.03 | P182: 0 | Q182: =O182*P182 -> 0 | R182: 0 | S182: 0 | X182: 0.03 | Z182: =X182*Y182 -> 0 | AA182: 0 | AB182: 0 | AD182: =J182=#REF! ->  | AE182: TRUE
B183: (d) 3 months | C183: 0 | D183: 0 | E183: 0 | F183: 0 | G183: 0 | H183: 0 | I183: =C183-E183 -> 0 | J183: =D183-F183 -> 0 | O183: 0.015 | Q183: =O183*P183 -> 0 | R183: 0 | S183: 0 | X183: 0.015 | Y183: 0 | Z183: =X183*Y183 -> 0 | AA183: 0 | AB183: 0 | AD183: =J183=#REF! ->  | AE183: TRUE
B184: Sub Total | C184: =SUM(C180:C183) -> 0 | D184: 0 | E184: 0 | F184: 0 | G184: 0 | H184: 0 | I184: 0 | J184: 0 | K184: 0 | L184: 0 | M184: 0 | N184: 0 | P184: 0 | Q184: 0 | R184: 0 | S184: 0 | T184: 0 | U184: 0 | V184: 0 | W184: 0 | Y184: =SUM(Y180:Y183) -> 0 | Z184: 0 | AA184: 0 | AB184: 0 | AD184: =J184=#REF! ->  | AE184: TRUE
A185: 6.06 | B185: Seasonal Hostel (Residential) | G185: 0 | H185: 0 | I185: =C185-G185 -> 0 | J185: =D185-F185 -> 0 | AD185: =J185=#REF! ->  | AE185: TRUE
B186: (a) 12 months | C186: 0 | D186: 0 | E186: 0 | F186: 0 | G186: 0 | H186: 0 | I186: =C186-E186 -> 0 | J186: =D186-F186 -> 0 | Q186: =O186*P186 -> 0 | R186: =K186+M186+P186 -> 0 | S186: 0 | Z186: =X186*Y186 -> 0 | AA186: =T186+V186+Y186 -> 0 | AB186: =U186+W186+Z186 -> 0 | AD186: =J186=#REF! ->  | AE186: TRUE
B187: (b) 9 months | C187: 0 | D187: 0 | E187: 0 | F187: 0 | G187: 0 | H187: 0 | I187: =C187-E187 -> 0 | J187: =D187-F187 -> 0 | Q187: =O187*P187 -> 0 | R187: 0 | S187: 0 | Z187: =X187*Y187 -> 0 | AA187: 0 | AB187: 0 | AD187: =J187=#REF! ->  | AE187: TRUE
B188: (c) 6 months | C188: 0 | D188: 0 | E188: 0 | F188: 0 | G188: 0 | H188: 0 | I188: =C188-E188 -> 0 | J188: =D188-F188 -> 0 | O188: 0.17 | P188: 0 | Q188: =O188*P188 -> 0 | R188: 0 | S188: 0 | X188: 0.1 | Y188: 0 | Z188: =X188*Y188 -> 0 | AA188: 0 | AB188: 0 | AD188: =J188=#REF! ->  | AE188: TRUE
B189: (d) 3 months | C189: 0 | D189: 0 | E189: 0 | F189: 0 | G189: 0 | H189: 0 | I189: =C189-E189 -> 0 | J189: =D189-F189 -> 0 | Q189: =O189*P189 -> 0 | R189: 0 | S189: 0 | Z189: =X189*Y189 -> 0 | AA189: 0 | AB189: 0 | AD189: =J189=#REF! ->  | AE189: TRUE
B190: Sub Total | C190: =SUM(C186:C189) -> 0 | D190: 0 | E190: 0 | F190: 0 | G190: 0 | H190: 0 | I190: 0 | J190: 0 | K190: 0 | L190: 0 | M190: 0 | N190: 0 | P190: 0 | Q190: 0 | R190: 0 | S190: 0 | T190: 0 | U190: 0 | V190: 0 | W190: 0 | Y190: =SUM(Y186:Y189) -> 0 | Z190: 0 | AA190: 0 | AB190: 0 | AD190: =J190=#REF! ->  | AE190: TRUE
A191: 6.07 | B191: Seasonal Hostel | G191: 0 | H191: 0 | I191: =C191-G191 -> 0 | J191: =D191-F191 -> 0 | AD191: =J191=#REF! ->  | AE191: TRUE
B192: (a) 12 months | C192: 0 | D192: 0 | E192: 0 | F192: 0 | G192: 0 | H192: 0 | I192: =C192-E192 -> 0 | J192: =D192-F192 -> 0 | Q192: =O192*P192 -> 0 | R192: =K192+M192+P192 -> 0 | S192: 0 | Z192: =X192*Y192 -> 0 | AA192: =T192+V192+Y192 -> 0 | AB192: =U192+W192+Z192 -> 0 | AD192: =J192=#REF! ->  | AE192: TRUE
B193: (b) 9 months | C193: 0 | D193: 0 | E193: 0 | F193: 0 | G193: 0 | H193: 0 | I193: =C193-E193 -> 0 | J193: =D193-F193 -> 0 | Q193: =O193*P193 -> 0 | R193: 0 | S193: 0 | Z193: =X193*Y193 -> 0 | AA193: 0 | AB193: 0 | AD193: =J193=#REF! ->  | AE193: TRUE
B194: (c) 6 months | C194: 2013 | D194: 171.105 | E194: 2013 | F194: 171.105 | G194: 1 | H194: 1 | I194: =C194-E194 -> 0 | J194: =D194-F194 -> 0 | O194: 0.1 | P194: 2370 | Q194: =O194*P194 -> 237 | R194: 2370 | S194: 237 | X194: 0.1 | Y194: 2370 | Z194: =X194*Y194 -> 237 | AA194: 2370 | AB194: 237 | AD194: =J194=#REF! ->  | AE194: TRUE
B195: (d) 3 months | C195: 0 | D195: 0 | E195: 0 | F195: 0 | G195: 0 | H195: 0 | I195: =C195-E195 -> 0 | J195: =D195-F195 -> 0 | Q195: =O195*P195 -> 0 | R195: 0 | S195: 0 | Z195: =X195*Y195 -> 0 | AA195: 0 | AB195: 0 | AD195: =J195=#REF! ->  | AE195: TRUE
B196: Sub Total | C196: =SUM(C192:C195) -> 2013 | D196: 171.105 | E196: 2013 | F196: 171.105 | G196: 1 | H196: 1 | I196: 0 | J196: 0 | K196: 0 | L196: 0 | M196: 0 | N196: 0 | P196: 2370 | Q196: 237 | R196: 2370 | S196: 237 | T196: 0 | U196: 0 | V196: 0 | W196: 0 | Y196: =SUM(Y192:Y195) -> 2370 | Z196: 237 | AA196: 2370 | AB196: 237 | AD196: =J196=#REF! ->  | AE196: TRUE
B197: Total | C197: =C160+C166+C172+C178+C184+C190+C196 -> 2827 | D197: 195.525 | E197: 2827 | F197: 195.525 | G197: 1 | H197: 1 | I197: 0 | J197: 0 | K197: 0 | L197: 0 | M197: 0 | N197: 0 | P197: =P160+P166+P172+P178+P184+P190+P196 -> 18463 | Q197: 479.58 | R197: 18463 | S197: 479.58 | T197: 0 | U197: 0 | V197: 0 | W197: 0 | Y197: =Y160+Y166+Y172+Y178+Y184+Y190+Y196 -> 2449 | Z197: =Z160+Z166+Z172+Z178+Z184+Z190+Z196 -> 239.37 | AA197: 2449 | AB197: 239.37 | AD197: =J197=#REF! ->  | AE197: TRUE
A198: II | B198: RETENTION | G198: 0 | H198: 0 | I198: =C198-G198 -> 0 | J198: =D198-F198 -> 0 | AD198: =J198=#REF! ->  | AE198: TRUE
A199: 7 | B199: Free Text Books | G199: 0 | H199: 0 | I199: =C199-G199 -> 0 | J199: 0 | AD199: =J199=#REF! ->  | AE199: TRUE
A200: 7.01 | B200: Free Text Books (P) | G200: 0 | H200: 0 | I200: =C200-G200 -> 0 | J200: 0 | AD200: =J200=#REF! ->  | AE200: TRUE
B201: (a) Class I & II | C201: 67581 | D201: 101.3715 | E201: 67581 | F201: 101.3715 | G201: 1 | H201: 1 | I201: =C201-E201 -> 0 | J201: 0 | O201: 0.0015 | P201: 65569 | Q201: =O201*P201 -> 98.3535 | R201: =K201+M201+P201 -> 65569 | S201: =L201+N201+Q201 -> 98.3535 | X201: 0.0015 | Y201: 65569 | Z201: =X201*Y201 -> 98.3535 | AA201: =T201+V201+Y201 -> 65569 | AB201: =U201+W201+Z201 -> 98.3535 | AD201: =J201=#REF! ->  | AE201: TRUE
B202: (b) Braille Books Class I & II | C202: 16 | D202: 0.024 | E202: 16 | F202: 0.024 | G202: 1 | H202: 1 | I202: 0 | J202: 0 | O202: 0.0015 | P202: 28 | Q202: =O202*P202 -> 0.042 | R202: =K202+M202+P202 -> 28 | S202: 0.042 | X202: 0.0015 | Y202: 28 | Z202: =X202*Y202 -> 0.042 | AA202: =T202+V202+Y202 -> 28 | AB202: =U202+W202+Z202 -> 0.042 | AD202: =J202=#REF! ->  | AE202: TRUE
... 318 more rows

Sheet Aurangabad
A1: Sarva Shiksha Abhiyan & KGBV - Annual Workplan and Budget 2017-18
A3: District : | B3: Aurangabad
A5: S.No. | B5: Activity | C5: Year 2016-17 | K5: Outlay Proposed for 2017-18 | T5: Outlay Recommended for 2017-18 | AC5: Remarks
C6: Outlay approved by PAB (including spillover) | E6: Achievement | I6: Savings | K6: Spill Over | M6: Deferred laibility of 2014-15 | O6: Fresh | R6: Total | T6: Spill Over | V6: Deferred laibility of 2014-15 | X6: Fresh | AA6: Total
C7: Phy. | D7: Fin | E7: Phy. | F7: Fin. | G7: Phy. (%) | H7: Fin. (%) | I7: Phy. | J7: Fin. | K7: Phy. | L7: Fin. | M7: Phy. | N7: Fin. | O7: Unit Cost | P7: Phy. | Q7: Fin. | R7: Phy. | S7: Fin. | T7: Phy. | U7: Fin. | V7: Phy. | W7: Fin. | X7: Unit Cost | Y7: Phy. | Z7: Fin. | AA7: Phy. | AB7: Fin.
A8: I | B8: ACCESS | I8: =C8-G8 -> 0 | J8: =D8-F8 -> 0
B9: SSA | I9: =C9-G9 -> 0 | J9: 0
A10: 1 | B10: Opening of New Schools | I10: =C10-G10 -> 0 | J10: 0 | AD10: Phy | AE10: Fin
A11: 1.01 | B11: New Primary School | C11: 0 | D11: 0 | G11: =IFERROR(E11/C11,0) -> 0 | H11: 0 | I11: =C11-E11 -> 0 | J11: 0 | Q11: =O11*P11 -> 0 | R11: =K11+M11+P11 -> 0 | S11: 0 | Z11: =X11*Y11 -> 0 | AA11: =T11+V11+Y11 -> 0 | AB11: =U11+W11+Z11 -> 0 | AD11: =J11=#REF! ->  | AE11: =K11=AC11 -> TRUE | AG11: =N12+#REF! ->  | AH11: =O12+#REF! ->  | AI11: =AG11=E12 -> 
A12: 1.02 | B12: Upgradation of PS to UPS | C12: 0 | D12: 0 | G12: 0 | H12: 0 | I12: 0 | J12: 0 | Q12: 0 | R12: 0 | S12: 0 | Z12: 0 | AA12: 0 | AB12: 0 | AD12: =J12=#REF! ->  | AE12: TRUE | AG12: =N13+#REF! ->  | AH12: =O13+#REF! -> 
A13: 1.03 | B13: Composite Schools | C13: 0 | D13: 0 | G13: 0 | H13: 0 | I13: 0 | J13: 0 | Q13: 0 | R13: 0 | S13: 0 | Z13: 0 | AA13: 0 | AB13: 0 | AD13: =J13=#REF! ->  | AE13: TRUE | AG13: =N14+#REF! ->  | AH13: =O14+#REF! -> 
A14: 1.04 | B14: Residential schools for specific category of children | C14: 0 | D14: 0 | G14: 0 | H14: 0 | I14: 0 | J14: 0 | Q14: 0 | R14: 0 | S14: 0 | Z14: 0 | AA14: 0 | AB14: 0 | AD14: =J14=#REF! ->  | AE14: TRUE | AG14: =N15+#REF! ->  | AH14: =O15+#REF! -> 
A15: 1.05 | B15: Residential Hostel | C15: 0 | D15: 0 | G15: 0 | H15: 0 | I15: 0 | J15: 0 | Q15: 0 | R15: 0 | S15: 0 | Z15: 0 | AA15: 0 | AB15: 0 | AD15: =J15=#REF! ->  | AE15: TRUE | AG15: =N16+#REF! ->  | AH15: =O16+#REF! -> 
A16: 1.06 | B16: Integration of Class V with primary schools | C16: 0 | D16: 0 | G16: 0 | H16: 0 | I16: 0 | J16: 0 | Q16: 0 | R16: 0 | S16: 0 | Z16: 0 | AA16: 0 | AB16: 0 | AD16: =J16=#REF! ->  | AE16: TRUE | AG16: =N17+#REF! ->  | AH16: =O17+#REF! -> 
A17: 1.07 | B17: Integration of Class VIII with upper primary schools | C17: 0 | D17: 0 | G17: 0 | H17: 0 | I17: 0 | J17: 0 | Q17: 0 | R17: 0 | S17: 0 | Z17: 0 | AA17: 0 | AB17: 0 | AD17: =J17=#REF! ->  | AE17: TRUE | AG17: =N18+#REF! ->  | AH17: =O18+#REF! -> 
A18: 2 | B18: Residential Schools for specific category of children | G18: 0 | H18: 0 | I18: =C18-G18 -> 0 | J18: 0 | AD18: =J18=#REF! ->  | AE18: TRUE | AG18: =N19+#REF! ->  | AH18: =O19+#REF! -> 
A19: I | B19: 50 children | G19: 0 | H19: 0 | I19: =C19-G19 -> 0 | J19: 0 | AD19: =J19=#REF! ->  | AE19: TRUE | AG19: =N20+#REF! ->  | AH19: =O20+#REF! -> 
A20: (A) | B20: Non-recurring (one time grant) | G20: 0 | H20: 0 | I20: =C20-G20 -> 0 | J20: 0 | AD20: =J20=#REF! ->  | AE20: TRUE | AG20: =N21+#REF! ->  | AH20: =O21+#REF! -> 
A21: 2.01 | B21: Furniture/ Equipment (including kitchen) | C21: 0 | D21: 0 | G21: 0 | H21: 0 | I21: =C21-E21 -> 0 | J21: 0 | Q21: =O21*P21 -> 0 | R21: =K21+M21+P21 -> 0 | S21: 0 | Z21: =X21*Y21 -> 0 | AA21: =T21+V21+Y21 -> 0 | AB21: =U21+W21+Z21 -> 0 | AD21: =J21=#REF! ->  | AE21: TRUE | AG21: =N22+#REF! ->  | AH21: =O22+#REF! -> 
A22: 2.02 | B22: TLM and equipment including library books | C22: 0 | D22: 0 | G22: 0 | H22: 0 | I22: =C22-E22 -> 0 | J22: 0 | Q22: =O22*P22 -> 0 | R22: 0 | S22: 0 | Z22: =X22*Y22 -> 0 | AA22: 0 | AB22: 0 | AD22: =J22=#REF! ->  | AE22: TRUE | AG22: =N23+#REF! ->  | AH22: =O23+#REF! -> 
A23: 2.03 | B23: Bedding (new) | C23: 0 | D23: 0 | G23: 0 | H23: 0 | I23: =C23-E23 -> 0 | J23: 0 | Q23: =O23*P23 -> 0 | R23: 0 | S23: 0 | Z23: =X23*Y23 -> 0 | AA23: 0 | AB23: 0 | AD23: =J23=#REF! ->  | AE23: TRUE | AG23: =N24+#REF! ->  | AH23: =O24+#REF! -> 
A24: 2.04 | B24: Replacement of bedding (once in 3 years) | C24: 0 | D24: 0 | G24: 0 | H24: 0 | I24: =C24-E24 -> 0 | J24: 0 | Q24: =O24*P24 -> 0 | R24: 0 | S24: 0 | Z24: =X24*Y24 -> 0 | AA24: 0 | AB24: 0 | AD24: =J24=#REF! ->  | AE24: TRUE | AG24: =N25+#REF! ->  | AH24: =O25+#REF! -> 
B25: Sub Total (Non Recurring) | C25: =SUM(C21:C24) -> 0 | D25: 0 | E25: 0 | F25: 0 | G25: 0 | H25: 0 | I25: 0 | J25: 0 | K25: 0 | L25: 0 | M25: 0 | N25: 0 | P25: 0 | Q25: 0 | R25: 0 | S25: 0 | T25: 0 | U25: 0 | V25: 0 | W25: 0 | Y25: =SUM(Y21:Y24) -> 0 | Z25: 0 | AA25: 0 | AB25: 0 | AD25: =J25=#REF! ->  | AE25: TRUE | AG25: =N26+#REF! ->  | AH25: =O26+#REF! -> 
A26: (B) | B26: Recurring (50 children) | G26: 0 | H26: 0 | I26: =C26-G26 -> 0 | J26: =D26-F26 -> 0 | AD26: =J26=#REF! ->  | AE26: TRUE | AG26: =N27+#REF! ->  | AH26: =O27+#REF! -> 
A27: 2.05 | B27: Maintenance per child Per month @ Rs.1500/- | C27: 0 | D27: 0 | G27: 0 | H27: 0 | I27: =C27-E27 -> 0 | J27: 0 | Q27: =O27*P27 -> 0 | R27: =K27+M27+P27 -> 0 | S27: 0 | Z27: =X27*Y27 -> 0 | AA27: =T27+V27+Y27 -> 0 | AB27: =U27+W27+Z27 -> 0 | AD27: =J27=#REF! ->  | AE27: TRUE | AG27: =N28+#REF! ->  | AH27: =O28+#REF! -> 
A28: 2.06 | B28: Stipend per child per month @ Rs.100/- | C28: 0 | D28: 0 | G28: 0 | H28: 0 | I28: 0 | J28: 0 | Q28: =O28*P28 -> 0 | R28: 0 | S28: 0 | Z28: =X28*Y28 -> 0 | AA28: 0 | AB28: 0 | AD28: =J28=#REF! ->  | AE28: TRUE | AG28: =N29+#REF! ->  | AH28: =O29+#REF! -> 
A29: 2.07 | B29: Supplementary TLM, Stationery and other educational material @Rs.1000/- per child per annum | C29: 0 | D29: 0 | G29: 0 | H29: 0 | I29: 0 | J29: 0 | Q29: =O29*P29 -> 0 | R29: 0 | S29: 0 | Z29: =X29*Y29 -> 0 | AA29: 0 | AB29: 0 | AD29: =J29=#REF! ->  | AE29: TRUE | AG29: =N30+#REF! ->  | AH29: =O30+#REF! -> 
A30: 2.08 | B30: Salaries | G30: 0 | H30: 0 | I30: 0 | J30: 0 | AD30: =J30=#REF! ->  | AE30: TRUE | AG30: =N31+#REF! ->  | AH30: =O31+#REF! -> 
A31: (a) | B31: 1 Warden @ Rs.25000/- per month | C31: 0 | D31: 0 | G31: 0 | H31: 0 | I31: 0 | J31: 0 | Q31: =O31*P31 -> 0 | R31: =K31+M31+P31 -> 0 | S31: 0 | Z31: =X31*Y31 -> 0 | AA31: =T31+V31+Y31 -> 0 | AB31: =U31+W31+Z31 -> 0 | AD31: =J31=#REF! ->  | AE31: TRUE | AG31: =N32+#REF! ->  | AH31: =O32+#REF! -> 
A32: (b) | B32: 4 Fulltime teachers as per RTE Norms @ Rs. 20,000/- per month per teacher | C32: 0 | D32: 0 | G32: 0 | H32: 0 | I32: 0 | J32: 0 | Q32: 0 | R32: 0 | S32: 0 | Z32: 0 | AA32: 0 | AB32: 0 | AD32: =J32=#REF! ->  | AE32: TRUE | AG32: =N33+#REF! ->  | AH32: =O33+#REF! -> 
A33: (c) | B33: 2 Urdu Teachers (only for Blocks with muslim population above 20% and select urban areas) @ Rs.12,000/- per month per teacher. | C33: 0 | D33: 0 | G33: 0 | H33: 0 | I33: 0 | J33: 0 | Q33: 0 | R33: 0 | S33: 0 | Z33: 0 | AA33: 0 | AB33: 0 | AD33: =J33=#REF! ->  | AE33: TRUE | AG33: =N34+#REF! ->  | AH33: =O34+#REF! -> 
A34: (d) | B34: 3 Part time teachers @ Rs.5,000/- per month per teacher | C34: 0 | D34: 0 | G34: 0 | H34: 0 | I34: 0 | J34: 0 | Q34: 0 | R34: 0 | S34: 0 | Z34: 0 | AA34: 0 | AB34: 0 | AD34: =J34=#REF! ->  | AE34: TRUE | AG34: =N35+#REF! ->  | AH34: =O35+#REF! -> 
A35: (e) | B35: 1 Full time Accountant @ Rs. 10,000/- per month | C35: 0 | D35: 0 | G35: 0 | H35: 0 | I35: 0 | J35: 0 | Q35: 0 | R35: 0 | S35: 0 | Z35: 0 | AA35: 0 | AB35: 0 | AD35: =J35=#REF! ->  | AE35: TRUE | AG35: =#REF!+#REF! ->  | AH35: =#REF!+#REF! ->  | AI35: =AG35=#REF! ->  | AJ35: =AH35=#REF! -> 
A36: (f) | B36: 2 Support staff - (Accountant/Assistant, Peon, Chowkidar) @ Rs. 5,000/- per month per staff | C36: 0 | D36: 0 | G36: 0 | H36: 0 | I36: 0 | J36: 0 | Q36: 0 | R36: 0 | S36: 0 | Z36: 0 | AA36: 0 | AB36: 0 | AD36: =J36=#REF! ->  | AE36: TRUE | AG36: =N37+#REF! ->  | AH36: =O37+#REF! ->  | AI36: =AG36=E37 -> 
A37: (g) | B37: 1 Head Cook @ Rs. 6,000/- per month and upto 2 Asstt. Cooks @ Rs. 4,500/- per month per cook | C37: 0 | D37: 0 | G37: 0 | H37: 0 | I37: 0 | J37: 0 | Q37: 0 | R37: 0 | S37: 0 | Z37: 0 | AA37: 0 | AB37: 0 | AD37: =J37=#REF! ->  | AE37: TRUE | AG37: =N38+#REF! ->  | AH37: =O38+#REF! -> 
A38: 2.09 | B38: Specific Skill training @ Rs.1000/- per annum per child | C38: 0 | D38: 0 | G38: 0 | H38: 0 | I38: 0 | J38: 0 | Q38: 0 | R38: 0 | S38: 0 | Z38: 0 | AA38: 0 | AB38: 0 | AD38: =J38=#REF! ->  | AE38: TRUE | AG38: =N39+#REF! ->  | AH38: =O39+#REF! -> 
A39: 2.1 | B39: Electricity / water charges @ Rs. 1000/- per annum per child | C39: 0 | D39: 0 | G39: 0 | H39: 0 | I39: 0 | J39: 0 | Q39: 0 | R39: 0 | S39: 0 | Z39: 0 | AA39: 0 | AB39: 0 | AD39: =J39=#REF! ->  | AE39: TRUE | AG39: =N40+#REF! ->  | AH39: =O40+#REF! -> 
A40: 2.11 | B40: Medical care/contingencies @ Rs.1250/- per annum per child | C40: 0 | D40: 0 | G40: 0 | H40: 0 | I40: 0 | J40: 0 | Q40: 0 | R40: 0 | S40: 0 | Z40: 0 | AA40: 0 | AB40: 0 | AD40: =J40=#REF! ->  | AE40: TRUE | AG40: =N41+#REF! ->  | AH40: =O41+#REF! -> 
A41: =+A40+0.01 -> 2.12 | B41: Maintenance @ Rs. 750/- per child per annum | C41: 0 | D41: 0 | G41: 0 | H41: 0 | I41: 0 | J41: 0 | Q41: 0 | R41: 0 | S41: 0 | Z41: 0 | AA41: 0 | AB41: 0 | AD41: =J41=#REF! ->  | AE41: TRUE | AG41: =N42+#REF! ->  | AH41: =O42+#REF! -> 
A42: 2.13 | B42: Miscellaneous @ Rs. 750/- per child per annum | C42: 0 | D42: 0 | G42: 0 | H42: 0 | I42: 0 | J42: 0 | Q42: 0 | R42: 0 | S42: 0 | Z42: 0 | AA42: 0 | AB42: 0 | AD42: =J42=#REF! ->  | AE42: TRUE | AG42: =N43+#REF! ->  | AH42: =O43+#REF! -> 
A43: 2.14 | B43: Preparatory camps @ Rs. 300/- per child per annum | C43: 0 | D43: 0 | G43: =IFERROR(E43/C43,0) -> 0 | H43: 0 | I43: 0 | J43: 0 | Q43: 0 | R43: 0 | S43: 0 | Z43: 0 | AA43: 0 | AB43: 0 | AD43: =J43=#REF! ->  | AE43: TRUE | AG43: =N44+#REF! ->  | AH43: =O44+#REF! -> 
A44: 2.15 | B44: P.T.A / school functions @ Rs. 300/- per child per annum | C44: 0 | D44: 0 | G44: 0 | H44: 0 | I44: 0 | J44: 0 | Q44: 0 | R44: 0 | S44: 0 | Z44: 0 | AA44: 0 | AB44: 0 | AD44: =J44=#REF! ->  | AE44: TRUE | AG44: =N45+#REF! ->  | AH44: =O45+#REF! -> 
A45: 2.16 | B45: Provision of Rent @ Rs. 10,000/- per child per annum | C45: 0 | D45: 0 | G45: 0 | H45: 0 | I45: 0 | J45: 0 | Q45: 0 | R45: 0 | S45: 0 | Z45: 0 | AA45: 0 | AB45: 0 | AD45: =J45=#REF! ->  | AE45: TRUE | AG45: =N46+#REF! ->  | AH45: =O46+#REF! -> 
A46: 2.17 | B46: Capacity Building @ Rs. 500/- per child per annum | C46: 0 | D46: 0 | G46: 0 | H46: 0 | I46: 0 | J46: 0 | Q46: 0 | R46: 0 | S46: 0 | Z46: 0 | AA46: 0 | AB46: 0 | AD46: =J46=#REF! ->  | AE46: TRUE | AG46: =N47+#REF! ->  | AH46: =O47+#REF! -> 
A47: 2.18 | B47: Physical / Self Defence Training @ Rs.200/- per child per annum | C47: 0 | D47: 0 | G47: 0 | H47: 0 | I47: 0 | J47: 0 | Q47: 0 | R47: 0 | S47: 0 | Z47: 0 | AA47: 0 | AB47: 0 | AD47: =J47=#REF! ->  | AE47: TRUE | AG47: =N48+#REF! ->  | AH47: =O48+#REF! -> 
B48: Sub Total (Recurring) | C48: =SUM(C27:C47) -> 0 | D48: 0 | E48: 0 | F48: 0 | G48: 0 | H48: 0 | I48: 0 | J48: 0 | K48: 0 | L48: 0 | M48: 0 | N48: 0 | P48: 0 | Q48: 0 | R48: 0 | S48: 0 | T48: 0 | U48: 0 | V48: 0 | W48: 0 | Y48: =SUM(Y27:Y47) -> 0 | Z48: 0 | AA48: 0 | AB48: 0 | AD48: =J48=#REF! ->  | AE48: TRUE | AG48: =N49+#REF! ->  | AH48: =O49+#REF! -> 
B49: Total (Non Recurring + Recurring) | C49: =C25+C48 -> 0 | D49: 0 | E49: 0 | F49: 0 | G49: 0 | H49: 0 | I49: 0 | J49: 0 | K49: 0 | L49: 0 | M49: 0 | N49: 0 | P49: 0 | Q49: 0 | R49: 0 | S49: 0 | T49: 0 | U49: 0 | V49: 0 | W49: 0 | Y49: =Y25+Y48 -> 0 | Z49: 0 | AA49: 0 | AB49: 0 | AD49: =J49=#REF! ->  | AE49: TRUE | AG49: =N50+#REF! ->  | AH49: =O50+#REF! -> 
A50: II | B50: 100 children | G50: 0 | H50: 0 | I50: =C50-G50 -> 0 | J50: =D50-F50 -> 0 | AD50: =J50=#REF! ->  | AE50: TRUE | AG50: =N51+#REF! ->  | AH50: =O51+#REF! -> 
A51: (A) | B51: Non-recurring (one time grant) | G51: 0 | H51: 0 | I51: =C51-G51 -> 0 | J51: 0 | AD51: =J51=#REF! ->  | AE51: TRUE | AG51: =N52+#REF! ->  | AH51: =O52+#REF! -> 
A52: 2.19 | B52: Furniture / Equipment (including kitchen equipment) | C52: 0 | D52: 0 | G52: 0 | H52: 0 | I52: =C52-E52 -> 0 | J52: 0 | Q52: =O52*P52 -> 0 | R52: =K52+M52+P52 -> 0 | S52: 0 | Z52: =X52*Y52 -> 0 | AA52: =T52+V52+Y52 -> 0 | AB52: =U52+W52+Z52 -> 0 | AD52: =J52=#REF! ->  | AE52: TRUE | AG52: =N53+#REF! ->  | AH52: =O53+#REF! -> 
A53: =+A52+0.01 -> 2.2 | B53: TLM and equipment including library books (New) | C53: 0 | D53: 0 | G53: 0 | H53: 0 | I53: =C53-E53 -> 0 | J53: 0 | Q53: =O53*P53 -> 0 | R53: 0 | S53: 0 | Z53: =X53*Y53 -> 0 | AA53: 0 | AB53: 0 | AD53: =J53=#REF! ->  | AE53: TRUE | AG53: =N54+#REF! ->  | AH53: =O54+#REF! -> 
A54: =+A53+0.01 -> 2.21 | B54: Bedding (New) | C54: 0 | D54: 0 | G54: 0 | H54: 0 | I54: =C54-E54 -> 0 | J54: 0 | Q54: =O54*P54 -> 0 | R54: 0 | S54: 0 | Z54: =X54*Y54 -> 0 | AA54: 0 | AB54: 0 | AD54: =J54=#REF! ->  | AE54: TRUE | AG54: =N55+#REF! ->  | AH54: =O55+#REF! -> 
A55: =+A54+0.01 -> 2.22 | B55: Replacement of bedding (once in 3 years) | C55: 0 | D55: 0 | G55: 0 | H55: 0 | I55: =C55-E55 -> 0 | J55: 0 | Q55: =O55*P55 -> 0 | R55: 0 | S55: 0 | Z55: =X55*Y55 -> 0 | AA55: 0 | AB55: 0 | AD55: =J55=#REF! ->  | AE55: TRUE | AG55: =N56+#REF! ->  | AH55: =O56+#REF! -> 
B56: Sub Total Non-recurring | C56: =SUM(C52:C55) -> 0 | D56: 0 | E56: 0 | F56: 0 | G56: 0 | H56: 0 | I56: 0 | J56: 0 | K56: 0 | L56: 0 | M56: 0 | N56: 0 | P56: 0 | Q56: 0 | R56: 0 | S56: 0 | T56: 0 | U56: 0 | V56: 0 | W56: 0 | Y56: =SUM(Y52:Y55) -> 0 | Z56: 0 | AA56: 0 | AB56: 0 | AD56: =J56=#REF! ->  | AE56: TRUE | AG56: =N64+#REF! ->  | AH56: =O64+#REF! ->  | AI56: =AG56=E64 ->  | AJ56: =AH56=F64 -> 
A57: (B) | B57: Recurring | G57: 0 | H57: 0 | I57: =C57-G57 -> 0 | J57: =D57-F57 -> 0
A58: 2.23 | B58: Maintenance per child per month @ Rs. 1500/- | C58: 0 | D58: 0 | G58: 0 | H58: 0 | I58: =C58-E58 -> 0 | J58: 0 | Q58: =O58*P58 -> 0 | R58: =K58+M58+P58 -> 0 | S58: 0 | Z58: =X58*Y58 -> 0 | AA58: =T58+V58+Y58 -> 0 | AB58: =U58+W58+Z58 -> 0
A59: =+A58+0.01 -> 2.24 | B59: Stipend per child per month @ Rs.100/- | C59: 0 | D59: 0 | G59: 0 | H59: 0 | I59: 0 | J59: 0 | Q59: =O59*P59 -> 0 | R59: 0 | S59: 0 | Z59: =X59*Y59 -> 0 | AA59: 0 | AB59: 0
A60: 2.25 | B60: Supplementary TLM, Stationery and other educational material per child @1000/- per annum | C60: 0 | D60: 0 | G60: 0 | H60: 0 | I60: 0 | J60: 0 | Q60: =O60*P60 -> 0 | R60: 0 | S60: 0 | Z60: =X60*Y60 -> 0 | AA60: 0 | AB60: 0
A61: 2.26 | B61: Salaries | G61: 0 | H61: 0 | I61: 0 | J61: 0
A62: (a) | B62: 1 Warden @ Rs. 25,000/- per month | C62: 0 | D62: 0 | G62: 0 | H62: 0 | I62: 0 | J62: 0 | Q62: =O62*P62 -> 0 | R62: =K62+M62+P62 -> 0 | S62: 0 | Z62: =X62*Y62 -> 0 | AA62: =T62+V62+Y62 -> 0 | AB62: =U62+W62+Z62 -> 0
A63: (b) | B63: 1 head teacher @ Rs. 25,000/- per month in case the enrollment exceeds 100 | C63: 0 | D63: 0 | G63: 0 | H63: 0 | I63: 0 | J63: 0 | Q63: 0 | R63: 0 | S63: 0 | Z63: 0 | AA63: 0 | AB63: 0
A64: (c) | B64: 4 - 5 Full time teachers as per RTE norms @ Rs. 20,000/- per month per teacher | C64: 0 | D64: 0 | G64: 0 | H64: 0 | I64: 0 | J64: 0 | Q64: 0 | R64: 0 | S64: 0 | Z64: 0 | AA64: 0 | AB64: 0 | AD64: =J64=#REF! ->  | AE64: =K64=AC64 -> TRUE | AG64: =N65+#REF! ->  | AH64: =O65+#REF! ->  | AI64: =AG64=E65 -> 
A65: (d) | B65: 2 Urdu Teachers (only for blocks with muslim population above 20% and select urban areas), if required @ Rs. 12,000/- per month per teacher | C65: 0 | D65: 0 | G65: 0 | H65: 0 | I65: 0 | J65: 0 | Q65: 0 | R65: 0 | S65: 0 | Z65: 0 | AA65: 0 | AB65: 0 | AD65: =J65=#REF! ->  | AE65: TRUE | AG65: =N66+#REF! ->  | AH65: =O66+#REF! -> 
A66: (e) | B66: 3 part time teachers @ Rs. 5,000/- per month per teacher | C66: 0 | D66: 0 | G66: 0 | H66: 0 | I66: 0 | J66: 0 | Q66: 0 | R66: 0 | S66: 0 | Z66: 0 | AA66: 0 | AB66: 0 | AD66: =J66=#REF! ->  | AE66: TRUE | AG66: =N67+#REF! ->  | AH66: =O67+#REF! -> 
A67: (f) | B67: 1 Full time Accountant @ Rs. 10,000/- per month | C67: 0 | D67: 0 | G67: 0 | H67: 0 | I67: 0 | J67: 0 | Q67: 0 | R67: 0 | S67: 0 | Z67: 0 | AA67: 0 | AB67: 0 | AD67: =J67=#REF! ->  | AE67: TRUE | AG67: =N68+#REF! ->  | AH67: =O68+#REF! -> 
A68: (g) | B68: 2 Support Staff – (Accountant/ Assistant, Peon, Chowkidar) @ Rs. 5,000/- per month per staff | C68: 0 | D68: 0 | G68: 0 | H68: 0 | I68: 0 | J68: 0 | Q68: 0 | R68: 0 | S68: 0 | Z68: 0 | AA68: 0 | AB68: 0 | AD68: =J68=#REF! ->  | AE68: TRUE | AG68: =N69+#REF! ->  | AH68: =O69+#REF! -> 
A69: (h) | B69: 1 Head cook @ Rs. 6,000/- per month and upto 2 Asstt. Cooks @ Rs. 4,500/- per month per cook | C69: 0 | D69: 0 | G69: 0 | H69: 0 | I69: 0 | J69: 0 | Q69: 0 | R69: 0 | S69: 0 | Z69: 0 | AA69: 0 | AB69: 0 | AD69: =J69=#REF! ->  | AE69: TRUE | AG69: =N70+#REF! ->  | AH69: =O70+#REF! -> 
A70: 2.27 | B70: Specific skill training per child @ Rs.1000/- per annum | C70: 0 | D70: 0 | G70: 0 | H70: 0 | I70: 0 | J70: 0 | Q70: 0 | R70: 0 | S70: 0 | Z70: 0 | AA70: 0 | AB70: 0 | AD70: =J70=#REF! ->  | AE70: TRUE | AG70: =N71+#REF! ->  | AH70: =O71+#REF! -> 
A71: 2.28 | B71: Electricity / water charges per child @Rs.1000/- per annum | C71: 0 | D71: 0 | G71: 0 | H71: 0 | I71: 0 | J71: 0 | Q71: 0 | R71: 0 | S71: 0 | Z71: 0 | AA71: 0 | AB71: 0 | AD71: =J71=#REF! ->  | AE71: TRUE | AG71: =N72+#REF! ->  | AH71: =O72+#REF! -> 
A72: 2.29 | B72: Medical care/contingencies @ Rs.1250/- per child per annum | C72: 0 | D72: 0 | G72: 0 | H72: 0 | I72: 0 | J72: 0 | Q72: 0 | R72: 0 | S72: 0 | Z72: 0 | AA72: 0 | AB72: 0 | AD72: =J72=#REF! ->  | AE72: TRUE | AG72: =N73+#REF! ->  | AH72: =O73+#REF! -> 
A73: 2.3 | B73: Maintenance @ Rs.750/- per child per annum | C73: 0 | D73: 0 | G73: 0 | H73: 0 | I73: 0 | J73: 0 | Q73: 0 | R73: 0 | S73: 0 | Z73: 0 | AA73: 0 | AB73: 0 | AD73: =J73=#REF! ->  | AE73: TRUE | AG73: =N74+#REF! ->  | AH73: =O74+#REF! -> 
A74: 2.31 | B74: Miscellaneous @ Rs.750/- per child per annum | C74: 0 | D74: 0 | G74: 0 | H74: 0 | I74: 0 | J74: 0 | Q74: 0 | R74: 0 | S74: 0 | Z74: 0 | AA74: 0 | AB74: 0 | AD74: =J74=#REF! ->  | AE74: TRUE | AG74: =N75+#REF! ->  | AH74: =O75+#REF! -> 
A75: 2.32 | B75: Preparatory camps @ Rs.200/- per child per annum | C75: 0 | D75: 0 | G75: =IFERROR(E75/C75,0) -> 0 | H75: 0 | I75: 0 | J75: 0 | Q75: 0 | R75: 0 | S75: 0 | Z75: 0 | AA75: 0 | AB75: 0 | AD75: =J75=#REF! ->  | AE75: TRUE | AG75: =N76+#REF! ->  | AH75: =O76+#REF! -> 
A76: 2.33 | B76: P.T.A / school functions @ Rs.200/- per child per annum | C76: 0 | D76: 0 | G76: 0 | H76: 0 | I76: 0 | J76: 0 | Q76: 0 | R76: 0 | S76: 0 | Z76: 0 | AA76: 0 | AB76: 0 | AD76: =J76=#REF! ->  | AE76: TRUE | AG76: =N77+#REF! ->  | AH76: =O77+#REF! -> 
A77: 2.34 | B77: Provision of Rent @ Rs. 6000/- per child per annum | C77: 0 | D77: 0 | G77: 0 | H77: 0 | I77: 0 | J77: 0 | Q77: 0 | R77: 0 | S77: 0 | Z77: 0 | AA77: 0 | AB77: 0 | AD77: =J77=#REF! ->  | AE77: TRUE | AG77: =N78+#REF! ->  | AH77: =O78+#REF! -> 
A78: 2.35 | B78: Capacity Building @ Rs.500/- per child per annum | C78: 0 | D78: 0 | G78: 0 | H78: 0 | I78: 0 | J78: 0 | Q78: 0 | R78: 0 | S78: 0 | Z78: 0 | AA78: 0 | AB78: 0 | AD78: =J78=#REF! ->  | AE78: TRUE | AG78: =N79+#REF! ->  | AH78: =O79+#REF! -> 
A79: 2.36 | B79: Physical / Self Defence training @ Rs. 200/- per child per annum. | C79: 0 | D79: 0 | G79: 0 | H79: 0 | I79: 0 | J79: 0 | Q79: 0 | R79: 0 | S79: 0 | Z79: 0 | AA79: 0 | AB79: 0 | AD79: =J79=#REF! ->  | AE79: TRUE | AG79: =N80+#REF! ->  | AH79: =O80+#REF! -> 
B80: Sub Total (Recurring) | C80: =SUM(C58:C79) -> 0 | D80: 0 | E80: 0 | F80: 0 | G80: 0 | H80: 0 | I80: 0 | J80: 0 | K80: 0 | L80: 0 | M80: 0 | N80: 0 | P80: 0 | Q80: 0 | R80: 0 | S80: 0 | T80: 0 | U80: 0 | V80: 0 | W80: 0 | Y80: =SUM(Y58:Y79) -> 0 | Z80: 0 | AA80: 0 | AB80: 0 | AD80: =J80=#REF! ->  | AE80: TRUE | AG80: =N81+#REF! ->  | AH80: =O81+#REF! -> 
B81: Total (Recurring + Non Recurring) | C81: =C56+C80 -> 0 | D81: 0 | E81: 0 | F81: 0 | G81: 0 | H81: 0 | I81: 0 | J81: 0 | K81: 0 | L81: 0 | M81: 0 | N81: 0 | P81: 0 | Q81: 0 | R81: 0 | S81: 0 | T81: 0 | U81: 0 | V81: 0 | W81: 0 | Y81: =Y56+Y80 -> 0 | Z81: 0 | AA81: 0 | AB81: 0 | AD81: =J81=#REF! ->  | AE81: TRUE | AG81: =N82+#REF! ->  | AH81: =O82+#REF! -> 
A82: 2 | B82: Total (50 + 100 children) | C82: =C49+C81 -> 0 | D82: 0 | E82: 0 | F82: 0 | G82: 0 | H82: 0 | I82: 0 | J82: 0 | K82: 0 | L82: 0 | M82: 0 | N82: 0 | O82: 0 | P82: 0 | Q82: 0 | R82: =R49+R81 -> 0 | S82: =S49+S81 -> 0 | T82: 0 | U82: 0 | V82: =V49+V81 -> 0 | W82: 0 | X82: 0 | Y82: =Y49+Y81 -> 0 | Z82: 0 | AA82: =AA49+AA81 -> 0 | AB82: =AB49+AB81 -> 0 | AD82: =J82=#REF! ->  | AE82: TRUE | AG82: =N83+#REF! ->  | AH82: =O83+#REF! -> 
A83: 3 | B83: Residential Hostel for specific category of children | G83: 0 | H83: 0 | I83: =C83-G83 -> 0 | J83: =D83-F83 -> 0 | AD83: =J83=#REF! ->  | AE83: TRUE | AG83: =N84+#REF! ->  | AH83: =O84+#REF! -> 
A84: (A) | B84: 50 children | G84: 0 | H84: 0 | I84: =C84-G84 -> 0 | J84: 0 | AD84: =J84=#REF! ->  | AE84: TRUE | AG84: =N85+#REF! ->  | AH84: =O85+#REF! -> 
B85: Non-recurring (one time grant) | G85: 0 | H85: 0 | I85: =C85-G85 -> 0 | J85: 0 | AD85: =J85=#REF! ->  | AE85: TRUE | AG85: =N86+#REF! ->  | AH85: =O86+#REF! -> 
A86: 3.01 | B86: Furniture/ Equipment (including kitchen) | C86: 0 | D86: 0 | G86: 0 | H86: 0 | I86: =C86-E86 -> 0 | J86: 0 | O86: 7 | P86: 0 | Q86: =O86*P86 -> 0 | R86: =K86+M86+P86 -> 0 | S86: 0 | X86: 7 | Z86: =X86*Y86 -> 0 | AA86: =T86+V86+Y86 -> 0 | AB86: =U86+W86+Z86 -> 0 | AD86: =J86=#REF! ->  | AE86: TRUE | AG86: =N87+#REF! ->  | AH86: =O87+#REF! -> 
A87: =+A86+0.01 -> 3.02 | B87: TLM and equipment including library books | C87: 0 | D87: 0 | G87: 0 | H87: 0 | I87: =C87-E87 -> 0 | J87: 0 | O87: 10.5 | P87: 0 | Q87: =O87*P87 -> 0 | R87: 0 | S87: 0 | X87: 10.5 | Z87: =X87*Y87 -> 0 | AA87: 0 | AB87: 0 | AD87: =J87=#REF! ->  | AE87: TRUE | AG87: =N88+#REF! ->  | AH87: =O88+#REF! -> 
A88: =+A87+0.01 -> 3.03 | B88: Bedding (new) | C88: 0 | D88: 0 | G88: 0 | H88: 0 | I88: =C88-E88 -> 0 | J88: 0 | Q88: =O88*P88 -> 0 | R88: 0 | S88: 0 | Z88: =X88*Y88 -> 0 | AA88: 0 | AB88: 0 | AD88: =J88=#REF! ->  | AE88: TRUE | AG88: =N89+#REF! ->  | AH88: =O89+#REF! -> 
A89: =+A88+0.01 -> 3.04 | B89: Replacement of bedding (once in 3 years) | C89: 0 | D89: 0 | G89: 0 | H89: 0 | I89: =C89-E89 -> 0 | J89: 0 | O89: 0.375 | P89: 0 | Q89: =O89*P89 -> 0 | R89: 0 | S89: 0 | X89: 0.375 | Y89: 0 | Z89: =X89*Y89 -> 0 | AA89: 0 | AB89: 0 | AD89: =J89=#REF! ->  | AE89: TRUE | AG89: =N90+#REF! ->  | AH89: =O90+#REF! -> 
B90: Sub Total (Non Recurring) | C90: =SUM(C86:C89) -> 0 | D90: 0 | E90: 0 | F90: 0 | G90: 0 | H90: 0 | I90: 0 | J90: 0 | K90: 0 | L90: 0 | M90: 0 | N90: 0 | P90: =P86 -> 0 | Q90: 0 | R90: 0 | S90: 0 | T90: 0 | U90: 0 | V90: 0 | W90: 0 | Y90: =Y86 -> 0 | Z90: =SUM(Z86:Z89) -> 0 | AA90: 0 | AB90: 0 | AD90: =J90=#REF! ->  | AE90: TRUE | AG90: =N91+#REF! ->  | AH90: =O91+#REF! -> 
B91: Recurring (50 children) | G91: 0 | H91: 0 | I91: =C91-G91 -> 0 | J91: =D91-F91 -> 0 | AD91: =J91=#REF! ->  | AE91: TRUE | AG91: =N92+#REF! ->  | AH91: =O92+#REF! -> 
A92: 3.05 | B92: Maintenance per child Per month @ Rs.1500/- | C92: 0 | D92: 0 | E92: =C92 -> 0 | F92: =D92 -> 0 | G92: 0 | H92: 0 | I92: =C92-E92 -> 0 | J92: 0 | O92: 9 | P92: 0 | Q92: =O92*P92 -> 0 | R92: =K92+M92+P92 -> 0 | S92: 0 | X92: 9 | Y92: 0 | Z92: =X92*Y92 -> 0 | AA92: =T92+V92+Y92 -> 0 | AB92: =U92+W92+Z92 -> 0 | AD92: =J92=#REF! ->  | AE92: TRUE | AG92: =N93+#REF! ->  | AH92: =O93+#REF! -> 
A93: =+A92+0.01 -> 3.06 | B93: Stipend per child per month @ Rs.100/- | C93: 0 | D93: 0 | E93: =C93 -> 0 | F93: =D93 -> 0 | G93: 0 | H93: 0 | I93: 0 | J93: 0 | O93: 0.6 | P93: 0 | Q93: =O93*P93 -> 0 | R93: 0 | S93: 0 | X93: 0.6 | Y93: 0 | Z93: =X93*Y93 -> 0 | AA93: 0 | AB93: 0 | AD93: =J93=#REF! ->  | AE93: TRUE | AG93: =N94+#REF! ->  | AH93: =O94+#REF! -> 
A94: =+A93+0.01 -> 3.07 | B94: Supplementary TLM, Stationery and other educational material @Rs.1000/- per child per annum | C94: 0 | D94: 0 | E94: 0 | F94: 0 | G94: 0 | H94: 0 | I94: 0 | J94: 0 | O94: 0.5 | P94: 0 | Q94: =O94*P94 -> 0 | R94: 0 | S94: 0 | X94: 0.5 | Y94: 0 | Z94: =X94*Y94 -> 0 | AA94: 0 | AB94: 0 | AD94: =J94=#REF! ->  | AE94: TRUE | AG94: =N95+#REF! ->  | AH94: =O95+#REF! -> 
B95: Salaries | E95: =ROUND(C95*100/100,0) -> 0 | F95: =D95 -> 0 | I95: 0 | J95: 0 | AD95: =J95=#REF! ->  | AE95: TRUE | AG95: =N96+#REF! ->  | AH95: =O96+#REF! -> 
A96: (a) | B96: 1 Warden @ Rs.25000/- per month | C96: 0 | D96: 0 | E96: =C96 -> 0 | F96: 0 | G96: =IFERROR(E96/C96,0) -> 0 | H96: 0 | I96: 0 | J96: 0 | O96: 3 | P96: 0 | Q96: =O96*P96 -> 0 | R96: =K96+M96+P96 -> 0 | S96: 0 | X96: 3 | Y96: 0 | Z96: =X96*Y96 -> 0 | AA96: =T96+V96+Y96 -> 0 | AB96: =U96+W96+Z96 -> 0 | AD96: =J96=#REF! ->  | AE96: TRUE | AG96: =N97+#REF! ->  | AH96: =O97+#REF! ->  | AI96: =AG96=E97 -> 
A97: (b) | B97: 4 Fulltime teachers as per RTE Norms @ Rs. 20,000/- per month per teacher | C97: 0 | D97: 0 | E97: 0 | F97: 0 | G97: 0 | H97: 0 | I97: 0 | J97: 0 | P97: 0 | Q97: =O97*P97 -> 0 | R97: 0 | S97: 0 | Y97: 0 | Z97: =X97*Y97 -> 0 | AA97: 0 | AB97: 0 | AD97: =J97=#REF! ->  | AE97: TRUE | AG97: =N98+#REF! ->  | AH97: =O98+#REF! -> 
A98: (c) | B98: 2 Urdu Teachers (only for Blocks with muslim population above 20% and select urban areas) @ Rs.12,000/- per month per teacher. | C98: 0 | D98: 0 | E98: 0 | F98: 0 | G98: 0 | H98: 0 | I98: 0 | J98: 0 | P98: 0 | Q98: 0 | R98: 0 | S98: 0 | Y98: 0 | Z98: 0 | AA98: 0 | AB98: 0 | AD98: =J98=#REF! ->  | AE98: TRUE | AG98: =N99+#REF! ->  | AH98: =O99+#REF! -> 
A99: (d) | B99: 3 Part time teachers @ Rs.5,000/- per month per teacher | C99: 0 | D99: 0 | E99: 0 | F99: 0 | G99: 0 | H99: 0 | I99: 0 | J99: 0 | O99: 1.8 | P99: 0 | Q99: 0 | R99: 0 | S99: 0 | X99: 1.8 | Y99: 0 | Z99: 0 | AA99: 0 | AB99: 0 | AD99: =J99=#REF! ->  | AE99: TRUE | AG99: =N100+#REF! ->  | AH99: =O100+#REF! -> 
A100: (e) | B100: 1 Full time Accountant @ Rs. 10,000/- per month | C100: 0 | D100: 0 | E100: 0 | F100: 0 | G100: 0 | H100: 0 | I100: 0 | J100: 0 | O100: 1.2 | P100: 0 | Q100: 0 | R100: 0 | S100: 0 | X100: 1.2 | Y100: 0 | Z100: 0 | AA100: 0 | AB100: 0 | AD100: =J100=#REF! ->  | AE100: TRUE | AG100: =N101+#REF! ->  | AH100: =O101+#REF! -> 
A101: (f) | B101: 2 Support staff - (Accountant/Assistant, Peon, Chowkidar) @ Rs. 5,000/- per month per staff | C101: 0 | D101: 0 | E101: 0 | F101: 0 | G101: 0 | H101: 0 | I101: 0 | J101: 0 | O101: 1.2 | P101: 0 | Q101: 0 | R101: 0 | S101: 0 | X101: 1.2 | Y101: 0 | Z101: 0 | AA101: 0 | AB101: 0 | AD101: =J101=#REF! ->  | AE101: TRUE | AG101: =N102+#REF! ->  | AH101: =O102+#REF! -> 
A102: (g) | B102: 1 Head Cook @ Rs. 6,000/- per month and upto 2 Asstt. Cooks @ Rs. 4,500/- per month per cook | C102: 0 | D102: 0 | E102: 0 | F102: 0 | G102: 0 | H102: 0 | I102: 0 | J102: 0 | O102: 1.8 | P102: 0 | Q102: 0 | R102: 0 | S102: 0 | X102: 1.8 | Y102: 0 | Z102: 0 | AA102: 0 | AB102: 0 | AD102: =J102=#REF! ->  | AE102: TRUE | AG102: =N103+#REF! ->  | AH102: =O103+#REF! -> 
A103: 3.08 | B103: Specific Skill training @ Rs.1000/- per annum per child | C103: 0 | D103: 0 | E103: 0 | F103: 0 | G103: 0 | H103: 0 | I103: 0 | J103: 0 | P103: 0 | Q103: 0 | R103: 0 | S103: 0 | Y103: 0 | Z103: 0 | AA103: 0 | AB103: 0 | AD103: =J103=#REF! ->  | AE103: TRUE | AG103: =N104+#REF! ->  | AH103: =O104+#REF! -> 
A104: =+A103+0.01 -> 3.09 | B104: Electricity / water charges @ Rs. 1000/- per annum per child | C104: 0 | D104: 0 | E104: 0 | F104: 0 | G104: 0 | H104: 0 | I104: 0 | J104: 0 | O104: 0.5 | P104: 0 | Q104: 0 | R104: 0 | S104: 0 | X104: 0.5 | Y104: 0 | Z104: 0 | AA104: 0 | AB104: 0 | AD104: =J104=#REF! ->  | AE104: TRUE | AG104: =N105+#REF! ->  | AH104: =O105+#REF! -> 
A105: 3.1 | B105: Medical care/contingencies @ Rs.1250/- per annum per child | C105: 0 | D105: 0 | E105: 0 | F105: 0 | G105: 0 | H105: 0 | I105: 0 | J105: 0 | O105: 0.625 | P105: 0 | Q105: 0 | R105: 0 | S105: 0 | X105: 0.625 | Y105: 0 | Z105: 0 | AA105: 0 | AB105: 0 | AD105: =J105=#REF! ->  | AE105: TRUE | AG105: =N106+#REF! ->  | AH105: =O106+#REF! -> 
A106: 3.11 | B106: Maintenance @ Rs. 750/- per child per annum | C106: 0 | D106: 0 | E106: 0 | F106: 0 | G106: 0 | H106: 0 | I106: 0 | J106: 0 | O106: 0.375 | P106: 0 | Q106: 0 | R106: 0 | S106: 0 | X106: 0.375 | Y106: 0 | Z106: 0 | AA106: 0 | AB106: 0 | AD106: =J106=#REF! ->  | AE106: TRUE | AG106: =N107+#REF! ->  | AH106: =O107+#REF! -> 
A107: 3.12 | B107: Miscellaneous @ Rs. 750/- per child per annum | C107: 0 | D107: 0 | E107: 0 | F107: 0 | G107: 0 | H107: 0 | I107: 0 | J107: 0 | O107: 0.375 | P107: 0 | Q107: 0 | R107: 0 | S107: 0 | X107: 0.375 | Y107: 0 | Z107: 0 | AA107: 0 | AB107: 0 | AD107: =J107=#REF! ->  | AE107: TRUE | AG107: =N108+#REF! ->  | AH107: =O108+#REF! -> 
A108: 3.13 | B108: Preparatory camps @ Rs. 300/- per child per annum | C108: 0 | D108: 0 | E108: 0 | F108: 0 | G108: 0 | H108: 0 | I108: 0 | J108: 0 | P108: 0 | Q108: 0 | R108: 0 | S108: 0 | Y108: 0 | Z108: 0 | AA108: 0 | AB108: 0 | AD108: =J108=#REF! ->  | AE108: TRUE | AG108: =N109+#REF! ->  | AH108: =O109+#REF! -> 
A109: 3.14 | B109: P.T.A / school functions @ Rs. 300/- per child per annum | C109: 0 | D109: 0 | E109: 0 | F109: 0 | G109: 0 | H109: 0 | I109: 0 | J109: 0 | P109: 0 | Q109: 0 | R109: 0 | S109: 0 | Y109: 0 | Z109: 0 | AA109: 0 | AB109: 0 | AD109: =J109=#REF! ->  | AE109: TRUE | AG109: =N110+#REF! ->  | AH109: =O110+#REF! -> 
A110: 3.15 | B110: Provision of Rent @ Rs. 10,000/- per child per annum | C110: 0 | D110: 0 | E110: 0 | F110: 0 | G110: 0 | H110: 0 | I110: 0 | J110: 0 | P110: 0 | Q110: 0 | R110: 0 | S110: 0 | Y110: 0 | Z110: 0 | AA110: 0 | AB110: 0 | AD110: =J110=#REF! ->  | AE110: TRUE | AG110: =N111+#REF! ->  | AH110: =O111+#REF! -> 
A111: 3.16 | B111: Capacity Building @ Rs. 500/- per child per annum | C111: 0 | D111: 0 | E111: 0 | F111: 0 | G111: 0 | H111: 0 | I111: 0 | J111: 0 | O111: 0.25 | P111: 0 | Q111: 0 | R111: 0 | S111: 0 | X111: 0.25 | Y111: 0 | Z111: 0 | AA111: 0 | AB111: 0 | AD111: =J111=#REF! ->  | AE111: TRUE | AG111: =N112+#REF! ->  | AH111: =O112+#REF! -> 
A112: 3.17 | B112: Physical / Self Defence Training @ Rs.200/- per child per annum | C112: 0 | D112: 0 | E112: 0 | F112: 0 | G112: 0 | H112: 0 | I112: 0 | J112: 0 | O112: 0.1 | P112: 0 | Q112: 0 | R112: 0 | S112: 0 | X112: 0.1 | Y112: 0 | Z112: 0 | AA112: 0 | AB112: 0 | AD112: =J112=#REF! ->  | AE112: TRUE | AG112: =N113+#REF! ->  | AH112: =O113+#REF! -> 
B113: Sub Total (Recurring) | C113: =C112 -> 0 | D113: =SUM(D92:D112) -> 0 | E113: =E112 -> 0 | F113: 0 | G113: 0 | H113: 0 | I113: =I112 -> 0 | J113: 0 | K113: 0 | L113: 0 | M113: 0 | N113: 0 | P113: =P112 -> 0 | Q113: 0 | R113: =R112 -> 0 | S113: =SUM(S92:S112) -> 0 | T113: 0 | U113: 0 | V113: =SUM(V92:V112) -> 0 | W113: =SUM(W92:W112) -> 0 | Y113: =Y112 -> 0 | Z113: =SUM(Z92:Z112) -> 0 | AA113: =AA112 -> 0 | AB113: =SUM(AB92:AB112) -> 0 | AD113: =J113=#REF! ->  | AE113: TRUE | AG113: =N114+#REF! ->  | AH113: =O114+#REF! -> 
B114: Total (Non Recurring + Recurring) | C114: =C90+C113 -> 0 | D114: 0 | E114: 0 | F114: 0 | G114: 0 | H114: 0 | I114: 0 | J114: 0 | K114: 0 | L114: 0 | M114: 0 | N114: 0 | P114: 0 | Q114: 0 | R114: 0 | S114: 0 | T114: 0 | U114: 0 | V114: 0 | W114: 0 | Y114: =Y90+Y113 -> 0 | Z114: 0 | AA114: 0 | AB114: 0 | AD114: =J114=#REF! ->  | AE114: TRUE | AG114: =N115+#REF! ->  | AH114: =O115+#REF! -> 
A115: (B) | B115: 100 Children | G115: 0 | H115: 0 | I115: =C115-G115 -> 0 | J115: =D115-F115 -> 0 | AD115: =J115=#REF! ->  | AE115: TRUE | AG115: =N116+#REF! ->  | AH115: =O116+#REF! -> 
B116: Non-recurring (one time grant) | G116: 0 | H116: 0 | I116: =C116-G116 -> 0 | J116: 0 | AD116: =J116=#REF! ->  | AE116: TRUE | AG116: =N117+#REF! ->  | AH116: =O117+#REF! -> 
A117: 3.18 | B117: Furniture / Equipment (including kitchen equipment) | C117: 0 | D117: 0 | G117: 0 | H117: 0 | I117: =C117-E117 -> 0 | J117: 0 | Q117: =O117*P117 -> 0 | R117: =K117+M117+P117 -> 0 | S117: 0 | Z117: =X117*Y117 -> 0 | AA117: =T117+V117+Y117 -> 0 | AB117: =U117+W117+Z117 -> 0 | AD117: =J117=#REF! ->  | AE117: TRUE | AG117: =N118+#REF! ->  | AH117: =O118+#REF! -> 
A118: =+A117+0.01 -> 3.19 | B118: TLM and equipment including library books (New) | C118: 0 | D118: 0 | G118: 0 | H118: 0 | I118: =C118-E118 -> 0 | J118: 0 | Q118: =O118*P118 -> 0 | R118: 0 | S118: 0 | Z118: =X118*Y118 -> 0 | AA118: 0 | AB118: 0 | AD118: =J118=#REF! ->  | AE118: TRUE | AG118: =N119+#REF! ->  | AH118: =O119+#REF! -> 
A119: =+A118+0.01 -> 3.2 | B119: Bedding (New) | C119: 0 | D119: 0 | G119: 0 | H119: 0 | I119: =C119-E119 -> 0 | J119: 0 | Q119: =O119*P119 -> 0 | R119: 0 | S119: 0 | Z119: =X119*Y119 -> 0 | AA119: 0 | AB119: 0 | AD119: =J119=#REF! ->  | AE119: TRUE | AG119: =N120+#REF! ->  | AH119: =O120+#REF! -> 
A120: =+A119+0.01 -> 3.21 | B120: Replacement of bedding (once in 3 years) | C120: 0 | D120: 0 | G120: 0 | H120: 0 | I120: =C120-E120 -> 0 | J120: 0 | Q120: =O120*P120 -> 0 | R120: 0 | S120: 0 | Z120: =X120*Y120 -> 0 | AA120: 0 | AB120: 0 | AD120: =J120=#REF! ->  | AE120: TRUE | AG120: =N121+#REF! ->  | AH120: =O121+#REF! -> 
B121: Sub Total Non-recurring | C121: =SUM(C117:C120) -> 0 | D121: 0 | E121: 0 | F121: 0 | G121: 0 | H121: 0 | I121: 0 | J121: 0 | K121: 0 | L121: 0 | M121: 0 | N121: 0 | P121: 0 | Q121: 0 | R121: 0 | S121: 0 | T121: 0 | U121: 0 | V121: 0 | W121: 0 | Y121: =SUM(Y117:Y120) -> 0 | Z121: 0 | AA121: 0 | AB121: 0 | AD121: =J121=#REF! ->  | AE121: TRUE | AG121: =N122+#REF! ->  | AH121: =O122+#REF! -> 
B122: Recurring | G122: 0 | H122: 0 | I122: =C122-G122 -> 0 | J122: =D122-F122 -> 0 | AD122: =J122=#REF! ->  | AE122: TRUE | AG122: =N123+#REF! ->  | AH122: =O123+#REF! -> 
A123: 3.22 | B123: Maintenance per child per month @ Rs. 1500/- | C123: 0 | D123: 0 | G123: 0 | H123: 0 | I123: =C123-E123 -> 0 | J123: 0 | Q123: =O123*P123 -> 0 | R123: =K123+M123+P123 -> 0 | S123: 0 | Z123: =X123*Y123 -> 0 | AA123: =T123+V123+Y123 -> 0 | AB123: =U123+W123+Z123 -> 0 | AD123: =J123=#REF! ->  | AE123: TRUE | AG123: =N124+#REF! ->  | AH123: =O124+#REF! -> 
A124: =+A123+0.01 -> 3.23 | B124: Stipend per child per month @ Rs.100/- | C124: 0 | D124: 0 | G124: 0 | H124: 0 | I124: 0 | J124: 0 | Q124: =O124*P124 -> 0 | R124: 0 | S124: 0 | Z124: =X124*Y124 -> 0 | AA124: 0 | AB124: 0 | AD124: =J124=#REF! ->  | AE124: TRUE | AG124: =N125+#REF! ->  | AH124: =O125+#REF! -> 
A125: =+A124+0.01 -> 3.24 | B125: Supplementary TLM, Stationery and other educational material per child @1000/- per annum | C125: 0 | D125: 0 | G125: 0 | H125: 0 | I125: 0 | J125: 0 | Q125: =O125*P125 -> 0 | R125: 0 | S125: 0 | Z125: =X125*Y125 -> 0 | AA125: 0 | AB125: 0 | AD125: =J125=#REF! ->  | AE125: TRUE | AG125: =N126+#REF! ->  | AH125: =O126+#REF! -> 
B126: Salaries | G126: 0 | H126: 0 | I126: 0 | J126: 0 | AD126: =J126=#REF! ->  | AE126: TRUE | AG126: =N127+#REF! ->  | AH126: =O127+#REF! -> 
A127: (a) | B127: 1 Warden @ Rs. 25,000/- per month | C127: 0 | D127: 0 | G127: 0 | H127: 0 | I127: 0 | J127: 0 | Q127: =O127*P127 -> 0 | R127: =K127+M127+P127 -> 0 | S127: 0 | Z127: =X127*Y127 -> 0 | AA127: =T127+V127+Y127 -> 0 | AB127: =U127+W127+Z127 -> 0 | AD127: =J127=#REF! ->  | AE127: TRUE | AG127: =N128+#REF! ->  | AH127: =O128+#REF! -> 
A128: (b) | B128: 1 head teacher @ Rs. 25,000/- per month in case the enrollment exceeds 100 | C128: 0 | D128: 0 | G128: 0 | H128: 0 | I128: 0 | J128: 0 | Q128: 0 | R128: 0 | S128: 0 | Z128: 0 | AA128: 0 | AB128: 0 | AD128: =J128=#REF! ->  | AE128: =K128=AC128 -> TRUE | AG128: =N129+#REF! ->  | AH128: =O129+#REF! ->  | AI128: =AG128=E129 -> 
A129: (c) | B129: 4 - 5 Full time teachers as per RTE norms @ Rs. 20,000/- per month per teacher | C129: 0 | D129: 0 | G129: 0 | H129: 0 | I129: 0 | J129: 0 | Q129: 0 | R129: 0 | S129: 0 | Z129: 0 | AA129: 0 | AB129: 0 | AD129: =J129=#REF! ->  | AE129: TRUE | AG129: =N130+#REF! ->  | AH129: =O130+#REF! -> 
A130: (d) | B130: 2 Urdu Teachers (only for blocks with muslim population above 20% and select urban areas), if required @ Rs. 12,000/- per month per teacher | C130: 0 | D130: 0 | G130: 0 | H130: 0 | I130: 0 | J130: 0 | Q130: 0 | R130: 0 | S130: 0 | Z130: 0 | AA130: 0 | AB130: 0 | AD130: =J130=#REF! ->  | AE130: TRUE | AG130: =N131+#REF! ->  | AH130: =O131+#REF! -> 
A131: (e) | B131: 3 part time teachers @ Rs. 5,000/- per month per teacher | C131: 0 | D131: 0 | G131: 0 | H131: 0 | I131: 0 | J131: 0 | Q131: 0 | R131: 0 | S131: 0 | Z131: 0 | AA131: 0 | AB131: 0 | AD131: =J131=#REF! ->  | AE131: TRUE | AG131: =N132+#REF! ->  | AH131: =O132+#REF! -> 
A132: (f) | B132: 1 Full time Accountant @ Rs. 10,000/- per month | C132: 0 | D132: 0 | G132: 0 | H132: 0 | I132: 0 | J132: 0 | Q132: 0 | R132: 0 | S132: 0 | Z132: 0 | AA132: 0 | AB132: 0 | AD132: =J132=#REF! ->  | AE132: TRUE | AG132: =N133+#REF! ->  | AH132: =O133+#REF! -> 
A133: 3.25 | B133: 2 Support Staff – (Accountant/ Assistant, Peon, Chowkidar) @ Rs. 5,000/- per month per staff | C133: 0 | D133: 0 | G133: 0 | H133: 0 | I133: 0 | J133: 0 | Q133: 0 | R133: 0 | S133: 0 | Z133: 0 | AA133: 0 | AB133: 0 | AD133: =J133=#REF! ->  | AE133: TRUE | AG133: =N134+#REF! ->  | AH133: =O134+#REF! -> 
A134: =+A133+0.01 -> 3.26 | B134: 1 Head cook @ Rs. 6,000/- per month and upto 2 Asstt. Cooks @ Rs. 4,500/- per month per cook | C134: 0 | D134: 0 | G134: 0 | H134: 0 | I134: 0 | J134: 0 | Q134: 0 | R134: 0 | S134: 0 | Z134: 0 | AA134: 0 | AB134: 0 | AD134: =J134=#REF! ->  | AE134: TRUE | AG134: =N135+#REF! ->  | AH134: =O135+#REF! -> 
A135: 3.27 | B135: Specific skill training per child @ Rs.1000/- per annum | C135: 0 | D135: 0 | G135: 0 | H135: 0 | I135: 0 | J135: 0 | Q135: 0 | R135: 0 | S135: 0 | Z135: 0 | AA135: 0 | AB135: 0 | AD135: =J135=#REF! ->  | AE135: TRUE | AG135: =N136+#REF! ->  | AH135: =O136+#REF! -> 
A136: 3.28 | B136: Electricity / water charges per child @Rs.1000/- per annum | C136: 0 | D136: 0 | G136: 0 | H136: 0 | I136: 0 | J136: 0 | Q136: 0 | R136: 0 | S136: 0 | Z136: 0 | AA136: 0 | AB136: 0 | AD136: =J136=#REF! ->  | AE136: TRUE | AG136: =N137+#REF! ->  | AH136: =O137+#REF! -> 
A137: 3.29 | B137: Medical care/contingencies @ Rs.1250/- per child per annum | C137: 0 | D137: 0 | G137: 0 | H137: 0 | I137: 0 | J137: 0 | Q137: 0 | R137: 0 | S137: 0 | Z137: 0 | AA137: 0 | AB137: 0 | AD137: =J137=#REF! ->  | AE137: TRUE | AG137: =N138+#REF! ->  | AH137: =O138+#REF! ->  | BA137: BRC / URC | BB137: =B137=BA137 -> FALSE
A138: 3.3 | B138: Maintenance @ Rs.750/- per child per annum | C138: 0 | D138: 0 | G138: 0 | H138: 0 | I138: 0 | J138: 0 | Q138: 0 | R138: 0 | S138: 0 | Z138: 0 | AA138: 0 | AB138: 0 | AD138: =J138=#REF! ->  | AE138: TRUE | AG138: =N139+#REF! ->  | AH138: =O139+#REF! ->  | BA138: CRC | BB138: FALSE
A139: 3.31 | B139: Miscellaneous @ Rs.750/- per child per annum | C139: 0 | D139: 0 | G139: 0 | H139: 0 | I139: 0 | J139: 0 | Q139: 0 | R139: 0 | S139: 0 | Z139: 0 | AA139: 0 | AB139: 0 | AD139: =J139=#REF! ->  | AE139: TRUE | AG139: =N140+#REF! ->  | AH139: =O140+#REF! ->  | BA139: New Primary School (Rural) | BB139: FALSE
A140: 3.32 | B140: Preparatory camps @ Rs.200/- per child per annum | C140: 0 | D140: 0 | G140: 0 | H140: 0 | I140: 0 | J140: 0 | Q140: 0 | R140: 0 | S140: 0 | Z140: 0 | AA140: 0 | AB140: 0 | AD140: =J140=#REF! ->  | AE140: TRUE | AG140: =N141+#REF! ->  | AH140: =O141+#REF! ->  | BA140: New Upper Primary (Rural) (3 ACR each in lieu) | BB140: FALSE
A141: 3.33 | B141: P.T.A / school functions @ Rs.200/- per child per annum | C141: 0 | D141: 0 | G141: 0 | H141: 0 | I141: 0 | J141: 0 | Q141: 0 | R141: 0 | S141: 0 | Z141: 0 | AA141: 0 | AB141: 0 | AD141: =J141=#REF! ->  | AE141: TRUE | AG141: =N142+#REF! ->  | AH141: =O142+#REF! ->  | BA141: New Upper Primary (Urban) (3 ACR each in lieu) | BB141: FALSE
A142: 3.34 | B142: Provision of Rent @ Rs. 6000/- per child per annum | C142: 0 | D142: 0 | G142: 0 | H142: 0 | I142: 0 | J142: 0 | Q142: 0 | R142: 0 | S142: 0 | Z142: 0 | AA142: 0 | AB142: 0 | AD142: =J142=#REF! ->  | AE142: TRUE | AG142: =N143+#REF! ->  | AH142: =O143+#REF! ->  | BA142: Building Less (Pry) | BB142: FALSE
A143: 3.35 | B143: Capacity Building @ Rs.500/- per child per annum | C143: 0 | D143: 0 | G143: 0 | H143: 0 | I143: 0 | J143: 0 | Q143: 0 | R143: 0 | S143: 0 | Z143: 0 | AA143: 0 | AB143: 0 | AD143: =J143=#REF! ->  | AE143: TRUE | AG143: =N144+#REF! ->  | AH143: =O144+#REF! ->  | BA143: Building Less (UP) | BB143: FALSE
A144: 3.36 | B144: Physical / Self Defence training @ Rs. 200/- per child per annum. | C144: 0 | D144: 0 | G144: 0 | H144: 0 | I144: 0 | J144: 0 | Q144: 0 | R144: 0 | S144: 0 | Z144: 0 | AA144: 0 | AB144: 0 | AD144: =J144=#REF! ->  | AE144: TRUE | AG144: =N145+#REF! ->  | AH144: =O145+#REF! ->  | BA144: Additional Class Room (Rural) | BB144: FALSE
B145: Sub Total (Recurring) | C145: =SUM(C123:C144) -> 0 | D145: 0 | E145: 0 | F145: 0 | G145: 0 | H145: 0 | I145: 0 | J145: 0 | K145: 0 | L145: 0 | M145: 0 | N145: 0 | P145: 0 | Q145: 0 | R145: 0 | S145: 0 | T145: 0 | U145: 0 | V145: 0 | W145: 0 | Y145: =SUM(Y123:Y144) -> 0 | Z145: 0 | AA145: 0 | AB145: 0 | AD145: =J145=#REF! ->  | AE145: TRUE | AF145: =AF140+AF144 -> 0 | AG145: =N146+#REF! ->  | AH145: =O146+#REF! ->  | BA145: Additional Class Room (Urban) | BB145: FALSE
B146: Total (Recurring + Non Recurring) | C146: =C121+C145 -> 0 | D146: 0 | E146: 0 | F146: 0 | G146: 0 | H146: 0 | I146: 0 | J146: 0 | K146: 0 | L146: 0 | M146: 0 | N146: 0 | P146: 0 | Q146: 0 | R146: 0 | S146: 0 | T146: 0 | U146: 0 | V146: 0 | W146: 0 | Y146: =Y121+Y145 -> 0 | Z146: 0 | AA146: 0 | AB146: 0 | AD146: =J146=#REF! ->  | AE146: TRUE | AG146: =N147+#REF! ->  | AH146: =O147+#REF! ->  | BA146: Additional Class Room (Hill Area / Urban / inaccessible) | BB146: FALSE
A147: 3 | B147: Total (A + B) | C147: =C114+C146 -> 0 | D147: 0 | E147: 0 | F147: 0 | G147: 0 | H147: 0 | I147: 0 | J147: 0 | K147: 0 | L147: 0 | M147: 0 | N147: 0 | P147: 0 | Q147: 0 | R147: 0 | S147: 0 | T147: 0 | U147: 0 | V147: 0 | W147: 0 | Y147: =Y114+Y146 -> 0 | Z147: 0 | AA147: 0 | AB147: 0 | AD147: =J147=#REF! ->  | AE147: TRUE | AG147: =N148+#REF! ->  | AH147: =O148+#REF! ->  | BB147: =B147=BA149 -> FALSE
A148: 4 | B148: Transport/Escort Facility | G148: 0 | H148: 0 | I148: =C148-G148 -> 0 | J148: =D148-F148 -> 0 | AD148: =J148=#REF! ->  | AE148: TRUE | AG148: =N149+#REF! ->  | AH148: =O149+#REF! ->  | BB148: FALSE
A149: 4.01 | B149: Children in remote habitation | C149: 0 | D149: 0 | G149: 0 | H149: 0 | I149: =C149-E149 -> 0 | J149: =D149-F149 -> 0 | O149: 0.03 | P149: 141 | Q149: =O149*P149 -> 4.23 | R149: =K149+M149+P149 -> 141 | S149: =L149+N149+Q149 -> 4.23 | X149: 0.03 | Y149: 141 | Z149: =X149*Y149 -> 4.23 | AA149: =T149+V149+Y149 -> 141 | AB149: =U149+W149+Z149 -> 4.23 | AD149: =J149=#REF! ->  | AE149: TRUE | AG149: =N150+#REF! ->  | AH149: =O150+#REF! ->  | BA149: Toilet/Urinals (for urban areas only) | BB149: FALSE
A150: 4.02 | B150: Urban deprived children/children without adult protection | C150: 0 | D150: 0 | G150: 0 | H150: 0 | I150: =C150-E150 -> 0 | J150: =D150-F150 -> 0 | O150: 0.03 | P150: 0 | Q150: =O150*P150 -> 0 | R150: =K150+M150+P150 -> 0 | S150: =L150+N150+Q150 -> 0 | X150: 0.03 | Y150: 0 | Z150: =X150*Y150 -> 0 | AA150: =T150+V150+Y150 -> 0 | AB150: =U150+W150+Z150 -> 0 | AD150: =J150=#REF! ->  | AE150: TRUE | AG150: =N151+#REF! ->  | AH150: =O151+#REF! ->  | BA150: Separate Girls Toilet | BB150: FALSE
B151: Total | C151: =SUM(C149:C150) -> 0 | D151: 0 | E151: 0 | F151: 0 | G151: 0 | H151: 0 | I151: 0 | J151: 0 | K151: 0 | L151: 0 | M151: 0 | N151: 0 | P151: 141 | Q151: 4.23 | R151: 141 | S151: 4.23 | T151: 0 | U151: 0 | V151: 0 | W151: 0 | Y151: =SUM(Y149:Y150) -> 141 | Z151: 4.23 | AA151: 141 | AB151: 4.23 | AD151: =J151=#REF! ->  | AE151: TRUE | AG151: =N152+#REF! ->  | AH151: =O152+#REF! ->  | BA151: Drinking Water Facility (for urban area only) | BB151: FALSE
A152: 5 | B152: Reimbursement of Fee against 25% admission under Section 12(1)(c) of RTE Act 2009 (Entry Level) subject to upper limit of 20% of AWP&B subject to guidelines issued by MHRD | D152: 61.74 | F152: =D152 -> 61.74 | G152: 0 | H152: 1 | I152: =C152-E152 -> 0 | J152: =D152-F152 -> 0 | Q152: 1292.62183 | R152: =K152+M152+P152 -> 0 | S152: =L152+N152+Q152 -> 1292.62183 | Z152: 30.44 | AA152: =T152+V152+Y152 -> 0 | AB152: =U152+W152+Z152 -> 30.44 | AD152: =J152=#REF! ->  | AE152: TRUE | AG152: =N153+#REF! ->  | AH152: =O153+#REF! ->  | BA152: Electrification | BB152: FALSE
B153: Total | C153: =C152 -> 0 | D153: 61.74 | E153: 0 | F153: 61.74 | G153: 0 | H153: 1 | I153: 0 | J153: 0 | K153: 0 | L153: 0 | M153: 0 | N153: 0 | O153: 0 | P153: 0 | Q153: 1292.62183 | R153: =R152 -> 0 | S153: =S152 -> 1292.62183 | T153: 0 | U153: 0 | V153: =V152 -> 0 | W153: 0 | X153: 0 | Y153: =Y152 -> 0 | Z153: 30.44 | AA153: =AA152 -> 0 | AB153: =AB152 -> 30.44 | AD153: =J153=#REF! ->  | AE153: TRUE | AG153: =N154+#REF! ->  | AH153: =O154+#REF! ->  | BA153: Ramps with Handrails | BB153: FALSE
A154: 6 | B154: Special Training for mainstreaming of out of school children | G154: 0 | H154: 0 | I154: =C154-G154 -> 0 | J154: =D154-F154 -> 0 | AD154: =J154=#REF! ->  | AE154: TRUE | AG154: =N155+#REF! ->  | AH154: =O155+#REF! ->  | BA154: Residential Schools/hostels for specific category of children | BB154: FALSE
A155: 6.01 | B155: Residential (Fresh) | G155: 0 | H155: 0 | I155: =C155-G155 -> 0 | J155: 0 | AD155: =J155=#REF! ->  | AE155: TRUE | AG155: =N156+#REF! ->  | AH155: =O156+#REF! ->  | BA155: (a) Construction of residential hostel
B156: (a) 12 months | C156: 0 | D156: 0 | G156: 0 | H156: 0 | I156: =C156-E156 -> 0 | J156: 0 | O156: 0.34 | P156: 0 | Q156: =O156*P156 -> 0 | R156: =K156+M156+P156 -> 0 | S156: 0 | X156: 0.2 | Y156: 0 | Z156: =X156*Y156 -> 0 | AA156: =T156+V156+Y156 -> 0 | AB156: =U156+W156+Z156 -> 0 | AD156: =J156=#REF! ->  | AE156: TRUE | AG156: =N157+#REF! ->  | AH156: =O157+#REF! ->  | BA156: (b) Refurbishing unused old buildings
B157: (b) 9 months | C157: 0 | D157: 0 | G157: 0 | H157: 0 | I157: =C157-E157 -> 0 | J157: 0 | Q157: =O157*P157 -> 0 | R157: 0 | S157: 0 | Z157: =X157*Y157 -> 0 | AA157: 0 | AB157: 0 | AD157: =J157=#REF! ->  | AE157: TRUE | AG157: =N158+#REF! ->  | AH157: =O158+#REF! -> 
B158: (c) 6 months | C158: 0 | D158: 0 | G158: 0 | H158: 0 | I158: =C158-E158 -> 0 | J158: 0 | Q158: =O158*P158 -> 0 | R158: 0 | S158: 0 | Z158: =X158*Y158 -> 0 | AA158: 0 | AB158: 0 | AD158: =J158=#REF! ->  | AE158: TRUE | AG158: =N159+#REF! ->  | AH158: =O159+#REF! -> 
B159: (d) 3 months | C159: 0 | D159: 0 | G159: 0 | H159: 0 | I159: =C159-E159 -> 0 | J159: 0 | Q159: =O159*P159 -> 0 | R159: 0 | S159: 0 | Z159: =X159*Y159 -> 0 | AA159: 0 | AB159: 0 | AD159: =J159=#REF! ->  | AE159: TRUE | AG159: =N160+#REF! ->  | AH159: =O160+#REF! -> 
B160: Sub Total | C160: =SUM(C156:C159) -> 0 | D160: 0 | E160: 0 | F160: 0 | G160: =IFERROR(E160/C160,0) -> 0 | H160: 0 | I160: 0 | J160: 0 | K160: 0 | L160: 0 | M160: 0 | N160: 0 | P160: 0 | Q160: 0 | R160: 0 | S160: 0 | T160: 0 | U160: 0 | V160: 0 | W160: 0 | Y160: =SUM(Y156:Y159) -> 0 | Z160: 0 | AA160: 0 | AB160: 0 | AD160: =J160=#REF! ->  | AE160: TRUE | AG160: =N161+#REF! ->  | AH160: =O161+#REF! -> 
A161: =+A155+0.01 -> 6.02 | B161: Residential (Continuing from previous year) | G161: 0 | H161: 0 | I161: =C161-G161 -> 0 | J161: =D161-F161 -> 0 | AD161: =J161=#REF! ->  | AE161: TRUE | AG161: =N162+#REF! ->  | AH161: =O162+#REF! -> 
B162: (a) 12 months | C162: 0 | D162: 0 | E162: 0 | F162: 0 | G162: 0 | H162: 0 | I162: =C162-E162 -> 0 | J162: =D162-F162 -> 0 | Q162: =O162*P162 -> 0 | R162: =K162+M162+P162 -> 0 | S162: 0 | Z162: =X162*Y162 -> 0 | AA162: =T162+V162+Y162 -> 0 | AB162: =U162+W162+Z162 -> 0
B163: (b) 9 months | C163: 0 | D163: 0 | E163: 0 | F163: 0 | G163: 0 | H163: 0 | I163: =C163-E163 -> 0 | J163: =D163-F163 -> 0 | Q163: =O163*P163 -> 0 | R163: 0 | S163: 0 | Z163: =X163*Y163 -> 0 | AA163: 0 | AB163: 0
B164: (c) 6 months | C164: 0 | D164: 0 | E164: 0 | F164: 0 | G164: 0 | H164: 0 | I164: =C164-E164 -> 0 | J164: =D164-F164 -> 0 | Q164: =O164*P164 -> 0 | R164: 0 | S164: 0 | Z164: =X164*Y164 -> 0 | AA164: 0 | AB164: 0
B165: (d) 3 months | C165: 0 | D165: 0 | E165: 0 | F165: 0 | G165: 0 | H165: 0 | I165: =C165-E165 -> 0 | J165: =D165-F165 -> 0 | Q165: =O165*P165 -> 0 | R165: 0 | S165: 0 | Z165: =X165*Y165 -> 0 | AA165: 0 | AB165: 0 | AD165: =J165=#REF! ->  | AE165: =K165=AC165 -> TRUE | AG165: =#REF!+#REF! ->  | AH165: =#REF!+#REF! ->  | AI165: =AG165=#REF! ->  | AJ165: =AH165=#REF! -> 
B166: Sub Total | C166: =SUM(C162:C165) -> 0 | D166: 0 | E166: 0 | F166: 0 | G166: 0 | H166: 0 | I166: 0 | J166: 0 | K166: 0 | L166: 0 | M166: 0 | N166: 0 | P166: 0 | Q166: 0 | R166: 0 | S166: 0 | T166: 0 | U166: 0 | V166: 0 | W166: 0 | Y166: =SUM(Y162:Y165) -> 0 | Z166: 0 | AA166: 0 | AB166: 0 | AD166: =J166=#REF! ->  | AE166: TRUE | AG166: =N167+#REF! ->  | AH166: =O167+#REF! ->  | AI166: =AG166=E167 -> 
A167: 6.03 | B167: Non-Residential (Fresh) | G167: 0 | H167: 0 | I167: =C167-G167 -> 0 | J167: =D167-F167 -> 0 | AD167: =J167=#REF! ->  | AE167: TRUE | AG167: =N168+#REF! ->  | AH167: =O168+#REF! -> 
B168: (a) 12 months | C168: 0 | D168: 0 | E168: 0 | F168: 0 | G168: 0 | H168: 0 | I168: =C168-E168 -> 0 | J168: =D168-F168 -> 0 | Q168: =O168*P168 -> 0 | R168: =K168+M168+P168 -> 0 | S168: 0 | Z168: =X168*Y168 -> 0 | AA168: =T168+V168+Y168 -> 0 | AB168: =U168+W168+Z168 -> 0 | AD168: =J168=#REF! ->  | AE168: TRUE | AG168: =N169+#REF! ->  | AH168: =O169+#REF! -> 
B169: (b) 9 months | C169: 0 | D169: 0 | E169: 0 | F169: 0 | G169: 0 | H169: 0 | I169: =C169-E169 -> 0 | J169: =D169-F169 -> 0 | Q169: =O169*P169 -> 0 | R169: 0 | S169: 0 | Z169: =X169*Y169 -> 0 | AA169: 0 | AB169: 0 | AD169: =J169=#REF! ->  | AE169: TRUE | AG169: =N170+#REF! ->  | AH169: =O170+#REF! -> 
B170: (c) 6 months | C170: 1413 | D170: 42.39 | E170: 1413 | F170: 42.39 | G170: 1 | H170: 1 | I170: =C170-E170 -> 0 | J170: =D170-F170 -> 0 | O170: 0.03 | P170: 173 | Q170: =O170*P170 -> 5.19 | R170: 173 | S170: 5.19 | X170: 0.03 | Y170: 173 | Z170: =X170*Y170 -> 5.19 | AA170: 173 | AB170: 5.19 | AD170: =J170=#REF! ->  | AE170: TRUE | AG170: =N171+#REF! ->  | AH170: =O171+#REF! -> 
B171: (d) 3 months | C171: 0 | D171: 0 | E171: 0 | F171: 0 | G171: 0 | H171: 0 | I171: =C171-E171 -> 0 | J171: =D171-F171 -> 0 | O171: 0.015 | P171: 0 | Q171: =O171*P171 -> 0 | R171: 0 | S171: 0 | X171: 0.015 | Z171: =X171*Y171 -> 0 | AA171: 0 | AB171: 0 | AD171: =J171=#REF! ->  | AE171: TRUE | AG171: =N172+#REF! ->  | AH171: =O172+#REF! -> 
B172: Sub Total | C172: =SUM(C168:C171) -> 1413 | D172: 42.39 | E172: 1413 | F172: 42.39 | G172: 1 | H172: 1 | I172: 0 | J172: 0 | K172: 0 | L172: 0 | M172: 0 | N172: 0 | P172: 173 | Q172: 5.19 | R172: 173 | S172: 5.19 | T172: 0 | U172: 0 | V172: 0 | W172: 0 | Y172: =SUM(Y168:Y171) -> 173 | Z172: 5.19 | AA172: 173 | AB172: 5.19 | AD172: =J172=#REF! ->  | AE172: TRUE | AG172: =N173+#REF! ->  | AH172: =O173+#REF! -> 
A173: 6.04 | B173: Non-Residential (Continuing from previous year) | G173: 0 | H173: 0 | I173: =C173-G173 -> 0 | J173: =D173-F173 -> 0 | AD173: =J173=#REF! ->  | AE173: TRUE | AG173: =N174+#REF! ->  | AH173: =O174+#REF! -> 
B174: (a) 12 months | C174: 0 | D174: 0 | E174: 0 | F174: 0 | G174: 0 | H174: 0 | I174: =C174-E174 -> 0 | J174: =D174-F174 -> 0 | Q174: =O174*P174 -> 0 | R174: =K174+M174+P174 -> 0 | S174: 0 | Z174: =X174*Y174 -> 0 | AA174: =T174+V174+Y174 -> 0 | AB174: =U174+W174+Z174 -> 0 | AD174: =J174=#REF! ->  | AE174: TRUE | AG174: =N175+#REF! ->  | AH174: =O175+#REF! -> 
B175: (b) 9 months | C175: 0 | D175: 0 | E175: 0 | F175: 0 | G175: 0 | H175: 0 | I175: =C175-E175 -> 0 | J175: =D175-F175 -> 0 | Q175: =O175*P175 -> 0 | R175: 0 | S175: 0 | Z175: =X175*Y175 -> 0 | AA175: 0 | AB175: 0 | AD175: =J175=#REF! ->  | AE175: TRUE | AG175: =N176+#REF! ->  | AH175: =O176+#REF! -> 
B176: (c) 6 months | C176: 0 | D176: 0 | E176: 0 | F176: 0 | G176: 0 | H176: 0 | I176: =C176-E176 -> 0 | J176: =D176-F176 -> 0 | O176: 0.03 | P176: 0 | Q176: =O176*P176 -> 0 | R176: 0 | S176: 0 | X176: 0.03 | Z176: =X176*Y176 -> 0 | AA176: 0 | AB176: 0
B177: (d) 3 months | C177: 0 | D177: 0 | E177: 0 | F177: 0 | G177: 0 | H177: 0 | I177: =C177-E177 -> 0 | J177: =D177-F177 -> 0 | Q177: =O177*P177 -> 0 | R177: 0 | S177: 0 | Z177: =X177*Y177 -> 0 | AA177: 0 | AB177: 0
B178: Sub Total | C178: =SUM(C174:C177) -> 0 | D178: 0 | E178: 0 | F178: 0 | G178: 0 | H178: 0 | I178: 0 | J178: 0 | K178: 0 | L178: 0 | M178: 0 | N178: 0 | P178: 0 | Q178: 0 | R178: 0 | S178: 0 | T178: 0 | U178: 0 | V178: 0 | W178: 0 | Y178: =SUM(Y174:Y177) -> 0 | Z178: 0 | AA178: 0 | AB178: 0
A179: 6.05 | B179: Madarasa/Maktab | G179: 0 | H179: 0 | I179: =C179-G179 -> 0 | J179: =D179-F179 -> 0 | AD179: =J179=#REF! ->  | AE179: =K179=AC179 -> TRUE
B180: (a) 12 months | C180: 0 | D180: 0 | E180: 0 | F180: 0 | G180: 0 | H180: 0 | I180: =C180-E180 -> 0 | J180: =D180-F180 -> 0 | Q180: =O180*P180 -> 0 | R180: =K180+M180+P180 -> 0 | S180: 0 | Z180: =X180*Y180 -> 0 | AA180: =T180+V180+Y180 -> 0 | AB180: =U180+W180+Z180 -> 0 | AD180: =J180=#REF! ->  | AE180: TRUE
B181: (b) 9 months | C181: 0 | D181: 0 | E181: 0 | F181: 0 | G181: 0 | H181: 0 | I181: =C181-E181 -> 0 | J181: =D181-F181 -> 0 | Q181: =O181*P181 -> 0 | R181: 0 | S181: 0 | Z181: =X181*Y181 -> 0 | AA181: 0 | AB181: 0 | AD181: =J181=#REF! ->  | AE181: TRUE
B182: (c) 6 months | C182: 0 | D182: 0 | E182: 0 | F182: 0 | G182: 0 | H182: 0 | I182: =C182-E182 -> 0 | J182: =D182-F182 -> 0 | O182: 0.03 | P182: 0 | Q182: =O182*P182 -> 0 | R182: 0 | S182: 0 | X182: 0.03 | Z182: =X182*Y182 -> 0 | AA182: 0 | AB182: 0 | AD182: =J182=#REF! ->  | AE182: TRUE
B183: (d) 3 months | C183: 79 | D183: 1.185 | E183: 79 | F183: 1.185 | G183: 1 | H183: 1 | I183: =C183-E183 -> 0 | J183: =D183-F183 -> 0 | O183: 0.015 | Q183: =O183*P183 -> 0 | R183: 0 | S183: 0 | X183: 0.015 | Y183: 0 | Z183: =X183*Y183 -> 0 | AA183: 0 | AB183: 0 | AD183: =J183=#REF! ->  | AE183: TRUE
B184: Sub Total | C184: =SUM(C180:C183) -> 79 | D184: 1.185 | E184: 79 | F184: 1.185 | G184: 1 | H184: 1 | I184: 0 | J184: 0 | K184: 0 | L184: 0 | M184: 0 | N184: 0 | P184: 0 | Q184: 0 | R184: 0 | S184: 0 | T184: 0 | U184: 0 | V184: 0 | W184: 0 | Y184: =SUM(Y180:Y183) -> 0 | Z184: 0 | AA184: 0 | AB184: 0 | AD184: =J184=#REF! ->  | AE184: TRUE
A185: 6.06 | B185: Seasonal Hostel (Residential) | G185: 0 | H185: 0 | I185: =C185-G185 -> 0 | J185: =D185-F185 -> 0 | AD185: =J185=#REF! ->  | AE185: TRUE
B186: (a) 12 months | C186: 0 | D186: 0 | E186: 0 | F186: 0 | G186: 0 | H186: 0 | I186: =C186-E186 -> 0 | J186: =D186-F186 -> 0 | Q186: =O186*P186 -> 0 | R186: =K186+M186+P186 -> 0 | S186: 0 | Z186: =X186*Y186 -> 0 | AA186: =T186+V186+Y186 -> 0 | AB186: =U186+W186+Z186 -> 0 | AD186: =J186=#REF! ->  | AE186: TRUE
B187: (b) 9 months | C187: 0 | D187: 0 | E187: 0 | F187: 0 | G187: 0 | H187: 0 | I187: =C187-E187 -> 0 | J187: =D187-F187 -> 0 | Q187: =O187*P187 -> 0 | R187: 0 | S187: 0 | Z187: =X187*Y187 -> 0 | AA187: 0 | AB187: 0 | AD187: =J187=#REF! ->  | AE187: TRUE
B188: (c) 6 months | C188: 0 | D188: 0 | E188: 0 | F188: 0 | G188: 0 | H188: 0 | I188: =C188-E188 -> 0 | J188: =D188-F188 -> 0 | O188: 0.17 | P188: 0 | Q188: =O188*P188 -> 0 | R188: 0 | S188: 0 | X188: 0.1 | Y188: 0 | Z188: =X188*Y188 -> 0 | AA188: 0 | AB188: 0 | AD188: =J188=#REF! ->  | AE188: TRUE
B189: (d) 3 months | C189: 0 | D189: 0 | E189: 0 | F189: 0 | G189: 0 | H189: 0 | I189: =C189-E189 -> 0 | J189: =D189-F189 -> 0 | Q189: =O189*P189 -> 0 | R189: 0 | S189: 0 | Z189: =X189*Y189 -> 0 | AA189: 0 | AB189: 0 | AD189: =J189=#REF! ->  | AE189: TRUE
B190: Sub Total | C190: =SUM(C186:C189) -> 0 | D190: 0 | E190: 0 | F190: 0 | G190: 0 | H190: 0 | I190: 0 | J190: 0 | K190: 0 | L190: 0 | M190: 0 | N190: 0 | P190: 0 | Q190: 0 | R190: 0 | S190: 0 | T190: 0 | U190: 0 | V190: 0 | W190: 0 | Y190: =SUM(Y186:Y189) -> 0 | Z190: 0 | AA190: 0 | AB190: 0 | AD190: =J190=#REF! ->  | AE190: TRUE
A191: 6.07 | B191: Seasonal Hostel | G191: 0 | H191: 0 | I191: =C191-G191 -> 0 | J191: =D191-F191 -> 0 | AD191: =J191=#REF! ->  | AE191: TRUE
B192: (a) 12 months | C192: 0 | D192: 0 | E192: 0 | F192: 0 | G192: 0 | H192: 0 | I192: =C192-E192 -> 0 | J192: =D192-F192 -> 0 | Q192: =O192*P192 -> 0 | R192: =K192+M192+P192 -> 0 | S192: 0 | Z192: =X192*Y192 -> 0 | AA192: =T192+V192+Y192 -> 0 | AB192: =U192+W192+Z192 -> 0 | AD192: =J192=#REF! ->  | AE192: TRUE
B193: (b) 9 months | C193: 0 | D193: 0 | E193: 0 | F193: 0 | G193: 0 | H193: 0 | I193: =C193-E193 -> 0 | J193: =D193-F193 -> 0 | Q193: =O193*P193 -> 0 | R193: 0 | S193: 0 | Z193: =X193*Y193 -> 0 | AA193: 0 | AB193: 0 | AD193: =J193=#REF! ->  | AE193: TRUE
B194: (c) 6 months | C194: 770 | D194: 65.45 | E194: 770 | F194: 65.45 | G194: 1 | H194: 1 | I194: =C194-E194 -> 0 | J194: =D194-F194 -> 0 | O194: 0.1 | P194: 443 | Q194: =O194*P194 -> 44.3 | R194: 443 | S194: 44.3 | X194: 0.1 | Y194: 443 | Z194: =X194*Y194 -> 44.3 | AA194: 443 | AB194: 44.3 | AD194: =J194=#REF! ->  | AE194: TRUE
B195: (d) 3 months | C195: 0 | D195: 0 | E195: 0 | F195: 0 | G195: 0 | H195: 0 | I195: =C195-E195 -> 0 | J195: =D195-F195 -> 0 | Q195: =O195*P195 -> 0 | R195: 0 | S195: 0 | Z195: =X195*Y195 -> 0 | AA195: 0 | AB195: 0 | AD195: =J195=#REF! ->  | AE195: TRUE
B196: Sub Total | C196: =SUM(C192:C195) -> 770 | D196: 65.45 | E196: 770 | F196: 65.45 | G196: 1 | H196: 1 | I196: 0 | J196: 0 | K196: 0 | L196: 0 | M196: 0 | N196: 0 | P196: 443 | Q196: 44.3 | R196: 443 | S196: 44.3 | T196: 0 | U196: 0 | V196: 0 | W196: 0 | Y196: =SUM(Y192:Y195) -> 443 | Z196: 44.3 | AA196: 443 | AB196: 44.3 | AD196: =J196=#REF! ->  | AE196: TRUE
B197: Total | C197: =C160+C166+C172+C178+C184+C190+C196 -> 2262 | D197: 109.025 | E197: 2262 | F197: 109.025 | G197: 1 | H197: 1 | I197: 0 | J197: 0 | K197: 0 | L197: 0 | M197: 0 | N197: 0 | P197: =P160+P166+P172+P178+P184+P190+P196 -> 616 | Q197: 49.49 | R197: 616 | S197: 49.49 | T197: 0 | U197: 0 | V197: 0 | W197: 0 | Y197: =Y160+Y166+Y172+Y178+Y184+Y190+Y196 -> 616 | Z197: =Z160+Z166+Z172+Z178+Z184+Z190+Z196 -> 49.49 | AA197: 616 | AB197: 49.49 | AD197: =J197=#REF! ->  | AE197: TRUE
A198: II | B198: RETENTION | G198: 0 | H198: 0 | I198: =C198-G198 -> 0 | J198: =D198-F198 -> 0 | AD198: =J198=#REF! ->  | AE198: TRUE
A199: 7 | B199: Free Text Books | G199: 0 | H199: 0 | I199: =C199-G199 -> 0 | J199: 0 | AD199: =J199=#REF! ->  | AE199: TRUE
A200: 7.01 | B200: Free Text Books (P) | G200: 0 | H200: 0 | I200: =C200-G200 -> 0 | J200: 0 | AD200: =J200=#REF! ->  | AE200: TRUE
B201: (a) Class I & II | C201: 120797 | D201: 181.1955 | E201: 120797 | F201: 181.1955 | G201: 1 | H201: 1 | I201: =C201-E201 -> 0 | J201: 0 | O201: 0.0015 | P201: 122255 | Q201: =O201*P201 -> 183.3825 | R201: =K201+M201+P201 -> 122255 | S201: =L201+N201+Q201 -> 183.3825 | X201: 0.0015 | Y201: 122255 | Z201: =X201*Y201 -> 183.3825 | AA201: =T201+V201+Y201 -> 122255 | AB201: =U201+W201+Z201 -> 183.3825 | AD201: =J201=#REF! ->  | AE201: TRUE
B202: (b) Braille Books Class I & II | C202: 53 | D202: 0.0795 | E202: 53 | F202: 0.0795 | G202: 1 | H202: 1 | I202: 0 | J202: 0 | O202: 0.0015 | P202: 26 | Q202: =O202*P202 -> 0.039 | R202: =K202+M202+P202 -> 26 | S202: 0.039 | X202: 0.0015 | Y202: 26 | Z202: =X202*Y202 -> 0.039 | AA202: =T202+V202+Y202 -> 26 | AB202: =U202+W202+Z202 -> 0.039 | AD202: =J202=#REF! ->  | AE202: TRUE
... 318 more rows

Sheet Beed
A1: Sarva Shiksha Abhiyan & KGBV - Annual Workplan and Budget 2017-18
A3: District : | B3: Beed | K3: (Rs. In Lakh) | T3: (Rs. In Lakh)
A5: S.No. | B5: Activity | C5: Year 2016-17 | K5: Outlay Proposed for 2017-18 | T5: Outlay Recommended for 2017-18 | AC5: Remarks
C6: Outlay approved by PAB (including spillover) | E6: Achievement | I6: Savings | K6: Spill Over | M6: Deferred laibility of 2014-15 | O6: Fresh | R6: Total | T6: Spill Over | V6: Deferred laibility of 2014-15 | X6: Fresh | AA6: Total
C7: Phy. | D7: Fin | E7: Phy. | F7: Fin. | G7: Phy. (%) | H7: Fin. (%) | I7: Phy. | J7: Fin. | K7: Phy. | L7: Fin. | M7: Phy. | N7: Fin. | O7: Unit Cost | P7: Phy. | Q7: Fin. | R7: Phy. | S7: Fin. | T7: Phy. | U7: Fin. | V7: Phy. | W7: Fin. | X7: Unit Cost | Y7: Phy. | Z7: Fin. | AA7: Phy. | AB7: Fin.
A8: I | B8: ACCESS | I8: =C8-G8 -> 0 | J8: =D8-F8 -> 0
B9: SSA | I9: =C9-G9 -> 0 | J9: 0
A10: 1 | B10: Opening of New Schools | I10: =C10-G10 -> 0 | J10: 0
A11: 1.01 | B11: New Primary School | C11: 0 | D11: 0 | G11: =IFERROR(E11/C11,0) -> 0 | H11: 0 | I11: =C11-E11 -> 0 | J11: 0 | Q11: =O11*P11 -> 0 | R11: =K11+M11+P11 -> 0 | S11: 0 | Z11: =X11*Y11 -> 0 | AA11: =T11+V11+Y11 -> 0 | AB11: =U11+W11+Z11 -> 0
A12: 1.02 | B12: Upgradation of PS to UPS | C12: 0 | D12: 0 | G12: 0 | H12: 0 | I12: 0 | J12: 0 | Q12: 0 | R12: 0 | S12: 0 | Z12: 0 | AA12: 0 | AB12: 0
A13: 1.03 | B13: Composite Schools | C13: 0 | D13: 0 | G13: 0 | H13: 0 | I13: 0 | J13: 0 | Q13: 0 | R13: 0 | S13: 0 | Z13: 0 | AA13: 0 | AB13: 0
A14: 1.04 | B14: Residential schools for specific category of children | C14: 0 | D14: 0 | G14: 0 | H14: 0 | I14: 0 | J14: 0 | Q14: 0 | R14: 0 | S14: 0 | Z14: 0 | AA14: 0 | AB14: 0
A15: 1.05 | B15: Residential Hostel | C15: 0 | D15: 0 | G15: 0 | H15: 0 | I15: 0 | J15: 0 | Q15: 0 | R15: 0 | S15: 0 | Z15: 0 | AA15: 0 | AB15: 0
A16: 1.06 | B16: Integration of Class V with primary schools | C16: 0 | D16: 0 | G16: 0 | H16: 0 | I16: 0 | J16: 0 | Q16: 0 | R16: 0 | S16: 0 | Z16: 0 | AA16: 0 | AB16: 0
A17: 1.07 | B17: Integration of Class VIII with upper primary schools | C17: 0 | D17: 0 | G17: 0 | H17: 0 | I17: 0 | J17: 0 | Q17: 0 | R17: 0 | S17: 0 | Z17: 0 | AA17: 0 | AB17: 0
A18: 2 | B18: Residential Schools for specific category of children | G18: 0 | H18: 0 | I18: =C18-G18 -> 0 | J18: 0
A19: I | B19: 50 children | G19: 0 | H19: 0 | I19: =C19-G19 -> 0 | J19: 0
A20: (A) | B20: Non-recurring (one time grant) | G20: 0 | H20: 0 | I20: =C20-G20 -> 0 | J20: 0
A21: 2.01 | B21: Furniture/ Equipment (including kitchen) | C21: 0 | D21: 0 | G21: 0 | H21: 0 | I21: =C21-E21 -> 0 | J21: 0 | Q21: =O21*P21 -> 0 | R21: =K21+M21+P21 -> 0 | S21: 0 | Z21: =X21*Y21 -> 0 | AA21: =T21+V21+Y21 -> 0 | AB21: =U21+W21+Z21 -> 0
A22: 2.02 | B22: TLM and equipment including library books | C22: 0 | D22: 0 | G22: 0 | H22: 0 | I22: =C22-E22 -> 0 | J22: 0 | Q22: =O22*P22 -> 0 | R22: 0 | S22: 0 | Z22: =X22*Y22 -> 0 | AA22: 0 | AB22: 0
A23: 2.03 | B23: Bedding (new) | C23: 0 | D23: 0 | G23: 0 | H23: 0 | I23: =C23-E23 -> 0 | J23: 0 | Q23: =O23*P23 -> 0 | R23: 0 | S23: 0 | Z23: =X23*Y23 -> 0 | AA23: 0 | AB23: 0
A24: 2.04 | B24: Replacement of bedding (once in 3 years) | C24: 0 | D24: 0 | G24: 0 | H24: 0 | I24: =C24-E24 -> 0 | J24: 0 | Q24: =O24*P24 -> 0 | R24: 0 | S24: 0 | Z24: =X24*Y24 -> 0 | AA24: 0 | AB24: 0
B25: Sub Total (Non Recurring) | C25: =SUM(C21:C24) -> 0 | D25: 0 | E25: 0 | F25: 0 | G25: 0 | H25: 0 | I25: 0 | J25: 0 | K25: 0 | L25: 0 | M25: 0 | N25: 0 | P25: 0 | Q25: 0 | R25: 0 | S25: 0 | T25: 0 | U25: 0 | V25: 0 | W25: 0 | Y25: =SUM(Y21:Y24) -> 0 | Z25: 0 | AA25: 0 | AB25: 0
A26: (B) | B26: Recurring (50 children) | G26: 0 | H26: 0 | I26: =C26-G26 -> 0 | J26: =D26-F26 -> 0
A27: 2.05 | B27: Maintenance per child Per month @ Rs.1500/- | C27: 0 | D27: 0 | G27: 0 | H27: 0 | I27: =C27-E27 -> 0 | J27: 0 | Q27: =O27*P27 -> 0 | R27: =K27+M27+P27 -> 0 | S27: 0 | Z27: =X27*Y27 -> 0 | AA27: =T27+V27+Y27 -> 0 | AB27: =U27+W27+Z27 -> 0
A28: 2.06 | B28: Stipend per child per month @ Rs.100/- | C28: 0 | D28: 0 | G28: 0 | H28: 0 | I28: 0 | J28: 0 | Q28: =O28*P28 -> 0 | R28: 0 | S28: 0 | Z28: =X28*Y28 -> 0 | AA28: 0 | AB28: 0
A29: 2.07 | B29: Supplementary TLM, Stationery and other educational material @Rs.1000/- per child per annum | C29: 0 | D29: 0 | G29: 0 | H29: 0 | I29: 0 | J29: 0 | Q29: =O29*P29 -> 0 | R29: 0 | S29: 0 | Z29: =X29*Y29 -> 0 | AA29: 0 | AB29: 0
A30: 2.08 | B30: Salaries | G30: 0 | H30: 0 | I30: 0 | J30: 0
A31: (a) | B31: 1 Warden @ Rs.25000/- per month | C31: 0 | D31: 0 | G31: 0 | H31: 0 | I31: 0 | J31: 0 | Q31: =O31*P31 -> 0 | R31: =K31+M31+P31 -> 0 | S31: 0 | Z31: =X31*Y31 -> 0 | AA31: =T31+V31+Y31 -> 0 | AB31: =U31+W31+Z31 -> 0
A32: (b) | B32: 4 Fulltime teachers as per RTE Norms @ Rs. 20,000/- per month per teacher | C32: 0 | D32: 0 | G32: 0 | H32: 0 | I32: 0 | J32: 0 | Q32: 0 | R32: 0 | S32: 0 | Z32: 0 | AA32: 0 | AB32: 0
A33: (c) | B33: 2 Urdu Teachers (only for Blocks with muslim population above 20% and select urban areas) @ Rs.12,000/- per month per teacher. | C33: 0 | D33: 0 | G33: 0 | H33: 0 | I33: 0 | J33: 0 | Q33: 0 | R33: 0 | S33: 0 | Z33: 0 | AA33: 0 | AB33: 0
A34: (d) | B34: 3 Part time teachers @ Rs.5,000/- per month per teacher | C34: 0 | D34: 0 | G34: 0 | H34: 0 | I34: 0 | J34: 0 | Q34: 0 | R34: 0 | S34: 0 | Z34: 0 | AA34: 0 | AB34: 0
A35: (e) | B35: 1 Full time Accountant @ Rs. 10,000/- per month | C35: 0 | D35: 0 | G35: 0 | H35: 0 | I35: 0 | J35: 0 | Q35: 0 | R35: 0 | S35: 0 | Z35: 0 | AA35: 0 | AB35: 0
A36: (f) | B36: 2 Support staff - (Accountant/Assistant, Peon, Chowkidar) @ Rs. 5,000/- per month per staff | C36: 0 | D36: 0 | G36: 0 | H36: 0 | I36: 0 | J36: 0 | Q36: 0 | R36: 0 | S36: 0 | Z36: 0 | AA36: 0 | AB36: 0
A37: (g) | B37: 1 Head Cook @ Rs. 6,000/- per month and upto 2 Asstt. Cooks @ Rs. 4,500/- per month per cook | C37: 0 | D37: 0 | G37: 0 | H37: 0 | I37: 0 | J37: 0 | Q37: 0 | R37: 0 | S37: 0 | Z37: 0 | AA37: 0 | AB37: 0
A38: 2.09 | B38: Specific Skill training @ Rs.1000/- per annum per child | C38: 0 | D38: 0 | G38: 0 | H38: 0 | I38: 0 | J38: 0 | Q38: 0 | R38: 0 | S38: 0 | Z38: 0 | AA38: 0 | AB38: 0
A39: 2.1 | B39: Electricity / water charges @ Rs. 1000/- per annum per child | C39: 0 | D39: 0 | G39: 0 | H39: 0 | I39: 0 | J39: 0 | Q39: 0 | R39: 0 | S39: 0 | Z39: 0 | AA39: 0 | AB39: 0
A40: 2.11 | B40: Medical care/contingencies @ Rs.1250/- per annum per child | C40: 0 | D40: 0 | G40: 0 | H40: 0 | I40: 0 | J40: 0 | Q40: 0 | R40: 0 | S40: 0 | Z40: 0 | AA40: 0 | AB40: 0
A41: =+A40+0.01 -> 2.12 | B41: Maintenance @ Rs. 750/- per child per annum | C41: 0 | D41: 0 | G41: 0 | H41: 0 | I41: 0 | J41: 0 | Q41: 0 | R41: 0 | S41: 0 | Z41: 0 | AA41: 0 | AB41: 0
A42: 2.13 | B42: Miscellaneous @ Rs. 750/- per child per annum | C42: 0 | D42: 0 | G42: 0 | H42: 0 | I42: 0 | J42: 0 | Q42: 0 | R42: 0 | S42: 0 | Z42: 0 | AA42: 0 | AB42: 0
A43: 2.14 | B43: Preparatory camps @ Rs. 300/- per child per annum | C43: 0 | D43: 0 | G43: =IFERROR(E43/C43,0) -> 0 | H43: 0 | I43: 0 | J43: 0 | Q43: 0 | R43: 0 | S43: 0 | Z43: 0 | AA43: 0 | AB43: 0
A44: 2.15 | B44: P.T.A / school functions @ Rs. 300/- per child per annum | C44: 0 | D44: 0 | G44: 0 | H44: 0 | I44: 0 | J44: 0 | Q44: 0 | R44: 0 | S44: 0 | Z44: 0 | AA44: 0 | AB44: 0
A45: 2.16 | B45: Provision of Rent @ Rs. 10,000/- per child per annum | C45: 0 | D45: 0 | G45: 0 | H45: 0 | I45: 0 | J45: 0 | Q45: 0 | R45: 0 | S45: 0 | Z45: 0 | AA45: 0 | AB45: 0
A46: 2.17 | B46: Capacity Building @ Rs. 500/- per child per annum | C46: 0 | D46: 0 | G46: 0 | H46: 0 | I46: 0 | J46: 0 | Q46: 0 | R46: 0 | S46: 0 | Z46: 0 | AA46: 0 | AB46: 0
A47: 2.18 | B47: Physical / Self Defence Training @ Rs.200/- per child per annum | C47: 0 | D47: 0 | G47: 0 | H47: 0 | I47: 0 | J47: 0 | Q47: 0 | R47: 0 | S47: 0 | Z47: 0 | AA47: 0 | AB47: 0
B48: Sub Total (Recurring) | C48: =SUM(C27:C47) -> 0 | D48: 0 | E48: 0 | F48: 0 | G48: 0 | H48: 0 | I48: 0 | J48: 0 | K48: 0 | L48: 0 | M48: 0 | N48: 0 | P48: 0 | Q48: 0 | R48: 0 | S48: 0 | T48: 0 | U48: 0 | V48: 0 | W48: 0 | Y48: =SUM(Y27:Y47) -> 0 | Z48: 0 | AA48: 0 | AB48: 0
B49: Total (Non Recurring + Recurring) | C49: =C25+C48 -> 0 | D49: 0 | E49: 0 | F49: 0 | G49: 0 | H49: 0 | I49: 0 | J49: 0 | K49: 0 | L49: 0 | M49: 0 | N49: 0 | P49: 0 | Q49: 0 | R49: 0 | S49: 0 | T49: 0 | U49: 0 | V49: 0 | W49: 0 | Y49: =Y25+Y48 -> 0 | Z49: 0 | AA49: 0 | AB49: 0
A50: II | B50: 100 children | G50: 0 | H50: 0 | I50: =C50-G50 -> 0 | J50: =D50-F50 -> 0
A51: (A) | B51: Non-recurring (one time grant) | G51: 0 | H51: 0 | I51: =C51-G51 -> 0 | J51: 0
A52: 2.19 | B52: Furniture / Equipment (including kitchen equipment) | C52: 0 | D52: 0 | G52: 0 | H52: 0 | I52: =C52-E52 -> 0 | J52: 0 | Q52: =O52*P52 -> 0 | R52: =K52+M52+P52 -> 0 | S52: 0 | Z52: =X52*Y52 -> 0 | AA52: =T52+V52+Y52 -> 0 | AB52: =U52+W52+Z52 -> 0
A53: =+A52+0.01 -> 2.2 | B53: TLM and equipment including library books (New) | C53: 0 | D53: 0 | G53: 0 | H53: 0 | I53: =C53-E53 -> 0 | J53: 0 | Q53: =O53*P53 -> 0 | R53: 0 | S53: 0 | Z53: =X53*Y53 -> 0 | AA53: 0 | AB53: 0
A54: =+A53+0.01 -> 2.21 | B54: Bedding (New) | C54: 0 | D54: 0 | G54: 0 | H54: 0 | I54: =C54-E54 -> 0 | J54: 0 | Q54: =O54*P54 -> 0 | R54: 0 | S54: 0 | Z54: =X54*Y54 -> 0 | AA54: 0 | AB54: 0
A55: =+A54+0.01 -> 2.22 | B55: Replacement of bedding (once in 3 years) | C55: 0 | D55: 0 | G55: 0 | H55: 0 | I55: =C55-E55 -> 0 | J55: 0 | Q55: =O55*P55 -> 0 | R55: 0 | S55: 0 | Z55: =X55*Y55 -> 0 | AA55: 0 | AB55: 0
B56: Sub Total Non-recurring | C56: =SUM(C52:C55) -> 0 | D56: 0 | E56: 0 | F56: 0 | G56: 0 | H56: 0 | I56: 0 | J56: 0 | K56: 0 | L56: 0 | M56: 0 | N56: 0 | P56: 0 | Q56: 0 | R56: 0 | S56: 0 | T56: 0 | U56: 0 | V56: 0 | W56: 0 | Y56: =SUM(Y52:Y55) -> 0 | Z56: 0 | AA56: 0 | AB56: 0
A57: (B) | B57: Recurring | G57: 0 | H57: 0 | I57: =C57-G57 -> 0 | J57: =D57-F57 -> 0
A58: 2.23 | B58: Maintenance per child per month @ Rs. 1500/- | C58: 0 | D58: 0 | G58: 0 | H58: 0 | I58: =C58-E58 -> 0 | J58: 0 | Q58: =O58*P58 -> 0 | R58: =K58+M58+P58 -> 0 | S58: 0 | Z58: =X58*Y58 -> 0 | AA58: =T58+V58+Y58 -> 0 | AB58: =U58+W58+Z58 -> 0
A59: =+A58+0.01 -> 2.24 | B59: Stipend per child per month @ Rs.100/- | C59: 0 | D59: 0 | G59: 0 | H59: 0 | I59: 0 | J59: 0 | Q59: =O59*P59 -> 0 | R59: 0 | S59: 0 | Z59: =X59*Y59 -> 0 | AA59: 0 | AB59: 0
A60: 2.25 | B60: Supplementary TLM, Stationery and other educational material per child @1000/- per annum | C60: 0 | D60: 0 | G60: 0 | H60: 0 | I60: 0 | J60: 0 | Q60: =O60*P60 -> 0 | R60: 0 | S60: 0 | Z60: =X60*Y60 -> 0 | AA60: 0 | AB60: 0
A61: 2.26 | B61: Salaries | G61: 0 | H61: 0 | I61: 0 | J61: 0
A62: (a) | B62: 1 Warden @ Rs. 25,000/- per month | C62: 0 | D62: 0 | G62: 0 | H62: 0 | I62: 0 | J62: 0 | Q62: =O62*P62 -> 0 | R62: =K62+M62+P62 -> 0 | S62: 0 | Z62: =X62*Y62 -> 0 | AA62: =T62+V62+Y62 -> 0 | AB62: =U62+W62+Z62 -> 0
A63: (b) | B63: 1 head teacher @ Rs. 25,000/- per month in case the enrollment exceeds 100 | C63: 0 | D63: 0 | G63: 0 | H63: 0 | I63: 0 | J63: 0 | Q63: 0 | R63: 0 | S63: 0 | Z63: 0 | AA63: 0 | AB63: 0
A64: (c) | B64: 4 - 5 Full time teachers as per RTE norms @ Rs. 20,000/- per month per teacher | C64: 0 | D64: 0 | G64: 0 | H64: 0 | I64: 0 | J64: 0 | Q64: 0 | R64: 0 | S64: 0 | Z64: 0 | AA64: 0 | AB64: 0
A65: (d) | B65: 2 Urdu Teachers (only for blocks with muslim population above 20% and select urban areas), if required @ Rs. 12,000/- per month per teacher | C65: 0 | D65: 0 | G65: 0 | H65: 0 | I65: 0 | J65: 0 | Q65: 0 | R65: 0 | S65: 0 | Z65: 0 | AA65: 0 | AB65: 0
A66: (e) | B66: 3 part time teachers @ Rs. 5,000/- per month per teacher | C66: 0 | D66: 0 | G66: 0 | H66: 0 | I66: 0 | J66: 0 | Q66: 0 | R66: 0 | S66: 0 | Z66: 0 | AA66: 0 | AB66: 0
A67: (f) | B67: 1 Full time Accountant @ Rs. 10,000/- per month | C67: 0 | D67: 0 | G67: 0 | H67: 0 | I67: 0 | J67: 0 | Q67: 0 | R67: 0 | S67: 0 | Z67: 0 | AA67: 0 | AB67: 0
A68: (g) | B68: 2 Support Staff – (Accountant/ Assistant, Peon, Chowkidar) @ Rs. 5,000/- per month per staff | C68: 0 | D68: 0 | G68: 0 | H68: 0 | I68: 0 | J68: 0 | Q68: 0 | R68: 0 | S68: 0 | Z68: 0 | AA68: 0 | AB68: 0
A69: (h) | B69: 1 Head cook @ Rs. 6,000/- per month and upto 2 Asstt. Cooks @ Rs. 4,500/- per month per cook | C69: 0 | D69: 0 | G69: 0 | H69: 0 | I69: 0 | J69: 0 | Q69: 0 | R69: 0 | S69: 0 | Z69: 0 | AA69: 0 | AB69: 0
A70: 2.27 | B70: Specific skill training per child @ Rs.1000/- per annum | C70: 0 | D70: 0 | G70: 0 | H70: 0 | I70: 0 | J70: 0 | Q70: 0 | R70: 0 | S70: 0 | Z70: 0 | AA70: 0 | AB70: 0
A71: 2.28 | B71: Electricity / water charges per child @Rs.1000/- per annum | C71: 0 | D71: 0 | G71: 0 | H71: 0 | I71: 0 | J71: 0 | Q71: 0 | R71: 0 | S71: 0 | Z71: 0 | AA71: 0 | AB71: 0
A72: 2.29 | B72: Medical care/contingencies @ Rs.1250/- per child per annum | C72: 0 | D72: 0 | G72: 0 | H72: 0 | I72: 0 | J72: 0 | Q72: 0 | R72: 0 | S72: 0 | Z72: 0 | AA72: 0 | AB72: 0
A73: 2.3 | B73: Maintenance @ Rs.750/- per child per annum | C73: 0 | D73: 0 | G73: 0 | H73: 0 | I73: 0 | J73: 0 | Q73: 0 | R73: 0 | S73: 0 | Z73: 0 | AA73: 0 | AB73: 0
A74: 2.31 | B74: Miscellaneous @ Rs.750/- per child per annum | C74: 0 | D74: 0 | G74: 0 | H74: 0 | I74: 0 | J74: 0 | Q74: 0 | R74: 0 | S74: 0 | Z74: 0 | AA74: 0 | AB74: 0
A75: 2.32 | B75: Preparatory camps @ Rs.200/- per child per annum | C75: 0 | D75: 0 | G75: =IFERROR(E75/C75,0) -> 0 | H75: 0 | I75: 0 | J75: 0 | Q75: 0 | R75: 0 | S75: 0 | Z75: 0 | AA75: 0 | AB75: 0
A76: 2.33 | B76: P.T.A / school functions @ Rs.200/- per child per annum | C76: 0 | D76: 0 | G76: 0 | H76: 0 | I76: 0 | J76: 0 | Q76: 0 | R76: 0 | S76: 0 | Z76: 0 | AA76: 0 | AB76: 0
A77: 2.34 | B77: Provision of Rent @ Rs. 6000/- per child per annum | C77: 0 | D77: 0 | G77: 0 | H77: 0 | I77: 0 | J77: 0 | Q77: 0 | R77: 0 | S77: 0 | Z77: 0 | AA77: 0 | AB77: 0
A78: 2.35 | B78: Capacity Building @ Rs.500/- per child per annum | C78: 0 | D78: 0 | G78: 0 | H78: 0 | I78: 0 | J78: 0 | Q78: 0 | R78: 0 | S78: 0 | Z78: 0 | AA78: 0 | AB78: 0
A79: 2.36 | B79: Physical / Self Defence training @ Rs. 200/- per child per annum. | C79: 0 | D79: 0 | G79: 0 | H79: 0 | I79: 0 | J79: 0 | Q79: 0 | R79: 0 | S79: 0 | Z79: 0 | AA79: 0 | AB79: 0
B80: Sub Total (Recurring) | C80: =SUM(C58:C79) -> 0 | D80: 0 | E80: 0 | F80: 0 | G80: 0 | H80: 0 | I80: 0 | J80: 0 | K80: 0 | L80: 0 | M80: 0 | N80: 0 | P80: 0 | Q80: 0 | R80: 0 | S80: 0 | T80: 0 | U80: 0 | V80: 0 | W80: 0 | Y80: =SUM(Y58:Y79) -> 0 | Z80: 0 | AA80: 0 | AB80: 0
B81: Total (Recurring + Non Recurring) | C81: =C56+C80 -> 0 | D81: 0 | E81: 0 | F81: 0 | G81: 0 | H81: 0 | I81: 0 | J81: 0 | K81: 0 | L81: 0 | M81: 0 | N81: 0 | P81: 0 | Q81: 0 | R81: 0 | S81: 0 | T81: 0 | U81: 0 | V81: 0 | W81: 0 | Y81: =Y56+Y80 -> 0 | Z81: 0 | AA81: 0 | AB81: 0
A82: 2 | B82: Total (50 + 100 children) | C82: =C49+C81 -> 0 | D82: 0 | E82: 0 | F82: 0 | G82: 0 | H82: 0 | I82: 0 | J82: 0 | K82: 0 | L82: 0 | M82: 0 | N82: 0 | O82: 0 | P82: 0 | Q82: 0 | R82: =R49+R81 -> 0 | S82: =S49+S81 -> 0 | T82: 0 | U82: 0 | V82: =V49+V81 -> 0 | W82: 0 | X82: 0 | Y82: =Y49+Y81 -> 0 | Z82: 0 | AA82: =AA49+AA81 -> 0 | AB82: =AB49+AB81 -> 0
A83: 3 | B83: Residential Hostel for specific category of children | G83: 0 | H83: 0 | I83: =C83-G83 -> 0 | J83: =D83-F83 -> 0
A84: (A) | B84: 50 children | G84: 0 | H84: 0 | I84: =C84-G84 -> 0 | J84: 0
B85: Non-recurring (one time grant) | G85: 0 | H85: 0 | I85: =C85-G85 -> 0 | J85: 0
A86: 3.01 | B86: Furniture/ Equipment (including kitchen) | C86: 0 | D86: 0 | G86: 0 | H86: 0 | I86: =C86-E86 -> 0 | J86: 0 | O86: 7 | P86: 0 | Q86: =O86*P86 -> 0 | R86: =K86+M86+P86 -> 0 | S86: 0 | X86: 7 | Z86: =X86*Y86 -> 0 | AA86: =T86+V86+Y86 -> 0 | AB86: =U86+W86+Z86 -> 0
A87: =+A86+0.01 -> 3.02 | B87: TLM and equipment including library books | C87: 0 | D87: 0 | G87: 0 | H87: 0 | I87: =C87-E87 -> 0 | J87: 0 | O87: 10.5 | P87: 0 | Q87: =O87*P87 -> 0 | R87: 0 | S87: 0 | X87: 10.5 | Z87: =X87*Y87 -> 0 | AA87: 0 | AB87: 0
A88: =+A87+0.01 -> 3.03 | B88: Bedding (new) | C88: 0 | D88: 0 | G88: 0 | H88: 0 | I88: =C88-E88 -> 0 | J88: 0 | Q88: =O88*P88 -> 0 | R88: 0 | S88: 0 | Z88: =X88*Y88 -> 0 | AA88: 0 | AB88: 0
A89: =+A88+0.01 -> 3.04 | B89: Replacement of bedding (once in 3 years) | C89: 0 | D89: 0 | G89: 0 | H89: 0 | I89: =C89-E89 -> 0 | J89: 0 | O89: 0.375 | P89: 0 | Q89: =O89*P89 -> 0 | R89: 0 | S89: 0 | X89: 0.375 | Y89: 0 | Z89: =X89*Y89 -> 0 | AA89: 0 | AB89: 0
B90: Sub Total (Non Recurring) | C90: =SUM(C86:C89) -> 0 | D90: 0 | E90: 0 | F90: 0 | G90: 0 | H90: 0 | I90: 0 | J90: 0 | K90: 0 | L90: 0 | M90: 0 | N90: 0 | P90: =P86 -> 0 | Q90: 0 | R90: 0 | S90: 0 | T90: 0 | U90: 0 | V90: 0 | W90: 0 | Y90: =Y86 -> 0 | Z90: =SUM(Z86:Z89) -> 0 | AA90: 0 | AB90: 0
B91: Recurring (50 children) | G91: 0 | H91: 0 | I91: =C91-G91 -> 0 | J91: =D91-F91 -> 0
A92: 3.05 | B92: Maintenance per child Per month @ Rs.1500/- | C92: 0 | D92: 0 | E92: =C92 -> 0 | F92: =D92 -> 0 | G92: 0 | H92: 0 | I92: =C92-E92 -> 0 | J92: 0 | O92: 9 | P92: 0 | Q92: =O92*P92 -> 0 | R92: =K92+M92+P92 -> 0 | S92: 0 | X92: 9 | Y92: 0 | Z92: =X92*Y92 -> 0 | AA92: =T92+V92+Y92 -> 0 | AB92: =U92+W92+Z92 -> 0
A93: =+A92+0.01 -> 3.06 | B93: Stipend per child per month @ Rs.100/- | C93: 0 | D93: 0 | E93: =C93 -> 0 | F93: =D93 -> 0 | G93: 0 | H93: 0 | I93: 0 | J93: 0 | O93: 0.6 | P93: 0 | Q93: =O93*P93 -> 0 | R93: 0 | S93: 0 | X93: 0.6 | Y93: 0 | Z93: =X93*Y93 -> 0 | AA93: 0 | AB93: 0
A94: =+A93+0.01 -> 3.07 | B94: Supplementary TLM, Stationery and other educational material @Rs.1000/- per child per annum | C94: 0 | D94: 0 | E94: 0 | F94: 0 | G94: 0 | H94: 0 | I94: 0 | J94: 0 | O94: 0.5 | P94: 0 | Q94: =O94*P94 -> 0 | R94: 0 | S94: 0 | X94: 0.5 | Y94: 0 | Z94: =X94*Y94 -> 0 | AA94: 0 | AB94: 0
B95: Salaries | E95: =ROUND(C95*100/100,0) -> 0 | F95: =D95 -> 0 | I95: 0 | J95: 0
A96: (a) | B96: 1 Warden @ Rs.25000/- per month | C96: 0 | D96: 0 | E96: =C96 -> 0 | F96: 0 | G96: =IFERROR(E96/C96,0) -> 0 | H96: 0 | I96: 0 | J96: 0 | O96: 3 | P96: 0 | Q96: =O96*P96 -> 0 | R96: =K96+M96+P96 -> 0 | S96: 0 | X96: 3 | Y96: 0 | Z96: =X96*Y96 -> 0 | AA96: =T96+V96+Y96 -> 0 | AB96: =U96+W96+Z96 -> 0
A97: (b) | B97: 4 Fulltime teachers as per RTE Norms @ Rs. 20,000/- per month per teacher | C97: 0 | D97: 0 | E97: 0 | F97: 0 | G97: 0 | H97: 0 | I97: 0 | J97: 0 | P97: 0 | Q97: =O97*P97 -> 0 | R97: 0 | S97: 0 | Y97: 0 | Z97: =X97*Y97 -> 0 | AA97: 0 | AB97: 0
A98: (c) | B98: 2 Urdu Teachers (only for Blocks with muslim population above 20% and select urban areas) @ Rs.12,000/- per month per teacher. | C98: 0 | D98: 0 | E98: 0 | F98: 0 | G98: 0 | H98: 0 | I98: 0 | J98: 0 | P98: 0 | Q98: 0 | R98: 0 | S98: 0 | Y98: 0 | Z98: 0 | AA98: 0 | AB98: 0
A99: (d) | B99: 3 Part time teachers @ Rs.5,000/- per month per teacher | C99: 0 | D99: 0 | E99: 0 | F99: 0 | G99: 0 | H99: 0 | I99: 0 | J99: 0 | O99: 1.8 | P99: 0 | Q99: 0 | R99: 0 | S99: 0 | X99: 1.8 | Y99: 0 | Z99: 0 | AA99: 0 | AB99: 0
A100: (e) | B100: 1 Full time Accountant @ Rs. 10,000/- per month | C100: 0 | D100: 0 | E100: 0 | F100: 0 | G100: 0 | H100: 0 | I100: 0 | J100: 0 | O100: 1.2 | P100: 0 | Q100: 0 | R100: 0 | S100: 0 | X100: 1.2 | Y100: 0 | Z100: 0 | AA100: 0 | AB100: 0
A101: (f) | B101: 2 Support staff - (Accountant/Assistant, Peon, Chowkidar) @ Rs. 5,000/- per month per staff | C101: 0 | D101: 0 | E101: 0 | F101: 0 | G101: 0 | H101: 0 | I101: 0 | J101: 0 | O101: 1.2 | P101: 0 | Q101: 0 | R101: 0 | S101: 0 | X101: 1.2 | Y101: 0 | Z101: 0 | AA101: 0 | AB101: 0
A102: (g) | B102: 1 Head Cook @ Rs. 6,000/- per month and upto 2 Asstt. Cooks @ Rs. 4,500/- per month per cook | C102: 0 | D102: 0 | E102: 0 | F102: 0 | G102: 0 | H102: 0 | I102: 0 | J102: 0 | O102: 1.8 | P102: 0 | Q102: 0 | R102: 0 | S102: 0 | X102: 1.8 | Y102: 0 | Z102: 0 | AA102: 0 | AB102: 0
A103: 3.08 | B103: Specific Skill training @ Rs.1000/- per annum per child | C103: 0 | D103: 0 | E103: 0 | F103: 0 | G103: 0 | H103: 0 | I103: 0 | J103: 0 | P103: 0 | Q103: 0 | R103: 0 | S103: 0 | Y103: 0 | Z103: 0 | AA103: 0 | AB103: 0
A104: =+A103+0.01 -> 3.09 | B104: Electricity / water charges @ Rs. 1000/- per annum per child | C104: 0 | D104: 0 | E104: 0 | F104: 0 | G104: 0 | H104: 0 | I104: 0 | J104: 0 | O104: 0.5 | P104: 0 | Q104: 0 | R104: 0 | S104: 0 | X104: 0.5 | Y104: 0 | Z104: 0 | AA104: 0 | AB104: 0
A105: 3.1 | B105: Medical care/contingencies @ Rs.1250/- per annum per child | C105: 0 | D105: 0 | E105: 0 | F105: 0 | G105: 0 | H105: 0 | I105: 0 | J105: 0 | O105: 0.625 | P105: 0 | Q105: 0 | R105: 0 | S105: 0 | X105: 0.625 | Y105: 0 | Z105: 0 | AA105: 0 | AB105: 0
A106: 3.11 | B106: Maintenance @ Rs. 750/- per child per annum | C106: 0 | D106: 0 | E106: 0 | F106: 0 | G106: 0 | H106: 0 | I106: 0 | J106: 0 | O106: 0.375 | P106: 0 | Q106: 0 | R106: 0 | S106: 0 | X106: 0.375 | Y106: 0 | Z106: 0 | AA106: 0 | AB106: 0
A107: 3.12 | B107: Miscellaneous @ Rs. 750/- per child per annum | C107: 0 | D107: 0 | E107: 0 | F107: 0 | G107: 0 | H107: 0 | I107: 0 | J107: 0 | O107: 0.375 | P107: 0 | Q107: 0 | R107: 0 | S107: 0 | X107: 0.375 | Y107: 0 | Z107: 0 | AA107: 0 | AB107: 0
A108: 3.13 | B108: Preparatory camps @ Rs. 300/- per child per annum | C108: 0 | D108: 0 | E108: 0 | F108: 0 | G108: 0 | H108: 0 | I108: 0 | J108: 0 | P108: 0 | Q108: 0 | R108: 0 | S108: 0 | Y108: 0 | Z108: 0 | AA108: 0 | AB108: 0
A109: 3.14 | B109: P.T.A / school functions @ Rs. 300/- per child per annum | C109: 0 | D109: 0 | E109: 0 | F109: 0 | G109: 0 | H109: 0 | I109: 0 | J109: 0 | P109: 0 | Q109: 0 | R109: 0 | S109: 0 | Y109: 0 | Z109: 0 | AA109: 0 | AB109: 0
A110: 3.15 | B110: Provision of Rent @ Rs. 10,000/- per child per annum | C110: 0 | D110: 0 | E110: 0 | F110: 0 | G110: 0 | H110: 0 | I110: 0 | J110: 0 | P110: 0 | Q110: 0 | R110: 0 | S110: 0 | Y110: 0 | Z110: 0 | AA110: 0 | AB110: 0
A111: 3.16 | B111: Capacity Building @ Rs. 500/- per child per annum | C111: 0 | D111: 0 | E111: 0 | F111: 0 | G111: 0 | H111: 0 | I111: 0 | J111: 0 | O111: 0.25 | P111: 0 | Q111: 0 | R111: 0 | S111: 0 | X111: 0.25 | Y111: 0 | Z111: 0 | AA111: 0 | AB111: 0
A112: 3.17 | B112: Physical / Self Defence Training @ Rs.200/- per child per annum | C112: 0 | D112: 0 | E112: 0 | F112: 0 | G112: 0 | H112: 0 | I112: 0 | J112: 0 | O112: 0.1 | P112: 0 | Q112: 0 | R112: 0 | S112: 0 | X112: 0.1 | Y112: 0 | Z112: 0 | AA112: 0 | AB112: 0
B113: Sub Total (Recurring) | C113: =C112 -> 0 | D113: =SUM(D92:D112) -> 0 | E113: =E112 -> 0 | F113: 0 | G113: 0 | H113: 0 | I113: =I112 -> 0 | J113: 0 | K113: 0 | L113: 0 | M113: 0 | N113: 0 | P113: =P112 -> 0 | Q113: 0 | R113: =R112 -> 0 | S113: =SUM(S92:S112) -> 0 | T113: 0 | U113: 0 | V113: =SUM(V92:V112) -> 0 | W113: =SUM(W92:W112) -> 0 | Y113: =Y112 -> 0 | Z113: =SUM(Z92:Z112) -> 0 | AA113: =AA112 -> 0 | AB113: =SUM(AB92:AB112) -> 0
B114: Total (Non Recurring + Recurring) | C114: =C90+C113 -> 0 | D114: 0 | E114: 0 | F114: 0 | G114: 0 | H114: 0 | I114: 0 | J114: 0 | K114: 0 | L114: 0 | M114: 0 | N114: 0 | P114: 0 | Q114: 0 | R114: 0 | S114: 0 | T114: 0 | U114: 0 | V114: 0 | W114: 0 | Y114: =Y90+Y113 -> 0 | Z114: 0 | AA114: 0 | AB114: 0
A115: (B) | B115: 100 Children | G115: 0 | H115: 0 | I115: =C115-G115 -> 0 | J115: =D115-F115 -> 0
B116: Non-recurring (one time grant) | G116: 0 | H116: 0 | I116: =C116-G116 -> 0 | J116: 0
A117: 3.18 | B117: Furniture / Equipment (including kitchen equipment) | C117: 0 | D117: 0 | G117: 0 | H117: 0 | I117: =C117-E117 -> 0 | J117: 0 | Q117: =O117*P117 -> 0 | R117: =K117+M117+P117 -> 0 | S117: 0 | Z117: =X117*Y117 -> 0 | AA117: =T117+V117+Y117 -> 0 | AB117: =U117+W117+Z117 -> 0
A118: =+A117+0.01 -> 3.19 | B118: TLM and equipment including library books (New) | C118: 0 | D118: 0 | G118: 0 | H118: 0 | I118: =C118-E118 -> 0 | J118: 0 | Q118: =O118*P118 -> 0 | R118: 0 | S118: 0 | Z118: =X118*Y118 -> 0 | AA118: 0 | AB118: 0
A119: =+A118+0.01 -> 3.2 | B119: Bedding (New) | C119: 0 | D119: 0 | G119: 0 | H119: 0 | I119: =C119-E119 -> 0 | J119: 0 | Q119: =O119*P119 -> 0 | R119: 0 | S119: 0 | Z119: =X119*Y119 -> 0 | AA119: 0 | AB119: 0
A120: =+A119+0.01 -> 3.21 | B120: Replacement of bedding (once in 3 years) | C120: 0 | D120: 0 | G120: 0 | H120: 0 | I120: =C120-E120 -> 0 | J120: 0 | Q120: =O120*P120 -> 0 | R120: 0 | S120: 0 | Z120: =X120*Y120 -> 0 | AA120: 0 | AB120: 0
B121: Sub Total Non-recurring | C121: =SUM(C117:C120) -> 0 | D121: 0 | E121: 0 | F121: 0 | G121: 0 | H121: 0 | I121: 0 | J121: 0 | K121: 0 | L121: 0 | M121: 0 | N121: 0 | P121: 0 | Q121: 0 | R121: 0 | S121: 0 | T121: 0 | U121: 0 | V121: 0 | W121: 0 | Y121: =SUM(Y117:Y120) -> 0 | Z121: 0 | AA121: 0 | AB121: 0
B122: Recurring | G122: 0 | H122: 0 | I122: =C122-G122 -> 0 | J122: =D122-F122 -> 0
A123: 3.22 | B123: Maintenance per child per month @ Rs. 1500/- | C123: 0 | D123: 0 | G123: 0 | H123: 0 | I123: =C123-E123 -> 0 | J123: 0 | Q123: =O123*P123 -> 0 | R123: =K123+M123+P123 -> 0 | S123: 0 | Z123: =X123*Y123 -> 0 | AA123: =T123+V123+Y123 -> 0 | AB123: =U123+W123+Z123 -> 0
A124: =+A123+0.01 -> 3.23 | B124: Stipend per child per month @ Rs.100/- | C124: 0 | D124: 0 | G124: 0 | H124: 0 | I124: 0 | J124: 0 | Q124: =O124*P124 -> 0 | R124: 0 | S124: 0 | Z124: =X124*Y124 -> 0 | AA124: 0 | AB124: 0
A125: =+A124+0.01 -> 3.24 | B125: Supplementary TLM, Stationery and other educational material per child @1000/- per annum | C125: 0 | D125: 0 | G125: 0 | H125: 0 | I125: 0 | J125: 0 | Q125: =O125*P125 -> 0 | R125: 0 | S125: 0 | Z125: =X125*Y125 -> 0 | AA125: 0 | AB125: 0
B126: Salaries | G126: 0 | H126: 0 | I126: 0 | J126: 0
A127: (a) | B127: 1 Warden @ Rs. 25,000/- per month | C127: 0 | D127: 0 | G127: 0 | H127: 0 | I127: 0 | J127: 0 | Q127: =O127*P127 -> 0 | R127: =K127+M127+P127 -> 0 | S127: 0 | Z127: =X127*Y127 -> 0 | AA127: =T127+V127+Y127 -> 0 | AB127: =U127+W127+Z127 -> 0
A128: (b) | B128: 1 head teacher @ Rs. 25,000/- per month in case the enrollment exceeds 100 | C128: 0 | D128: 0 | G128: 0 | H128: 0 | I128: 0 | J128: 0 | Q128: 0 | R128: 0 | S128: 0 | Z128: 0 | AA128: 0 | AB128: 0
A129: (c) | B129: 4 - 5 Full time teachers as per RTE norms @ Rs. 20,000/- per month per teacher | C129: 0 | D129: 0 | G129: 0 | H129: 0 | I129: 0 | J129: 0 | Q129: 0 | R129: 0 | S129: 0 | Z129: 0 | AA129: 0 | AB129: 0
A130: (d) | B130: 2 Urdu Teachers (only for blocks with muslim population above 20% and select urban areas), if required @ Rs. 12,000/- per month per teacher | C130: 0 | D130: 0 | G130: 0 | H130: 0 | I130: 0 | J130: 0 | Q130: 0 | R130: 0 | S130: 0 | Z130: 0 | AA130: 0 | AB130: 0
A131: (e) | B131: 3 part time teachers @ Rs. 5,000/- per month per teacher | C131: 0 | D131: 0 | G131: 0 | H131: 0 | I131: 0 | J131: 0 | Q131: 0 | R131: 0 | S131: 0 | Z131: 0 | AA131: 0 | AB131: 0
A132: (f) | B132: 1 Full time Accountant @ Rs. 10,000/- per month | C132: 0 | D132: 0 | G132: 0 | H132: 0 | I132: 0 | J132: 0 | Q132: 0 | R132: 0 | S132: 0 | Z132: 0 | AA132: 0 | AB132: 0
A133: 3.25 | B133: 2 Support Staff – (Accountant/ Assistant, Peon, Chowkidar) @ Rs. 5,000/- per month per staff | C133: 0 | D133: 0 | G133: 0 | H133: 0 | I133: 0 | J133: 0 | Q133: 0 | R133: 0 | S133: 0 | Z133: 0 | AA133: 0 | AB133: 0
A134: =+A133+0.01 -> 3.26 | B134: 1 Head cook @ Rs. 6,000/- per month and upto 2 Asstt. Cooks @ Rs. 4,500/- per month per cook | C134: 0 | D134: 0 | G134: 0 | H134: 0 | I134: 0 | J134: 0 | Q134: 0 | R134: 0 | S134: 0 | Z134: 0 | AA134: 0 | AB134: 0
A135: 3.27 | B135: Specific skill training per child @ Rs.1000/- per annum | C135: 0 | D135: 0 | G135: 0 | H135: 0 | I135: 0 | J135: 0 | Q135: 0 | R135: 0 | S135: 0 | Z135: 0 | AA135: 0 | AB135: 0
A136: 3.28 | B136: Electricity / water charges per child @Rs.1000/- per annum | C136: 0 | D136: 0 | G136: 0 | H136: 0 | I136: 0 | J136: 0 | Q136: 0 | R136: 0 | S136: 0 | Z136: 0 | AA136: 0 | AB136: 0
A137: 3.29 | B137: Medical care/contingencies @ Rs.1250/- per child per annum | C137: 0 | D137: 0 | G137: 0 | H137: 0 | I137: 0 | J137: 0 | Q137: 0 | R137: 0 | S137: 0 | Z137: 0 | AA137: 0 | AB137: 0
A138: 3.3 | B138: Maintenance @ Rs.750/- per child per annum | C138: 0 | D138: 0 | G138: 0 | H138: 0 | I138: 0 | J138: 0 | Q138: 0 | R138: 0 | S138: 0 | Z138: 0 | AA138: 0 | AB138: 0
A139: 3.31 | B139: Miscellaneous @ Rs.750/- per child per annum | C139: 0 | D139: 0 | G139: 0 | H139: 0 | I139: 0 | J139: 0 | Q139: 0 | R139: 0 | S139: 0 | Z139: 0 | AA139: 0 | AB139: 0
A140: 3.32 | B140: Preparatory camps @ Rs.200/- per child per annum | C140: 0 | D140: 0 | G140: 0 | H140: 0 | I140: 0 | J140: 0 | Q140: 0 | R140: 0 | S140: 0 | Z140: 0 | AA140: 0 | AB140: 0
A141: 3.33 | B141: P.T.A / school functions @ Rs.200/- per child per annum | C141: 0 | D141: 0 | G141: 0 | H141: 0 | I141: 0 | J141: 0 | Q141: 0 | R141: 0 | S141: 0 | Z141: 0 | AA141: 0 | AB141: 0
A142: 3.34 | B142: Provision of Rent @ Rs. 6000/- per child per annum | C142: 0 | D142: 0 | G142: 0 | H142: 0 | I142: 0 | J142: 0 | Q142: 0 | R142: 0 | S142: 0 | Z142: 0 | AA142: 0 | AB142: 0
A143: 3.35 | B143: Capacity Building @ Rs.500/- per child per annum | C143: 0 | D143: 0 | G143: 0 | H143: 0 | I143: 0 | J143: 0 | Q143: 0 | R143: 0 | S143: 0 | Z143: 0 | AA143: 0 | AB143: 0
A144: 3.36 | B144: Physical / Self Defence training @ Rs. 200/- per child per annum. | C144: 0 | D144: 0 | G144: 0 | H144: 0 | I144: 0 | J144: 0 | Q144: 0 | R144: 0 | S144: 0 | Z144: 0 | AA144: 0 | AB144: 0
B145: Sub Total (Recurring) | C145: =SUM(C123:C144) -> 0 | D145: 0 | E145: 0 | F145: 0 | G145: 0 | H145: 0 | I145: 0 | J145: 0 | K145: 0 | L145: 0 | M145: 0 | N145: 0 | P145: 0 | Q145: 0 | R145: 0 | S145: 0 | T145: 0 | U145: 0 | V145: 0 | W145: 0 | Y145: =SUM(Y123:Y144) -> 0 | Z145: 0 | AA145: 0 | AB145: 0
B146: Total (Recurring + Non Recurring) | C146: =C121+C145 -> 0 | D146: 0 | E146: 0 | F146: 0 | G146: 0 | H146: 0 | I146: 0 | J146: 0 | K146: 0 | L146: 0 | M146: 0 | N146: 0 | P146: 0 | Q146: 0 | R146: 0 | S146: 0 | T146: 0 | U146: 0 | V146: 0 | W146: 0 | Y146: =Y121+Y145 -> 0 | Z146: 0 | AA146: 0 | AB146: 0
A147: 3 | B147: Total (A + B) | C147: =C114+C146 -> 0 | D147: 0 | E147: 0 | F147: 0 | G147: 0 | H147: 0 | I147: 0 | J147: 0 | K147: 0 | L147: 0 | M147: 0 | N147: 0 | P147: 0 | Q147: 0 | R147: 0 | S147: 0 | T147: 0 | U147: 0 | V147: 0 | W147: 0 | Y147: =Y114+Y146 -> 0 | Z147: 0 | AA147: 0 | AB147: 0
A148: 4 | B148: Transport/Escort Facility | G148: 0 | H148: 0 | I148: =C148-G148 -> 0 | J148: =D148-F148 -> 0
A149: 4.01 | B149: Children in remote habitation | C149: 0 | D149: 0 | G149: 0 | H149: 0 | I149: =C149-E149 -> 0 | J149: =D149-F149 -> 0 | O149: 0.03 | P149: 0 | Q149: =O149*P149 -> 0 | R149: =K149+M149+P149 -> 0 | S149: =L149+N149+Q149 -> 0 | X149: 0.03 | Y149: 0 | Z149: =X149*Y149 -> 0 | AA149: =T149+V149+Y149 -> 0 | AB149: =U149+W149+Z149 -> 0
A150: 4.02 | B150: Urban deprived children/children without adult protection | C150: 0 | D150: 0 | G150: 0 | H150: 0 | I150: =C150-E150 -> 0 | J150: =D150-F150 -> 0 | O150: 0.03 | P150: 0 | Q150: =O150*P150 -> 0 | R150: =K150+M150+P150 -> 0 | S150: =L150+N150+Q150 -> 0 | X150: 0.03 | Y150: 0 | Z150: =X150*Y150 -> 0 | AA150: =T150+V150+Y150 -> 0 | AB150: =U150+W150+Z150 -> 0
B151: Total | C151: =SUM(C149:C150) -> 0 | D151: 0 | E151: 0 | F151: 0 | G151: 0 | H151: 0 | I151: 0 | J151: 0 | K151: 0 | L151: 0 | M151: 0 | N151: 0 | P151: 0 | Q151: 0 | R151: 0 | S151: 0 | T151: 0 | U151: 0 | V151: 0 | W151: 0 | Y151: =SUM(Y149:Y150) -> 0 | Z151: 0 | AA151: 0 | AB151: 0
A152: 5 | B152: Reimbursement of Fee against 25% admission under Section 12(1)(c) of RTE Act 2009 (Entry Level) subject to upper limit of 20% of AWP&B subject to guidelines issued by MHRD | D152: 79.94 | F152: =D152 -> 79.94 | G152: 0 | H152: 1 | I152: =C152-E152 -> 0 | J152: =D152-F152 -> 0 | Q152: 768.75041 | R152: =K152+M152+P152 -> 0 | S152: =L152+N152+Q152 -> 768.75041 | Z152: 41.92 | AA152: =T152+V152+Y152 -> 0 | AB152: =U152+W152+Z152 -> 41.92
B153: Total | C153: =C152 -> 0 | D153: 79.94 | E153: 0 | F153: 79.94 | G153: 0 | H153: 1 | I153: 0 | J153: 0 | K153: 0 | L153: 0 | M153: 0 | N153: 0 | O153: 0 | P153: 0 | Q153: 768.75041 | R153: =R152 -> 0 | S153: =S152 -> 768.75041 | T153: 0 | U153: 0 | V153: =V152 -> 0 | W153: 0 | X153: 0 | Y153: =Y152 -> 0 | Z153: 41.92 | AA153: =AA152 -> 0 | AB153: =AB152 -> 41.92
A154: 6 | B154: Special Training for mainstreaming of out of school children | G154: 0 | H154: 0 | I154: =C154-G154 -> 0 | J154: =D154-F154 -> 0
A155: 6.01 | B155: Residential (Fresh) | G155: 0 | H155: 0 | I155: =C155-G155 -> 0 | J155: 0
B156: (a) 12 months | C156: 0 | D156: 0 | G156: 0 | H156: 0 | I156: =C156-E156 -> 0 | J156: 0 | O156: 0.34 | P156: 0 | Q156: =O156*P156 -> 0 | R156: =K156+M156+P156 -> 0 | S156: 0 | X156: 0.2 | Y156: 0 | Z156: =X156*Y156 -> 0 | AA156: =T156+V156+Y156 -> 0 | AB156: =U156+W156+Z156 -> 0
B157: (b) 9 months | C157: 0 | D157: 0 | G157: 0 | H157: 0 | I157: =C157-E157 -> 0 | J157: 0 | Q157: =O157*P157 -> 0 | R157: 0 | S157: 0 | Z157: =X157*Y157 -> 0 | AA157: 0 | AB157: 0
B158: (c) 6 months | C158: 0 | D158: 0 | G158: 0 | H158: 0 | I158: =C158-E158 -> 0 | J158: 0 | Q158: =O158*P158 -> 0 | R158: 0 | S158: 0 | Z158: =X158*Y158 -> 0 | AA158: 0 | AB158: 0
B159: (d) 3 months | C159: 0 | D159: 0 | G159: 0 | H159: 0 | I159: =C159-E159 -> 0 | J159: 0 | Q159: =O159*P159 -> 0 | R159: 0 | S159: 0 | Z159: =X159*Y159 -> 0 | AA159: 0 | AB159: 0
B160: Sub Total | C160: =SUM(C156:C159) -> 0 | D160: 0 | E160: 0 | F160: 0 | G160: =IFERROR(E160/C160,0) -> 0 | H160: 0 | I160: 0 | J160: 0 | K160: 0 | L160: 0 | M160: 0 | N160: 0 | P160: 0 | Q160: 0 | R160: 0 | S160: 0 | T160: 0 | U160: 0 | V160: 0 | W160: 0 | Y160: =SUM(Y156:Y159) -> 0 | Z160: 0 | AA160: 0 | AB160: 0
A161: =+A155+0.01 -> 6.02 | B161: Residential (Continuing from previous year) | G161: 0 | H161: 0 | I161: =C161-G161 -> 0 | J161: =D161-F161 -> 0
B162: (a) 12 months | C162: 0 | D162: 0 | E162: 0 | F162: 0 | G162: 0 | H162: 0 | I162: =C162-E162 -> 0 | J162: =D162-F162 -> 0 | Q162: =O162*P162 -> 0 | R162: =K162+M162+P162 -> 0 | S162: 0 | Z162: =X162*Y162 -> 0 | AA162: =T162+V162+Y162 -> 0 | AB162: =U162+W162+Z162 -> 0
B163: (b) 9 months | C163: 0 | D163: 0 | E163: 0 | F163: 0 | G163: 0 | H163: 0 | I163: =C163-E163 -> 0 | J163: =D163-F163 -> 0 | Q163: =O163*P163 -> 0 | R163: 0 | S163: 0 | Z163: =X163*Y163 -> 0 | AA163: 0 | AB163: 0
B164: (c) 6 months | C164: 0 | D164: 0 | E164: 0 | F164: 0 | G164: 0 | H164: 0 | I164: =C164-E164 -> 0 | J164: =D164-F164 -> 0 | Q164: =O164*P164 -> 0 | R164: 0 | S164: 0 | Z164: =X164*Y164 -> 0 | AA164: 0 | AB164: 0
B165: (d) 3 months | C165: 0 | D165: 0 | E165: 0 | F165: 0 | G165: 0 | H165: 0 | I165: =C165-E165 -> 0 | J165: =D165-F165 -> 0 | Q165: =O165*P165 -> 0 | R165: 0 | S165: 0 | Z165: =X165*Y165 -> 0 | AA165: 0 | AB165: 0
B166: Sub Total | C166: =SUM(C162:C165) -> 0 | D166: 0 | E166: 0 | F166: 0 | G166: 0 | H166: 0 | I166: 0 | J166: 0 | K166: 0 | L166: 0 | M166: 0 | N166: 0 | P166: 0 | Q166: 0 | R166: 0 | S166: 0 | T166: 0 | U166: 0 | V166: 0 | W166: 0 | Y166: =SUM(Y162:Y165) -> 0 | Z166: 0 | AA166: 0 | AB166: 0
A167: 6.03 | B167: Non-Residential (Fresh) | G167: 0 | H167: 0 | I167: =C167-G167 -> 0 | J167: =D167-F167 -> 0
B168: (a) 12 months | C168: 0 | D168: 0 | E168: 0 | F168: 0 | G168: 0 | H168: 0 | I168: =C168-E168 -> 0 | J168: =D168-F168 -> 0 | Q168: =O168*P168 -> 0 | R168: =K168+M168+P168 -> 0 | S168: 0 | Z168: =X168*Y168 -> 0 | AA168: =T168+V168+Y168 -> 0 | AB168: =U168+W168+Z168 -> 0
B169: (b) 9 months | C169: 0 | D169: 0 | E169: 0 | F169: 0 | G169: 0 | H169: 0 | I169: =C169-E169 -> 0 | J169: =D169-F169 -> 0 | Q169: =O169*P169 -> 0 | R169: 0 | S169: 0 | Z169: =X169*Y169 -> 0 | AA169: 0 | AB169: 0
B170: (c) 6 months | C170: 1944 | D170: 58.32 | E170: 1944 | F170: 58.32 | G170: 1 | H170: 1 | I170: =C170-E170 -> 0 | J170: =D170-F170 -> 0 | O170: 0.03 | P170: 2505 | Q170: =O170*P170 -> 75.15 | R170: 2505 | S170: 75.15 | X170: 0.03 | Y170: 2505 | Z170: =X170*Y170 -> 75.15 | AA170: 2505 | AB170: 75.15
B171: (d) 3 months | C171: 0 | D171: 0 | E171: 0 | F171: 0 | G171: 0 | H171: 0 | I171: =C171-E171 -> 0 | J171: =D171-F171 -> 0 | O171: 0.015 | P171: 0 | Q171: =O171*P171 -> 0 | R171: 0 | S171: 0 | X171: 0.015 | Z171: =X171*Y171 -> 0 | AA171: 0 | AB171: 0
B172: Sub Total | C172: =SUM(C168:C171) -> 1944 | D172: 58.32 | E172: 1944 | F172: 58.32 | G172: 1 | H172: 1 | I172: 0 | J172: 0 | K172: 0 | L172: 0 | M172: 0 | N172: 0 | P172: 2505 | Q172: 75.15 | R172: 2505 | S172: 75.15 | T172: 0 | U172: 0 | V172: 0 | W172: 0 | Y172: =SUM(Y168:Y171) -> 2505 | Z172: 75.15 | AA172: 2505 | AB172: 75.15
A173: 6.04 | B173: Non-Residential (Continuing from previous year) | G173: 0 | H173: 0 | I173: =C173-G173 -> 0 | J173: =D173-F173 -> 0
B174: (a) 12 months | C174: 0 | D174: 0 | E174: 0 | F174: 0 | G174: 0 | H174: 0 | I174: =C174-E174 -> 0 | J174: =D174-F174 -> 0 | Q174: =O174*P174 -> 0 | R174: =K174+M174+P174 -> 0 | S174: 0 | Z174: =X174*Y174 -> 0 | AA174: =T174+V174+Y174 -> 0 | AB174: =U174+W174+Z174 -> 0
B175: (b) 9 months | C175: 0 | D175: 0 | E175: 0 | F175: 0 | G175: 0 | H175: 0 | I175: =C175-E175 -> 0 | J175: =D175-F175 -> 0 | Q175: =O175*P175 -> 0 | R175: 0 | S175: 0 | Z175: =X175*Y175 -> 0 | AA175: 0 | AB175: 0
B176: (c) 6 months | C176: 0 | D176: 0 | E176: 0 | F176: 0 | G176: 0 | H176: 0 | I176: =C176-E176 -> 0 | J176: =D176-F176 -> 0 | O176: 0.03 | P176: 324 | Q176: =O176*P176 -> 9.72 | R176: 324 | S176: 9.72 | X176: 0.03 | Z176: =X176*Y176 -> 0 | AA176: 0 | AB176: 0
B177: (d) 3 months | C177: 0 | D177: 0 | E177: 0 | F177: 0 | G177: 0 | H177: 0 | I177: =C177-E177 -> 0 | J177: =D177-F177 -> 0 | Q177: =O177*P177 -> 0 | R177: 0 | S177: 0 | Z177: =X177*Y177 -> 0 | AA177: 0 | AB177: 0
B178: Sub Total | C178: =SUM(C174:C177) -> 0 | D178: 0 | E178: 0 | F178: 0 | G178: 0 | H178: 0 | I178: 0 | J178: 0 | K178: 0 | L178: 0 | M178: 0 | N178: 0 | P178: 324 | Q178: 9.72 | R178: 324 | S178: 9.72 | T178: 0 | U178: 0 | V178: 0 | W178: 0 | Y178: =SUM(Y174:Y177) -> 0 | Z178: 0 | AA178: 0 | AB178: 0
A179: 6.05 | B179: Madarasa/Maktab | G179: 0 | H179: 0 | I179: =C179-G179 -> 0 | J179: =D179-F179 -> 0
B180: (a) 12 months | C180: 0 | D180: 0 | E180: 0 | F180: 0 | G180: 0 | H180: 0 | I180: =C180-E180 -> 0 | J180: =D180-F180 -> 0 | Q180: =O180*P180 -> 0 | R180: =K180+M180+P180 -> 0 | S180: 0 | Z180: =X180*Y180 -> 0 | AA180: =T180+V180+Y180 -> 0 | AB180: =U180+W180+Z180 -> 0
B181: (b) 9 months | C181: 0 | D181: 0 | E181: 0 | F181: 0 | G181: 0 | H181: 0 | I181: =C181-E181 -> 0 | J181: =D181-F181 -> 0 | Q181: =O181*P181 -> 0 | R181: 0 | S181: 0 | Z181: =X181*Y181 -> 0 | AA181: 0 | AB181: 0
B182: (c) 6 months | C182: 25 | D182: 0.75 | E182: 25 | F182: 0.75 | G182: 1 | H182: 1 | I182: =C182-E182 -> 0 | J182: =D182-F182 -> 0 | O182: 0.03 | P182: 0 | Q182: =O182*P182 -> 0 | R182: 0 | S182: 0 | X182: 0.03 | Y182: 324 | Z182: =X182*Y182 -> 9.72 | AA182: 324 | AB182: 9.72
B183: (d) 3 months | C183: 299 | D183: 4.485 | E183: 299 | F183: 4.485 | G183: 1 | H183: 1 | I183: =C183-E183 -> 0 | J183: =D183-F183 -> 0 | O183: 0.015 | Q183: =O183*P183 -> 0 | R183: 0 | S183: 0 | X183: 0.015 | Y183: 0 | Z183: =X183*Y183 -> 0 | AA183: 0 | AB183: 0
B184: Sub Total | C184: =SUM(C180:C183) -> 324 | D184: 5.235 | E184: 324 | F184: 5.235 | G184: 1 | H184: 1 | I184: 0 | J184: 0 | K184: 0 | L184: 0 | M184: 0 | N184: 0 | P184: 0 | Q184: 0 | R184: 0 | S184: 0 | T184: 0 | U184: 0 | V184: 0 | W184: 0 | Y184: =SUM(Y180:Y183) -> 324 | Z184: 9.72 | AA184: 324 | AB184: 9.72
A185: 6.06 | B185: Seasonal Hostel (Residential) | G185: 0 | H185: 0 | I185: =C185-G185 -> 0 | J185: =D185-F185 -> 0
B186: (a) 12 months | C186: 0 | D186: 0 | E186: 0 | F186: 0 | G186: 0 | H186: 0 | I186: =C186-E186 -> 0 | J186: =D186-F186 -> 0 | Q186: =O186*P186 -> 0 | R186: =K186+M186+P186 -> 0 | S186: 0 | Z186: =X186*Y186 -> 0 | AA186: =T186+V186+Y186 -> 0 | AB186: =U186+W186+Z186 -> 0
B187: (b) 9 months | C187: 0 | D187: 0 | E187: 0 | F187: 0 | G187: 0 | H187: 0 | I187: =C187-E187 -> 0 | J187: =D187-F187 -> 0 | Q187: =O187*P187 -> 0 | R187: 0 | S187: 0 | Z187: =X187*Y187 -> 0 | AA187: 0 | AB187: 0
B188: (c) 6 months | C188: 0 | D188: 0 | E188: 0 | F188: 0 | G188: 0 | H188: 0 | I188: =C188-E188 -> 0 | J188: =D188-F188 -> 0 | O188: 0.17 | P188: 0 | Q188: =O188*P188 -> 0 | R188: 0 | S188: 0 | X188: 0.1 | Y188: 0 | Z188: =X188*Y188 -> 0 | AA188: 0 | AB188: 0
B189: (d) 3 months | C189: 0 | D189: 0 | E189: 0 | F189: 0 | G189: 0 | H189: 0 | I189: =C189-E189 -> 0 | J189: =D189-F189 -> 0 | Q189: =O189*P189 -> 0 | R189: 0 | S189: 0 | Z189: =X189*Y189 -> 0 | AA189: 0 | AB189: 0
B190: Sub Total | C190: =SUM(C186:C189) -> 0 | D190: 0 | E190: 0 | F190: 0 | G190: 0 | H190: 0 | I190: 0 | J190: 0 | K190: 0 | L190: 0 | M190: 0 | N190: 0 | P190: 0 | Q190: 0 | R190: 0 | S190: 0 | T190: 0 | U190: 0 | V190: 0 | W190: 0 | Y190: =SUM(Y186:Y189) -> 0 | Z190: 0 | AA190: 0 | AB190: 0
A191: 6.07 | B191: Seasonal Hostel | G191: 0 | H191: 0 | I191: =C191-G191 -> 0 | J191: =D191-F191 -> 0
B192: (a) 12 months | C192: 0 | D192: 0 | E192: 0 | F192: 0 | G192: 0 | H192: 0 | I192: =C192-E192 -> 0 | J192: =D192-F192 -> 0 | Q192: =O192*P192 -> 0 | R192: =K192+M192+P192 -> 0 | S192: 0 | Z192: =X192*Y192 -> 0 | AA192: =T192+V192+Y192 -> 0 | AB192: =U192+W192+Z192 -> 0
B193: (b) 9 months | C193: 0 | D193: 0 | E193: 0 | F193: 0 | G193: 0 | H193: 0 | I193: =C193-E193 -> 0 | J193: =D193-F193 -> 0 | Q193: =O193*P193 -> 0 | R193: 0 | S193: 0 | Z193: =X193*Y193 -> 0 | AA193: 0 | AB193: 0
B194: (c) 6 months | C194: 44527 | D194: 3784.795 | E194: 44527 | F194: 3784.795 | G194: 1 | H194: 1 | I194: =C194-E194 -> 0 | J194: =D194-F194 -> 0 | O194: 0.1 | P194: 42394 | Q194: =O194*P194 -> 4239.4 | R194: 42394 | S194: 4239.4 | X194: 0.1 | Y194: 42394 | Z194: =X194*Y194 -> 4239.4 | AA194: 42394 | AB194: 4239.4
B195: (d) 3 months | C195: 0 | D195: 0 | E195: 0 | F195: 0 | G195: 0 | H195: 0 | I195: =C195-E195 -> 0 | J195: =D195-F195 -> 0 | Q195: =O195*P195 -> 0 | R195: 0 | S195: 0 | Z195: =X195*Y195 -> 0 | AA195: 0 | AB195: 0
B196: Sub Total | C196: =SUM(C192:C195) -> 44527 | D196: 3784.795 | E196: 44527 | F196: 3784.795 | G196: 1 | H196: 1 | I196: 0 | J196: 0 | K196: 0 | L196: 0 | M196: 0 | N196: 0 | P196: 42394 | Q196: 4239.4 | R196: 42394 | S196: 4239.4 | T196: 0 | U196: 0 | V196: 0 | W196: 0 | Y196: =SUM(Y192:Y195) -> 42394 | Z196: 4239.4 | AA196: 42394 | AB196: 4239.4
B197: Total | C197: =C160+C166+C172+C178+C184+C190+C196 -> 46795 | D197: 3848.35 | E197: 46795 | F197: 3848.35 | G197: 1 | H197: 1 | I197: 0 | J197: 0 | K197: 0 | L197: 0 | M197: 0 | N197: 0 | P197: =P160+P166+P172+P178+P184+P190+P196 -> 45223 | Q197: 4324.27 | R197: 45223 | S197: 4324.27 | T197: 0 | U197: 0 | V197: 0 | W197: 0 | Y197: =Y160+Y166+Y172+Y178+Y184+Y190+Y196 -> 45223 | Z197: =Z160+Z166+Z172+Z178+Z184+Z190+Z196 -> 4324.27 | AA197: 45223 | AB197: 4324.27
A198: II | B198: RETENTION | G198: 0 | H198: 0 | I198: =C198-G198 -> 0 | J198: =D198-F198 -> 0
A199: 7 | B199: Free Text Books | G199: 0 | H199: 0 | I199: =C199-G199 -> 0 | J199: 0
A200: 7.01 | B200: Free Text Books (P) | G200: 0 | H200: 0 | I200: =C200-G200 -> 0 | J200: 0
B201: (a) Class I & II | C201: 100585 | D201: 150.8775 | E201: 100585 | F201: 150.8775 | G201: 1 | H201: 1 | I201: =C201-E201 -> 0 | J201: 0 | O201: 0.0015 | P201: 95280 | Q201: =O201*P201 -> 142.92 | R201: =K201+M201+P201 -> 95280 | S201: =L201+N201+Q201 -> 142.92 | X201: 0.0015 | Y201: 95280 | Z201: =X201*Y201 -> 142.92 | AA201: =T201+V201+Y201 -> 95280 | AB201: =U201+W201+Z201 -> 142.92
B202: (b) Braille Books Class I & II | C202: 16 | D202: 0.024 | E202: 16 | F202: 0.024 | G202: 1 | H202: 1 | I202: 0 | J202: 0 | O202: 0.0015 | P202: 7 | Q202: =O202*P202 -> 0.0105 | R202: =K202+M202+P202 -> 7 | S202: 0.0105 | X202: 0.0015 | Y202: 7 | Z202: =X202*Y202 -> 0.0105 | AA202: =T202+V202+Y202 -> 7 | AB202: =U202+W202+Z202 -> 0.0105
... 318 more rows

Sheet Bhandara
A1: Sarva Shiksha Abhiyan & KGBV - Annual Workplan and Budget 2017-18
A3: District : | B3: Bhandara | K3: (Rs. In Lakh) | T3: (Rs. In Lakh)
A5: S.No. | B5: Activity | C5: Year 2016-17 | K5: Outlay Proposed for 2017-18 | T5: Outlay Recommended for 2017-18 | AC5: Remarks
C6: Outlay approved by PAB (including spillover) | E6: Achievement | I6: Savings | K6: Spill Over | M6: Deferred laibility of 2014-15 | O6: Fresh | R6: Total | T6: Spill Over | V6: Deferred laibility of 2014-15 | X6: Fresh | AA6: Total
C7: Phy. | D7: Fin | E7: Phy. | F7: Fin. | G7: Phy. (%) | H7: Fin. (%) | I7: Phy. | J7: Fin. | K7: Phy. | L7: Fin. | M7: Phy. | N7: Fin. | O7: Unit Cost | P7: Phy. | Q7: Fin. | R7: Phy. | S7: Fin. | T7: Phy. | U7: Fin. | V7: Phy. | W7: Fin. | X7: Unit Cost | Y7: Phy. | Z7: Fin. | AA7: Phy. | AB7: Fin.
A8: I | B8: ACCESS | I8: =C8-G8 -> 0 | J8: =D8-F8 -> 0
B9: SSA | I9: =C9-G9 -> 0 | J9: 0
A10: 1 | B10: Opening of New Schools | I10: =C10-G10 -> 0 | J10: 0
A11: 1.01 | B11: New Primary School | C11: 0 | D11: 0 | G11: =IFERROR(E11/C11,0) -> 0 | H11: 0 | I11: =C11-E11 -> 0 | J11: 0 | Q11: =O11*P11 -> 0 | R11: =K11+M11+P11 -> 0 | S11: 0 | Z11: =X11*Y11 -> 0 | AA11: =T11+V11+Y11 -> 0 | AB11: =U11+W11+Z11 -> 0
A12: 1.02 | B12: Upgradation of PS to UPS | C12: 0 | D12: 0 | G12: 0 | H12: 0 | I12: 0 | J12: 0 | Q12: 0 | R12: 0 | S12: 0 | Z12: 0 | AA12: 0 | AB12: 0
A13: 1.03 | B13: Composite Schools | C13: 0 | D13: 0 | G13: 0 | H13: 0 | I13: 0 | J13: 0 | Q13: 0 | R13: 0 | S13: 0 | Z13: 0 | AA13: 0 | AB13: 0
A14: 1.04 | B14: Residential schools for specific category of children | C14: 0 | D14: 0 | G14: 0 | H14: 0 | I14: 0 | J14: 0 | Q14: 0 | R14: 0 | S14: 0 | Z14: 0 | AA14: 0 | AB14: 0
A15: 1.05 | B15: Residential Hostel | C15: 0 | D15: 0 | G15: 0 | H15: 0 | I15: 0 | J15: 0 | Q15: 0 | R15: 0 | S15: 0 | Z15: 0 | AA15: 0 | AB15: 0
A16: 1.06 | B16: Integration of Class V with primary schools | C16: 0 | D16: 0 | G16: 0 | H16: 0 | I16: 0 | J16: 0 | Q16: 0 | R16: 0 | S16: 0 | Z16: 0 | AA16: 0 | AB16: 0
A17: 1.07 | B17: Integration of Class VIII with upper primary schools | C17: 0 | D17: 0 | G17: 0 | H17: 0 | I17: 0 | J17: 0 | Q17: 0 | R17: 0 | S17: 0 | Z17: 0 | AA17: 0 | AB17: 0
A18: 2 | B18: Residential Schools for specific category of children | G18: 0 | H18: 0 | I18: =C18-G18 -> 0 | J18: 0
A19: I | B19: 50 children | G19: 0 | H19: 0 | I19: =C19-G19 -> 0 | J19: 0
A20: (A) | B20: Non-recurring (one time grant) | G20: 0 | H20: 0 | I20: =C20-G20 -> 0 | J20: 0
A21: 2.01 | B21: Furniture/ Equipment (including kitchen) | C21: 0 | D21: 0 | G21: 0 | H21: 0 | I21: =C21-E21 -> 0 | J21: 0 | Q21: =O21*P21 -> 0 | R21: =K21+M21+P21 -> 0 | S21: 0 | Z21: =X21*Y21 -> 0 | AA21: =T21+V21+Y21 -> 0 | AB21: =U21+W21+Z21 -> 0
A22: 2.02 | B22: TLM and equipment including library books | C22: 0 | D22: 0 | G22: 0 | H22: 0 | I22: =C22-E22 -> 0 | J22: 0 | Q22: =O22*P22 -> 0 | R22: 0 | S22: 0 | Z22: =X22*Y22 -> 0 | AA22: 0 | AB22: 0
A23: 2.03 | B23: Bedding (new) | C23: 0 | D23: 0 | G23: 0 | H23: 0 | I23: =C23-E23 -> 0 | J23: 0 | Q23: =O23*P23 -> 0 | R23: 0 | S23: 0 | Z23: =X23*Y23 -> 0 | AA23: 0 | AB23: 0
A24: 2.04 | B24: Replacement of bedding (once in 3 years) | C24: 0 | D24: 0 | G24: 0 | H24: 0 | I24: =C24-E24 -> 0 | J24: 0 | Q24: =O24*P24 -> 0 | R24: 0 | S24: 0 | Z24: =X24*Y24 -> 0 | AA24: 0 | AB24: 0
B25: Sub Total (Non Recurring) | C25: =SUM(C21:C24) -> 0 | D25: 0 | E25: 0 | F25: 0 | G25: 0 | H25: 0 | I25: 0 | J25: 0 | K25: 0 | L25: 0 | M25: 0 | N25: 0 | P25: 0 | Q25: 0 | R25: 0 | S25: 0 | T25: 0 | U25: 0 | V25: 0 | W25: 0 | Y25: =SUM(Y21:Y24) -> 0 | Z25: 0 | AA25: 0 | AB25: 0
A26: (B) | B26: Recurring (50 children) | G26: 0 | H26: 0 | I26: =C26-G26 -> 0 | J26: =D26-F26 -> 0
A27: 2.05 | B27: Maintenance per child Per month @ Rs.1500/- | C27: 0 | D27: 0 | G27: 0 | H27: 0 | I27: =C27-E27 -> 0 | J27: 0 | Q27: =O27*P27 -> 0 | R27: =K27+M27+P27 -> 0 | S27: 0 | Z27: =X27*Y27 -> 0 | AA27: =T27+V27+Y27 -> 0 | AB27: =U27+W27+Z27 -> 0
A28: 2.06 | B28: Stipend per child per month @ Rs.100/- | C28: 0 | D28: 0 | G28: 0 | H28: 0 | I28: 0 | J28: 0 | Q28: =O28*P28 -> 0 | R28: 0 | S28: 0 | Z28: =X28*Y28 -> 0 | AA28: 0 | AB28: 0
A29: 2.07 | B29: Supplementary TLM, Stationery and other educational material @Rs.1000/- per child per annum | C29: 0 | D29: 0 | G29: 0 | H29: 0 | I29: 0 | J29: 0 | Q29: =O29*P29 -> 0 | R29: 0 | S29: 0 | Z29: =X29*Y29 -> 0 | AA29: 0 | AB29: 0
A30: 2.08 | B30: Salaries | G30: 0 | H30: 0 | I30: 0 | J30: 0
A31: (a) | B31: 1 Warden @ Rs.25000/- per month | C31: 0 | D31: 0 | G31: 0 | H31: 0 | I31: 0 | J31: 0 | Q31: =O31*P31 -> 0 | R31: =K31+M31+P31 -> 0 | S31: 0 | Z31: =X31*Y31 -> 0 | AA31: =T31+V31+Y31 -> 0 | AB31: =U31+W31+Z31 -> 0
A32: (b) | B32: 4 Fulltime teachers as per RTE Norms @ Rs. 20,000/- per month per teacher | C32: 0 | D32: 0 | G32: 0 | H32: 0 | I32: 0 | J32: 0 | Q32: 0 | R32: 0 | S32: 0 | Z32: 0 | AA32: 0 | AB32: 0
A33: (c) | B33: 2 Urdu Teachers (only for Blocks with muslim population above 20% and select urban areas) @ Rs.12,000/- per month per teacher. | C33: 0 | D33: 0 | G33: 0 | H33: 0 | I33: 0 | J33: 0 | Q33: 0 | R33: 0 | S33: 0 | Z33: 0 | AA33: 0 | AB33: 0
A34: (d) | B34: 3 Part time teachers @ Rs.5,000/- per month per teacher | C34: 0 | D34: 0 | G34: 0 | H34: 0 | I34: 0 | J34: 0 | Q34: 0 | R34: 0 | S34: 0 | Z34: 0 | AA34: 0 | AB34: 0
A35: (e) | B35: 1 Full time Accountant @ Rs. 10,000/- per month | C35: 0 | D35: 0 | G35: 0 | H35: 0 | I35: 0 | J35: 0 | Q35: 0 | R35: 0 | S35: 0 | Z35: 0 | AA35: 0 | AB35: 0
A36: (f) | B36: 2 Support staff - (Accountant/Assistant, Peon, Chowkidar) @ Rs. 5,000/- per month per staff | C36: 0 | D36: 0 | G36: 0 | H36: 0 | I36: 0 | J36: 0 | Q36: 0 | R36: 0 | S36: 0 | Z36: 0 | AA36: 0 | AB36: 0
A37: (g) | B37: 1 Head Cook @ Rs. 6,000/- per month and upto 2 Asstt. Cooks @ Rs. 4,500/- per month per cook | C37: 0 | D37: 0 | G37: 0 | H37: 0 | I37: 0 | J37: 0 | Q37: 0 | R37: 0 | S37: 0 | Z37: 0 | AA37: 0 | AB37: 0
A38: 2.09 | B38: Specific Skill training @ Rs.1000/- per annum per child | C38: 0 | D38: 0 | G38: 0 | H38: 0 | I38: 0 | J38: 0 | Q38: 0 | R38: 0 | S38: 0 | Z38: 0 | AA38: 0 | AB38: 0
A39: 2.1 | B39: Electricity / water charges @ Rs. 1000/- per annum per child | C39: 0 | D39: 0 | G39: 0 | H39: 0 | I39: 0 | J39: 0 | Q39: 0 | R39: 0 | S39: 0 | Z39: 0 | AA39: 0 | AB39: 0
A40: 2.11 | B40: Medical care/contingencies @ Rs.1250/- per annum per child | C40: 0 | D40: 0 | G40: 0 | H40: 0 | I40: 0 | J40: 0 | Q40: 0 | R40: 0 | S40: 0 | Z40: 0 | AA40: 0 | AB40: 0
A41: =+A40+0.01 -> 2.12 | B41: Maintenance @ Rs. 750/- per child per annum | C41: 0 | D41: 0 | G41: 0 | H41: 0 | I41: 0 | J41: 0 | Q41: 0 | R41: 0 | S41: 0 | Z41: 0 | AA41: 0 | AB41: 0
A42: 2.13 | B42: Miscellaneous @ Rs. 750/- per child per annum | C42: 0 | D42: 0 | G42: 0 | H42: 0 | I42: 0 | J42: 0 | Q42: 0 | R42: 0 | S42: 0 | Z42: 0 | AA42: 0 | AB42: 0
A43: 2.14 | B43: Preparatory camps @ Rs. 300/- per child per annum | C43: 0 | D43: 0 | G43: =IFERROR(E43/C43,0) -> 0 | H43: 0 | I43: 0 | J43: 0 | Q43: 0 | R43: 0 | S43: 0 | Z43: 0 | AA43: 0 | AB43: 0
A44: 2.15 | B44: P.T.A / school functions @ Rs. 300/- per child per annum | C44: 0 | D44: 0 | G44: 0 | H44: 0 | I44: 0 | J44: 0 | Q44: 0 | R44: 0 | S44: 0 | Z44: 0 | AA44: 0 | AB44: 0
A45: 2.16 | B45: Provision of Rent @ Rs. 10,000/- per child per annum | C45: 0 | D45: 0 | G45: 0 | H45: 0 | I45: 0 | J45: 0 | Q45: 0 | R45: 0 | S45: 0 | Z45: 0 | AA45: 0 | AB45: 0
A46: 2.17 | B46: Capacity Building @ Rs. 500/- per child per annum | C46: 0 | D46: 0 | G46: 0 | H46: 0 | I46: 0 | J46: 0 | Q46: 0 | R46: 0 | S46: 0 | Z46: 0 | AA46: 0 | AB46: 0
A47: 2.18 | B47: Physical / Self Defence Training @ Rs.200/- per child per annum | C47: 0 | D47: 0 | G47: 0 | H47: 0 | I47: 0 | J47: 0 | Q47: 0 | R47: 0 | S47: 0 | Z47: 0 | AA47: 0 | AB47: 0
B48: Sub Total (Recurring) | C48: =SUM(C27:C47) -> 0 | D48: 0 | E48: 0 | F48: 0 | G48: 0 | H48: 0 | I48: 0 | J48: 0 | K48: 0 | L48: 0 | M48: 0 | N48: 0 | P48: 0 | Q48: 0 | R48: 0 | S48: 0 | T48: 0 | U48: 0 | V48: 0 | W48: 0 | Y48: =SUM(Y27:Y47) -> 0 | Z48: 0 | AA48: 0 | AB48: 0
B49: Total (Non Recurring + Recurring) | C49: =C25+C48 -> 0 | D49: 0 | E49: 0 | F49: 0 | G49: 0 | H49: 0 | I49: 0 | J49: 0 | K49: 0 | L49: 0 | M49: 0 | N49: 0 | P49: 0 | Q49: 0 | R49: 0 | S49: 0 | T49: 0 | U49: 0 | V49: 0 | W49: 0 | Y49: =Y25+Y48 -> 0 | Z49: 0 | AA49: 0 | AB49: 0
A50: II | B50: 100 children | G50: 0 | H50: 0 | I50: =C50-G50 -> 0 | J50: =D50-F50 -> 0
A51: (A) | B51: Non-recurring (one time grant) | G51: 0 | H51: 0 | I51: =C51-G51 -> 0 | J51: 0
A52: 2.19 | B52: Furniture / Equipment (including kitchen equipment) | C52: 0 | D52: 0 | G52: 0 | H52: 0 | I52: =C52-E52 -> 0 | J52: 0 | Q52: =O52*P52 -> 0 | R52: =K52+M52+P52 -> 0 | S52: 0 | Z52: =X52*Y52 -> 0 | AA52: =T52+V52+Y52 -> 0 | AB52: =U52+W52+Z52 -> 0
A53: =+A52+0.01 -> 2.2 | B53: TLM and equipment including library books (New) | C53: 0 | D53: 0 | G53: 0 | H53: 0 | I53: =C53-E53 -> 0 | J53: 0 | Q53: =O53*P53 -> 0 | R53: 0 | S53: 0 | Z53: =X53*Y53 -> 0 | AA53: 0 | AB53: 0
A54: =+A53+0.01 -> 2.21 | B54: Bedding (New) | C54: 0 | D54: 0 | G54: 0 | H54: 0 | I54: =C54-E54 -> 0 | J54: 0 | Q54: =O54*P54 -> 0 | R54: 0 | S54: 0 | Z54: =X54*Y54 -> 0 | AA54: 0 | AB54: 0
